Workbook

Sheet Feuil1 (hidden)
C1: FC1 40 | D1: FC1 44 | E1: FC1 48 | F1: FC1 53 | G1: FC1 58 | H1: FC1 63 | I1: FC1 69 | J1: FC1 +69 | K1: FC2 44 | L1: FC2 48 | M1: FC2 53 | N1: FC2 58 | O1: FC2 63 | P1: FC2 69 | Q1: FC2 +69 | R1: FJ48 | S1: FJ53 | T1: FJ58 | U1: FJ63 | V1: FJ69 | W1: FJ75 | X1: FJ+75 | Y1: FS48 | Z1: FS53 | AA1: FS58 | AB1: FS63 | AC1: FS69 | AD1: FS75 | AE1: FS+75 | AF1: C1 45 | AG1: C1 50 | AH1: C1 56 | AI1: C1 62 | AJ1: C1 69 | AK1: C1 77 | AL1: C1 85 | AM1: C1 94 | AN1: C1 +94 | AO1: C2 50 | AP1: C2 56 | AQ1: C2 62 | AR1: C2 69 | AS1: C2 77 | AT1: C2 85 | AU1: C2 94 | AV1: C2 +94 | AW1: J56 | AX1: J62 | AY1: J69 | AZ1: J77 | BA1: J85 | BB1: J94 | BC1: J105 | BD1: J+105 | BE1: S56 | BF1: S62 | BG1: S69 | BH1: S77 | BI1: S85 | BJ1: S94 | BK1: S105 | BL1: S+105
B2: DEBUTANT | C2: 20 | D2: 25 | E2: 30 | F2: 35 | G2: 40 | H2: 45 | I2: 50 | J2: 60 | K2: 30 | L2: 35 | M2: 45 | N2: 50 | O2: 55 | P2: 60 | Q2: 70 | R2: 45 | S2: 55 | T2: 60 | U2: 65 | V2: 70 | W2: 80 | X2: 90 | Y2: 55 | Z2: 65 | AA2: 70 | AB2: 75 | AC2: 80 | AD2: 95 | AE2: 100 | AF2: 35 | AG2: 40 | AH2: 50 | AI2: 75 | AJ2: 85 | AK2: 90 | AL2: 100 | AM2: 110 | AN2: 120 | AO2: 45 | AP2: 65 | AQ2: 85 | AR2: 95 | AS2: 110 | AT2: 120 | AU2: 125 | AV2: 135 | AW2: 80 | AX2: 90 | AY2: 110 | AZ2: 130 | BA2: 145 | BB2: 150 | BC2: 155 | BD2: 165 | BE2: 95 | BF2: 120 | BG2: 130 | BH2: 150 | BI2: 165 | BJ2: 170 | BK2: 175 | BL2: 185
B3: DEPARTEMENTAL | C3: 25 | D3: 30 | E3: 35 | F3: 45 | G3: 50 | H3: 55 | I3: 60 | J3: 70 | K3: 40 | L3: 45 | M3: 55 | N3: 60 | O3: 65 | P3: 70 | Q3: 80 | R3: 55 | S3: 65 | T3: 70 | U3: 75 | V3: 80 | W3: 95 | X3: 100 | Y3: 65 | Z3: 75 | AA3: 80 | AB3: 85 | AC3: 90 | AD3: 105 | AE3: 110 | AF3: 50 | AG3: 55 | AH3: 70 | AI3: 95 | AJ3: 105 | AK3: 110 | AL3: 120 | AM3: 130 | AN3: 140 | AO3: 65 | AP3: 85 | AQ3: 105 | AR3: 115 | AS3: 130 | AT3: 140 | AU3: 145 | AV3: 155 | AW3: 100 | AX3: 120 | AY3: 130 | AZ3: 150 | BA3: 165 | BB3: 170 | BC3: 175 | BD3: 185 | BE3: 115 | BF3: 135 | BG3: 150 | BH3: 170 | BI3: 185 | BJ3: 190 | BK3: 195 | BL3: 205
B4: REGIONAL | C4: 35 | D4: 40 | E4: 45 | F4: 55 | G4: 60 | H4: 65 | I4: 70 | J4: 80 | K4: 50 | L4: 55 | M4: 65 | N4: 70 | O4: 75 | P4: 80 | Q4: 95 | R4: 65 | S4: 75 | T4: 80 | U4: 85 | V4: 90 | W4: 105 | X4: 110 | Y4: 75 | Z4: 85 | AA4: 90 | AB4: 95 | AC4: 105 | AD4: 115 | AE4: 125 | AF4: 60 | AG4: 65 | AH4: 85 | AI4: 105 | AJ4: 115 | AK4: 130 | AL4: 140 | AM4: 145 | AN4: 155 | AO4: 80 | AP4: 100 | AQ4: 120 | AR4: 130 | AS4: 150 | AT4: 160 | AU4: 165 | AV4: 175 | AW4: 115 | AX4: 135 | AY4: 150 | AZ4: 170 | BA4: 185 | BB4: 190 | BC4: 195 | BD4: 205 | BE4: 130 | BF4: 150 | BG4: 170 | BH4: 190 | BI4: 205 | BJ4: 215 | BK4: 220 | BL4: 225
B5: INTERREGIONAL | C5: 45 | D5: 50 | E5: 55 | F5: 65 | G5: 70 | H5: 75 | I5: 80 | J5: 95 | K5: 60 | L5: 65 | M5: 75 | N5: 80 | O5: 85 | P5: 90 | Q5: 105 | R5: 75 | S5: 85 | T5: 90 | U5: 95 | V5: 105 | W5: 115 | X5: 125 | Y5: 85 | Z5: 95 | AA5: 100 | AB5: 110 | AC5: 120 | AD5: 130 | AE5: 140 | AF5: 75 | AG5: 80 | AH5: 100 | AI5: 120 | AJ5: 130 | AK5: 150 | AL5: 160 | AM5: 165 | AN5: 175 | AO5: 95 | AP5: 115 | AQ5: 135 | AR5: 150 | AS5: 170 | AT5: 180 | AU5: 185 | AV5: 195 | AW5: 130 | AX5: 150 | AY5: 170 | AZ5: 190 | BA5: 205 | BB5: 215 | BC5: 220 | BD5: 225 | BE5: 145 | BF5: 170 | BG5: 190 | BH5: 210 | BI5: 225 | BJ5: 235 | BK5: 245 | BL5: 250
B6: FEDERAL | C6: 50 | D6: 60 | E6: 65 | F6: 75 | G6: 80 | H6: 85 | I6: 90 | J6: 105 | K6: 70 | L6: 75 | M6: 85 | N6: 90 | O6: 95 | P6: 105 | Q6: 115 | R6: 85 | S6: 95 | T6: 100 | U6: 110 | V6: 120 | W6: 130 | X6: 140 | Y6: 95 | Z6: 105 | AA6: 115 | AB6: 125 | AC6: 135 | AD6: 145 | AE6: 150 | AF6: 90 | AG6: 95 | AH6: 115 | AI6: 135 | AJ6: 150 | AK6: 170 | AL6: 180 | AM6: 185 | AN6: 195 | AO6: 110 | AP6: 130 | AQ6: 150 | AR6: 170 | AS6: 185 | AT6: 200 | AU6: 210 | AV6: 220 | AW6: 145 | AX6: 170 | AY6: 190 | AZ6: 210 | BA6: 225 | BB6: 235 | BC6: 245 | BD6: 250 | BE6: 170 | BF6: 190 | BG6: 220 | BH6: 240 | BI6: 250 | BJ6: 260 | BK6: 270 | BL6: 280
B7: NATIONAL | C7: 60 | D7: 70 | E7: 75 | F7: 85 | G7: 90 | H7: 95 | I7: 105 | J7: 115 | K7: 80 | L7: 85 | M7: 95 | N7: 100 | O7: 110 | P7: 120 | Q7: 130 | R7: 95 | S7: 105 | T7: 115 | U7: 125 | V7: 135 | W7: 145 | X7: 150 | Y7: 110 | Z7: 120 | AA7: 130 | AB7: 140 | AC7: 150 | AD7: 160 | AE7: 170 | AF7: 105 | AG7: 110 | AH7: 130 | AI7: 150 | AJ7: 170 | AK7: 185 | AL7: 200 | AM7: 210 | AN7: 220 | AO7: 120 | AP7: 145 | AQ7: 170 | AR7: 190 | AS7: 200 | AT7: 220 | AU7: 225 | AV7: 235 | AW7: 170 | AX7: 190 | AY7: 220 | AZ7: 240 | BA7: 250 | BB7: 260 | BC7: 270 | BD7: 280 | BE7: 190 | BF7: 210 | BG7: 240 | BH7: 265 | BI7: 280 | BJ7: 290 | BK7: 300 | BL7: 310
B8: INTERNATIONAL B | C8: 70 | D8: 80 | E8: 85 | F8: 95 | G8: 100 | H8: 110 | I8: 120 | J8: 130 | K8: 90 | L8: 95 | M8: 105 | N8: 115 | O8: 125 | P8: 135 | Q8: 145 | R8: 110 | S8: 120 | T8: 130 | U8: 140 | V8: 150 | W8: 160 | X8: 170 | Y8: 125 | Z8: 140 | AA8: 150 | AB8: 160 | AC8: 170 | AD8: 180 | AE8: 190 | AF8: 115 | AG8: 120 | AH8: 145 | AI8: 170 | AJ8: 190 | AK8: 200 | AL8: 220 | AM8: 225 | AN8: 235 | AO8: 135 | AP8: 170 | AQ8: 190 | AR8: 210 | AS8: 220 | AT8: 240 | AU8: 250 | AV8: 260 | AW8: 190 | AX8: 210 | AY8: 240 | AZ8: 260 | BA8: 280 | BB8: 290 | BC8: 300 | BD8: 310 | BE8: 210 | BF8: 230 | BG8: 260 | BH8: 285 | BI8: 300 | BJ8: 310 | BK8: 325 | BL8: 330
B9: INTERNATIONAL A | C9: 80 | D9: 90 | E9: 95 | F9: 105 | G9: 115 | H9: 125 | I9: 135 | J9: 145 | K9: 100 | L9: 110 | M9: 120 | N9: 130 | O9: 140 | P9: 150 | Q9: 160 | R9: 125 | S9: 135 | T9: 150 | U9: 160 | V9: 170 | W9: 180 | X9: 190 | Y9: 140 | Z9: 160 | AA9: 170 | AB9: 180 | AC9: 190 | AD9: 195 | AE9: 210 | AF9: 130 | AG9: 135 | AH9: 170 | AI9: 190 | AJ9: 210 | AK9: 220 | AL9: 240 | AM9: 250 | AN9: 260 | AO9: 150 | AP9: 190 | AQ9: 210 | AR9: 230 | AS9: 250 | AT9: 260 | AU9: 280 | AV9: 280 | AW9: 210 | AX9: 230 | AY9: 250 | AZ9: 285 | BA9: 300 | BB9: 310 | BC9: 325 | BD9: 330 | BE9: 225 | BF9: 255 | BG9: 275 | BH9: 305 | BI9: 325 | BJ9: 330 | BK9: 345 | BL9: 355
B10: OLYMPIQUE | C10: 1000 | D10: 1000 | E10: 1000 | F10: 1000 | G10: 1000 | H10: 1000 | I10: 1000 | J10: 1000 | K10: 1000 | L10: 1000 | M10: 1000 | N10: 1000 | O10: 1000 | P10: 1000 | Q10: 1000 | R10: 1000 | S10: 1000 | T10: 1000 | U10: 1000 | V10: 1000 | W10: 1000 | X10: 1000 | Y10: 155 | Z10: 175 | AA10: 190 | AB10: 200 | AC10: 205 | AD10: 210 | AE10: 225 | AF10: 1000 | AG10: 1000 | AH10: 1000 | AI10: 1000 | AJ10: 1000 | AK10: 1000 | AL10: 10000 | AM10: 1000 | AN10: 1000 | AO10: 1000 | AP10: 1000 | AQ10: 1000 | AR10: 1000 | AS10: 1000 | AT10: 10000 | AU10: 1000 | AV10: 1000 | AW10: 1000 | AX10: 1000 | AY10: 1000 | AZ10: 10000 | BA10: 1000 | BB10: 1000 | BC10: 1000 | BD10: 10000 | BE10: 240 | BF10: 270 | BG10: 290 | BH10: 320 | BI10: 345 | BJ10: 355 | BK10: 365 | BL10: 375
B11: MINIME | C11: CADET | D11: CADET | E11: JUNIOR | F11: SENIOR | H11: MINIME | I11: CADETTE | J11: CADETTE | K11: JUNIOR | L11: SENIOR
A12: 20.01 | B12: NON | C12: C1 45 | D12: C2 50 | E12: J56 | F12: S56 | G12: 20.01 | H12: NON | I12: FC1 40 | J12: FC2 44 | K12: FJ48 | L12: FS48
A13: 34.01 | B13: NON | C13: C1 45 | D13: C2 50 | E13: J56 | F13: S56 | G13: 30.01 | H13: NON | I13: FC1 40 | J13: FC2 44 | K13: FJ48 | L13: FS48
A14: 38.01 | B14: NON | C14: C1 45 | D14: C2 50 | E14: J56 | F14: S56 | G14: 35.01 | H14: NON | I14: FC1 40 | J14: FC2 44 | K14: FJ48 | L14: FS48
A15: 40.01 | B15: NON | C15: C1 45 | D15: C2 50 | E15: J56 | F15: S56 | G15: 36.01 | H15: NON | I15: FC1 40 | J15: FC2 44 | K15: FJ48 | L15: FS48
A16: 45.01 | B16: NON | C16: C1 50 | D16: C2 50 | E16: J56 | F16: S56 | G16: 40.01 | H16: NON | I16: FC1 44 | J16: FC2 44 | K16: FJ48 | L16: FS48
A17: 50.01 | B17: NON | C17: C1 56 | D17: C2 56 | E17: J56 | F17: S56 | G17: 44.01 | H17: NON | I17: FC1 48 | J17: FC2 48 | K17: FJ48 | L17: FS48
A18: 52.05 | B18: NON | C18: C1 56 | D18: C2 56 | E18: J56 | F18: S56 | G18: 48.01 | H18: NON | I18: FC1 53 | J18: FC2 53 | K18: FJ53 | L18: FS53
A19: 56.01 | B19: NON | C19: C1 62 | D19: C2 62 | E19: J62 | F19: S62 | G19: 53.01 | H19: NON | I19: FC1 58 | J19: FC2 58 | K19: FJ58 | L19: FS58
A20: 62.01 | B20: NON | C20: C1 69 | D20: C2 69 | E20: J69 | F20: S69 | G20: 58.01 | H20: NON | I20: FC1 63 | J20: FC2 63 | K20: FJ63 | L20: FS63
A21: 69.01 | B21: NON | C21: C1 77 | D21: C2 77 | E21: J77 | F21: S77 | G21: 63.01 | H21: NON | I21: FC1 69 | J21: FC2 69 | K21: FJ69 | L21: FS69
A22: 77.01 | B22: NON | C22: C1 85 | D22: C2 85 | E22: J85 | F22: S85 | G22: 69.01 | H22: NON | I22: FC1 +69 | J22: FC2 +69 | K22: FJ75 | L22: FS75
A23: 85.01 | B23: NON | C23: C1 94 | D23: C2 94 | E23: J94 | F23: S94 | G23: 75.01 | H23: NON | I23: FC1 +69 | J23: FC2 +69 | K23: FJ+75 | L23: FS+75
A24: 94.01 | B24: NON | C24: C1 +94 | D24: C2 +94 | E24: J105 | F24: S105 | G24: 110 | H24: NON | I24: FC1 +69 | J24: FC2 +69 | K24: FJ+75 | L24: FS+75
A25: 105.01 | B25: NON | C25: C1 +94 | D25: C2 +94 | E25: J+105 | F25: S+105 | G25: 140 | H25: NON | I25: FC1 +69 | J25: FC2 +69 | K25: FJ+75 | L25: FS+75
A26: 110 | B26: NON | C26: C1 +94 | D26: C2 +94 | E26: J+105 | F26: S+105
A27: 120 | B27: NON | C27: C1 +94 | D27: C2 +94 | E27: J+105 | F27: S+105
A28: 130 | B28: NON | C28: C1 +94 | D28: C2 +94 | E28: J+105 | F28: S+105
A29: 140 | B29: NON | C29: C1 +94 | D29: C2 +94 | E29: J+105 | F29: S+105

Sheet MATCH
F1: LISTING REGIONAL | H1: MASCULINS et FEMININES | Q1: DATE :
L2: REGION :
A4: SEXE | B4: ZONE | C4: REG. | D4: CL. | E4: LICENCE | F4: NOMS | G4: Prénoms | H4: AN | I4: POIDS | J4: CLUB | K4: NAT | L4: 1 | M4: 2 | N4: 3 | O4: ARR | P4: 1 | Q4: 2 | R4: 3 | S4: EP-J | T4: Total | V4: SERIE | X4: Catég | Y4: IWF | AB4: DEB | AC4: DEP + | AD4: REG + | AE4: IRG + | AF4: FED + | AG4: NAT + | AH4: INTB + | AI4: INTA + | AJ4: OLY +
A5: F | B5: SEST | C5: RAL | D5: 1 | H5: 1993 | I5: 77 | L5: 105 | O5: =IF(H5="","",IF(MAXA(L5:N5)<=0,0,MAXA(L5:N5))) -> 105 | P5: 135 | S5: =IF(H5="","",IF(MAXA(P5:R5)<=0,0,MAXA(P5:R5))) -> 135 | T5: =IF(H5="","",IF(OR(O5=0,S5=0),0,O5+S5)) -> 240 | V5: =IF(H5="","",AQ5) -> OLY + | W5: =IF(AJ5>=0,AJ5,IF(AI5>=0,AI5,IF(AH5>=0,AH5,IF(AG5>=0,AG5,IF(AF5>=0,AF5,IF(AE5>=0,AE5,IF(AD5>=0,AD5,IF(AC5>=0,AC5,AB5)))))))) -> 15 | X5: =IF(I5="","",IF(A5="H",IF(OR(H5="SEN",H5<1997),VLOOKUP(I5,Feuil1!$A$11:$G$29,6),IF(AND(H5>1996,H5<2000),VLOOKUP(I5,Feuil1!$A$11:$G$29,5),IF(AND(H5>1999,H5<2002),VLOOKUP(I5,Feuil1!$A$11:$G$29,4),IF(AND(H5>2001,H5<2004),VLOOKUP(I5,Feuil1!$A$11:$G$29,3),VLOOKUP(I5,Feuil1!$A$11:$G$29,2))))),IF(OR(H5="SEN",H5<1997),VLOOKUP(I5,Feuil1!$G$11:$L$25,6),IF(AND(H5>1996,H5<2000),VLOOKUP(I5,Feuil1!$G$11:$L$25,5),IF(AND(H5>1999,H5<2002),VLOOKUP(I5,Feuil1!$G$11:$L$25,4),IF(AND(H5>2001,H5<2004),VLOOKUP(I5,Feuil1!$G$11:$L$25,3),VLOOKUP(I5,Feuil1!$G$11:$L$25,2))))))) -> FS+75 | Y5: =IF(I5="","",IF(A5="H",10^(0.794358141*LOG(I5/174.393)^2)*T5,IF(A5="F",10^(0.89726074*LOG(I5/148.026)^2)*T5,""))) -> 283.4672505 | AB5: =T5-HLOOKUP(X5,Feuil1!$C$1:$BL$10,2,FALSE) -> 140 | AC5: =T5-HLOOKUP(X5,Feuil1!$C$1:$BL$10,3,FALSE) -> 130 | AD5: =T5-HLOOKUP(X5,Feuil1!$C$1:$BL$10,4,FALSE) -> 115 | AE5: =T5-HLOOKUP(X5,Feuil1!$C$1:$BL$10,5,FALSE) -> 100 | AF5: =T5-HLOOKUP(X5,Feuil1!$C$1:$BL$10,6,FALSE) -> 90 | AG5: =T5-HLOOKUP(X5,Feuil1!$C$1:$BL$10,7,FALSE) -> 70 | AH5: =T5-HLOOKUP(X5,Feuil1!$C$1:$BL$10,8,FALSE) -> 50 | AI5: =T5-HLOOKUP(X5,Feuil1!$C$1:$BL$10,9,FALSE) -> 30 | AJ5: =T5-HLOOKUP(X5,Feuil1!$C$1:$BL$10,10,FALSE) -> 15 | AQ5: =IF(AJ5>=0,$AJ$4,IF(AI5>=0,$AI$4,IF(AH5>=0,$AH$4,IF(AG5>=0,$AG$4,IF(AF5>=0,$AF$4,IF(AE5>=0,$AE$4,IF(AD5>=0,$AD$4,IF(AC5>=0,$AC$4,$AB$4)))))))) -> OLY +
A6: F | B6: SEST | C6: CAZ | H6: 1994 | I6: 48 | L6: 80 | O6: =IF(H6="","",IF(MAXA(L6:N6)<=0,0,MAXA(L6:N6))) -> 80 | P6: 100 | S6: =IF(H6="","",IF(MAXA(P6:R6)<=0,0,MAXA(P6:R6))) -> 100 | T6: =IF(H6="","",IF(OR(O6=0,S6=0),0,O6+S6)) -> 180 | V6: OLY + | W6: 25 | X6: =IF(I6="","",IF(A6="H",IF(OR(H6="SEN",H6<1997),VLOOKUP(I6,Feuil1!$A$11:$G$29,6),IF(AND(H6>1996,H6<2000),VLOOKUP(I6,Feuil1!$A$11:$G$29,5),IF(AND(H6>1999,H6<2002),VLOOKUP(I6,Feuil1!$A$11:$G$29,4),IF(AND(H6>2001,H6<2004),VLOOKUP(I6,Feuil1!$A$11:$G$29,3),VLOOKUP(I6,Feuil1!$A$11:$G$29,2))))),IF(OR(H6="SEN",H6<1997),VLOOKUP(I6,Feuil1!$G$11:$L$25,6),IF(AND(H6>1996,H6<2000),VLOOKUP(I6,Feuil1!$G$11:$L$25,5),IF(AND(H6>1999,H6<2002),VLOOKUP(I6,Feuil1!$G$11:$L$25,4),IF(AND(H6>2001,H6<2004),VLOOKUP(I6,Feuil1!$G$11:$L$25,3),VLOOKUP(I6,Feuil1!$G$11:$L$25,2))))))) -> FS48 | Y6: 295.0606626 | AB6: =T6-HLOOKUP(X6,Feuil1!$C$1:$BL$10,2,FALSE) -> 125 | AC6: =T6-HLOOKUP(X6,Feuil1!$C$1:$BL$10,3,FALSE) -> 115 | AD6: =T6-HLOOKUP(X6,Feuil1!$C$1:$BL$10,4,FALSE) -> 105 | AE6: =T6-HLOOKUP(X6,Feuil1!$C$1:$BL$10,5,FALSE) -> 95 | AF6: =T6-HLOOKUP(X6,Feuil1!$C$1:$BL$10,6,FALSE) -> 85 | AG6: =T6-HLOOKUP(X6,Feuil1!$C$1:$BL$10,7,FALSE) -> 70 | AH6: =T6-HLOOKUP(X6,Feuil1!$C$1:$BL$10,8,FALSE) -> 55 | AI6: =T6-HLOOKUP(X6,Feuil1!$C$1:$BL$10,9,FALSE) -> 40 | AJ6: =T6-HLOOKUP(X6,Feuil1!$C$1:$BL$10,10,FALSE) -> 25 | AQ6: OLY +
A7: F | B7: SEST | C7: LAN | H7: 1995 | I7: 53 | L7: 80 | O7: 80 | P7: 100 | S7: 100 | T7: 180 | V7: OLY + | W7: 5 | X7: =IF(I7="","",IF(A7="H",IF(OR(H7="SEN",H7<1997),VLOOKUP(I7,Feuil1!$A$11:$G$29,6),IF(AND(H7>1996,H7<2000),VLOOKUP(I7,Feuil1!$A$11:$G$29,5),IF(AND(H7>1999,H7<2002),VLOOKUP(I7,Feuil1!$A$11:$G$29,4),IF(AND(H7>2001,H7<2004),VLOOKUP(I7,Feuil1!$A$11:$G$29,3),VLOOKUP(I7,Feuil1!$A$11:$G$29,2))))),IF(OR(H7="SEN",H7<1997),VLOOKUP(I7,Feuil1!$G$11:$L$25,6),IF(AND(H7>1996,H7<2000),VLOOKUP(I7,Feuil1!$G$11:$L$25,5),IF(AND(H7>1999,H7<2002),VLOOKUP(I7,Feuil1!$G$11:$L$25,4),IF(AND(H7>2001,H7<2004),VLOOKUP(I7,Feuil1!$G$11:$L$25,3),VLOOKUP(I7,Feuil1!$G$11:$L$25,2))))))) -> FS53 | Y7: 271.5199565 | AB7: =T7-HLOOKUP(X7,Feuil1!$C$1:$BL$10,2,FALSE) -> 115 | AC7: =T7-HLOOKUP(X7,Feuil1!$C$1:$BL$10,3,FALSE) -> 105 | AD7: =T7-HLOOKUP(X7,Feuil1!$C$1:$BL$10,4,FALSE) -> 95 | AE7: =T7-HLOOKUP(X7,Feuil1!$C$1:$BL$10,5,FALSE) -> 85 | AF7: =T7-HLOOKUP(X7,Feuil1!$C$1:$BL$10,6,FALSE) -> 75 | AG7: =T7-HLOOKUP(X7,Feuil1!$C$1:$BL$10,7,FALSE) -> 60 | AH7: =T7-HLOOKUP(X7,Feuil1!$C$1:$BL$10,8,FALSE) -> 40 | AI7: =T7-HLOOKUP(X7,Feuil1!$C$1:$BL$10,9,FALSE) -> 20 | AJ7: =T7-HLOOKUP(X7,Feuil1!$C$1:$BL$10,10,FALSE) -> 5 | AQ7: OLY +
A8: F | B8: SEST | C8: PRO | H8: 1996 | I8: 69 | L8: 70 | O8: 70 | P8: 95 | S8: 95 | T8: 165 | V8: NAT + | W8: 15 | X8: =IF(I8="","",IF(A8="H",IF(OR(H8="SEN",H8<1997),VLOOKUP(I8,Feuil1!$A$11:$G$29,6),IF(AND(H8>1996,H8<2000),VLOOKUP(I8,Feuil1!$A$11:$G$29,5),IF(AND(H8>1999,H8<2002),VLOOKUP(I8,Feuil1!$A$11:$G$29,4),IF(AND(H8>2001,H8<2004),VLOOKUP(I8,Feuil1!$A$11:$G$29,3),VLOOKUP(I8,Feuil1!$A$11:$G$29,2))))),IF(OR(H8="SEN",H8<1997),VLOOKUP(I8,Feuil1!$G$11:$L$25,6),IF(AND(H8>1996,H8<2000),VLOOKUP(I8,Feuil1!$G$11:$L$25,5),IF(AND(H8>1999,H8<2002),VLOOKUP(I8,Feuil1!$G$11:$L$25,4),IF(AND(H8>2001,H8<2004),VLOOKUP(I8,Feuil1!$G$11:$L$25,3),VLOOKUP(I8,Feuil1!$G$11:$L$25,2))))))) -> FS69 | Y8: 207.0519621 | AB8: =T8-HLOOKUP(X8,Feuil1!$C$1:$BL$10,2,FALSE) -> 85 | AC8: =T8-HLOOKUP(X8,Feuil1!$C$1:$BL$10,3,FALSE) -> 75 | AD8: =T8-HLOOKUP(X8,Feuil1!$C$1:$BL$10,4,FALSE) -> 60 | AE8: =T8-HLOOKUP(X8,Feuil1!$C$1:$BL$10,5,FALSE) -> 45 | AF8: =T8-HLOOKUP(X8,Feuil1!$C$1:$BL$10,6,FALSE) -> 30 | AG8: =T8-HLOOKUP(X8,Feuil1!$C$1:$BL$10,7,FALSE) -> 15 | AH8: =T8-HLOOKUP(X8,Feuil1!$C$1:$BL$10,8,FALSE) -> -5 | AI8: =T8-HLOOKUP(X8,Feuil1!$C$1:$BL$10,9,FALSE) -> -25 | AJ8: =T8-HLOOKUP(X8,Feuil1!$C$1:$BL$10,10,FALSE) -> -40 | AQ8: NAT +
A9: F | B9: SEST | C9: AUV | H9: 1997 | I9: 75 | L9: 70 | O9: 70 | P9: 85 | S9: 85 | T9: 155 | V9: NAT + | W9: 10 | X9: =IF(I9="","",IF(A9="H",IF(OR(H9="SEN",H9<1997),VLOOKUP(I9,Feuil1!$A$11:$G$29,6),IF(AND(H9>1996,H9<2000),VLOOKUP(I9,Feuil1!$A$11:$G$29,5),IF(AND(H9>1999,H9<2002),VLOOKUP(I9,Feuil1!$A$11:$G$29,4),IF(AND(H9>2001,H9<2004),VLOOKUP(I9,Feuil1!$A$11:$G$29,3),VLOOKUP(I9,Feuil1!$A$11:$G$29,2))))),IF(OR(H9="SEN",H9<1997),VLOOKUP(I9,Feuil1!$G$11:$L$25,6),IF(AND(H9>1996,H9<2000),VLOOKUP(I9,Feuil1!$G$11:$L$25,5),IF(AND(H9>1999,H9<2002),VLOOKUP(I9,Feuil1!$G$11:$L$25,4),IF(AND(H9>2001,H9<2004),VLOOKUP(I9,Feuil1!$G$11:$L$25,3),VLOOKUP(I9,Feuil1!$G$11:$L$25,2))))))) -> FJ75 | Y9: 185.5933387 | AB9: =T9-HLOOKUP(X9,Feuil1!$C$1:$BL$10,2,FALSE) -> 75 | AC9: =T9-HLOOKUP(X9,Feuil1!$C$1:$BL$10,3,FALSE) -> 60 | AD9: =T9-HLOOKUP(X9,Feuil1!$C$1:$BL$10,4,FALSE) -> 50 | AE9: =T9-HLOOKUP(X9,Feuil1!$C$1:$BL$10,5,FALSE) -> 40 | AF9: =T9-HLOOKUP(X9,Feuil1!$C$1:$BL$10,6,FALSE) -> 25 | AG9: =T9-HLOOKUP(X9,Feuil1!$C$1:$BL$10,7,FALSE) -> 10 | AH9: =T9-HLOOKUP(X9,Feuil1!$C$1:$BL$10,8,FALSE) -> -5 | AI9: =T9-HLOOKUP(X9,Feuil1!$C$1:$BL$10,9,FALSE) -> -25 | AJ9: =T9-HLOOKUP(X9,Feuil1!$C$1:$BL$10,10,FALSE) -> -845 | AQ9: NAT +
A10: F | H10: 1998 | I10: 75 | L10: 75 | O10: 75 | P10: 90 | S10: 90 | T10: 165 | V10: INTB + | W10: 5 | X10: =IF(I10="","",IF(A10="H",IF(OR(H10="SEN",H10<1997),VLOOKUP(I10,Feuil1!$A$11:$G$29,6),IF(AND(H10>1996,H10<2000),VLOOKUP(I10,Feuil1!$A$11:$G$29,5),IF(AND(H10>1999,H10<2002),VLOOKUP(I10,Feuil1!$A$11:$G$29,4),IF(AND(H10>2001,H10<2004),VLOOKUP(I10,Feuil1!$A$11:$G$29,3),VLOOKUP(I10,Feuil1!$A$11:$G$29,2))))),IF(OR(H10="SEN",H10<1997),VLOOKUP(I10,Feuil1!$G$11:$L$25,6),IF(AND(H10>1996,H10<2000),VLOOKUP(I10,Feuil1!$G$11:$L$25,5),IF(AND(H10>1999,H10<2002),VLOOKUP(I10,Feuil1!$G$11:$L$25,4),IF(AND(H10>2001,H10<2004),VLOOKUP(I10,Feuil1!$G$11:$L$25,3),VLOOKUP(I10,Feuil1!$G$11:$L$25,2))))))) -> FJ75 | Y10: 197.5671025 | AB10: =T10-HLOOKUP(X10,Feuil1!$C$1:$BL$10,2,FALSE) -> 85 | AC10: =T10-HLOOKUP(X10,Feuil1!$C$1:$BL$10,3,FALSE) -> 70 | AD10: =T10-HLOOKUP(X10,Feuil1!$C$1:$BL$10,4,FALSE) -> 60 | AE10: =T10-HLOOKUP(X10,Feuil1!$C$1:$BL$10,5,FALSE) -> 50 | AF10: =T10-HLOOKUP(X10,Feuil1!$C$1:$BL$10,6,FALSE) -> 35 | AG10: =T10-HLOOKUP(X10,Feuil1!$C$1:$BL$10,7,FALSE) -> 20 | AH10: =T10-HLOOKUP(X10,Feuil1!$C$1:$BL$10,8,FALSE) -> 5 | AI10: =T10-HLOOKUP(X10,Feuil1!$C$1:$BL$10,9,FALSE) -> -15 | AJ10: =T10-HLOOKUP(X10,Feuil1!$C$1:$BL$10,10,FALSE) -> -835 | AQ10: INTB +
A11: F | H11: 1999 | I11: 75 | L11: 55 | O11: 55 | P11: 75 | S11: 75 | T11: 130 | V11: FED + | W11: 0 | X11: =IF(I11="","",IF(A11="H",IF(OR(H11="SEN",H11<1997),VLOOKUP(I11,Feuil1!$A$11:$G$29,6),IF(AND(H11>1996,H11<2000),VLOOKUP(I11,Feuil1!$A$11:$G$29,5),IF(AND(H11>1999,H11<2002),VLOOKUP(I11,Feuil1!$A$11:$G$29,4),IF(AND(H11>2001,H11<2004),VLOOKUP(I11,Feuil1!$A$11:$G$29,3),VLOOKUP(I11,Feuil1!$A$11:$G$29,2))))),IF(OR(H11="SEN",H11<1997),VLOOKUP(I11,Feuil1!$G$11:$L$25,6),IF(AND(H11>1996,H11<2000),VLOOKUP(I11,Feuil1!$G$11:$L$25,5),IF(AND(H11>1999,H11<2002),VLOOKUP(I11,Feuil1!$G$11:$L$25,4),IF(AND(H11>2001,H11<2004),VLOOKUP(I11,Feuil1!$G$11:$L$25,3),VLOOKUP(I11,Feuil1!$G$11:$L$25,2))))))) -> FJ75 | Y11: 155.6589293 | AB11: =T11-HLOOKUP(X11,Feuil1!$C$1:$BL$10,2,FALSE) -> 50 | AC11: =T11-HLOOKUP(X11,Feuil1!$C$1:$BL$10,3,FALSE) -> 35 | AD11: =T11-HLOOKUP(X11,Feuil1!$C$1:$BL$10,4,FALSE) -> 25 | AE11: =T11-HLOOKUP(X11,Feuil1!$C$1:$BL$10,5,FALSE) -> 15 | AF11: =T11-HLOOKUP(X11,Feuil1!$C$1:$BL$10,6,FALSE) -> 0 | AG11: =T11-HLOOKUP(X11,Feuil1!$C$1:$BL$10,7,FALSE) -> -15 | AH11: =T11-HLOOKUP(X11,Feuil1!$C$1:$BL$10,8,FALSE) -> -30 | AI11: =T11-HLOOKUP(X11,Feuil1!$C$1:$BL$10,9,FALSE) -> -50 | AJ11: =T11-HLOOKUP(X11,Feuil1!$C$1:$BL$10,10,FALSE) -> -870 | AQ11: FED +
A12: F | H12: 2000 | I12: 58 | L12: 52 | O12: 52 | P12: 64 | S12: 64 | T12: 116 | V12: INTB + | W12: 1 | X12: =IF(I12="","",IF(A12="H",IF(OR(H12="SEN",H12<1997),VLOOKUP(I12,Feuil1!$A$11:$G$29,6),IF(AND(H12>1996,H12<2000),VLOOKUP(I12,Feuil1!$A$11:$G$29,5),IF(AND(H12>1999,H12<2002),VLOOKUP(I12,Feuil1!$A$11:$G$29,4),IF(AND(H12>2001,H12<2004),VLOOKUP(I12,Feuil1!$A$11:$G$29,3),VLOOKUP(I12,Feuil1!$A$11:$G$29,2))))),IF(OR(H12="SEN",H12<1997),VLOOKUP(I12,Feuil1!$G$11:$L$25,6),IF(AND(H12>1996,H12<2000),VLOOKUP(I12,Feuil1!$G$11:$L$25,5),IF(AND(H12>1999,H12<2002),VLOOKUP(I12,Feuil1!$G$11:$L$25,4),IF(AND(H12>2001,H12<2004),VLOOKUP(I12,Feuil1!$G$11:$L$25,3),VLOOKUP(I12,Feuil1!$G$11:$L$25,2))))))) -> FC2 58 | Y12: 163.3136987 | AB12: =T12-HLOOKUP(X12,Feuil1!$C$1:$BL$10,2,FALSE) -> 66 | AC12: =T12-HLOOKUP(X12,Feuil1!$C$1:$BL$10,3,FALSE) -> 56 | AD12: =T12-HLOOKUP(X12,Feuil1!$C$1:$BL$10,4,FALSE) -> 46 | AE12: =T12-HLOOKUP(X12,Feuil1!$C$1:$BL$10,5,FALSE) -> 36 | AF12: =T12-HLOOKUP(X12,Feuil1!$C$1:$BL$10,6,FALSE) -> 26 | AG12: =T12-HLOOKUP(X12,Feuil1!$C$1:$BL$10,7,FALSE) -> 16 | AH12: =T12-HLOOKUP(X12,Feuil1!$C$1:$BL$10,8,FALSE) -> 1 | AI12: =T12-HLOOKUP(X12,Feuil1!$C$1:$BL$10,9,FALSE) -> -14 | AJ12: =T12-HLOOKUP(X12,Feuil1!$C$1:$BL$10,10,FALSE) -> -884 | AQ12: INTB +
A13: F | H13: 2001 | I13: 44 | L13: 40 | O13: 40 | P13: 52 | S13: 52 | T13: 92 | V13: INTB + | W13: 2 | X13: =IF(I13="","",IF(A13="H",IF(OR(H13="SEN",H13<1997),VLOOKUP(I13,Feuil1!$A$11:$G$29,6),IF(AND(H13>1996,H13<2000),VLOOKUP(I13,Feuil1!$A$11:$G$29,5),IF(AND(H13>1999,H13<2002),VLOOKUP(I13,Feuil1!$A$11:$G$29,4),IF(AND(H13>2001,H13<2004),VLOOKUP(I13,Feuil1!$A$11:$G$29,3),VLOOKUP(I13,Feuil1!$A$11:$G$29,2))))),IF(OR(H13="SEN",H13<1997),VLOOKUP(I13,Feuil1!$G$11:$L$25,6),IF(AND(H13>1996,H13<2000),VLOOKUP(I13,Feuil1!$G$11:$L$25,5),IF(AND(H13>1999,H13<2002),VLOOKUP(I13,Feuil1!$G$11:$L$25,4),IF(AND(H13>2001,H13<2004),VLOOKUP(I13,Feuil1!$G$11:$L$25,3),VLOOKUP(I13,Feuil1!$G$11:$L$25,2))))))) -> FC2 44 | Y13: 163.2580932 | AB13: =T13-HLOOKUP(X13,Feuil1!$C$1:$BL$10,2,FALSE) -> 62 | AC13: =T13-HLOOKUP(X13,Feuil1!$C$1:$BL$10,3,FALSE) -> 52 | AD13: =T13-HLOOKUP(X13,Feuil1!$C$1:$BL$10,4,FALSE) -> 42 | AE13: =T13-HLOOKUP(X13,Feuil1!$C$1:$BL$10,5,FALSE) -> 32 | AF13: =T13-HLOOKUP(X13,Feuil1!$C$1:$BL$10,6,FALSE) -> 22 | AG13: =T13-HLOOKUP(X13,Feuil1!$C$1:$BL$10,7,FALSE) -> 12 | AH13: =T13-HLOOKUP(X13,Feuil1!$C$1:$BL$10,8,FALSE) -> 2 | AI13: =T13-HLOOKUP(X13,Feuil1!$C$1:$BL$10,9,FALSE) -> -8 | AJ13: =T13-HLOOKUP(X13,Feuil1!$C$1:$BL$10,10,FALSE) -> -908 | AQ13: INTB +
A14: F | H14: 2002 | I14: 75 | L14: 85 | O14: =IF(H14="","",IF(MAXA(L14:N14)<=0,0,MAXA(L14:N14))) -> 85 | P14: 105 | S14: =IF(H14="","",IF(MAXA(P14:R14)<=0,0,MAXA(P14:R14))) -> 105 | T14: =IF(H14="","",IF(OR(O14=0,S14=0),0,O14+S14)) -> 190 | V14: INTA + | W14: 45 | X14: =IF(I14="","",IF(A14="H",IF(OR(H14="SEN",H14<1997),VLOOKUP(I14,Feuil1!$A$11:$G$29,6),IF(AND(H14>1996,H14<2000),VLOOKUP(I14,Feuil1!$A$11:$G$29,5),IF(AND(H14>1999,H14<2002),VLOOKUP(I14,Feuil1!$A$11:$G$29,4),IF(AND(H14>2001,H14<2004),VLOOKUP(I14,Feuil1!$A$11:$G$29,3),VLOOKUP(I14,Feuil1!$A$11:$G$29,2))))),IF(OR(H14="SEN",H14<1997),VLOOKUP(I14,Feuil1!$G$11:$L$25,6),IF(AND(H14>1996,H14<2000),VLOOKUP(I14,Feuil1!$G$11:$L$25,5),IF(AND(H14>1999,H14<2002),VLOOKUP(I14,Feuil1!$G$11:$L$25,4),IF(AND(H14>2001,H14<2004),VLOOKUP(I14,Feuil1!$G$11:$L$25,3),VLOOKUP(I14,Feuil1!$G$11:$L$25,2))))))) -> FC1 +69 | Y14: 227.501512 | AB14: =T14-HLOOKUP(X14,Feuil1!$C$1:$BL$10,2,FALSE) -> 130 | AC14: =T14-HLOOKUP(X14,Feuil1!$C$1:$BL$10,3,FALSE) -> 120 | AD14: =T14-HLOOKUP(X14,Feuil1!$C$1:$BL$10,4,FALSE) -> 110 | AE14: =T14-HLOOKUP(X14,Feuil1!$C$1:$BL$10,5,FALSE) -> 95 | AF14: =T14-HLOOKUP(X14,Feuil1!$C$1:$BL$10,6,FALSE) -> 85 | AG14: =T14-HLOOKUP(X14,Feuil1!$C$1:$BL$10,7,FALSE) -> 75 | AH14: =T14-HLOOKUP(X14,Feuil1!$C$1:$BL$10,8,FALSE) -> 60 | AI14: =T14-HLOOKUP(X14,Feuil1!$C$1:$BL$10,9,FALSE) -> 45 | AJ14: =T14-HLOOKUP(X14,Feuil1!$C$1:$BL$10,10,FALSE) -> -810 | AQ14: INTA +
A15: F | H15: 2003 | I15: 75 | L15: 100 | O15: 100 | P15: 120 | S15: 120 | T15: 220 | V15: INTA + | W15: 75 | X15: =IF(I15="","",IF(A15="H",IF(OR(H15="SEN",H15<1997),VLOOKUP(I15,Feuil1!$A$11:$G$29,6),IF(AND(H15>1996,H15<2000),VLOOKUP(I15,Feuil1!$A$11:$G$29,5),IF(AND(H15>1999,H15<2002),VLOOKUP(I15,Feuil1!$A$11:$G$29,4),IF(AND(H15>2001,H15<2004),VLOOKUP(I15,Feuil1!$A$11:$G$29,3),VLOOKUP(I15,Feuil1!$A$11:$G$29,2))))),IF(OR(H15="SEN",H15<1997),VLOOKUP(I15,Feuil1!$G$11:$L$25,6),IF(AND(H15>1996,H15<2000),VLOOKUP(I15,Feuil1!$G$11:$L$25,5),IF(AND(H15>1999,H15<2002),VLOOKUP(I15,Feuil1!$G$11:$L$25,4),IF(AND(H15>2001,H15<2004),VLOOKUP(I15,Feuil1!$G$11:$L$25,3),VLOOKUP(I15,Feuil1!$G$11:$L$25,2))))))) -> FC1 +69 | Y15: 263.4228034 | AB15: =T15-HLOOKUP(X15,Feuil1!$C$1:$BL$10,2,FALSE) -> 160 | AC15: =T15-HLOOKUP(X15,Feuil1!$C$1:$BL$10,3,FALSE) -> 150 | AD15: =T15-HLOOKUP(X15,Feuil1!$C$1:$BL$10,4,FALSE) -> 140 | AE15: =T15-HLOOKUP(X15,Feuil1!$C$1:$BL$10,5,FALSE) -> 125 | AF15: =T15-HLOOKUP(X15,Feuil1!$C$1:$BL$10,6,FALSE) -> 115 | AG15: =T15-HLOOKUP(X15,Feuil1!$C$1:$BL$10,7,FALSE) -> 105 | AH15: =T15-HLOOKUP(X15,Feuil1!$C$1:$BL$10,8,FALSE) -> 90 | AI15: =T15-HLOOKUP(X15,Feuil1!$C$1:$BL$10,9,FALSE) -> 75 | AJ15: =T15-HLOOKUP(X15,Feuil1!$C$1:$BL$10,10,FALSE) -> -780 | AQ15: INTA +
A16: F | H16: 2004 | I16: 75 | L16: 100 | O16: 100 | P16: 120 | S16: 120 | T16: 220 | X16: =IF(I16="","",IF(A16="H",IF(OR(H16="SEN",H16<1997),VLOOKUP(I16,Feuil1!$A$11:$G$29,6),IF(AND(H16>1996,H16<2000),VLOOKUP(I16,Feuil1!$A$11:$G$29,5),IF(AND(H16>1999,H16<2002),VLOOKUP(I16,Feuil1!$A$11:$G$29,4),IF(AND(H16>2001,H16<2004),VLOOKUP(I16,Feuil1!$A$11:$G$29,3),VLOOKUP(I16,Feuil1!$A$11:$G$29,2))))),IF(OR(H16="SEN",H16<1997),VLOOKUP(I16,Feuil1!$G$11:$L$25,6),IF(AND(H16>1996,H16<2000),VLOOKUP(I16,Feuil1!$G$11:$L$25,5),IF(AND(H16>1999,H16<2002),VLOOKUP(I16,Feuil1!$G$11:$L$25,4),IF(AND(H16>2001,H16<2004),VLOOKUP(I16,Feuil1!$G$11:$L$25,3),VLOOKUP(I16,Feuil1!$G$11:$L$25,2))))))) -> NON | Y16: 263.4228034 | AB16: =T16-HLOOKUP(X16,Feuil1!$C$1:$BL$10,2,FALSE) ->  | AC16: =T16-HLOOKUP(X16,Feuil1!$C$1:$BL$10,3,FALSE) ->  | AD16: =T16-HLOOKUP(X16,Feuil1!$C$1:$BL$10,4,FALSE) ->  | AE16: =T16-HLOOKUP(X16,Feuil1!$C$1:$BL$10,5,FALSE) ->  | AF16: =T16-HLOOKUP(X16,Feuil1!$C$1:$BL$10,6,FALSE) ->  | AG16: =T16-HLOOKUP(X16,Feuil1!$C$1:$BL$10,7,FALSE) ->  | AH16: =T16-HLOOKUP(X16,Feuil1!$C$1:$BL$10,8,FALSE) ->  | AI16: =T16-HLOOKUP(X16,Feuil1!$C$1:$BL$10,9,FALSE) ->  | AJ16: =T16-HLOOKUP(X16,Feuil1!$C$1:$BL$10,10,FALSE) -> 
A17: F | H17: 2005 | I17: 75 | L17: 80 | O17: 80 | P17: 100 | S17: 100 | T17: 180 | X17: =IF(I17="","",IF(A17="H",IF(OR(H17="SEN",H17<1997),VLOOKUP(I17,Feuil1!$A$11:$G$29,6),IF(AND(H17>1996,H17<2000),VLOOKUP(I17,Feuil1!$A$11:$G$29,5),IF(AND(H17>1999,H17<2002),VLOOKUP(I17,Feuil1!$A$11:$G$29,4),IF(AND(H17>2001,H17<2004),VLOOKUP(I17,Feuil1!$A$11:$G$29,3),VLOOKUP(I17,Feuil1!$A$11:$G$29,2))))),IF(OR(H17="SEN",H17<1997),VLOOKUP(I17,Feuil1!$G$11:$L$25,6),IF(AND(H17>1996,H17<2000),VLOOKUP(I17,Feuil1!$G$11:$L$25,5),IF(AND(H17>1999,H17<2002),VLOOKUP(I17,Feuil1!$G$11:$L$25,4),IF(AND(H17>2001,H17<2004),VLOOKUP(I17,Feuil1!$G$11:$L$25,3),VLOOKUP(I17,Feuil1!$G$11:$L$25,2))))))) -> NON | Y17: 215.5277482 | AB17: =T17-HLOOKUP(X17,Feuil1!$C$1:$BL$10,2,FALSE) ->  | AC17: =T17-HLOOKUP(X17,Feuil1!$C$1:$BL$10,3,FALSE) ->  | AD17: =T17-HLOOKUP(X17,Feuil1!$C$1:$BL$10,4,FALSE) ->  | AE17: =T17-HLOOKUP(X17,Feuil1!$C$1:$BL$10,5,FALSE) ->  | AF17: =T17-HLOOKUP(X17,Feuil1!$C$1:$BL$10,6,FALSE) ->  | AG17: =T17-HLOOKUP(X17,Feuil1!$C$1:$BL$10,7,FALSE) ->  | AH17: =T17-HLOOKUP(X17,Feuil1!$C$1:$BL$10,8,FALSE) ->  | AI17: =T17-HLOOKUP(X17,Feuil1!$C$1:$BL$10,9,FALSE) ->  | AJ17: =T17-HLOOKUP(X17,Feuil1!$C$1:$BL$10,10,FALSE) -> 
A18: F | H18: 2006 | I18: 58 | L18: 52 | O18: =IF(H18="","",IF(MAXA(L18:N18)<=0,0,MAXA(L18:N18))) -> 52 | P18: 64 | S18: =IF(H18="","",IF(MAXA(P18:R18)<=0,0,MAXA(P18:R18))) -> 64 | T18: =IF(H18="","",IF(OR(O18=0,S18=0),0,O18+S18)) -> 116 | V18: =IF(H18="","",AQ18) ->  | W18: =IF(AJ18>=0,AJ18,IF(AI18>=0,AI18,IF(AH18>=0,AH18,IF(AG18>=0,AG18,IF(AF18>=0,AF18,IF(AE18>=0,AE18,IF(AD18>=0,AD18,IF(AC18>=0,AC18,AB18)))))))) ->  | X18: =IF(I18="","",IF(A18="H",IF(OR(H18="SEN",H18<1997),VLOOKUP(I18,Feuil1!$A$11:$G$29,6),IF(AND(H18>1996,H18<2000),VLOOKUP(I18,Feuil1!$A$11:$G$29,5),IF(AND(H18>1999,H18<2002),VLOOKUP(I18,Feuil1!$A$11:$G$29,4),IF(AND(H18>2001,H18<2004),VLOOKUP(I18,Feuil1!$A$11:$G$29,3),VLOOKUP(I18,Feuil1!$A$11:$G$29,2))))),IF(OR(H18="SEN",H18<1997),VLOOKUP(I18,Feuil1!$G$11:$L$25,6),IF(AND(H18>1996,H18<2000),VLOOKUP(I18,Feuil1!$G$11:$L$25,5),IF(AND(H18>1999,H18<2002),VLOOKUP(I18,Feuil1!$G$11:$L$25,4),IF(AND(H18>2001,H18<2004),VLOOKUP(I18,Feuil1!$G$11:$L$25,3),VLOOKUP(I18,Feuil1!$G$11:$L$25,2))))))) -> NON | Y18: =IF(I18="","",IF(A18="H",10^(0.794358141*LOG(I18/174.393)^2)*T18,IF(A18="F",10^(0.89726074*LOG(I18/148.026)^2)*T18,""))) -> 163.3136987 | AB18: =T18-HLOOKUP(X18,Feuil1!$C$1:$BL$10,2,FALSE) ->  | AC18: =T18-HLOOKUP(X18,Feuil1!$C$1:$BL$10,3,FALSE) ->  | AD18: =T18-HLOOKUP(X18,Feuil1!$C$1:$BL$10,4,FALSE) ->  | AE18: =T18-HLOOKUP(X18,Feuil1!$C$1:$BL$10,5,FALSE) ->  | AF18: =T18-HLOOKUP(X18,Feuil1!$C$1:$BL$10,6,FALSE) ->  | AG18: =T18-HLOOKUP(X18,Feuil1!$C$1:$BL$10,7,FALSE) ->  | AH18: =T18-HLOOKUP(X18,Feuil1!$C$1:$BL$10,8,FALSE) ->  | AI18: =T18-HLOOKUP(X18,Feuil1!$C$1:$BL$10,9,FALSE) ->  | AJ18: =T18-HLOOKUP(X18,Feuil1!$C$1:$BL$10,10,FALSE) ->  | AQ18: =IF(AJ18>=0,$AJ$4,IF(AI18>=0,$AI$4,IF(AH18>=0,$AH$4,IF(AG18>=0,$AG$4,IF(AF18>=0,$AF$4,IF(AE18>=0,$AE$4,IF(AD18>=0,$AD$4,IF(AC18>=0,$AC$4,$AB$4)))))))) -> 
A19: F | H19: 2007 | I19: 58 | L19: 52 | O19: 52 | P19: 64 | S19: 64 | T19: 116 | X19: =IF(I19="","",IF(A19="H",IF(OR(H19="SEN",H19<1997),VLOOKUP(I19,Feuil1!$A$11:$G$29,6),IF(AND(H19>1996,H19<2000),VLOOKUP(I19,Feuil1!$A$11:$G$29,5),IF(AND(H19>1999,H19<2002),VLOOKUP(I19,Feuil1!$A$11:$G$29,4),IF(AND(H19>2001,H19<2004),VLOOKUP(I19,Feuil1!$A$11:$G$29,3),VLOOKUP(I19,Feuil1!$A$11:$G$29,2))))),IF(OR(H19="SEN",H19<1997),VLOOKUP(I19,Feuil1!$G$11:$L$25,6),IF(AND(H19>1996,H19<2000),VLOOKUP(I19,Feuil1!$G$11:$L$25,5),IF(AND(H19>1999,H19<2002),VLOOKUP(I19,Feuil1!$G$11:$L$25,4),IF(AND(H19>2001,H19<2004),VLOOKUP(I19,Feuil1!$G$11:$L$25,3),VLOOKUP(I19,Feuil1!$G$11:$L$25,2))))))) -> NON | Y19: 163.3136987 | AB19: =T19-HLOOKUP(X19,Feuil1!$C$1:$BL$10,2,FALSE) ->  | AC19: =T19-HLOOKUP(X19,Feuil1!$C$1:$BL$10,3,FALSE) ->  | AD19: =T19-HLOOKUP(X19,Feuil1!$C$1:$BL$10,4,FALSE) ->  | AE19: =T19-HLOOKUP(X19,Feuil1!$C$1:$BL$10,5,FALSE) ->  | AF19: =T19-HLOOKUP(X19,Feuil1!$C$1:$BL$10,6,FALSE) ->  | AG19: =T19-HLOOKUP(X19,Feuil1!$C$1:$BL$10,7,FALSE) ->  | AH19: =T19-HLOOKUP(X19,Feuil1!$C$1:$BL$10,8,FALSE) ->  | AI19: =T19-HLOOKUP(X19,Feuil1!$C$1:$BL$10,9,FALSE) ->  | AJ19: =T19-HLOOKUP(X19,Feuil1!$C$1:$BL$10,10,FALSE) -> 
A20: H | H20: 2008 | I20: 58 | L20: 52 | O20: 52 | P20: 64 | S20: 64 | T20: 116 | X20: =IF(I20="","",IF(A20="H",IF(OR(H20="SEN",H20<1997),VLOOKUP(I20,Feuil1!$A$11:$G$29,6),IF(AND(H20>1996,H20<2000),VLOOKUP(I20,Feuil1!$A$11:$G$29,5),IF(AND(H20>1999,H20<2002),VLOOKUP(I20,Feuil1!$A$11:$G$29,4),IF(AND(H20>2001,H20<2004),VLOOKUP(I20,Feuil1!$A$11:$G$29,3),VLOOKUP(I20,Feuil1!$A$11:$G$29,2))))),IF(OR(H20="SEN",H20<1997),VLOOKUP(I20,Feuil1!$G$11:$L$25,6),IF(AND(H20>1996,H20<2000),VLOOKUP(I20,Feuil1!$G$11:$L$25,5),IF(AND(H20>1999,H20<2002),VLOOKUP(I20,Feuil1!$G$11:$L$25,4),IF(AND(H20>2001,H20<2004),VLOOKUP(I20,Feuil1!$G$11:$L$25,3),VLOOKUP(I20,Feuil1!$G$11:$L$25,2))))))) -> NON | Y20: 176.2109387 | AB20: =T20-HLOOKUP(X20,Feuil1!$C$1:$BL$10,2,FALSE) ->  | AC20: =T20-HLOOKUP(X20,Feuil1!$C$1:$BL$10,3,FALSE) ->  | AD20: =T20-HLOOKUP(X20,Feuil1!$C$1:$BL$10,4,FALSE) ->  | AE20: =T20-HLOOKUP(X20,Feuil1!$C$1:$BL$10,5,FALSE) ->  | AF20: =T20-HLOOKUP(X20,Feuil1!$C$1:$BL$10,6,FALSE) ->  | AG20: =T20-HLOOKUP(X20,Feuil1!$C$1:$BL$10,7,FALSE) ->  | AH20: =T20-HLOOKUP(X20,Feuil1!$C$1:$BL$10,8,FALSE) ->  | AI20: =T20-HLOOKUP(X20,Feuil1!$C$1:$BL$10,9,FALSE) ->  | AJ20: =T20-HLOOKUP(X20,Feuil1!$C$1:$BL$10,10,FALSE) -> 
A21: F | H21: 2000 | I21: 58 | L21: 52 | O21: 52 | P21: 64 | S21: 64 | T21: 116 | V21: INTB + | W21: 1 | X21: =IF(I21="","",IF(A21="H",IF(OR(H21="SEN",H21<1997),VLOOKUP(I21,Feuil1!$A$11:$G$29,6),IF(AND(H21>1996,H21<2000),VLOOKUP(I21,Feuil1!$A$11:$G$29,5),IF(AND(H21>1999,H21<2002),VLOOKUP(I21,Feuil1!$A$11:$G$29,4),IF(AND(H21>2001,H21<2004),VLOOKUP(I21,Feuil1!$A$11:$G$29,3),VLOOKUP(I21,Feuil1!$A$11:$G$29,2))))),IF(OR(H21="SEN",H21<1997),VLOOKUP(I21,Feuil1!$G$11:$L$25,6),IF(AND(H21>1996,H21<2000),VLOOKUP(I21,Feuil1!$G$11:$L$25,5),IF(AND(H21>1999,H21<2002),VLOOKUP(I21,Feuil1!$G$11:$L$25,4),IF(AND(H21>2001,H21<2004),VLOOKUP(I21,Feuil1!$G$11:$L$25,3),VLOOKUP(I21,Feuil1!$G$11:$L$25,2))))))) -> FC2 58 | Y21: 163.3136987 | AB21: =T21-HLOOKUP(X21,Feuil1!$C$1:$BL$10,2,FALSE) -> 66 | AC21: =T21-HLOOKUP(X21,Feuil1!$C$1:$BL$10,3,FALSE) -> 56 | AD21: =T21-HLOOKUP(X21,Feuil1!$C$1:$BL$10,4,FALSE) -> 46 | AE21: =T21-HLOOKUP(X21,Feuil1!$C$1:$BL$10,5,FALSE) -> 36 | AF21: =T21-HLOOKUP(X21,Feuil1!$C$1:$BL$10,6,FALSE) -> 26 | AG21: =T21-HLOOKUP(X21,Feuil1!$C$1:$BL$10,7,FALSE) -> 16 | AH21: =T21-HLOOKUP(X21,Feuil1!$C$1:$BL$10,8,FALSE) -> 1 | AI21: =T21-HLOOKUP(X21,Feuil1!$C$1:$BL$10,9,FALSE) -> -14 | AJ21: =T21-HLOOKUP(X21,Feuil1!$C$1:$BL$10,10,FALSE) -> -884 | AQ21: INTB +
A22: F | H22: 2000 | I22: 58 | L22: 52 | O22: 52 | P22: 64 | S22: 64 | T22: 116 | V22: INTB + | W22: 1 | X22: =IF(I22="","",IF(A22="H",IF(OR(H22="SEN",H22<1997),VLOOKUP(I22,Feuil1!$A$11:$G$29,6),IF(AND(H22>1996,H22<2000),VLOOKUP(I22,Feuil1!$A$11:$G$29,5),IF(AND(H22>1999,H22<2002),VLOOKUP(I22,Feuil1!$A$11:$G$29,4),IF(AND(H22>2001,H22<2004),VLOOKUP(I22,Feuil1!$A$11:$G$29,3),VLOOKUP(I22,Feuil1!$A$11:$G$29,2))))),IF(OR(H22="SEN",H22<1997),VLOOKUP(I22,Feuil1!$G$11:$L$25,6),IF(AND(H22>1996,H22<2000),VLOOKUP(I22,Feuil1!$G$11:$L$25,5),IF(AND(H22>1999,H22<2002),VLOOKUP(I22,Feuil1!$G$11:$L$25,4),IF(AND(H22>2001,H22<2004),VLOOKUP(I22,Feuil1!$G$11:$L$25,3),VLOOKUP(I22,Feuil1!$G$11:$L$25,2))))))) -> FC2 58 | Y22: 163.3136987 | AB22: =T22-HLOOKUP(X22,Feuil1!$C$1:$BL$10,2,FALSE) -> 66 | AC22: =T22-HLOOKUP(X22,Feuil1!$C$1:$BL$10,3,FALSE) -> 56 | AD22: =T22-HLOOKUP(X22,Feuil1!$C$1:$BL$10,4,FALSE) -> 46 | AE22: =T22-HLOOKUP(X22,Feuil1!$C$1:$BL$10,5,FALSE) -> 36 | AF22: =T22-HLOOKUP(X22,Feuil1!$C$1:$BL$10,6,FALSE) -> 26 | AG22: =T22-HLOOKUP(X22,Feuil1!$C$1:$BL$10,7,FALSE) -> 16 | AH22: =T22-HLOOKUP(X22,Feuil1!$C$1:$BL$10,8,FALSE) -> 1 | AI22: =T22-HLOOKUP(X22,Feuil1!$C$1:$BL$10,9,FALSE) -> -14 | AJ22: =T22-HLOOKUP(X22,Feuil1!$C$1:$BL$10,10,FALSE) -> -884 | AQ22: INTB +
A23: F | H23: 2000 | I23: 58 | L23: 52 | O23: 52 | P23: 64 | S23: 64 | T23: 116 | V23: INTB + | W23: 1 | X23: =IF(I23="","",IF(A23="H",IF(OR(H23="SEN",H23<1997),VLOOKUP(I23,Feuil1!$A$11:$G$29,6),IF(AND(H23>1996,H23<2000),VLOOKUP(I23,Feuil1!$A$11:$G$29,5),IF(AND(H23>1999,H23<2002),VLOOKUP(I23,Feuil1!$A$11:$G$29,4),IF(AND(H23>2001,H23<2004),VLOOKUP(I23,Feuil1!$A$11:$G$29,3),VLOOKUP(I23,Feuil1!$A$11:$G$29,2))))),IF(OR(H23="SEN",H23<1997),VLOOKUP(I23,Feuil1!$G$11:$L$25,6),IF(AND(H23>1996,H23<2000),VLOOKUP(I23,Feuil1!$G$11:$L$25,5),IF(AND(H23>1999,H23<2002),VLOOKUP(I23,Feuil1!$G$11:$L$25,4),IF(AND(H23>2001,H23<2004),VLOOKUP(I23,Feuil1!$G$11:$L$25,3),VLOOKUP(I23,Feuil1!$G$11:$L$25,2))))))) -> FC2 58 | Y23: 163.3136987 | AB23: =T23-HLOOKUP(X23,Feuil1!$C$1:$BL$10,2,FALSE) -> 66 | AC23: =T23-HLOOKUP(X23,Feuil1!$C$1:$BL$10,3,FALSE) -> 56 | AD23: =T23-HLOOKUP(X23,Feuil1!$C$1:$BL$10,4,FALSE) -> 46 | AE23: =T23-HLOOKUP(X23,Feuil1!$C$1:$BL$10,5,FALSE) -> 36 | AF23: =T23-HLOOKUP(X23,Feuil1!$C$1:$BL$10,6,FALSE) -> 26 | AG23: =T23-HLOOKUP(X23,Feuil1!$C$1:$BL$10,7,FALSE) -> 16 | AH23: =T23-HLOOKUP(X23,Feuil1!$C$1:$BL$10,8,FALSE) -> 1 | AI23: =T23-HLOOKUP(X23,Feuil1!$C$1:$BL$10,9,FALSE) -> -14 | AJ23: =T23-HLOOKUP(X23,Feuil1!$C$1:$BL$10,10,FALSE) -> -884 | AQ23: INTB +
A24: F | H24: 2000 | I24: 58 | L24: 52 | O24: 52 | P24: 64 | S24: 64 | T24: 116 | V24: INTB + | W24: 1 | X24: =IF(I24="","",IF(A24="H",IF(OR(H24="SEN",H24<1997),VLOOKUP(I24,Feuil1!$A$11:$G$29,6),IF(AND(H24>1996,H24<2000),VLOOKUP(I24,Feuil1!$A$11:$G$29,5),IF(AND(H24>1999,H24<2002),VLOOKUP(I24,Feuil1!$A$11:$G$29,4),IF(AND(H24>2001,H24<2004),VLOOKUP(I24,Feuil1!$A$11:$G$29,3),VLOOKUP(I24,Feuil1!$A$11:$G$29,2))))),IF(OR(H24="SEN",H24<1997),VLOOKUP(I24,Feuil1!$G$11:$L$25,6),IF(AND(H24>1996,H24<2000),VLOOKUP(I24,Feuil1!$G$11:$L$25,5),IF(AND(H24>1999,H24<2002),VLOOKUP(I24,Feuil1!$G$11:$L$25,4),IF(AND(H24>2001,H24<2004),VLOOKUP(I24,Feuil1!$G$11:$L$25,3),VLOOKUP(I24,Feuil1!$G$11:$L$25,2))))))) -> FC2 58 | Y24: 163.3136987 | AB24: =T24-HLOOKUP(X24,Feuil1!$C$1:$BL$10,2,FALSE) -> 66 | AC24: =T24-HLOOKUP(X24,Feuil1!$C$1:$BL$10,3,FALSE) -> 56 | AD24: =T24-HLOOKUP(X24,Feuil1!$C$1:$BL$10,4,FALSE) -> 46 | AE24: =T24-HLOOKUP(X24,Feuil1!$C$1:$BL$10,5,FALSE) -> 36 | AF24: =T24-HLOOKUP(X24,Feuil1!$C$1:$BL$10,6,FALSE) -> 26 | AG24: =T24-HLOOKUP(X24,Feuil1!$C$1:$BL$10,7,FALSE) -> 16 | AH24: =T24-HLOOKUP(X24,Feuil1!$C$1:$BL$10,8,FALSE) -> 1 | AI24: =T24-HLOOKUP(X24,Feuil1!$C$1:$BL$10,9,FALSE) -> -14 | AJ24: =T24-HLOOKUP(X24,Feuil1!$C$1:$BL$10,10,FALSE) -> -884 | AQ24: INTB +
A25: F | H25: 2000 | I25: 58 | L25: 52 | O25: 52 | P25: 64 | S25: 64 | T25: 116 | V25: INTB + | W25: 1 | X25: =IF(I25="","",IF(A25="H",IF(OR(H25="SEN",H25<1997),VLOOKUP(I25,Feuil1!$A$11:$G$29,6),IF(AND(H25>1996,H25<2000),VLOOKUP(I25,Feuil1!$A$11:$G$29,5),IF(AND(H25>1999,H25<2002),VLOOKUP(I25,Feuil1!$A$11:$G$29,4),IF(AND(H25>2001,H25<2004),VLOOKUP(I25,Feuil1!$A$11:$G$29,3),VLOOKUP(I25,Feuil1!$A$11:$G$29,2))))),IF(OR(H25="SEN",H25<1997),VLOOKUP(I25,Feuil1!$G$11:$L$25,6),IF(AND(H25>1996,H25<2000),VLOOKUP(I25,Feuil1!$G$11:$L$25,5),IF(AND(H25>1999,H25<2002),VLOOKUP(I25,Feuil1!$G$11:$L$25,4),IF(AND(H25>2001,H25<2004),VLOOKUP(I25,Feuil1!$G$11:$L$25,3),VLOOKUP(I25,Feuil1!$G$11:$L$25,2))))))) -> FC2 58 | Y25: 163.3136987 | AB25: =T25-HLOOKUP(X25,Feuil1!$C$1:$BL$10,2,FALSE) -> 66 | AC25: =T25-HLOOKUP(X25,Feuil1!$C$1:$BL$10,3,FALSE) -> 56 | AD25: =T25-HLOOKUP(X25,Feuil1!$C$1:$BL$10,4,FALSE) -> 46 | AE25: =T25-HLOOKUP(X25,Feuil1!$C$1:$BL$10,5,FALSE) -> 36 | AF25: =T25-HLOOKUP(X25,Feuil1!$C$1:$BL$10,6,FALSE) -> 26 | AG25: =T25-HLOOKUP(X25,Feuil1!$C$1:$BL$10,7,FALSE) -> 16 | AH25: =T25-HLOOKUP(X25,Feuil1!$C$1:$BL$10,8,FALSE) -> 1 | AI25: =T25-HLOOKUP(X25,Feuil1!$C$1:$BL$10,9,FALSE) -> -14 | AJ25: =T25-HLOOKUP(X25,Feuil1!$C$1:$BL$10,10,FALSE) -> -884 | AQ25: INTB +
A26: F | H26: 2000 | I26: 58 | L26: 52 | O26: 52 | P26: 64 | S26: 64 | T26: 116 | V26: INTB + | W26: 1 | X26: =IF(I26="","",IF(A26="H",IF(OR(H26="SEN",H26<1997),VLOOKUP(I26,Feuil1!$A$11:$G$29,6),IF(AND(H26>1996,H26<2000),VLOOKUP(I26,Feuil1!$A$11:$G$29,5),IF(AND(H26>1999,H26<2002),VLOOKUP(I26,Feuil1!$A$11:$G$29,4),IF(AND(H26>2001,H26<2004),VLOOKUP(I26,Feuil1!$A$11:$G$29,3),VLOOKUP(I26,Feuil1!$A$11:$G$29,2))))),IF(OR(H26="SEN",H26<1997),VLOOKUP(I26,Feuil1!$G$11:$L$25,6),IF(AND(H26>1996,H26<2000),VLOOKUP(I26,Feuil1!$G$11:$L$25,5),IF(AND(H26>1999,H26<2002),VLOOKUP(I26,Feuil1!$G$11:$L$25,4),IF(AND(H26>2001,H26<2004),VLOOKUP(I26,Feuil1!$G$11:$L$25,3),VLOOKUP(I26,Feuil1!$G$11:$L$25,2))))))) -> FC2 58 | Y26: 163.3136987 | AB26: =T26-HLOOKUP(X26,Feuil1!$C$1:$BL$10,2,FALSE) -> 66 | AC26: =T26-HLOOKUP(X26,Feuil1!$C$1:$BL$10,3,FALSE) -> 56 | AD26: =T26-HLOOKUP(X26,Feuil1!$C$1:$BL$10,4,FALSE) -> 46 | AE26: =T26-HLOOKUP(X26,Feuil1!$C$1:$BL$10,5,FALSE) -> 36 | AF26: =T26-HLOOKUP(X26,Feuil1!$C$1:$BL$10,6,FALSE) -> 26 | AG26: =T26-HLOOKUP(X26,Feuil1!$C$1:$BL$10,7,FALSE) -> 16 | AH26: =T26-HLOOKUP(X26,Feuil1!$C$1:$BL$10,8,FALSE) -> 1 | AI26: =T26-HLOOKUP(X26,Feuil1!$C$1:$BL$10,9,FALSE) -> -14 | AJ26: =T26-HLOOKUP(X26,Feuil1!$C$1:$BL$10,10,FALSE) -> -884 | AQ26: INTB +
A27: F | H27: 2000 | I27: 58 | L27: 52 | O27: 52 | P27: 64 | S27: 64 | T27: 116 | V27: INTB + | W27: 1 | X27: =IF(I27="","",IF(A27="H",IF(OR(H27="SEN",H27<1997),VLOOKUP(I27,Feuil1!$A$11:$G$29,6),IF(AND(H27>1996,H27<2000),VLOOKUP(I27,Feuil1!$A$11:$G$29,5),IF(AND(H27>1999,H27<2002),VLOOKUP(I27,Feuil1!$A$11:$G$29,4),IF(AND(H27>2001,H27<2004),VLOOKUP(I27,Feuil1!$A$11:$G$29,3),VLOOKUP(I27,Feuil1!$A$11:$G$29,2))))),IF(OR(H27="SEN",H27<1997),VLOOKUP(I27,Feuil1!$G$11:$L$25,6),IF(AND(H27>1996,H27<2000),VLOOKUP(I27,Feuil1!$G$11:$L$25,5),IF(AND(H27>1999,H27<2002),VLOOKUP(I27,Feuil1!$G$11:$L$25,4),IF(AND(H27>2001,H27<2004),VLOOKUP(I27,Feuil1!$G$11:$L$25,3),VLOOKUP(I27,Feuil1!$G$11:$L$25,2))))))) -> FC2 58 | Y27: 163.3136987 | AB27: =T27-HLOOKUP(X27,Feuil1!$C$1:$BL$10,2,FALSE) -> 66 | AC27: =T27-HLOOKUP(X27,Feuil1!$C$1:$BL$10,3,FALSE) -> 56 | AD27: =T27-HLOOKUP(X27,Feuil1!$C$1:$BL$10,4,FALSE) -> 46 | AE27: =T27-HLOOKUP(X27,Feuil1!$C$1:$BL$10,5,FALSE) -> 36 | AF27: =T27-HLOOKUP(X27,Feuil1!$C$1:$BL$10,6,FALSE) -> 26 | AG27: =T27-HLOOKUP(X27,Feuil1!$C$1:$BL$10,7,FALSE) -> 16 | AH27: =T27-HLOOKUP(X27,Feuil1!$C$1:$BL$10,8,FALSE) -> 1 | AI27: =T27-HLOOKUP(X27,Feuil1!$C$1:$BL$10,9,FALSE) -> -14 | AJ27: =T27-HLOOKUP(X27,Feuil1!$C$1:$BL$10,10,FALSE) -> -884 | AQ27: INTB +
A28: F | H28: 2000 | I28: 58 | L28: 52 | O28: 52 | P28: 64 | S28: 64 | T28: 116 | V28: INTB + | W28: 1 | X28: =IF(I28="","",IF(A28="H",IF(OR(H28="SEN",H28<1997),VLOOKUP(I28,Feuil1!$A$11:$G$29,6),IF(AND(H28>1996,H28<2000),VLOOKUP(I28,Feuil1!$A$11:$G$29,5),IF(AND(H28>1999,H28<2002),VLOOKUP(I28,Feuil1!$A$11:$G$29,4),IF(AND(H28>2001,H28<2004),VLOOKUP(I28,Feuil1!$A$11:$G$29,3),VLOOKUP(I28,Feuil1!$A$11:$G$29,2))))),IF(OR(H28="SEN",H28<1997),VLOOKUP(I28,Feuil1!$G$11:$L$25,6),IF(AND(H28>1996,H28<2000),VLOOKUP(I28,Feuil1!$G$11:$L$25,5),IF(AND(H28>1999,H28<2002),VLOOKUP(I28,Feuil1!$G$11:$L$25,4),IF(AND(H28>2001,H28<2004),VLOOKUP(I28,Feuil1!$G$11:$L$25,3),VLOOKUP(I28,Feuil1!$G$11:$L$25,2))))))) -> FC2 58 | Y28: 163.3136987 | AB28: =T28-HLOOKUP(X28,Feuil1!$C$1:$BL$10,2,FALSE) -> 66 | AC28: =T28-HLOOKUP(X28,Feuil1!$C$1:$BL$10,3,FALSE) -> 56 | AD28: =T28-HLOOKUP(X28,Feuil1!$C$1:$BL$10,4,FALSE) -> 46 | AE28: =T28-HLOOKUP(X28,Feuil1!$C$1:$BL$10,5,FALSE) -> 36 | AF28: =T28-HLOOKUP(X28,Feuil1!$C$1:$BL$10,6,FALSE) -> 26 | AG28: =T28-HLOOKUP(X28,Feuil1!$C$1:$BL$10,7,FALSE) -> 16 | AH28: =T28-HLOOKUP(X28,Feuil1!$C$1:$BL$10,8,FALSE) -> 1 | AI28: =T28-HLOOKUP(X28,Feuil1!$C$1:$BL$10,9,FALSE) -> -14 | AJ28: =T28-HLOOKUP(X28,Feuil1!$C$1:$BL$10,10,FALSE) -> -884 | AQ28: INTB +
A29: F | H29: 2000 | I29: 58 | L29: 52 | O29: 52 | P29: 64 | S29: 64 | T29: 116 | V29: INTB + | W29: 1 | X29: =IF(I29="","",IF(A29="H",IF(OR(H29="SEN",H29<1997),VLOOKUP(I29,Feuil1!$A$11:$G$29,6),IF(AND(H29>1996,H29<2000),VLOOKUP(I29,Feuil1!$A$11:$G$29,5),IF(AND(H29>1999,H29<2002),VLOOKUP(I29,Feuil1!$A$11:$G$29,4),IF(AND(H29>2001,H29<2004),VLOOKUP(I29,Feuil1!$A$11:$G$29,3),VLOOKUP(I29,Feuil1!$A$11:$G$29,2))))),IF(OR(H29="SEN",H29<1997),VLOOKUP(I29,Feuil1!$G$11:$L$25,6),IF(AND(H29>1996,H29<2000),VLOOKUP(I29,Feuil1!$G$11:$L$25,5),IF(AND(H29>1999,H29<2002),VLOOKUP(I29,Feuil1!$G$11:$L$25,4),IF(AND(H29>2001,H29<2004),VLOOKUP(I29,Feuil1!$G$11:$L$25,3),VLOOKUP(I29,Feuil1!$G$11:$L$25,2))))))) -> FC2 58 | Y29: 163.3136987 | AB29: =T29-HLOOKUP(X29,Feuil1!$C$1:$BL$10,2,FALSE) -> 66 | AC29: =T29-HLOOKUP(X29,Feuil1!$C$1:$BL$10,3,FALSE) -> 56 | AD29: =T29-HLOOKUP(X29,Feuil1!$C$1:$BL$10,4,FALSE) -> 46 | AE29: =T29-HLOOKUP(X29,Feuil1!$C$1:$BL$10,5,FALSE) -> 36 | AF29: =T29-HLOOKUP(X29,Feuil1!$C$1:$BL$10,6,FALSE) -> 26 | AG29: =T29-HLOOKUP(X29,Feuil1!$C$1:$BL$10,7,FALSE) -> 16 | AH29: =T29-HLOOKUP(X29,Feuil1!$C$1:$BL$10,8,FALSE) -> 1 | AI29: =T29-HLOOKUP(X29,Feuil1!$C$1:$BL$10,9,FALSE) -> -14 | AJ29: =T29-HLOOKUP(X29,Feuil1!$C$1:$BL$10,10,FALSE) -> -884 | AQ29: INTB +
A30: F | H30: 2000 | I30: 58 | L30: 52 | O30: 52 | P30: 64 | S30: 64 | T30: 116 | V30: INTB + | W30: 1 | X30: =IF(I30="","",IF(A30="H",IF(OR(H30="SEN",H30<1997),VLOOKUP(I30,Feuil1!$A$11:$G$29,6),IF(AND(H30>1996,H30<2000),VLOOKUP(I30,Feuil1!$A$11:$G$29,5),IF(AND(H30>1999,H30<2002),VLOOKUP(I30,Feuil1!$A$11:$G$29,4),IF(AND(H30>2001,H30<2004),VLOOKUP(I30,Feuil1!$A$11:$G$29,3),VLOOKUP(I30,Feuil1!$A$11:$G$29,2))))),IF(OR(H30="SEN",H30<1997),VLOOKUP(I30,Feuil1!$G$11:$L$25,6),IF(AND(H30>1996,H30<2000),VLOOKUP(I30,Feuil1!$G$11:$L$25,5),IF(AND(H30>1999,H30<2002),VLOOKUP(I30,Feuil1!$G$11:$L$25,4),IF(AND(H30>2001,H30<2004),VLOOKUP(I30,Feuil1!$G$11:$L$25,3),VLOOKUP(I30,Feuil1!$G$11:$L$25,2))))))) -> FC2 58 | Y30: 163.3136987 | AB30: =T30-HLOOKUP(X30,Feuil1!$C$1:$BL$10,2,FALSE) -> 66 | AC30: =T30-HLOOKUP(X30,Feuil1!$C$1:$BL$10,3,FALSE) -> 56 | AD30: =T30-HLOOKUP(X30,Feuil1!$C$1:$BL$10,4,FALSE) -> 46 | AE30: =T30-HLOOKUP(X30,Feuil1!$C$1:$BL$10,5,FALSE) -> 36 | AF30: =T30-HLOOKUP(X30,Feuil1!$C$1:$BL$10,6,FALSE) -> 26 | AG30: =T30-HLOOKUP(X30,Feuil1!$C$1:$BL$10,7,FALSE) -> 16 | AH30: =T30-HLOOKUP(X30,Feuil1!$C$1:$BL$10,8,FALSE) -> 1 | AI30: =T30-HLOOKUP(X30,Feuil1!$C$1:$BL$10,9,FALSE) -> -14 | AJ30: =T30-HLOOKUP(X30,Feuil1!$C$1:$BL$10,10,FALSE) -> -884 | AQ30: INTB +
A31: F | H31: 2000 | I31: 58 | L31: 52 | O31: 52 | P31: 64 | S31: 64 | T31: 116 | V31: INTB + | W31: 1 | X31: =IF(I31="","",IF(A31="H",IF(OR(H31="SEN",H31<1997),VLOOKUP(I31,Feuil1!$A$11:$G$29,6),IF(AND(H31>1996,H31<2000),VLOOKUP(I31,Feuil1!$A$11:$G$29,5),IF(AND(H31>1999,H31<2002),VLOOKUP(I31,Feuil1!$A$11:$G$29,4),IF(AND(H31>2001,H31<2004),VLOOKUP(I31,Feuil1!$A$11:$G$29,3),VLOOKUP(I31,Feuil1!$A$11:$G$29,2))))),IF(OR(H31="SEN",H31<1997),VLOOKUP(I31,Feuil1!$G$11:$L$25,6),IF(AND(H31>1996,H31<2000),VLOOKUP(I31,Feuil1!$G$11:$L$25,5),IF(AND(H31>1999,H31<2002),VLOOKUP(I31,Feuil1!$G$11:$L$25,4),IF(AND(H31>2001,H31<2004),VLOOKUP(I31,Feuil1!$G$11:$L$25,3),VLOOKUP(I31,Feuil1!$G$11:$L$25,2))))))) -> FC2 58 | Y31: 163.3136987 | AB31: =T31-HLOOKUP(X31,Feuil1!$C$1:$BL$10,2,FALSE) -> 66 | AC31: =T31-HLOOKUP(X31,Feuil1!$C$1:$BL$10,3,FALSE) -> 56 | AD31: =T31-HLOOKUP(X31,Feuil1!$C$1:$BL$10,4,FALSE) -> 46 | AE31: =T31-HLOOKUP(X31,Feuil1!$C$1:$BL$10,5,FALSE) -> 36 | AF31: =T31-HLOOKUP(X31,Feuil1!$C$1:$BL$10,6,FALSE) -> 26 | AG31: =T31-HLOOKUP(X31,Feuil1!$C$1:$BL$10,7,FALSE) -> 16 | AH31: =T31-HLOOKUP(X31,Feuil1!$C$1:$BL$10,8,FALSE) -> 1 | AI31: =T31-HLOOKUP(X31,Feuil1!$C$1:$BL$10,9,FALSE) -> -14 | AJ31: =T31-HLOOKUP(X31,Feuil1!$C$1:$BL$10,10,FALSE) -> -884 | AQ31: INTB +
A32: F | H32: 2000 | I32: 58 | L32: 52 | O32: 52 | P32: 64 | S32: 64 | T32: 116 | V32: INTB + | W32: 1 | X32: =IF(I32="","",IF(A32="H",IF(OR(H32="SEN",H32<1997),VLOOKUP(I32,Feuil1!$A$11:$G$29,6),IF(AND(H32>1996,H32<2000),VLOOKUP(I32,Feuil1!$A$11:$G$29,5),IF(AND(H32>1999,H32<2002),VLOOKUP(I32,Feuil1!$A$11:$G$29,4),IF(AND(H32>2001,H32<2004),VLOOKUP(I32,Feuil1!$A$11:$G$29,3),VLOOKUP(I32,Feuil1!$A$11:$G$29,2))))),IF(OR(H32="SEN",H32<1997),VLOOKUP(I32,Feuil1!$G$11:$L$25,6),IF(AND(H32>1996,H32<2000),VLOOKUP(I32,Feuil1!$G$11:$L$25,5),IF(AND(H32>1999,H32<2002),VLOOKUP(I32,Feuil1!$G$11:$L$25,4),IF(AND(H32>2001,H32<2004),VLOOKUP(I32,Feuil1!$G$11:$L$25,3),VLOOKUP(I32,Feuil1!$G$11:$L$25,2))))))) -> FC2 58 | Y32: 163.3136987 | AB32: =T32-HLOOKUP(X32,Feuil1!$C$1:$BL$10,2,FALSE) -> 66 | AC32: =T32-HLOOKUP(X32,Feuil1!$C$1:$BL$10,3,FALSE) -> 56 | AD32: =T32-HLOOKUP(X32,Feuil1!$C$1:$BL$10,4,FALSE) -> 46 | AE32: =T32-HLOOKUP(X32,Feuil1!$C$1:$BL$10,5,FALSE) -> 36 | AF32: =T32-HLOOKUP(X32,Feuil1!$C$1:$BL$10,6,FALSE) -> 26 | AG32: =T32-HLOOKUP(X32,Feuil1!$C$1:$BL$10,7,FALSE) -> 16 | AH32: =T32-HLOOKUP(X32,Feuil1!$C$1:$BL$10,8,FALSE) -> 1 | AI32: =T32-HLOOKUP(X32,Feuil1!$C$1:$BL$10,9,FALSE) -> -14 | AJ32: =T32-HLOOKUP(X32,Feuil1!$C$1:$BL$10,10,FALSE) -> -884 | AQ32: INTB +
A33: F | H33: 2000 | I33: 58 | L33: 52 | O33: 52 | P33: 64 | S33: 64 | T33: 116 | V33: INTB + | W33: 1 | X33: =IF(I33="","",IF(A33="H",IF(OR(H33="SEN",H33<1997),VLOOKUP(I33,Feuil1!$A$11:$G$29,6),IF(AND(H33>1996,H33<2000),VLOOKUP(I33,Feuil1!$A$11:$G$29,5),IF(AND(H33>1999,H33<2002),VLOOKUP(I33,Feuil1!$A$11:$G$29,4),IF(AND(H33>2001,H33<2004),VLOOKUP(I33,Feuil1!$A$11:$G$29,3),VLOOKUP(I33,Feuil1!$A$11:$G$29,2))))),IF(OR(H33="SEN",H33<1997),VLOOKUP(I33,Feuil1!$G$11:$L$25,6),IF(AND(H33>1996,H33<2000),VLOOKUP(I33,Feuil1!$G$11:$L$25,5),IF(AND(H33>1999,H33<2002),VLOOKUP(I33,Feuil1!$G$11:$L$25,4),IF(AND(H33>2001,H33<2004),VLOOKUP(I33,Feuil1!$G$11:$L$25,3),VLOOKUP(I33,Feuil1!$G$11:$L$25,2))))))) -> FC2 58 | Y33: 163.3136987 | AB33: =T33-HLOOKUP(X33,Feuil1!$C$1:$BL$10,2,FALSE) -> 66 | AC33: =T33-HLOOKUP(X33,Feuil1!$C$1:$BL$10,3,FALSE) -> 56 | AD33: =T33-HLOOKUP(X33,Feuil1!$C$1:$BL$10,4,FALSE) -> 46 | AE33: =T33-HLOOKUP(X33,Feuil1!$C$1:$BL$10,5,FALSE) -> 36 | AF33: =T33-HLOOKUP(X33,Feuil1!$C$1:$BL$10,6,FALSE) -> 26 | AG33: =T33-HLOOKUP(X33,Feuil1!$C$1:$BL$10,7,FALSE) -> 16 | AH33: =T33-HLOOKUP(X33,Feuil1!$C$1:$BL$10,8,FALSE) -> 1 | AI33: =T33-HLOOKUP(X33,Feuil1!$C$1:$BL$10,9,FALSE) -> -14 | AJ33: =T33-HLOOKUP(X33,Feuil1!$C$1:$BL$10,10,FALSE) -> -884 | AQ33: INTB +
A34: F | H34: 2000 | I34: 58 | L34: 52 | O34: 52 | P34: 64 | S34: 64 | T34: 116 | V34: INTB + | W34: 1 | X34: =IF(I34="","",IF(A34="H",IF(OR(H34="SEN",H34<1997),VLOOKUP(I34,Feuil1!$A$11:$G$29,6),IF(AND(H34>1996,H34<2000),VLOOKUP(I34,Feuil1!$A$11:$G$29,5),IF(AND(H34>1999,H34<2002),VLOOKUP(I34,Feuil1!$A$11:$G$29,4),IF(AND(H34>2001,H34<2004),VLOOKUP(I34,Feuil1!$A$11:$G$29,3),VLOOKUP(I34,Feuil1!$A$11:$G$29,2))))),IF(OR(H34="SEN",H34<1997),VLOOKUP(I34,Feuil1!$G$11:$L$25,6),IF(AND(H34>1996,H34<2000),VLOOKUP(I34,Feuil1!$G$11:$L$25,5),IF(AND(H34>1999,H34<2002),VLOOKUP(I34,Feuil1!$G$11:$L$25,4),IF(AND(H34>2001,H34<2004),VLOOKUP(I34,Feuil1!$G$11:$L$25,3),VLOOKUP(I34,Feuil1!$G$11:$L$25,2))))))) -> FC2 58 | Y34: 163.3136987 | AB34: =T34-HLOOKUP(X34,Feuil1!$C$1:$BL$10,2,FALSE) -> 66 | AC34: =T34-HLOOKUP(X34,Feuil1!$C$1:$BL$10,3,FALSE) -> 56 | AD34: =T34-HLOOKUP(X34,Feuil1!$C$1:$BL$10,4,FALSE) -> 46 | AE34: =T34-HLOOKUP(X34,Feuil1!$C$1:$BL$10,5,FALSE) -> 36 | AF34: =T34-HLOOKUP(X34,Feuil1!$C$1:$BL$10,6,FALSE) -> 26 | AG34: =T34-HLOOKUP(X34,Feuil1!$C$1:$BL$10,7,FALSE) -> 16 | AH34: =T34-HLOOKUP(X34,Feuil1!$C$1:$BL$10,8,FALSE) -> 1 | AI34: =T34-HLOOKUP(X34,Feuil1!$C$1:$BL$10,9,FALSE) -> -14 | AJ34: =T34-HLOOKUP(X34,Feuil1!$C$1:$BL$10,10,FALSE) -> -884 | AQ34: INTB +
A35: F | H35: 2000 | I35: 58 | L35: 52 | O35: 52 | P35: 64 | S35: 64 | T35: 116 | V35: INTB + | W35: 1 | X35: =IF(I35="","",IF(A35="H",IF(OR(H35="SEN",H35<1997),VLOOKUP(I35,Feuil1!$A$11:$G$29,6),IF(AND(H35>1996,H35<2000),VLOOKUP(I35,Feuil1!$A$11:$G$29,5),IF(AND(H35>1999,H35<2002),VLOOKUP(I35,Feuil1!$A$11:$G$29,4),IF(AND(H35>2001,H35<2004),VLOOKUP(I35,Feuil1!$A$11:$G$29,3),VLOOKUP(I35,Feuil1!$A$11:$G$29,2))))),IF(OR(H35="SEN",H35<1997),VLOOKUP(I35,Feuil1!$G$11:$L$25,6),IF(AND(H35>1996,H35<2000),VLOOKUP(I35,Feuil1!$G$11:$L$25,5),IF(AND(H35>1999,H35<2002),VLOOKUP(I35,Feuil1!$G$11:$L$25,4),IF(AND(H35>2001,H35<2004),VLOOKUP(I35,Feuil1!$G$11:$L$25,3),VLOOKUP(I35,Feuil1!$G$11:$L$25,2))))))) -> FC2 58 | Y35: 163.3136987 | AB35: =T35-HLOOKUP(X35,Feuil1!$C$1:$BL$10,2,FALSE) -> 66 | AC35: =T35-HLOOKUP(X35,Feuil1!$C$1:$BL$10,3,FALSE) -> 56 | AD35: =T35-HLOOKUP(X35,Feuil1!$C$1:$BL$10,4,FALSE) -> 46 | AE35: =T35-HLOOKUP(X35,Feuil1!$C$1:$BL$10,5,FALSE) -> 36 | AF35: =T35-HLOOKUP(X35,Feuil1!$C$1:$BL$10,6,FALSE) -> 26 | AG35: =T35-HLOOKUP(X35,Feuil1!$C$1:$BL$10,7,FALSE) -> 16 | AH35: =T35-HLOOKUP(X35,Feuil1!$C$1:$BL$10,8,FALSE) -> 1 | AI35: =T35-HLOOKUP(X35,Feuil1!$C$1:$BL$10,9,FALSE) -> -14 | AJ35: =T35-HLOOKUP(X35,Feuil1!$C$1:$BL$10,10,FALSE) -> -884 | AQ35: INTB +
A36: F | H36: 2000 | I36: 58 | L36: 52 | O36: 52 | P36: 64 | S36: 64 | T36: 116 | V36: INTB + | W36: 1 | X36: =IF(I36="","",IF(A36="H",IF(OR(H36="SEN",H36<1997),VLOOKUP(I36,Feuil1!$A$11:$G$29,6),IF(AND(H36>1996,H36<2000),VLOOKUP(I36,Feuil1!$A$11:$G$29,5),IF(AND(H36>1999,H36<2002),VLOOKUP(I36,Feuil1!$A$11:$G$29,4),IF(AND(H36>2001,H36<2004),VLOOKUP(I36,Feuil1!$A$11:$G$29,3),VLOOKUP(I36,Feuil1!$A$11:$G$29,2))))),IF(OR(H36="SEN",H36<1997),VLOOKUP(I36,Feuil1!$G$11:$L$25,6),IF(AND(H36>1996,H36<2000),VLOOKUP(I36,Feuil1!$G$11:$L$25,5),IF(AND(H36>1999,H36<2002),VLOOKUP(I36,Feuil1!$G$11:$L$25,4),IF(AND(H36>2001,H36<2004),VLOOKUP(I36,Feuil1!$G$11:$L$25,3),VLOOKUP(I36,Feuil1!$G$11:$L$25,2))))))) -> FC2 58 | Y36: 163.3136987 | AB36: =T36-HLOOKUP(X36,Feuil1!$C$1:$BL$10,2,FALSE) -> 66 | AC36: =T36-HLOOKUP(X36,Feuil1!$C$1:$BL$10,3,FALSE) -> 56 | AD36: =T36-HLOOKUP(X36,Feuil1!$C$1:$BL$10,4,FALSE) -> 46 | AE36: =T36-HLOOKUP(X36,Feuil1!$C$1:$BL$10,5,FALSE) -> 36 | AF36: =T36-HLOOKUP(X36,Feuil1!$C$1:$BL$10,6,FALSE) -> 26 | AG36: =T36-HLOOKUP(X36,Feuil1!$C$1:$BL$10,7,FALSE) -> 16 | AH36: =T36-HLOOKUP(X36,Feuil1!$C$1:$BL$10,8,FALSE) -> 1 | AI36: =T36-HLOOKUP(X36,Feuil1!$C$1:$BL$10,9,FALSE) -> -14 | AJ36: =T36-HLOOKUP(X36,Feuil1!$C$1:$BL$10,10,FALSE) -> -884 | AQ36: INTB +
A37: F | H37: 2000 | I37: 58 | L37: 52 | O37: 52 | P37: 64 | S37: 64 | T37: 116 | V37: INTB + | W37: 1 | X37: =IF(I37="","",IF(A37="H",IF(OR(H37="SEN",H37<1997),VLOOKUP(I37,Feuil1!$A$11:$G$29,6),IF(AND(H37>1996,H37<2000),VLOOKUP(I37,Feuil1!$A$11:$G$29,5),IF(AND(H37>1999,H37<2002),VLOOKUP(I37,Feuil1!$A$11:$G$29,4),IF(AND(H37>2001,H37<2004),VLOOKUP(I37,Feuil1!$A$11:$G$29,3),VLOOKUP(I37,Feuil1!$A$11:$G$29,2))))),IF(OR(H37="SEN",H37<1997),VLOOKUP(I37,Feuil1!$G$11:$L$25,6),IF(AND(H37>1996,H37<2000),VLOOKUP(I37,Feuil1!$G$11:$L$25,5),IF(AND(H37>1999,H37<2002),VLOOKUP(I37,Feuil1!$G$11:$L$25,4),IF(AND(H37>2001,H37<2004),VLOOKUP(I37,Feuil1!$G$11:$L$25,3),VLOOKUP(I37,Feuil1!$G$11:$L$25,2))))))) -> FC2 58 | Y37: 163.3136987 | AB37: =T37-HLOOKUP(X37,Feuil1!$C$1:$BL$10,2,FALSE) -> 66 | AC37: =T37-HLOOKUP(X37,Feuil1!$C$1:$BL$10,3,FALSE) -> 56 | AD37: =T37-HLOOKUP(X37,Feuil1!$C$1:$BL$10,4,FALSE) -> 46 | AE37: =T37-HLOOKUP(X37,Feuil1!$C$1:$BL$10,5,FALSE) -> 36 | AF37: =T37-HLOOKUP(X37,Feuil1!$C$1:$BL$10,6,FALSE) -> 26 | AG37: =T37-HLOOKUP(X37,Feuil1!$C$1:$BL$10,7,FALSE) -> 16 | AH37: =T37-HLOOKUP(X37,Feuil1!$C$1:$BL$10,8,FALSE) -> 1 | AI37: =T37-HLOOKUP(X37,Feuil1!$C$1:$BL$10,9,FALSE) -> -14 | AJ37: =T37-HLOOKUP(X37,Feuil1!$C$1:$BL$10,10,FALSE) -> -884 | AQ37: INTB +
A38: F | H38: 2000 | I38: 58 | L38: 52 | O38: 52 | P38: 64 | S38: 64 | T38: 116 | V38: INTB + | W38: 1 | X38: =IF(I38="","",IF(A38="H",IF(OR(H38="SEN",H38<1997),VLOOKUP(I38,Feuil1!$A$11:$G$29,6),IF(AND(H38>1996,H38<2000),VLOOKUP(I38,Feuil1!$A$11:$G$29,5),IF(AND(H38>1999,H38<2002),VLOOKUP(I38,Feuil1!$A$11:$G$29,4),IF(AND(H38>2001,H38<2004),VLOOKUP(I38,Feuil1!$A$11:$G$29,3),VLOOKUP(I38,Feuil1!$A$11:$G$29,2))))),IF(OR(H38="SEN",H38<1997),VLOOKUP(I38,Feuil1!$G$11:$L$25,6),IF(AND(H38>1996,H38<2000),VLOOKUP(I38,Feuil1!$G$11:$L$25,5),IF(AND(H38>1999,H38<2002),VLOOKUP(I38,Feuil1!$G$11:$L$25,4),IF(AND(H38>2001,H38<2004),VLOOKUP(I38,Feuil1!$G$11:$L$25,3),VLOOKUP(I38,Feuil1!$G$11:$L$25,2))))))) -> FC2 58 | Y38: 163.3136987 | AB38: =T38-HLOOKUP(X38,Feuil1!$C$1:$BL$10,2,FALSE) -> 66 | AC38: =T38-HLOOKUP(X38,Feuil1!$C$1:$BL$10,3,FALSE) -> 56 | AD38: =T38-HLOOKUP(X38,Feuil1!$C$1:$BL$10,4,FALSE) -> 46 | AE38: =T38-HLOOKUP(X38,Feuil1!$C$1:$BL$10,5,FALSE) -> 36 | AF38: =T38-HLOOKUP(X38,Feuil1!$C$1:$BL$10,6,FALSE) -> 26 | AG38: =T38-HLOOKUP(X38,Feuil1!$C$1:$BL$10,7,FALSE) -> 16 | AH38: =T38-HLOOKUP(X38,Feuil1!$C$1:$BL$10,8,FALSE) -> 1 | AI38: =T38-HLOOKUP(X38,Feuil1!$C$1:$BL$10,9,FALSE) -> -14 | AJ38: =T38-HLOOKUP(X38,Feuil1!$C$1:$BL$10,10,FALSE) -> -884 | AQ38: INTB +
A39: F | H39: 2000 | I39: 58 | L39: 52 | O39: 52 | P39: 64 | S39: 64 | T39: 116 | V39: INTB + | W39: 1 | X39: =IF(I39="","",IF(A39="H",IF(OR(H39="SEN",H39<1997),VLOOKUP(I39,Feuil1!$A$11:$G$29,6),IF(AND(H39>1996,H39<2000),VLOOKUP(I39,Feuil1!$A$11:$G$29,5),IF(AND(H39>1999,H39<2002),VLOOKUP(I39,Feuil1!$A$11:$G$29,4),IF(AND(H39>2001,H39<2004),VLOOKUP(I39,Feuil1!$A$11:$G$29,3),VLOOKUP(I39,Feuil1!$A$11:$G$29,2))))),IF(OR(H39="SEN",H39<1997),VLOOKUP(I39,Feuil1!$G$11:$L$25,6),IF(AND(H39>1996,H39<2000),VLOOKUP(I39,Feuil1!$G$11:$L$25,5),IF(AND(H39>1999,H39<2002),VLOOKUP(I39,Feuil1!$G$11:$L$25,4),IF(AND(H39>2001,H39<2004),VLOOKUP(I39,Feuil1!$G$11:$L$25,3),VLOOKUP(I39,Feuil1!$G$11:$L$25,2))))))) -> FC2 58 | Y39: 163.3136987 | AB39: =T39-HLOOKUP(X39,Feuil1!$C$1:$BL$10,2,FALSE) -> 66 | AC39: =T39-HLOOKUP(X39,Feuil1!$C$1:$BL$10,3,FALSE) -> 56 | AD39: =T39-HLOOKUP(X39,Feuil1!$C$1:$BL$10,4,FALSE) -> 46 | AE39: =T39-HLOOKUP(X39,Feuil1!$C$1:$BL$10,5,FALSE) -> 36 | AF39: =T39-HLOOKUP(X39,Feuil1!$C$1:$BL$10,6,FALSE) -> 26 | AG39: =T39-HLOOKUP(X39,Feuil1!$C$1:$BL$10,7,FALSE) -> 16 | AH39: =T39-HLOOKUP(X39,Feuil1!$C$1:$BL$10,8,FALSE) -> 1 | AI39: =T39-HLOOKUP(X39,Feuil1!$C$1:$BL$10,9,FALSE) -> -14 | AJ39: =T39-HLOOKUP(X39,Feuil1!$C$1:$BL$10,10,FALSE) -> -884 | AQ39: INTB +
A40: F | H40: 2000 | I40: 58 | L40: 52 | O40: 52 | P40: 64 | S40: 64 | T40: 116 | V40: INTB + | W40: 1 | X40: =IF(I40="","",IF(A40="H",IF(OR(H40="SEN",H40<1997),VLOOKUP(I40,Feuil1!$A$11:$G$29,6),IF(AND(H40>1996,H40<2000),VLOOKUP(I40,Feuil1!$A$11:$G$29,5),IF(AND(H40>1999,H40<2002),VLOOKUP(I40,Feuil1!$A$11:$G$29,4),IF(AND(H40>2001,H40<2004),VLOOKUP(I40,Feuil1!$A$11:$G$29,3),VLOOKUP(I40,Feuil1!$A$11:$G$29,2))))),IF(OR(H40="SEN",H40<1997),VLOOKUP(I40,Feuil1!$G$11:$L$25,6),IF(AND(H40>1996,H40<2000),VLOOKUP(I40,Feuil1!$G$11:$L$25,5),IF(AND(H40>1999,H40<2002),VLOOKUP(I40,Feuil1!$G$11:$L$25,4),IF(AND(H40>2001,H40<2004),VLOOKUP(I40,Feuil1!$G$11:$L$25,3),VLOOKUP(I40,Feuil1!$G$11:$L$25,2))))))) -> FC2 58 | Y40: 163.3136987 | AB40: =T40-HLOOKUP(X40,Feuil1!$C$1:$BL$10,2,FALSE) -> 66 | AC40: =T40-HLOOKUP(X40,Feuil1!$C$1:$BL$10,3,FALSE) -> 56 | AD40: =T40-HLOOKUP(X40,Feuil1!$C$1:$BL$10,4,FALSE) -> 46 | AE40: =T40-HLOOKUP(X40,Feuil1!$C$1:$BL$10,5,FALSE) -> 36 | AF40: =T40-HLOOKUP(X40,Feuil1!$C$1:$BL$10,6,FALSE) -> 26 | AG40: =T40-HLOOKUP(X40,Feuil1!$C$1:$BL$10,7,FALSE) -> 16 | AH40: =T40-HLOOKUP(X40,Feuil1!$C$1:$BL$10,8,FALSE) -> 1 | AI40: =T40-HLOOKUP(X40,Feuil1!$C$1:$BL$10,9,FALSE) -> -14 | AJ40: =T40-HLOOKUP(X40,Feuil1!$C$1:$BL$10,10,FALSE) -> -884 | AQ40: INTB +
A41: F | H41: 2000 | I41: 58 | L41: 52 | O41: 52 | P41: 64 | S41: 64 | T41: 116 | V41: INTB + | W41: 1 | X41: =IF(I41="","",IF(A41="H",IF(OR(H41="SEN",H41<1997),VLOOKUP(I41,Feuil1!$A$11:$G$29,6),IF(AND(H41>1996,H41<2000),VLOOKUP(I41,Feuil1!$A$11:$G$29,5),IF(AND(H41>1999,H41<2002),VLOOKUP(I41,Feuil1!$A$11:$G$29,4),IF(AND(H41>2001,H41<2004),VLOOKUP(I41,Feuil1!$A$11:$G$29,3),VLOOKUP(I41,Feuil1!$A$11:$G$29,2))))),IF(OR(H41="SEN",H41<1997),VLOOKUP(I41,Feuil1!$G$11:$L$25,6),IF(AND(H41>1996,H41<2000),VLOOKUP(I41,Feuil1!$G$11:$L$25,5),IF(AND(H41>1999,H41<2002),VLOOKUP(I41,Feuil1!$G$11:$L$25,4),IF(AND(H41>2001,H41<2004),VLOOKUP(I41,Feuil1!$G$11:$L$25,3),VLOOKUP(I41,Feuil1!$G$11:$L$25,2))))))) -> FC2 58 | Y41: 163.3136987 | AB41: =T41-HLOOKUP(X41,Feuil1!$C$1:$BL$10,2,FALSE) -> 66 | AC41: =T41-HLOOKUP(X41,Feuil1!$C$1:$BL$10,3,FALSE) -> 56 | AD41: =T41-HLOOKUP(X41,Feuil1!$C$1:$BL$10,4,FALSE) -> 46 | AE41: =T41-HLOOKUP(X41,Feuil1!$C$1:$BL$10,5,FALSE) -> 36 | AF41: =T41-HLOOKUP(X41,Feuil1!$C$1:$BL$10,6,FALSE) -> 26 | AG41: =T41-HLOOKUP(X41,Feuil1!$C$1:$BL$10,7,FALSE) -> 16 | AH41: =T41-HLOOKUP(X41,Feuil1!$C$1:$BL$10,8,FALSE) -> 1 | AI41: =T41-HLOOKUP(X41,Feuil1!$C$1:$BL$10,9,FALSE) -> -14 | AJ41: =T41-HLOOKUP(X41,Feuil1!$C$1:$BL$10,10,FALSE) -> -884 | AQ41: INTB +
A42: F | H42: 2000 | I42: 58 | L42: 52 | O42: 52 | P42: 64 | S42: 64 | T42: 116 | V42: INTB + | W42: 1 | X42: =IF(I42="","",IF(A42="H",IF(OR(H42="SEN",H42<1997),VLOOKUP(I42,Feuil1!$A$11:$G$29,6),IF(AND(H42>1996,H42<2000),VLOOKUP(I42,Feuil1!$A$11:$G$29,5),IF(AND(H42>1999,H42<2002),VLOOKUP(I42,Feuil1!$A$11:$G$29,4),IF(AND(H42>2001,H42<2004),VLOOKUP(I42,Feuil1!$A$11:$G$29,3),VLOOKUP(I42,Feuil1!$A$11:$G$29,2))))),IF(OR(H42="SEN",H42<1997),VLOOKUP(I42,Feuil1!$G$11:$L$25,6),IF(AND(H42>1996,H42<2000),VLOOKUP(I42,Feuil1!$G$11:$L$25,5),IF(AND(H42>1999,H42<2002),VLOOKUP(I42,Feuil1!$G$11:$L$25,4),IF(AND(H42>2001,H42<2004),VLOOKUP(I42,Feuil1!$G$11:$L$25,3),VLOOKUP(I42,Feuil1!$G$11:$L$25,2))))))) -> FC2 58 | Y42: 163.3136987 | AB42: =T42-HLOOKUP(X42,Feuil1!$C$1:$BL$10,2,FALSE) -> 66 | AC42: =T42-HLOOKUP(X42,Feuil1!$C$1:$BL$10,3,FALSE) -> 56 | AD42: =T42-HLOOKUP(X42,Feuil1!$C$1:$BL$10,4,FALSE) -> 46 | AE42: =T42-HLOOKUP(X42,Feuil1!$C$1:$BL$10,5,FALSE) -> 36 | AF42: =T42-HLOOKUP(X42,Feuil1!$C$1:$BL$10,6,FALSE) -> 26 | AG42: =T42-HLOOKUP(X42,Feuil1!$C$1:$BL$10,7,FALSE) -> 16 | AH42: =T42-HLOOKUP(X42,Feuil1!$C$1:$BL$10,8,FALSE) -> 1 | AI42: =T42-HLOOKUP(X42,Feuil1!$C$1:$BL$10,9,FALSE) -> -14 | AJ42: =T42-HLOOKUP(X42,Feuil1!$C$1:$BL$10,10,FALSE) -> -884 | AQ42: INTB +
A43: F | H43: 2000 | I43: 58 | L43: 52 | O43: 52 | P43: 64 | S43: 64 | T43: 116 | V43: INTB + | W43: 1 | X43: =IF(I43="","",IF(A43="H",IF(OR(H43="SEN",H43<1997),VLOOKUP(I43,Feuil1!$A$11:$G$29,6),IF(AND(H43>1996,H43<2000),VLOOKUP(I43,Feuil1!$A$11:$G$29,5),IF(AND(H43>1999,H43<2002),VLOOKUP(I43,Feuil1!$A$11:$G$29,4),IF(AND(H43>2001,H43<2004),VLOOKUP(I43,Feuil1!$A$11:$G$29,3),VLOOKUP(I43,Feuil1!$A$11:$G$29,2))))),IF(OR(H43="SEN",H43<1997),VLOOKUP(I43,Feuil1!$G$11:$L$25,6),IF(AND(H43>1996,H43<2000),VLOOKUP(I43,Feuil1!$G$11:$L$25,5),IF(AND(H43>1999,H43<2002),VLOOKUP(I43,Feuil1!$G$11:$L$25,4),IF(AND(H43>2001,H43<2004),VLOOKUP(I43,Feuil1!$G$11:$L$25,3),VLOOKUP(I43,Feuil1!$G$11:$L$25,2))))))) -> FC2 58 | Y43: 163.3136987 | AB43: =T43-HLOOKUP(X43,Feuil1!$C$1:$BL$10,2,FALSE) -> 66 | AC43: =T43-HLOOKUP(X43,Feuil1!$C$1:$BL$10,3,FALSE) -> 56 | AD43: =T43-HLOOKUP(X43,Feuil1!$C$1:$BL$10,4,FALSE) -> 46 | AE43: =T43-HLOOKUP(X43,Feuil1!$C$1:$BL$10,5,FALSE) -> 36 | AF43: =T43-HLOOKUP(X43,Feuil1!$C$1:$BL$10,6,FALSE) -> 26 | AG43: =T43-HLOOKUP(X43,Feuil1!$C$1:$BL$10,7,FALSE) -> 16 | AH43: =T43-HLOOKUP(X43,Feuil1!$C$1:$BL$10,8,FALSE) -> 1 | AI43: =T43-HLOOKUP(X43,Feuil1!$C$1:$BL$10,9,FALSE) -> -14 | AJ43: =T43-HLOOKUP(X43,Feuil1!$C$1:$BL$10,10,FALSE) -> -884 | AQ43: INTB +
A44: F | H44: 2000 | I44: 58 | L44: 52 | O44: 52 | P44: 64 | S44: 64 | T44: 116 | V44: INTB + | W44: 1 | X44: =IF(I44="","",IF(A44="H",IF(OR(H44="SEN",H44<1997),VLOOKUP(I44,Feuil1!$A$11:$G$29,6),IF(AND(H44>1996,H44<2000),VLOOKUP(I44,Feuil1!$A$11:$G$29,5),IF(AND(H44>1999,H44<2002),VLOOKUP(I44,Feuil1!$A$11:$G$29,4),IF(AND(H44>2001,H44<2004),VLOOKUP(I44,Feuil1!$A$11:$G$29,3),VLOOKUP(I44,Feuil1!$A$11:$G$29,2))))),IF(OR(H44="SEN",H44<1997),VLOOKUP(I44,Feuil1!$G$11:$L$25,6),IF(AND(H44>1996,H44<2000),VLOOKUP(I44,Feuil1!$G$11:$L$25,5),IF(AND(H44>1999,H44<2002),VLOOKUP(I44,Feuil1!$G$11:$L$25,4),IF(AND(H44>2001,H44<2004),VLOOKUP(I44,Feuil1!$G$11:$L$25,3),VLOOKUP(I44,Feuil1!$G$11:$L$25,2))))))) -> FC2 58 | Y44: 163.3136987 | AB44: =T44-HLOOKUP(X44,Feuil1!$C$1:$BL$10,2,FALSE) -> 66 | AC44: =T44-HLOOKUP(X44,Feuil1!$C$1:$BL$10,3,FALSE) -> 56 | AD44: =T44-HLOOKUP(X44,Feuil1!$C$1:$BL$10,4,FALSE) -> 46 | AE44: =T44-HLOOKUP(X44,Feuil1!$C$1:$BL$10,5,FALSE) -> 36 | AF44: =T44-HLOOKUP(X44,Feuil1!$C$1:$BL$10,6,FALSE) -> 26 | AG44: =T44-HLOOKUP(X44,Feuil1!$C$1:$BL$10,7,FALSE) -> 16 | AH44: =T44-HLOOKUP(X44,Feuil1!$C$1:$BL$10,8,FALSE) -> 1 | AI44: =T44-HLOOKUP(X44,Feuil1!$C$1:$BL$10,9,FALSE) -> -14 | AJ44: =T44-HLOOKUP(X44,Feuil1!$C$1:$BL$10,10,FALSE) -> -884 | AQ44: INTB +
A45: F | H45: 2000 | I45: 58 | L45: 52 | O45: 52 | P45: 64 | S45: 64 | T45: 116 | V45: INTB + | W45: 1 | X45: =IF(I45="","",IF(A45="H",IF(OR(H45="SEN",H45<1997),VLOOKUP(I45,Feuil1!$A$11:$G$29,6),IF(AND(H45>1996,H45<2000),VLOOKUP(I45,Feuil1!$A$11:$G$29,5),IF(AND(H45>1999,H45<2002),VLOOKUP(I45,Feuil1!$A$11:$G$29,4),IF(AND(H45>2001,H45<2004),VLOOKUP(I45,Feuil1!$A$11:$G$29,3),VLOOKUP(I45,Feuil1!$A$11:$G$29,2))))),IF(OR(H45="SEN",H45<1997),VLOOKUP(I45,Feuil1!$G$11:$L$25,6),IF(AND(H45>1996,H45<2000),VLOOKUP(I45,Feuil1!$G$11:$L$25,5),IF(AND(H45>1999,H45<2002),VLOOKUP(I45,Feuil1!$G$11:$L$25,4),IF(AND(H45>2001,H45<2004),VLOOKUP(I45,Feuil1!$G$11:$L$25,3),VLOOKUP(I45,Feuil1!$G$11:$L$25,2))))))) -> FC2 58 | Y45: 163.3136987 | AB45: =T45-HLOOKUP(X45,Feuil1!$C$1:$BL$10,2,FALSE) -> 66 | AC45: =T45-HLOOKUP(X45,Feuil1!$C$1:$BL$10,3,FALSE) -> 56 | AD45: =T45-HLOOKUP(X45,Feuil1!$C$1:$BL$10,4,FALSE) -> 46 | AE45: =T45-HLOOKUP(X45,Feuil1!$C$1:$BL$10,5,FALSE) -> 36 | AF45: =T45-HLOOKUP(X45,Feuil1!$C$1:$BL$10,6,FALSE) -> 26 | AG45: =T45-HLOOKUP(X45,Feuil1!$C$1:$BL$10,7,FALSE) -> 16 | AH45: =T45-HLOOKUP(X45,Feuil1!$C$1:$BL$10,8,FALSE) -> 1 | AI45: =T45-HLOOKUP(X45,Feuil1!$C$1:$BL$10,9,FALSE) -> -14 | AJ45: =T45-HLOOKUP(X45,Feuil1!$C$1:$BL$10,10,FALSE) -> -884 | AQ45: INTB +
A46: F | H46: 2000 | I46: 58 | L46: 52 | O46: 52 | P46: 64 | S46: 64 | T46: 116 | V46: INTB + | W46: 1 | X46: =IF(I46="","",IF(A46="H",IF(OR(H46="SEN",H46<1997),VLOOKUP(I46,Feuil1!$A$11:$G$29,6),IF(AND(H46>1996,H46<2000),VLOOKUP(I46,Feuil1!$A$11:$G$29,5),IF(AND(H46>1999,H46<2002),VLOOKUP(I46,Feuil1!$A$11:$G$29,4),IF(AND(H46>2001,H46<2004),VLOOKUP(I46,Feuil1!$A$11:$G$29,3),VLOOKUP(I46,Feuil1!$A$11:$G$29,2))))),IF(OR(H46="SEN",H46<1997),VLOOKUP(I46,Feuil1!$G$11:$L$25,6),IF(AND(H46>1996,H46<2000),VLOOKUP(I46,Feuil1!$G$11:$L$25,5),IF(AND(H46>1999,H46<2002),VLOOKUP(I46,Feuil1!$G$11:$L$25,4),IF(AND(H46>2001,H46<2004),VLOOKUP(I46,Feuil1!$G$11:$L$25,3),VLOOKUP(I46,Feuil1!$G$11:$L$25,2))))))) -> FC2 58 | Y46: 163.3136987 | AB46: =T46-HLOOKUP(X46,Feuil1!$C$1:$BL$10,2,FALSE) -> 66 | AC46: =T46-HLOOKUP(X46,Feuil1!$C$1:$BL$10,3,FALSE) -> 56 | AD46: =T46-HLOOKUP(X46,Feuil1!$C$1:$BL$10,4,FALSE) -> 46 | AE46: =T46-HLOOKUP(X46,Feuil1!$C$1:$BL$10,5,FALSE) -> 36 | AF46: =T46-HLOOKUP(X46,Feuil1!$C$1:$BL$10,6,FALSE) -> 26 | AG46: =T46-HLOOKUP(X46,Feuil1!$C$1:$BL$10,7,FALSE) -> 16 | AH46: =T46-HLOOKUP(X46,Feuil1!$C$1:$BL$10,8,FALSE) -> 1 | AI46: =T46-HLOOKUP(X46,Feuil1!$C$1:$BL$10,9,FALSE) -> -14 | AJ46: =T46-HLOOKUP(X46,Feuil1!$C$1:$BL$10,10,FALSE) -> -884 | AQ46: INTB +
A47: F | H47: 2000 | I47: 58 | L47: 52 | O47: 52 | P47: 64 | S47: 64 | T47: 116 | V47: INTB + | W47: 1 | X47: =IF(I47="","",IF(A47="H",IF(OR(H47="SEN",H47<1997),VLOOKUP(I47,Feuil1!$A$11:$G$29,6),IF(AND(H47>1996,H47<2000),VLOOKUP(I47,Feuil1!$A$11:$G$29,5),IF(AND(H47>1999,H47<2002),VLOOKUP(I47,Feuil1!$A$11:$G$29,4),IF(AND(H47>2001,H47<2004),VLOOKUP(I47,Feuil1!$A$11:$G$29,3),VLOOKUP(I47,Feuil1!$A$11:$G$29,2))))),IF(OR(H47="SEN",H47<1997),VLOOKUP(I47,Feuil1!$G$11:$L$25,6),IF(AND(H47>1996,H47<2000),VLOOKUP(I47,Feuil1!$G$11:$L$25,5),IF(AND(H47>1999,H47<2002),VLOOKUP(I47,Feuil1!$G$11:$L$25,4),IF(AND(H47>2001,H47<2004),VLOOKUP(I47,Feuil1!$G$11:$L$25,3),VLOOKUP(I47,Feuil1!$G$11:$L$25,2))))))) -> FC2 58 | Y47: 163.3136987 | AB47: =T47-HLOOKUP(X47,Feuil1!$C$1:$BL$10,2,FALSE) -> 66 | AC47: =T47-HLOOKUP(X47,Feuil1!$C$1:$BL$10,3,FALSE) -> 56 | AD47: =T47-HLOOKUP(X47,Feuil1!$C$1:$BL$10,4,FALSE) -> 46 | AE47: =T47-HLOOKUP(X47,Feuil1!$C$1:$BL$10,5,FALSE) -> 36 | AF47: =T47-HLOOKUP(X47,Feuil1!$C$1:$BL$10,6,FALSE) -> 26 | AG47: =T47-HLOOKUP(X47,Feuil1!$C$1:$BL$10,7,FALSE) -> 16 | AH47: =T47-HLOOKUP(X47,Feuil1!$C$1:$BL$10,8,FALSE) -> 1 | AI47: =T47-HLOOKUP(X47,Feuil1!$C$1:$BL$10,9,FALSE) -> -14 | AJ47: =T47-HLOOKUP(X47,Feuil1!$C$1:$BL$10,10,FALSE) -> -884 | AQ47: INTB +
A48: F | H48: 2000 | I48: 58 | L48: 52 | O48: 52 | P48: 64 | S48: 64 | T48: 116 | V48: INTB + | W48: 1 | X48: =IF(I48="","",IF(A48="H",IF(OR(H48="SEN",H48<1997),VLOOKUP(I48,Feuil1!$A$11:$G$29,6),IF(AND(H48>1996,H48<2000),VLOOKUP(I48,Feuil1!$A$11:$G$29,5),IF(AND(H48>1999,H48<2002),VLOOKUP(I48,Feuil1!$A$11:$G$29,4),IF(AND(H48>2001,H48<2004),VLOOKUP(I48,Feuil1!$A$11:$G$29,3),VLOOKUP(I48,Feuil1!$A$11:$G$29,2))))),IF(OR(H48="SEN",H48<1997),VLOOKUP(I48,Feuil1!$G$11:$L$25,6),IF(AND(H48>1996,H48<2000),VLOOKUP(I48,Feuil1!$G$11:$L$25,5),IF(AND(H48>1999,H48<2002),VLOOKUP(I48,Feuil1!$G$11:$L$25,4),IF(AND(H48>2001,H48<2004),VLOOKUP(I48,Feuil1!$G$11:$L$25,3),VLOOKUP(I48,Feuil1!$G$11:$L$25,2))))))) -> FC2 58 | Y48: 163.3136987 | AB48: =T48-HLOOKUP(X48,Feuil1!$C$1:$BL$10,2,FALSE) -> 66 | AC48: =T48-HLOOKUP(X48,Feuil1!$C$1:$BL$10,3,FALSE) -> 56 | AD48: =T48-HLOOKUP(X48,Feuil1!$C$1:$BL$10,4,FALSE) -> 46 | AE48: =T48-HLOOKUP(X48,Feuil1!$C$1:$BL$10,5,FALSE) -> 36 | AF48: =T48-HLOOKUP(X48,Feuil1!$C$1:$BL$10,6,FALSE) -> 26 | AG48: =T48-HLOOKUP(X48,Feuil1!$C$1:$BL$10,7,FALSE) -> 16 | AH48: =T48-HLOOKUP(X48,Feuil1!$C$1:$BL$10,8,FALSE) -> 1 | AI48: =T48-HLOOKUP(X48,Feuil1!$C$1:$BL$10,9,FALSE) -> -14 | AJ48: =T48-HLOOKUP(X48,Feuil1!$C$1:$BL$10,10,FALSE) -> -884 | AQ48: INTB +
A49: F | H49: 2000 | I49: 58 | L49: 52 | O49: 52 | P49: 64 | S49: 64 | T49: 116 | V49: INTB + | W49: 1 | X49: =IF(I49="","",IF(A49="H",IF(OR(H49="SEN",H49<1997),VLOOKUP(I49,Feuil1!$A$11:$G$29,6),IF(AND(H49>1996,H49<2000),VLOOKUP(I49,Feuil1!$A$11:$G$29,5),IF(AND(H49>1999,H49<2002),VLOOKUP(I49,Feuil1!$A$11:$G$29,4),IF(AND(H49>2001,H49<2004),VLOOKUP(I49,Feuil1!$A$11:$G$29,3),VLOOKUP(I49,Feuil1!$A$11:$G$29,2))))),IF(OR(H49="SEN",H49<1997),VLOOKUP(I49,Feuil1!$G$11:$L$25,6),IF(AND(H49>1996,H49<2000),VLOOKUP(I49,Feuil1!$G$11:$L$25,5),IF(AND(H49>1999,H49<2002),VLOOKUP(I49,Feuil1!$G$11:$L$25,4),IF(AND(H49>2001,H49<2004),VLOOKUP(I49,Feuil1!$G$11:$L$25,3),VLOOKUP(I49,Feuil1!$G$11:$L$25,2))))))) -> FC2 58 | Y49: 163.3136987 | AB49: =T49-HLOOKUP(X49,Feuil1!$C$1:$BL$10,2,FALSE) -> 66 | AC49: =T49-HLOOKUP(X49,Feuil1!$C$1:$BL$10,3,FALSE) -> 56 | AD49: =T49-HLOOKUP(X49,Feuil1!$C$1:$BL$10,4,FALSE) -> 46 | AE49: =T49-HLOOKUP(X49,Feuil1!$C$1:$BL$10,5,FALSE) -> 36 | AF49: =T49-HLOOKUP(X49,Feuil1!$C$1:$BL$10,6,FALSE) -> 26 | AG49: =T49-HLOOKUP(X49,Feuil1!$C$1:$BL$10,7,FALSE) -> 16 | AH49: =T49-HLOOKUP(X49,Feuil1!$C$1:$BL$10,8,FALSE) -> 1 | AI49: =T49-HLOOKUP(X49,Feuil1!$C$1:$BL$10,9,FALSE) -> -14 | AJ49: =T49-HLOOKUP(X49,Feuil1!$C$1:$BL$10,10,FALSE) -> -884 | AQ49: INTB +
A50: F | H50: 2000 | I50: 58 | L50: 52 | O50: 52 | P50: 64 | S50: 64 | T50: 116 | V50: INTB + | W50: 1 | X50: =IF(I50="","",IF(A50="H",IF(OR(H50="SEN",H50<1997),VLOOKUP(I50,Feuil1!$A$11:$G$29,6),IF(AND(H50>1996,H50<2000),VLOOKUP(I50,Feuil1!$A$11:$G$29,5),IF(AND(H50>1999,H50<2002),VLOOKUP(I50,Feuil1!$A$11:$G$29,4),IF(AND(H50>2001,H50<2004),VLOOKUP(I50,Feuil1!$A$11:$G$29,3),VLOOKUP(I50,Feuil1!$A$11:$G$29,2))))),IF(OR(H50="SEN",H50<1997),VLOOKUP(I50,Feuil1!$G$11:$L$25,6),IF(AND(H50>1996,H50<2000),VLOOKUP(I50,Feuil1!$G$11:$L$25,5),IF(AND(H50>1999,H50<2002),VLOOKUP(I50,Feuil1!$G$11:$L$25,4),IF(AND(H50>2001,H50<2004),VLOOKUP(I50,Feuil1!$G$11:$L$25,3),VLOOKUP(I50,Feuil1!$G$11:$L$25,2))))))) -> FC2 58 | Y50: 163.3136987 | AB50: =T50-HLOOKUP(X50,Feuil1!$C$1:$BL$10,2,FALSE) -> 66 | AC50: =T50-HLOOKUP(X50,Feuil1!$C$1:$BL$10,3,FALSE) -> 56 | AD50: =T50-HLOOKUP(X50,Feuil1!$C$1:$BL$10,4,FALSE) -> 46 | AE50: =T50-HLOOKUP(X50,Feuil1!$C$1:$BL$10,5,FALSE) -> 36 | AF50: =T50-HLOOKUP(X50,Feuil1!$C$1:$BL$10,6,FALSE) -> 26 | AG50: =T50-HLOOKUP(X50,Feuil1!$C$1:$BL$10,7,FALSE) -> 16 | AH50: =T50-HLOOKUP(X50,Feuil1!$C$1:$BL$10,8,FALSE) -> 1 | AI50: =T50-HLOOKUP(X50,Feuil1!$C$1:$BL$10,9,FALSE) -> -14 | AJ50: =T50-HLOOKUP(X50,Feuil1!$C$1:$BL$10,10,FALSE) -> -884 | AQ50: INTB +
A51: F | H51: 2000 | I51: 58 | L51: 52 | O51: 52 | P51: 64 | S51: 64 | T51: 116 | V51: INTB + | W51: 1 | X51: =IF(I51="","",IF(A51="H",IF(OR(H51="SEN",H51<1997),VLOOKUP(I51,Feuil1!$A$11:$G$29,6),IF(AND(H51>1996,H51<2000),VLOOKUP(I51,Feuil1!$A$11:$G$29,5),IF(AND(H51>1999,H51<2002),VLOOKUP(I51,Feuil1!$A$11:$G$29,4),IF(AND(H51>2001,H51<2004),VLOOKUP(I51,Feuil1!$A$11:$G$29,3),VLOOKUP(I51,Feuil1!$A$11:$G$29,2))))),IF(OR(H51="SEN",H51<1997),VLOOKUP(I51,Feuil1!$G$11:$L$25,6),IF(AND(H51>1996,H51<2000),VLOOKUP(I51,Feuil1!$G$11:$L$25,5),IF(AND(H51>1999,H51<2002),VLOOKUP(I51,Feuil1!$G$11:$L$25,4),IF(AND(H51>2001,H51<2004),VLOOKUP(I51,Feuil1!$G$11:$L$25,3),VLOOKUP(I51,Feuil1!$G$11:$L$25,2))))))) -> FC2 58 | Y51: 163.3136987 | AB51: =T51-HLOOKUP(X51,Feuil1!$C$1:$BL$10,2,FALSE) -> 66 | AC51: =T51-HLOOKUP(X51,Feuil1!$C$1:$BL$10,3,FALSE) -> 56 | AD51: =T51-HLOOKUP(X51,Feuil1!$C$1:$BL$10,4,FALSE) -> 46 | AE51: =T51-HLOOKUP(X51,Feuil1!$C$1:$BL$10,5,FALSE) -> 36 | AF51: =T51-HLOOKUP(X51,Feuil1!$C$1:$BL$10,6,FALSE) -> 26 | AG51: =T51-HLOOKUP(X51,Feuil1!$C$1:$BL$10,7,FALSE) -> 16 | AH51: =T51-HLOOKUP(X51,Feuil1!$C$1:$BL$10,8,FALSE) -> 1 | AI51: =T51-HLOOKUP(X51,Feuil1!$C$1:$BL$10,9,FALSE) -> -14 | AJ51: =T51-HLOOKUP(X51,Feuil1!$C$1:$BL$10,10,FALSE) -> -884 | AQ51: INTB +
A52: F | H52: 2000 | I52: 58 | L52: 52 | O52: 52 | P52: 64 | S52: 64 | T52: 116 | V52: INTB + | W52: 1 | X52: =IF(I52="","",IF(A52="H",IF(OR(H52="SEN",H52<1997),VLOOKUP(I52,Feuil1!$A$11:$G$29,6),IF(AND(H52>1996,H52<2000),VLOOKUP(I52,Feuil1!$A$11:$G$29,5),IF(AND(H52>1999,H52<2002),VLOOKUP(I52,Feuil1!$A$11:$G$29,4),IF(AND(H52>2001,H52<2004),VLOOKUP(I52,Feuil1!$A$11:$G$29,3),VLOOKUP(I52,Feuil1!$A$11:$G$29,2))))),IF(OR(H52="SEN",H52<1997),VLOOKUP(I52,Feuil1!$G$11:$L$25,6),IF(AND(H52>1996,H52<2000),VLOOKUP(I52,Feuil1!$G$11:$L$25,5),IF(AND(H52>1999,H52<2002),VLOOKUP(I52,Feuil1!$G$11:$L$25,4),IF(AND(H52>2001,H52<2004),VLOOKUP(I52,Feuil1!$G$11:$L$25,3),VLOOKUP(I52,Feuil1!$G$11:$L$25,2))))))) -> FC2 58 | Y52: 163.3136987 | AB52: =T52-HLOOKUP(X52,Feuil1!$C$1:$BL$10,2,FALSE) -> 66 | AC52: =T52-HLOOKUP(X52,Feuil1!$C$1:$BL$10,3,FALSE) -> 56 | AD52: =T52-HLOOKUP(X52,Feuil1!$C$1:$BL$10,4,FALSE) -> 46 | AE52: =T52-HLOOKUP(X52,Feuil1!$C$1:$BL$10,5,FALSE) -> 36 | AF52: =T52-HLOOKUP(X52,Feuil1!$C$1:$BL$10,6,FALSE) -> 26 | AG52: =T52-HLOOKUP(X52,Feuil1!$C$1:$BL$10,7,FALSE) -> 16 | AH52: =T52-HLOOKUP(X52,Feuil1!$C$1:$BL$10,8,FALSE) -> 1 | AI52: =T52-HLOOKUP(X52,Feuil1!$C$1:$BL$10,9,FALSE) -> -14 | AJ52: =T52-HLOOKUP(X52,Feuil1!$C$1:$BL$10,10,FALSE) -> -884 | AQ52: INTB +
A53: F | H53: 2000 | I53: 58 | L53: 52 | O53: 52 | P53: 64 | S53: 64 | T53: 116 | V53: INTB + | W53: 1 | X53: =IF(I53="","",IF(A53="H",IF(OR(H53="SEN",H53<1997),VLOOKUP(I53,Feuil1!$A$11:$G$29,6),IF(AND(H53>1996,H53<2000),VLOOKUP(I53,Feuil1!$A$11:$G$29,5),IF(AND(H53>1999,H53<2002),VLOOKUP(I53,Feuil1!$A$11:$G$29,4),IF(AND(H53>2001,H53<2004),VLOOKUP(I53,Feuil1!$A$11:$G$29,3),VLOOKUP(I53,Feuil1!$A$11:$G$29,2))))),IF(OR(H53="SEN",H53<1997),VLOOKUP(I53,Feuil1!$G$11:$L$25,6),IF(AND(H53>1996,H53<2000),VLOOKUP(I53,Feuil1!$G$11:$L$25,5),IF(AND(H53>1999,H53<2002),VLOOKUP(I53,Feuil1!$G$11:$L$25,4),IF(AND(H53>2001,H53<2004),VLOOKUP(I53,Feuil1!$G$11:$L$25,3),VLOOKUP(I53,Feuil1!$G$11:$L$25,2))))))) -> FC2 58 | Y53: 163.3136987 | AB53: =T53-HLOOKUP(X53,Feuil1!$C$1:$BL$10,2,FALSE) -> 66 | AC53: =T53-HLOOKUP(X53,Feuil1!$C$1:$BL$10,3,FALSE) -> 56 | AD53: =T53-HLOOKUP(X53,Feuil1!$C$1:$BL$10,4,FALSE) -> 46 | AE53: =T53-HLOOKUP(X53,Feuil1!$C$1:$BL$10,5,FALSE) -> 36 | AF53: =T53-HLOOKUP(X53,Feuil1!$C$1:$BL$10,6,FALSE) -> 26 | AG53: =T53-HLOOKUP(X53,Feuil1!$C$1:$BL$10,7,FALSE) -> 16 | AH53: =T53-HLOOKUP(X53,Feuil1!$C$1:$BL$10,8,FALSE) -> 1 | AI53: =T53-HLOOKUP(X53,Feuil1!$C$1:$BL$10,9,FALSE) -> -14 | AJ53: =T53-HLOOKUP(X53,Feuil1!$C$1:$BL$10,10,FALSE) -> -884 | AQ53: INTB +
A54: F | H54: 2000 | I54: 58 | L54: 52 | O54: 52 | P54: 64 | S54: 64 | T54: 116 | V54: INTB + | W54: 1 | X54: =IF(I54="","",IF(A54="H",IF(OR(H54="SEN",H54<1997),VLOOKUP(I54,Feuil1!$A$11:$G$29,6),IF(AND(H54>1996,H54<2000),VLOOKUP(I54,Feuil1!$A$11:$G$29,5),IF(AND(H54>1999,H54<2002),VLOOKUP(I54,Feuil1!$A$11:$G$29,4),IF(AND(H54>2001,H54<2004),VLOOKUP(I54,Feuil1!$A$11:$G$29,3),VLOOKUP(I54,Feuil1!$A$11:$G$29,2))))),IF(OR(H54="SEN",H54<1997),VLOOKUP(I54,Feuil1!$G$11:$L$25,6),IF(AND(H54>1996,H54<2000),VLOOKUP(I54,Feuil1!$G$11:$L$25,5),IF(AND(H54>1999,H54<2002),VLOOKUP(I54,Feuil1!$G$11:$L$25,4),IF(AND(H54>2001,H54<2004),VLOOKUP(I54,Feuil1!$G$11:$L$25,3),VLOOKUP(I54,Feuil1!$G$11:$L$25,2))))))) -> FC2 58 | Y54: 163.3136987 | AB54: =T54-HLOOKUP(X54,Feuil1!$C$1:$BL$10,2,FALSE) -> 66 | AC54: =T54-HLOOKUP(X54,Feuil1!$C$1:$BL$10,3,FALSE) -> 56 | AD54: =T54-HLOOKUP(X54,Feuil1!$C$1:$BL$10,4,FALSE) -> 46 | AE54: =T54-HLOOKUP(X54,Feuil1!$C$1:$BL$10,5,FALSE) -> 36 | AF54: =T54-HLOOKUP(X54,Feuil1!$C$1:$BL$10,6,FALSE) -> 26 | AG54: =T54-HLOOKUP(X54,Feuil1!$C$1:$BL$10,7,FALSE) -> 16 | AH54: =T54-HLOOKUP(X54,Feuil1!$C$1:$BL$10,8,FALSE) -> 1 | AI54: =T54-HLOOKUP(X54,Feuil1!$C$1:$BL$10,9,FALSE) -> -14 | AJ54: =T54-HLOOKUP(X54,Feuil1!$C$1:$BL$10,10,FALSE) -> -884 | AQ54: INTB +
A55: F | H55: 2000 | I55: 58 | L55: 52 | O55: 52 | P55: 64 | S55: 64 | T55: 116 | V55: INTB + | W55: 1 | X55: =IF(I55="","",IF(A55="H",IF(OR(H55="SEN",H55<1997),VLOOKUP(I55,Feuil1!$A$11:$G$29,6),IF(AND(H55>1996,H55<2000),VLOOKUP(I55,Feuil1!$A$11:$G$29,5),IF(AND(H55>1999,H55<2002),VLOOKUP(I55,Feuil1!$A$11:$G$29,4),IF(AND(H55>2001,H55<2004),VLOOKUP(I55,Feuil1!$A$11:$G$29,3),VLOOKUP(I55,Feuil1!$A$11:$G$29,2))))),IF(OR(H55="SEN",H55<1997),VLOOKUP(I55,Feuil1!$G$11:$L$25,6),IF(AND(H55>1996,H55<2000),VLOOKUP(I55,Feuil1!$G$11:$L$25,5),IF(AND(H55>1999,H55<2002),VLOOKUP(I55,Feuil1!$G$11:$L$25,4),IF(AND(H55>2001,H55<2004),VLOOKUP(I55,Feuil1!$G$11:$L$25,3),VLOOKUP(I55,Feuil1!$G$11:$L$25,2))))))) -> FC2 58 | Y55: 163.3136987 | AB55: =T55-HLOOKUP(X55,Feuil1!$C$1:$BL$10,2,FALSE) -> 66 | AC55: =T55-HLOOKUP(X55,Feuil1!$C$1:$BL$10,3,FALSE) -> 56 | AD55: =T55-HLOOKUP(X55,Feuil1!$C$1:$BL$10,4,FALSE) -> 46 | AE55: =T55-HLOOKUP(X55,Feuil1!$C$1:$BL$10,5,FALSE) -> 36 | AF55: =T55-HLOOKUP(X55,Feuil1!$C$1:$BL$10,6,FALSE) -> 26 | AG55: =T55-HLOOKUP(X55,Feuil1!$C$1:$BL$10,7,FALSE) -> 16 | AH55: =T55-HLOOKUP(X55,Feuil1!$C$1:$BL$10,8,FALSE) -> 1 | AI55: =T55-HLOOKUP(X55,Feuil1!$C$1:$BL$10,9,FALSE) -> -14 | AJ55: =T55-HLOOKUP(X55,Feuil1!$C$1:$BL$10,10,FALSE) -> -884 | AQ55: INTB +
A56: F | H56: 2000 | I56: 58 | L56: 52 | O56: 52 | P56: 64 | S56: 64 | T56: 116 | V56: INTB + | W56: 1 | X56: =IF(I56="","",IF(A56="H",IF(OR(H56="SEN",H56<1997),VLOOKUP(I56,Feuil1!$A$11:$G$29,6),IF(AND(H56>1996,H56<2000),VLOOKUP(I56,Feuil1!$A$11:$G$29,5),IF(AND(H56>1999,H56<2002),VLOOKUP(I56,Feuil1!$A$11:$G$29,4),IF(AND(H56>2001,H56<2004),VLOOKUP(I56,Feuil1!$A$11:$G$29,3),VLOOKUP(I56,Feuil1!$A$11:$G$29,2))))),IF(OR(H56="SEN",H56<1997),VLOOKUP(I56,Feuil1!$G$11:$L$25,6),IF(AND(H56>1996,H56<2000),VLOOKUP(I56,Feuil1!$G$11:$L$25,5),IF(AND(H56>1999,H56<2002),VLOOKUP(I56,Feuil1!$G$11:$L$25,4),IF(AND(H56>2001,H56<2004),VLOOKUP(I56,Feuil1!$G$11:$L$25,3),VLOOKUP(I56,Feuil1!$G$11:$L$25,2))))))) -> FC2 58 | Y56: 163.3136987 | AB56: =T56-HLOOKUP(X56,Feuil1!$C$1:$BL$10,2,FALSE) -> 66 | AC56: =T56-HLOOKUP(X56,Feuil1!$C$1:$BL$10,3,FALSE) -> 56 | AD56: =T56-HLOOKUP(X56,Feuil1!$C$1:$BL$10,4,FALSE) -> 46 | AE56: =T56-HLOOKUP(X56,Feuil1!$C$1:$BL$10,5,FALSE) -> 36 | AF56: =T56-HLOOKUP(X56,Feuil1!$C$1:$BL$10,6,FALSE) -> 26 | AG56: =T56-HLOOKUP(X56,Feuil1!$C$1:$BL$10,7,FALSE) -> 16 | AH56: =T56-HLOOKUP(X56,Feuil1!$C$1:$BL$10,8,FALSE) -> 1 | AI56: =T56-HLOOKUP(X56,Feuil1!$C$1:$BL$10,9,FALSE) -> -14 | AJ56: =T56-HLOOKUP(X56,Feuil1!$C$1:$BL$10,10,FALSE) -> -884 | AQ56: INTB +
A57: F | H57: 2000 | I57: 58 | L57: 52 | O57: 52 | P57: 64 | S57: 64 | T57: 116 | V57: INTB + | W57: 1 | X57: =IF(I57="","",IF(A57="H",IF(OR(H57="SEN",H57<1997),VLOOKUP(I57,Feuil1!$A$11:$G$29,6),IF(AND(H57>1996,H57<2000),VLOOKUP(I57,Feuil1!$A$11:$G$29,5),IF(AND(H57>1999,H57<2002),VLOOKUP(I57,Feuil1!$A$11:$G$29,4),IF(AND(H57>2001,H57<2004),VLOOKUP(I57,Feuil1!$A$11:$G$29,3),VLOOKUP(I57,Feuil1!$A$11:$G$29,2))))),IF(OR(H57="SEN",H57<1997),VLOOKUP(I57,Feuil1!$G$11:$L$25,6),IF(AND(H57>1996,H57<2000),VLOOKUP(I57,Feuil1!$G$11:$L$25,5),IF(AND(H57>1999,H57<2002),VLOOKUP(I57,Feuil1!$G$11:$L$25,4),IF(AND(H57>2001,H57<2004),VLOOKUP(I57,Feuil1!$G$11:$L$25,3),VLOOKUP(I57,Feuil1!$G$11:$L$25,2))))))) -> FC2 58 | Y57: 163.3136987 | AB57: =T57-HLOOKUP(X57,Feuil1!$C$1:$BL$10,2,FALSE) -> 66 | AC57: =T57-HLOOKUP(X57,Feuil1!$C$1:$BL$10,3,FALSE) -> 56 | AD57: =T57-HLOOKUP(X57,Feuil1!$C$1:$BL$10,4,FALSE) -> 46 | AE57: =T57-HLOOKUP(X57,Feuil1!$C$1:$BL$10,5,FALSE) -> 36 | AF57: =T57-HLOOKUP(X57,Feuil1!$C$1:$BL$10,6,FALSE) -> 26 | AG57: =T57-HLOOKUP(X57,Feuil1!$C$1:$BL$10,7,FALSE) -> 16 | AH57: =T57-HLOOKUP(X57,Feuil1!$C$1:$BL$10,8,FALSE) -> 1 | AI57: =T57-HLOOKUP(X57,Feuil1!$C$1:$BL$10,9,FALSE) -> -14 | AJ57: =T57-HLOOKUP(X57,Feuil1!$C$1:$BL$10,10,FALSE) -> -884 | AQ57: INTB +
A58: F | H58: 2000 | I58: 58 | L58: 52 | O58: 52 | P58: 64 | S58: 64 | T58: 116 | V58: INTB + | W58: 1 | X58: =IF(I58="","",IF(A58="H",IF(OR(H58="SEN",H58<1997),VLOOKUP(I58,Feuil1!$A$11:$G$29,6),IF(AND(H58>1996,H58<2000),VLOOKUP(I58,Feuil1!$A$11:$G$29,5),IF(AND(H58>1999,H58<2002),VLOOKUP(I58,Feuil1!$A$11:$G$29,4),IF(AND(H58>2001,H58<2004),VLOOKUP(I58,Feuil1!$A$11:$G$29,3),VLOOKUP(I58,Feuil1!$A$11:$G$29,2))))),IF(OR(H58="SEN",H58<1997),VLOOKUP(I58,Feuil1!$G$11:$L$25,6),IF(AND(H58>1996,H58<2000),VLOOKUP(I58,Feuil1!$G$11:$L$25,5),IF(AND(H58>1999,H58<2002),VLOOKUP(I58,Feuil1!$G$11:$L$25,4),IF(AND(H58>2001,H58<2004),VLOOKUP(I58,Feuil1!$G$11:$L$25,3),VLOOKUP(I58,Feuil1!$G$11:$L$25,2))))))) -> FC2 58 | Y58: 163.3136987 | AB58: =T58-HLOOKUP(X58,Feuil1!$C$1:$BL$10,2,FALSE) -> 66 | AC58: =T58-HLOOKUP(X58,Feuil1!$C$1:$BL$10,3,FALSE) -> 56 | AD58: =T58-HLOOKUP(X58,Feuil1!$C$1:$BL$10,4,FALSE) -> 46 | AE58: =T58-HLOOKUP(X58,Feuil1!$C$1:$BL$10,5,FALSE) -> 36 | AF58: =T58-HLOOKUP(X58,Feuil1!$C$1:$BL$10,6,FALSE) -> 26 | AG58: =T58-HLOOKUP(X58,Feuil1!$C$1:$BL$10,7,FALSE) -> 16 | AH58: =T58-HLOOKUP(X58,Feuil1!$C$1:$BL$10,8,FALSE) -> 1 | AI58: =T58-HLOOKUP(X58,Feuil1!$C$1:$BL$10,9,FALSE) -> -14 | AJ58: =T58-HLOOKUP(X58,Feuil1!$C$1:$BL$10,10,FALSE) -> -884 | AQ58: INTB +
A59: F | H59: 2000 | I59: 58 | L59: 52 | O59: 52 | P59: 64 | S59: 64 | T59: 116 | V59: INTB + | W59: 1 | X59: =IF(I59="","",IF(A59="H",IF(OR(H59="SEN",H59<1997),VLOOKUP(I59,Feuil1!$A$11:$G$29,6),IF(AND(H59>1996,H59<2000),VLOOKUP(I59,Feuil1!$A$11:$G$29,5),IF(AND(H59>1999,H59<2002),VLOOKUP(I59,Feuil1!$A$11:$G$29,4),IF(AND(H59>2001,H59<2004),VLOOKUP(I59,Feuil1!$A$11:$G$29,3),VLOOKUP(I59,Feuil1!$A$11:$G$29,2))))),IF(OR(H59="SEN",H59<1997),VLOOKUP(I59,Feuil1!$G$11:$L$25,6),IF(AND(H59>1996,H59<2000),VLOOKUP(I59,Feuil1!$G$11:$L$25,5),IF(AND(H59>1999,H59<2002),VLOOKUP(I59,Feuil1!$G$11:$L$25,4),IF(AND(H59>2001,H59<2004),VLOOKUP(I59,Feuil1!$G$11:$L$25,3),VLOOKUP(I59,Feuil1!$G$11:$L$25,2))))))) -> FC2 58 | Y59: 163.3136987 | AB59: =T59-HLOOKUP(X59,Feuil1!$C$1:$BL$10,2,FALSE) -> 66 | AC59: =T59-HLOOKUP(X59,Feuil1!$C$1:$BL$10,3,FALSE) -> 56 | AD59: =T59-HLOOKUP(X59,Feuil1!$C$1:$BL$10,4,FALSE) -> 46 | AE59: =T59-HLOOKUP(X59,Feuil1!$C$1:$BL$10,5,FALSE) -> 36 | AF59: =T59-HLOOKUP(X59,Feuil1!$C$1:$BL$10,6,FALSE) -> 26 | AG59: =T59-HLOOKUP(X59,Feuil1!$C$1:$BL$10,7,FALSE) -> 16 | AH59: =T59-HLOOKUP(X59,Feuil1!$C$1:$BL$10,8,FALSE) -> 1 | AI59: =T59-HLOOKUP(X59,Feuil1!$C$1:$BL$10,9,FALSE) -> -14 | AJ59: =T59-HLOOKUP(X59,Feuil1!$C$1:$BL$10,10,FALSE) -> -884 | AQ59: INTB +
A60: F | H60: 2000 | I60: 58 | L60: 52 | O60: 52 | P60: 64 | S60: 64 | T60: 116 | V60: INTB + | W60: 1 | X60: =IF(I60="","",IF(A60="H",IF(OR(H60="SEN",H60<1997),VLOOKUP(I60,Feuil1!$A$11:$G$29,6),IF(AND(H60>1996,H60<2000),VLOOKUP(I60,Feuil1!$A$11:$G$29,5),IF(AND(H60>1999,H60<2002),VLOOKUP(I60,Feuil1!$A$11:$G$29,4),IF(AND(H60>2001,H60<2004),VLOOKUP(I60,Feuil1!$A$11:$G$29,3),VLOOKUP(I60,Feuil1!$A$11:$G$29,2))))),IF(OR(H60="SEN",H60<1997),VLOOKUP(I60,Feuil1!$G$11:$L$25,6),IF(AND(H60>1996,H60<2000),VLOOKUP(I60,Feuil1!$G$11:$L$25,5),IF(AND(H60>1999,H60<2002),VLOOKUP(I60,Feuil1!$G$11:$L$25,4),IF(AND(H60>2001,H60<2004),VLOOKUP(I60,Feuil1!$G$11:$L$25,3),VLOOKUP(I60,Feuil1!$G$11:$L$25,2))))))) -> FC2 58 | Y60: 163.3136987 | AB60: =T60-HLOOKUP(X60,Feuil1!$C$1:$BL$10,2,FALSE) -> 66 | AC60: =T60-HLOOKUP(X60,Feuil1!$C$1:$BL$10,3,FALSE) -> 56 | AD60: =T60-HLOOKUP(X60,Feuil1!$C$1:$BL$10,4,FALSE) -> 46 | AE60: =T60-HLOOKUP(X60,Feuil1!$C$1:$BL$10,5,FALSE) -> 36 | AF60: =T60-HLOOKUP(X60,Feuil1!$C$1:$BL$10,6,FALSE) -> 26 | AG60: =T60-HLOOKUP(X60,Feuil1!$C$1:$BL$10,7,FALSE) -> 16 | AH60: =T60-HLOOKUP(X60,Feuil1!$C$1:$BL$10,8,FALSE) -> 1 | AI60: =T60-HLOOKUP(X60,Feuil1!$C$1:$BL$10,9,FALSE) -> -14 | AJ60: =T60-HLOOKUP(X60,Feuil1!$C$1:$BL$10,10,FALSE) -> -884 | AQ60: INTB +
A61: F | H61: 2000 | I61: 58 | L61: 52 | O61: 52 | P61: 64 | S61: 64 | T61: 116 | V61: INTB + | W61: 1 | X61: =IF(I61="","",IF(A61="H",IF(OR(H61="SEN",H61<1997),VLOOKUP(I61,Feuil1!$A$11:$G$29,6),IF(AND(H61>1996,H61<2000),VLOOKUP(I61,Feuil1!$A$11:$G$29,5),IF(AND(H61>1999,H61<2002),VLOOKUP(I61,Feuil1!$A$11:$G$29,4),IF(AND(H61>2001,H61<2004),VLOOKUP(I61,Feuil1!$A$11:$G$29,3),VLOOKUP(I61,Feuil1!$A$11:$G$29,2))))),IF(OR(H61="SEN",H61<1997),VLOOKUP(I61,Feuil1!$G$11:$L$25,6),IF(AND(H61>1996,H61<2000),VLOOKUP(I61,Feuil1!$G$11:$L$25,5),IF(AND(H61>1999,H61<2002),VLOOKUP(I61,Feuil1!$G$11:$L$25,4),IF(AND(H61>2001,H61<2004),VLOOKUP(I61,Feuil1!$G$11:$L$25,3),VLOOKUP(I61,Feuil1!$G$11:$L$25,2))))))) -> FC2 58 | Y61: 163.3136987 | AB61: =T61-HLOOKUP(X61,Feuil1!$C$1:$BL$10,2,FALSE) -> 66 | AC61: =T61-HLOOKUP(X61,Feuil1!$C$1:$BL$10,3,FALSE) -> 56 | AD61: =T61-HLOOKUP(X61,Feuil1!$C$1:$BL$10,4,FALSE) -> 46 | AE61: =T61-HLOOKUP(X61,Feuil1!$C$1:$BL$10,5,FALSE) -> 36 | AF61: =T61-HLOOKUP(X61,Feuil1!$C$1:$BL$10,6,FALSE) -> 26 | AG61: =T61-HLOOKUP(X61,Feuil1!$C$1:$BL$10,7,FALSE) -> 16 | AH61: =T61-HLOOKUP(X61,Feuil1!$C$1:$BL$10,8,FALSE) -> 1 | AI61: =T61-HLOOKUP(X61,Feuil1!$C$1:$BL$10,9,FALSE) -> -14 | AJ61: =T61-HLOOKUP(X61,Feuil1!$C$1:$BL$10,10,FALSE) -> -884 | AQ61: INTB +
A62: F | H62: 2000 | I62: 58 | L62: 52 | O62: 52 | P62: 64 | S62: 64 | T62: 116 | V62: INTB + | W62: 1 | X62: =IF(I62="","",IF(A62="H",IF(OR(H62="SEN",H62<1997),VLOOKUP(I62,Feuil1!$A$11:$G$29,6),IF(AND(H62>1996,H62<2000),VLOOKUP(I62,Feuil1!$A$11:$G$29,5),IF(AND(H62>1999,H62<2002),VLOOKUP(I62,Feuil1!$A$11:$G$29,4),IF(AND(H62>2001,H62<2004),VLOOKUP(I62,Feuil1!$A$11:$G$29,3),VLOOKUP(I62,Feuil1!$A$11:$G$29,2))))),IF(OR(H62="SEN",H62<1997),VLOOKUP(I62,Feuil1!$G$11:$L$25,6),IF(AND(H62>1996,H62<2000),VLOOKUP(I62,Feuil1!$G$11:$L$25,5),IF(AND(H62>1999,H62<2002),VLOOKUP(I62,Feuil1!$G$11:$L$25,4),IF(AND(H62>2001,H62<2004),VLOOKUP(I62,Feuil1!$G$11:$L$25,3),VLOOKUP(I62,Feuil1!$G$11:$L$25,2))))))) -> FC2 58 | Y62: 163.3136987 | AB62: =T62-HLOOKUP(X62,Feuil1!$C$1:$BL$10,2,FALSE) -> 66 | AC62: =T62-HLOOKUP(X62,Feuil1!$C$1:$BL$10,3,FALSE) -> 56 | AD62: =T62-HLOOKUP(X62,Feuil1!$C$1:$BL$10,4,FALSE) -> 46 | AE62: =T62-HLOOKUP(X62,Feuil1!$C$1:$BL$10,5,FALSE) -> 36 | AF62: =T62-HLOOKUP(X62,Feuil1!$C$1:$BL$10,6,FALSE) -> 26 | AG62: =T62-HLOOKUP(X62,Feuil1!$C$1:$BL$10,7,FALSE) -> 16 | AH62: =T62-HLOOKUP(X62,Feuil1!$C$1:$BL$10,8,FALSE) -> 1 | AI62: =T62-HLOOKUP(X62,Feuil1!$C$1:$BL$10,9,FALSE) -> -14 | AJ62: =T62-HLOOKUP(X62,Feuil1!$C$1:$BL$10,10,FALSE) -> -884 | AQ62: INTB +
A63: F | H63: 2000 | I63: 58 | L63: 52 | O63: 52 | P63: 64 | S63: 64 | T63: 116 | V63: INTB + | W63: 1 | X63: =IF(I63="","",IF(A63="H",IF(OR(H63="SEN",H63<1997),VLOOKUP(I63,Feuil1!$A$11:$G$29,6),IF(AND(H63>1996,H63<2000),VLOOKUP(I63,Feuil1!$A$11:$G$29,5),IF(AND(H63>1999,H63<2002),VLOOKUP(I63,Feuil1!$A$11:$G$29,4),IF(AND(H63>2001,H63<2004),VLOOKUP(I63,Feuil1!$A$11:$G$29,3),VLOOKUP(I63,Feuil1!$A$11:$G$29,2))))),IF(OR(H63="SEN",H63<1997),VLOOKUP(I63,Feuil1!$G$11:$L$25,6),IF(AND(H63>1996,H63<2000),VLOOKUP(I63,Feuil1!$G$11:$L$25,5),IF(AND(H63>1999,H63<2002),VLOOKUP(I63,Feuil1!$G$11:$L$25,4),IF(AND(H63>2001,H63<2004),VLOOKUP(I63,Feuil1!$G$11:$L$25,3),VLOOKUP(I63,Feuil1!$G$11:$L$25,2))))))) -> FC2 58 | Y63: 163.3136987 | AB63: =T63-HLOOKUP(X63,Feuil1!$C$1:$BL$10,2,FALSE) -> 66 | AC63: =T63-HLOOKUP(X63,Feuil1!$C$1:$BL$10,3,FALSE) -> 56 | AD63: =T63-HLOOKUP(X63,Feuil1!$C$1:$BL$10,4,FALSE) -> 46 | AE63: =T63-HLOOKUP(X63,Feuil1!$C$1:$BL$10,5,FALSE) -> 36 | AF63: =T63-HLOOKUP(X63,Feuil1!$C$1:$BL$10,6,FALSE) -> 26 | AG63: =T63-HLOOKUP(X63,Feuil1!$C$1:$BL$10,7,FALSE) -> 16 | AH63: =T63-HLOOKUP(X63,Feuil1!$C$1:$BL$10,8,FALSE) -> 1 | AI63: =T63-HLOOKUP(X63,Feuil1!$C$1:$BL$10,9,FALSE) -> -14 | AJ63: =T63-HLOOKUP(X63,Feuil1!$C$1:$BL$10,10,FALSE) -> -884 | AQ63: INTB +
A64: F | H64: 2000 | I64: 58 | L64: 52 | O64: 52 | P64: 64 | S64: 64 | T64: 116 | V64: INTB + | W64: 1 | X64: =IF(I64="","",IF(A64="H",IF(OR(H64="SEN",H64<1997),VLOOKUP(I64,Feuil1!$A$11:$G$29,6),IF(AND(H64>1996,H64<2000),VLOOKUP(I64,Feuil1!$A$11:$G$29,5),IF(AND(H64>1999,H64<2002),VLOOKUP(I64,Feuil1!$A$11:$G$29,4),IF(AND(H64>2001,H64<2004),VLOOKUP(I64,Feuil1!$A$11:$G$29,3),VLOOKUP(I64,Feuil1!$A$11:$G$29,2))))),IF(OR(H64="SEN",H64<1997),VLOOKUP(I64,Feuil1!$G$11:$L$25,6),IF(AND(H64>1996,H64<2000),VLOOKUP(I64,Feuil1!$G$11:$L$25,5),IF(AND(H64>1999,H64<2002),VLOOKUP(I64,Feuil1!$G$11:$L$25,4),IF(AND(H64>2001,H64<2004),VLOOKUP(I64,Feuil1!$G$11:$L$25,3),VLOOKUP(I64,Feuil1!$G$11:$L$25,2))))))) -> FC2 58 | Y64: 163.3136987 | AB64: =T64-HLOOKUP(X64,Feuil1!$C$1:$BL$10,2,FALSE) -> 66 | AC64: =T64-HLOOKUP(X64,Feuil1!$C$1:$BL$10,3,FALSE) -> 56 | AD64: =T64-HLOOKUP(X64,Feuil1!$C$1:$BL$10,4,FALSE) -> 46 | AE64: =T64-HLOOKUP(X64,Feuil1!$C$1:$BL$10,5,FALSE) -> 36 | AF64: =T64-HLOOKUP(X64,Feuil1!$C$1:$BL$10,6,FALSE) -> 26 | AG64: =T64-HLOOKUP(X64,Feuil1!$C$1:$BL$10,7,FALSE) -> 16 | AH64: =T64-HLOOKUP(X64,Feuil1!$C$1:$BL$10,8,FALSE) -> 1 | AI64: =T64-HLOOKUP(X64,Feuil1!$C$1:$BL$10,9,FALSE) -> -14 | AJ64: =T64-HLOOKUP(X64,Feuil1!$C$1:$BL$10,10,FALSE) -> -884 | AQ64: INTB +
A65: F | H65: 2000 | I65: 58 | L65: 52 | O65: 52 | P65: 64 | S65: 64 | T65: 116 | V65: INTB + | W65: 1 | X65: =IF(I65="","",IF(A65="H",IF(OR(H65="SEN",H65<1997),VLOOKUP(I65,Feuil1!$A$11:$G$29,6),IF(AND(H65>1996,H65<2000),VLOOKUP(I65,Feuil1!$A$11:$G$29,5),IF(AND(H65>1999,H65<2002),VLOOKUP(I65,Feuil1!$A$11:$G$29,4),IF(AND(H65>2001,H65<2004),VLOOKUP(I65,Feuil1!$A$11:$G$29,3),VLOOKUP(I65,Feuil1!$A$11:$G$29,2))))),IF(OR(H65="SEN",H65<1997),VLOOKUP(I65,Feuil1!$G$11:$L$25,6),IF(AND(H65>1996,H65<2000),VLOOKUP(I65,Feuil1!$G$11:$L$25,5),IF(AND(H65>1999,H65<2002),VLOOKUP(I65,Feuil1!$G$11:$L$25,4),IF(AND(H65>2001,H65<2004),VLOOKUP(I65,Feuil1!$G$11:$L$25,3),VLOOKUP(I65,Feuil1!$G$11:$L$25,2))))))) -> FC2 58 | Y65: 163.3136987 | AB65: =T65-HLOOKUP(X65,Feuil1!$C$1:$BL$10,2,FALSE) -> 66 | AC65: =T65-HLOOKUP(X65,Feuil1!$C$1:$BL$10,3,FALSE) -> 56 | AD65: =T65-HLOOKUP(X65,Feuil1!$C$1:$BL$10,4,FALSE) -> 46 | AE65: =T65-HLOOKUP(X65,Feuil1!$C$1:$BL$10,5,FALSE) -> 36 | AF65: =T65-HLOOKUP(X65,Feuil1!$C$1:$BL$10,6,FALSE) -> 26 | AG65: =T65-HLOOKUP(X65,Feuil1!$C$1:$BL$10,7,FALSE) -> 16 | AH65: =T65-HLOOKUP(X65,Feuil1!$C$1:$BL$10,8,FALSE) -> 1 | AI65: =T65-HLOOKUP(X65,Feuil1!$C$1:$BL$10,9,FALSE) -> -14 | AJ65: =T65-HLOOKUP(X65,Feuil1!$C$1:$BL$10,10,FALSE) -> -884 | AQ65: INTB +
A66: F | H66: 2000 | I66: 58 | L66: 52 | O66: 52 | P66: 64 | S66: 64 | T66: 116 | V66: INTB + | W66: 1 | X66: =IF(I66="","",IF(A66="H",IF(OR(H66="SEN",H66<1997),VLOOKUP(I66,Feuil1!$A$11:$G$29,6),IF(AND(H66>1996,H66<2000),VLOOKUP(I66,Feuil1!$A$11:$G$29,5),IF(AND(H66>1999,H66<2002),VLOOKUP(I66,Feuil1!$A$11:$G$29,4),IF(AND(H66>2001,H66<2004),VLOOKUP(I66,Feuil1!$A$11:$G$29,3),VLOOKUP(I66,Feuil1!$A$11:$G$29,2))))),IF(OR(H66="SEN",H66<1997),VLOOKUP(I66,Feuil1!$G$11:$L$25,6),IF(AND(H66>1996,H66<2000),VLOOKUP(I66,Feuil1!$G$11:$L$25,5),IF(AND(H66>1999,H66<2002),VLOOKUP(I66,Feuil1!$G$11:$L$25,4),IF(AND(H66>2001,H66<2004),VLOOKUP(I66,Feuil1!$G$11:$L$25,3),VLOOKUP(I66,Feuil1!$G$11:$L$25,2))))))) -> FC2 58 | Y66: 163.3136987 | AB66: =T66-HLOOKUP(X66,Feuil1!$C$1:$BL$10,2,FALSE) -> 66 | AC66: =T66-HLOOKUP(X66,Feuil1!$C$1:$BL$10,3,FALSE) -> 56 | AD66: =T66-HLOOKUP(X66,Feuil1!$C$1:$BL$10,4,FALSE) -> 46 | AE66: =T66-HLOOKUP(X66,Feuil1!$C$1:$BL$10,5,FALSE) -> 36 | AF66: =T66-HLOOKUP(X66,Feuil1!$C$1:$BL$10,6,FALSE) -> 26 | AG66: =T66-HLOOKUP(X66,Feuil1!$C$1:$BL$10,7,FALSE) -> 16 | AH66: =T66-HLOOKUP(X66,Feuil1!$C$1:$BL$10,8,FALSE) -> 1 | AI66: =T66-HLOOKUP(X66,Feuil1!$C$1:$BL$10,9,FALSE) -> -14 | AJ66: =T66-HLOOKUP(X66,Feuil1!$C$1:$BL$10,10,FALSE) -> -884 | AQ66: INTB +
A67: F | H67: 2000 | I67: 58 | L67: 52 | O67: 52 | P67: 64 | S67: 64 | T67: 116 | V67: INTB + | W67: 1 | X67: =IF(I67="","",IF(A67="H",IF(OR(H67="SEN",H67<1997),VLOOKUP(I67,Feuil1!$A$11:$G$29,6),IF(AND(H67>1996,H67<2000),VLOOKUP(I67,Feuil1!$A$11:$G$29,5),IF(AND(H67>1999,H67<2002),VLOOKUP(I67,Feuil1!$A$11:$G$29,4),IF(AND(H67>2001,H67<2004),VLOOKUP(I67,Feuil1!$A$11:$G$29,3),VLOOKUP(I67,Feuil1!$A$11:$G$29,2))))),IF(OR(H67="SEN",H67<1997),VLOOKUP(I67,Feuil1!$G$11:$L$25,6),IF(AND(H67>1996,H67<2000),VLOOKUP(I67,Feuil1!$G$11:$L$25,5),IF(AND(H67>1999,H67<2002),VLOOKUP(I67,Feuil1!$G$11:$L$25,4),IF(AND(H67>2001,H67<2004),VLOOKUP(I67,Feuil1!$G$11:$L$25,3),VLOOKUP(I67,Feuil1!$G$11:$L$25,2))))))) -> FC2 58 | Y67: 163.3136987 | AB67: =T67-HLOOKUP(X67,Feuil1!$C$1:$BL$10,2,FALSE) -> 66 | AC67: =T67-HLOOKUP(X67,Feuil1!$C$1:$BL$10,3,FALSE) -> 56 | AD67: =T67-HLOOKUP(X67,Feuil1!$C$1:$BL$10,4,FALSE) -> 46 | AE67: =T67-HLOOKUP(X67,Feuil1!$C$1:$BL$10,5,FALSE) -> 36 | AF67: =T67-HLOOKUP(X67,Feuil1!$C$1:$BL$10,6,FALSE) -> 26 | AG67: =T67-HLOOKUP(X67,Feuil1!$C$1:$BL$10,7,FALSE) -> 16 | AH67: =T67-HLOOKUP(X67,Feuil1!$C$1:$BL$10,8,FALSE) -> 1 | AI67: =T67-HLOOKUP(X67,Feuil1!$C$1:$BL$10,9,FALSE) -> -14 | AJ67: =T67-HLOOKUP(X67,Feuil1!$C$1:$BL$10,10,FALSE) -> -884 | AQ67: INTB +
A68: F | H68: 2000 | I68: 58 | L68: 52 | O68: 52 | P68: 64 | S68: 64 | T68: 116 | V68: INTB + | W68: 1 | X68: =IF(I68="","",IF(A68="H",IF(OR(H68="SEN",H68<1997),VLOOKUP(I68,Feuil1!$A$11:$G$29,6),IF(AND(H68>1996,H68<2000),VLOOKUP(I68,Feuil1!$A$11:$G$29,5),IF(AND(H68>1999,H68<2002),VLOOKUP(I68,Feuil1!$A$11:$G$29,4),IF(AND(H68>2001,H68<2004),VLOOKUP(I68,Feuil1!$A$11:$G$29,3),VLOOKUP(I68,Feuil1!$A$11:$G$29,2))))),IF(OR(H68="SEN",H68<1997),VLOOKUP(I68,Feuil1!$G$11:$L$25,6),IF(AND(H68>1996,H68<2000),VLOOKUP(I68,Feuil1!$G$11:$L$25,5),IF(AND(H68>1999,H68<2002),VLOOKUP(I68,Feuil1!$G$11:$L$25,4),IF(AND(H68>2001,H68<2004),VLOOKUP(I68,Feuil1!$G$11:$L$25,3),VLOOKUP(I68,Feuil1!$G$11:$L$25,2))))))) -> FC2 58 | Y68: 163.3136987 | AB68: =T68-HLOOKUP(X68,Feuil1!$C$1:$BL$10,2,FALSE) -> 66 | AC68: =T68-HLOOKUP(X68,Feuil1!$C$1:$BL$10,3,FALSE) -> 56 | AD68: =T68-HLOOKUP(X68,Feuil1!$C$1:$BL$10,4,FALSE) -> 46 | AE68: =T68-HLOOKUP(X68,Feuil1!$C$1:$BL$10,5,FALSE) -> 36 | AF68: =T68-HLOOKUP(X68,Feuil1!$C$1:$BL$10,6,FALSE) -> 26 | AG68: =T68-HLOOKUP(X68,Feuil1!$C$1:$BL$10,7,FALSE) -> 16 | AH68: =T68-HLOOKUP(X68,Feuil1!$C$1:$BL$10,8,FALSE) -> 1 | AI68: =T68-HLOOKUP(X68,Feuil1!$C$1:$BL$10,9,FALSE) -> -14 | AJ68: =T68-HLOOKUP(X68,Feuil1!$C$1:$BL$10,10,FALSE) -> -884 | AQ68: INTB +
A69: F | H69: 2000 | I69: 58 | L69: 52 | O69: 52 | P69: 64 | S69: 64 | T69: 116 | V69: INTB + | W69: 1 | X69: =IF(I69="","",IF(A69="H",IF(OR(H69="SEN",H69<1997),VLOOKUP(I69,Feuil1!$A$11:$G$29,6),IF(AND(H69>1996,H69<2000),VLOOKUP(I69,Feuil1!$A$11:$G$29,5),IF(AND(H69>1999,H69<2002),VLOOKUP(I69,Feuil1!$A$11:$G$29,4),IF(AND(H69>2001,H69<2004),VLOOKUP(I69,Feuil1!$A$11:$G$29,3),VLOOKUP(I69,Feuil1!$A$11:$G$29,2))))),IF(OR(H69="SEN",H69<1997),VLOOKUP(I69,Feuil1!$G$11:$L$25,6),IF(AND(H69>1996,H69<2000),VLOOKUP(I69,Feuil1!$G$11:$L$25,5),IF(AND(H69>1999,H69<2002),VLOOKUP(I69,Feuil1!$G$11:$L$25,4),IF(AND(H69>2001,H69<2004),VLOOKUP(I69,Feuil1!$G$11:$L$25,3),VLOOKUP(I69,Feuil1!$G$11:$L$25,2))))))) -> FC2 58 | Y69: 163.3136987 | AB69: =T69-HLOOKUP(X69,Feuil1!$C$1:$BL$10,2,FALSE) -> 66 | AC69: =T69-HLOOKUP(X69,Feuil1!$C$1:$BL$10,3,FALSE) -> 56 | AD69: =T69-HLOOKUP(X69,Feuil1!$C$1:$BL$10,4,FALSE) -> 46 | AE69: =T69-HLOOKUP(X69,Feuil1!$C$1:$BL$10,5,FALSE) -> 36 | AF69: =T69-HLOOKUP(X69,Feuil1!$C$1:$BL$10,6,FALSE) -> 26 | AG69: =T69-HLOOKUP(X69,Feuil1!$C$1:$BL$10,7,FALSE) -> 16 | AH69: =T69-HLOOKUP(X69,Feuil1!$C$1:$BL$10,8,FALSE) -> 1 | AI69: =T69-HLOOKUP(X69,Feuil1!$C$1:$BL$10,9,FALSE) -> -14 | AJ69: =T69-HLOOKUP(X69,Feuil1!$C$1:$BL$10,10,FALSE) -> -884 | AQ69: INTB +
A70: F | H70: 2000 | I70: 58 | L70: 52 | O70: 52 | P70: 64 | S70: 64 | T70: 116 | V70: INTB + | W70: 1 | X70: =IF(I70="","",IF(A70="H",IF(OR(H70="SEN",H70<1997),VLOOKUP(I70,Feuil1!$A$11:$G$29,6),IF(AND(H70>1996,H70<2000),VLOOKUP(I70,Feuil1!$A$11:$G$29,5),IF(AND(H70>1999,H70<2002),VLOOKUP(I70,Feuil1!$A$11:$G$29,4),IF(AND(H70>2001,H70<2004),VLOOKUP(I70,Feuil1!$A$11:$G$29,3),VLOOKUP(I70,Feuil1!$A$11:$G$29,2))))),IF(OR(H70="SEN",H70<1997),VLOOKUP(I70,Feuil1!$G$11:$L$25,6),IF(AND(H70>1996,H70<2000),VLOOKUP(I70,Feuil1!$G$11:$L$25,5),IF(AND(H70>1999,H70<2002),VLOOKUP(I70,Feuil1!$G$11:$L$25,4),IF(AND(H70>2001,H70<2004),VLOOKUP(I70,Feuil1!$G$11:$L$25,3),VLOOKUP(I70,Feuil1!$G$11:$L$25,2))))))) -> FC2 58 | Y70: 163.3136987 | AB70: =T70-HLOOKUP(X70,Feuil1!$C$1:$BL$10,2,FALSE) -> 66 | AC70: =T70-HLOOKUP(X70,Feuil1!$C$1:$BL$10,3,FALSE) -> 56 | AD70: =T70-HLOOKUP(X70,Feuil1!$C$1:$BL$10,4,FALSE) -> 46 | AE70: =T70-HLOOKUP(X70,Feuil1!$C$1:$BL$10,5,FALSE) -> 36 | AF70: =T70-HLOOKUP(X70,Feuil1!$C$1:$BL$10,6,FALSE) -> 26 | AG70: =T70-HLOOKUP(X70,Feuil1!$C$1:$BL$10,7,FALSE) -> 16 | AH70: =T70-HLOOKUP(X70,Feuil1!$C$1:$BL$10,8,FALSE) -> 1 | AI70: =T70-HLOOKUP(X70,Feuil1!$C$1:$BL$10,9,FALSE) -> -14 | AJ70: =T70-HLOOKUP(X70,Feuil1!$C$1:$BL$10,10,FALSE) -> -884 | AQ70: INTB +
A71: F | H71: 2000 | I71: 58 | L71: 52 | O71: 52 | P71: 64 | S71: 64 | T71: 116 | V71: INTB + | W71: 1 | X71: =IF(I71="","",IF(A71="H",IF(OR(H71="SEN",H71<1997),VLOOKUP(I71,Feuil1!$A$11:$G$29,6),IF(AND(H71>1996,H71<2000),VLOOKUP(I71,Feuil1!$A$11:$G$29,5),IF(AND(H71>1999,H71<2002),VLOOKUP(I71,Feuil1!$A$11:$G$29,4),IF(AND(H71>2001,H71<2004),VLOOKUP(I71,Feuil1!$A$11:$G$29,3),VLOOKUP(I71,Feuil1!$A$11:$G$29,2))))),IF(OR(H71="SEN",H71<1997),VLOOKUP(I71,Feuil1!$G$11:$L$25,6),IF(AND(H71>1996,H71<2000),VLOOKUP(I71,Feuil1!$G$11:$L$25,5),IF(AND(H71>1999,H71<2002),VLOOKUP(I71,Feuil1!$G$11:$L$25,4),IF(AND(H71>2001,H71<2004),VLOOKUP(I71,Feuil1!$G$11:$L$25,3),VLOOKUP(I71,Feuil1!$G$11:$L$25,2))))))) -> FC2 58 | Y71: 163.3136987 | AB71: =T71-HLOOKUP(X71,Feuil1!$C$1:$BL$10,2,FALSE) -> 66 | AC71: =T71-HLOOKUP(X71,Feuil1!$C$1:$BL$10,3,FALSE) -> 56 | AD71: =T71-HLOOKUP(X71,Feuil1!$C$1:$BL$10,4,FALSE) -> 46 | AE71: =T71-HLOOKUP(X71,Feuil1!$C$1:$BL$10,5,FALSE) -> 36 | AF71: =T71-HLOOKUP(X71,Feuil1!$C$1:$BL$10,6,FALSE) -> 26 | AG71: =T71-HLOOKUP(X71,Feuil1!$C$1:$BL$10,7,FALSE) -> 16 | AH71: =T71-HLOOKUP(X71,Feuil1!$C$1:$BL$10,8,FALSE) -> 1 | AI71: =T71-HLOOKUP(X71,Feuil1!$C$1:$BL$10,9,FALSE) -> -14 | AJ71: =T71-HLOOKUP(X71,Feuil1!$C$1:$BL$10,10,FALSE) -> -884 | AQ71: INTB +
A72: F | H72: 2000 | I72: 58 | L72: 52 | O72: 52 | P72: 64 | S72: 64 | T72: 116 | V72: INTB + | W72: 1 | X72: =IF(I72="","",IF(A72="H",IF(OR(H72="SEN",H72<1997),VLOOKUP(I72,Feuil1!$A$11:$G$29,6),IF(AND(H72>1996,H72<2000),VLOOKUP(I72,Feuil1!$A$11:$G$29,5),IF(AND(H72>1999,H72<2002),VLOOKUP(I72,Feuil1!$A$11:$G$29,4),IF(AND(H72>2001,H72<2004),VLOOKUP(I72,Feuil1!$A$11:$G$29,3),VLOOKUP(I72,Feuil1!$A$11:$G$29,2))))),IF(OR(H72="SEN",H72<1997),VLOOKUP(I72,Feuil1!$G$11:$L$25,6),IF(AND(H72>1996,H72<2000),VLOOKUP(I72,Feuil1!$G$11:$L$25,5),IF(AND(H72>1999,H72<2002),VLOOKUP(I72,Feuil1!$G$11:$L$25,4),IF(AND(H72>2001,H72<2004),VLOOKUP(I72,Feuil1!$G$11:$L$25,3),VLOOKUP(I72,Feuil1!$G$11:$L$25,2))))))) -> FC2 58 | Y72: 163.3136987 | AB72: =T72-HLOOKUP(X72,Feuil1!$C$1:$BL$10,2,FALSE) -> 66 | AC72: =T72-HLOOKUP(X72,Feuil1!$C$1:$BL$10,3,FALSE) -> 56 | AD72: =T72-HLOOKUP(X72,Feuil1!$C$1:$BL$10,4,FALSE) -> 46 | AE72: =T72-HLOOKUP(X72,Feuil1!$C$1:$BL$10,5,FALSE) -> 36 | AF72: =T72-HLOOKUP(X72,Feuil1!$C$1:$BL$10,6,FALSE) -> 26 | AG72: =T72-HLOOKUP(X72,Feuil1!$C$1:$BL$10,7,FALSE) -> 16 | AH72: =T72-HLOOKUP(X72,Feuil1!$C$1:$BL$10,8,FALSE) -> 1 | AI72: =T72-HLOOKUP(X72,Feuil1!$C$1:$BL$10,9,FALSE) -> -14 | AJ72: =T72-HLOOKUP(X72,Feuil1!$C$1:$BL$10,10,FALSE) -> -884 | AQ72: INTB +
A73: F | H73: 2000 | I73: 58 | L73: 52 | O73: 52 | P73: 64 | S73: 64 | T73: 116 | V73: INTB + | W73: 1 | X73: =IF(I73="","",IF(A73="H",IF(OR(H73="SEN",H73<1997),VLOOKUP(I73,Feuil1!$A$11:$G$29,6),IF(AND(H73>1996,H73<2000),VLOOKUP(I73,Feuil1!$A$11:$G$29,5),IF(AND(H73>1999,H73<2002),VLOOKUP(I73,Feuil1!$A$11:$G$29,4),IF(AND(H73>2001,H73<2004),VLOOKUP(I73,Feuil1!$A$11:$G$29,3),VLOOKUP(I73,Feuil1!$A$11:$G$29,2))))),IF(OR(H73="SEN",H73<1997),VLOOKUP(I73,Feuil1!$G$11:$L$25,6),IF(AND(H73>1996,H73<2000),VLOOKUP(I73,Feuil1!$G$11:$L$25,5),IF(AND(H73>1999,H73<2002),VLOOKUP(I73,Feuil1!$G$11:$L$25,4),IF(AND(H73>2001,H73<2004),VLOOKUP(I73,Feuil1!$G$11:$L$25,3),VLOOKUP(I73,Feuil1!$G$11:$L$25,2))))))) -> FC2 58 | Y73: 163.3136987 | AB73: =T73-HLOOKUP(X73,Feuil1!$C$1:$BL$10,2,FALSE) -> 66 | AC73: =T73-HLOOKUP(X73,Feuil1!$C$1:$BL$10,3,FALSE) -> 56 | AD73: =T73-HLOOKUP(X73,Feuil1!$C$1:$BL$10,4,FALSE) -> 46 | AE73: =T73-HLOOKUP(X73,Feuil1!$C$1:$BL$10,5,FALSE) -> 36 | AF73: =T73-HLOOKUP(X73,Feuil1!$C$1:$BL$10,6,FALSE) -> 26 | AG73: =T73-HLOOKUP(X73,Feuil1!$C$1:$BL$10,7,FALSE) -> 16 | AH73: =T73-HLOOKUP(X73,Feuil1!$C$1:$BL$10,8,FALSE) -> 1 | AI73: =T73-HLOOKUP(X73,Feuil1!$C$1:$BL$10,9,FALSE) -> -14 | AJ73: =T73-HLOOKUP(X73,Feuil1!$C$1:$BL$10,10,FALSE) -> -884 | AQ73: INTB +
A74: F | H74: 2000 | I74: 58 | L74: 52 | O74: 52 | P74: 64 | S74: 64 | T74: 116 | V74: INTB + | W74: 1 | X74: =IF(I74="","",IF(A74="H",IF(OR(H74="SEN",H74<1997),VLOOKUP(I74,Feuil1!$A$11:$G$29,6),IF(AND(H74>1996,H74<2000),VLOOKUP(I74,Feuil1!$A$11:$G$29,5),IF(AND(H74>1999,H74<2002),VLOOKUP(I74,Feuil1!$A$11:$G$29,4),IF(AND(H74>2001,H74<2004),VLOOKUP(I74,Feuil1!$A$11:$G$29,3),VLOOKUP(I74,Feuil1!$A$11:$G$29,2))))),IF(OR(H74="SEN",H74<1997),VLOOKUP(I74,Feuil1!$G$11:$L$25,6),IF(AND(H74>1996,H74<2000),VLOOKUP(I74,Feuil1!$G$11:$L$25,5),IF(AND(H74>1999,H74<2002),VLOOKUP(I74,Feuil1!$G$11:$L$25,4),IF(AND(H74>2001,H74<2004),VLOOKUP(I74,Feuil1!$G$11:$L$25,3),VLOOKUP(I74,Feuil1!$G$11:$L$25,2))))))) -> FC2 58 | Y74: 163.3136987 | AB74: =T74-HLOOKUP(X74,Feuil1!$C$1:$BL$10,2,FALSE) -> 66 | AC74: =T74-HLOOKUP(X74,Feuil1!$C$1:$BL$10,3,FALSE) -> 56 | AD74: =T74-HLOOKUP(X74,Feuil1!$C$1:$BL$10,4,FALSE) -> 46 | AE74: =T74-HLOOKUP(X74,Feuil1!$C$1:$BL$10,5,FALSE) -> 36 | AF74: =T74-HLOOKUP(X74,Feuil1!$C$1:$BL$10,6,FALSE) -> 26 | AG74: =T74-HLOOKUP(X74,Feuil1!$C$1:$BL$10,7,FALSE) -> 16 | AH74: =T74-HLOOKUP(X74,Feuil1!$C$1:$BL$10,8,FALSE) -> 1 | AI74: =T74-HLOOKUP(X74,Feuil1!$C$1:$BL$10,9,FALSE) -> -14 | AJ74: =T74-HLOOKUP(X74,Feuil1!$C$1:$BL$10,10,FALSE) -> -884 | AQ74: INTB +
A75: F | H75: 2000 | I75: 58 | L75: 52 | O75: 52 | P75: 64 | S75: 64 | T75: 116 | V75: INTB + | W75: 1 | X75: =IF(I75="","",IF(A75="H",IF(OR(H75="SEN",H75<1997),VLOOKUP(I75,Feuil1!$A$11:$G$29,6),IF(AND(H75>1996,H75<2000),VLOOKUP(I75,Feuil1!$A$11:$G$29,5),IF(AND(H75>1999,H75<2002),VLOOKUP(I75,Feuil1!$A$11:$G$29,4),IF(AND(H75>2001,H75<2004),VLOOKUP(I75,Feuil1!$A$11:$G$29,3),VLOOKUP(I75,Feuil1!$A$11:$G$29,2))))),IF(OR(H75="SEN",H75<1997),VLOOKUP(I75,Feuil1!$G$11:$L$25,6),IF(AND(H75>1996,H75<2000),VLOOKUP(I75,Feuil1!$G$11:$L$25,5),IF(AND(H75>1999,H75<2002),VLOOKUP(I75,Feuil1!$G$11:$L$25,4),IF(AND(H75>2001,H75<2004),VLOOKUP(I75,Feuil1!$G$11:$L$25,3),VLOOKUP(I75,Feuil1!$G$11:$L$25,2))))))) -> FC2 58 | Y75: 163.3136987 | AB75: =T75-HLOOKUP(X75,Feuil1!$C$1:$BL$10,2,FALSE) -> 66 | AC75: =T75-HLOOKUP(X75,Feuil1!$C$1:$BL$10,3,FALSE) -> 56 | AD75: =T75-HLOOKUP(X75,Feuil1!$C$1:$BL$10,4,FALSE) -> 46 | AE75: =T75-HLOOKUP(X75,Feuil1!$C$1:$BL$10,5,FALSE) -> 36 | AF75: =T75-HLOOKUP(X75,Feuil1!$C$1:$BL$10,6,FALSE) -> 26 | AG75: =T75-HLOOKUP(X75,Feuil1!$C$1:$BL$10,7,FALSE) -> 16 | AH75: =T75-HLOOKUP(X75,Feuil1!$C$1:$BL$10,8,FALSE) -> 1 | AI75: =T75-HLOOKUP(X75,Feuil1!$C$1:$BL$10,9,FALSE) -> -14 | AJ75: =T75-HLOOKUP(X75,Feuil1!$C$1:$BL$10,10,FALSE) -> -884 | AQ75: INTB +
A76: F | H76: 2000 | I76: 58 | L76: 52 | O76: 52 | P76: 64 | S76: 64 | T76: 116 | V76: INTB + | W76: 1 | X76: =IF(I76="","",IF(A76="H",IF(OR(H76="SEN",H76<1997),VLOOKUP(I76,Feuil1!$A$11:$G$29,6),IF(AND(H76>1996,H76<2000),VLOOKUP(I76,Feuil1!$A$11:$G$29,5),IF(AND(H76>1999,H76<2002),VLOOKUP(I76,Feuil1!$A$11:$G$29,4),IF(AND(H76>2001,H76<2004),VLOOKUP(I76,Feuil1!$A$11:$G$29,3),VLOOKUP(I76,Feuil1!$A$11:$G$29,2))))),IF(OR(H76="SEN",H76<1997),VLOOKUP(I76,Feuil1!$G$11:$L$25,6),IF(AND(H76>1996,H76<2000),VLOOKUP(I76,Feuil1!$G$11:$L$25,5),IF(AND(H76>1999,H76<2002),VLOOKUP(I76,Feuil1!$G$11:$L$25,4),IF(AND(H76>2001,H76<2004),VLOOKUP(I76,Feuil1!$G$11:$L$25,3),VLOOKUP(I76,Feuil1!$G$11:$L$25,2))))))) -> FC2 58 | Y76: 163.3136987 | AB76: =T76-HLOOKUP(X76,Feuil1!$C$1:$BL$10,2,FALSE) -> 66 | AC76: =T76-HLOOKUP(X76,Feuil1!$C$1:$BL$10,3,FALSE) -> 56 | AD76: =T76-HLOOKUP(X76,Feuil1!$C$1:$BL$10,4,FALSE) -> 46 | AE76: =T76-HLOOKUP(X76,Feuil1!$C$1:$BL$10,5,FALSE) -> 36 | AF76: =T76-HLOOKUP(X76,Feuil1!$C$1:$BL$10,6,FALSE) -> 26 | AG76: =T76-HLOOKUP(X76,Feuil1!$C$1:$BL$10,7,FALSE) -> 16 | AH76: =T76-HLOOKUP(X76,Feuil1!$C$1:$BL$10,8,FALSE) -> 1 | AI76: =T76-HLOOKUP(X76,Feuil1!$C$1:$BL$10,9,FALSE) -> -14 | AJ76: =T76-HLOOKUP(X76,Feuil1!$C$1:$BL$10,10,FALSE) -> -884 | AQ76: INTB +
A77: F | H77: 2000 | I77: 58 | L77: 52 | O77: 52 | P77: 64 | S77: 64 | T77: 116 | V77: INTB + | W77: 1 | X77: =IF(I77="","",IF(A77="H",IF(OR(H77="SEN",H77<1997),VLOOKUP(I77,Feuil1!$A$11:$G$29,6),IF(AND(H77>1996,H77<2000),VLOOKUP(I77,Feuil1!$A$11:$G$29,5),IF(AND(H77>1999,H77<2002),VLOOKUP(I77,Feuil1!$A$11:$G$29,4),IF(AND(H77>2001,H77<2004),VLOOKUP(I77,Feuil1!$A$11:$G$29,3),VLOOKUP(I77,Feuil1!$A$11:$G$29,2))))),IF(OR(H77="SEN",H77<1997),VLOOKUP(I77,Feuil1!$G$11:$L$25,6),IF(AND(H77>1996,H77<2000),VLOOKUP(I77,Feuil1!$G$11:$L$25,5),IF(AND(H77>1999,H77<2002),VLOOKUP(I77,Feuil1!$G$11:$L$25,4),IF(AND(H77>2001,H77<2004),VLOOKUP(I77,Feuil1!$G$11:$L$25,3),VLOOKUP(I77,Feuil1!$G$11:$L$25,2))))))) -> FC2 58 | Y77: 163.3136987 | AB77: =T77-HLOOKUP(X77,Feuil1!$C$1:$BL$10,2,FALSE) -> 66 | AC77: =T77-HLOOKUP(X77,Feuil1!$C$1:$BL$10,3,FALSE) -> 56 | AD77: =T77-HLOOKUP(X77,Feuil1!$C$1:$BL$10,4,FALSE) -> 46 | AE77: =T77-HLOOKUP(X77,Feuil1!$C$1:$BL$10,5,FALSE) -> 36 | AF77: =T77-HLOOKUP(X77,Feuil1!$C$1:$BL$10,6,FALSE) -> 26 | AG77: =T77-HLOOKUP(X77,Feuil1!$C$1:$BL$10,7,FALSE) -> 16 | AH77: =T77-HLOOKUP(X77,Feuil1!$C$1:$BL$10,8,FALSE) -> 1 | AI77: =T77-HLOOKUP(X77,Feuil1!$C$1:$BL$10,9,FALSE) -> -14 | AJ77: =T77-HLOOKUP(X77,Feuil1!$C$1:$BL$10,10,FALSE) -> -884 | AQ77: INTB +
A78: F | H78: 2000 | I78: 58 | L78: 52 | O78: 52 | P78: 64 | S78: 64 | T78: 116 | V78: INTB + | W78: 1 | X78: =IF(I78="","",IF(A78="H",IF(OR(H78="SEN",H78<1997),VLOOKUP(I78,Feuil1!$A$11:$G$29,6),IF(AND(H78>1996,H78<2000),VLOOKUP(I78,Feuil1!$A$11:$G$29,5),IF(AND(H78>1999,H78<2002),VLOOKUP(I78,Feuil1!$A$11:$G$29,4),IF(AND(H78>2001,H78<2004),VLOOKUP(I78,Feuil1!$A$11:$G$29,3),VLOOKUP(I78,Feuil1!$A$11:$G$29,2))))),IF(OR(H78="SEN",H78<1997),VLOOKUP(I78,Feuil1!$G$11:$L$25,6),IF(AND(H78>1996,H78<2000),VLOOKUP(I78,Feuil1!$G$11:$L$25,5),IF(AND(H78>1999,H78<2002),VLOOKUP(I78,Feuil1!$G$11:$L$25,4),IF(AND(H78>2001,H78<2004),VLOOKUP(I78,Feuil1!$G$11:$L$25,3),VLOOKUP(I78,Feuil1!$G$11:$L$25,2))))))) -> FC2 58 | Y78: 163.3136987 | AB78: =T78-HLOOKUP(X78,Feuil1!$C$1:$BL$10,2,FALSE) -> 66 | AC78: =T78-HLOOKUP(X78,Feuil1!$C$1:$BL$10,3,FALSE) -> 56 | AD78: =T78-HLOOKUP(X78,Feuil1!$C$1:$BL$10,4,FALSE) -> 46 | AE78: =T78-HLOOKUP(X78,Feuil1!$C$1:$BL$10,5,FALSE) -> 36 | AF78: =T78-HLOOKUP(X78,Feuil1!$C$1:$BL$10,6,FALSE) -> 26 | AG78: =T78-HLOOKUP(X78,Feuil1!$C$1:$BL$10,7,FALSE) -> 16 | AH78: =T78-HLOOKUP(X78,Feuil1!$C$1:$BL$10,8,FALSE) -> 1 | AI78: =T78-HLOOKUP(X78,Feuil1!$C$1:$BL$10,9,FALSE) -> -14 | AJ78: =T78-HLOOKUP(X78,Feuil1!$C$1:$BL$10,10,FALSE) -> -884 | AQ78: INTB +
A79: F | H79: 2000 | I79: 58 | L79: 52 | O79: 52 | P79: 64 | S79: 64 | T79: 116 | V79: INTB + | W79: 1 | X79: =IF(I79="","",IF(A79="H",IF(OR(H79="SEN",H79<1997),VLOOKUP(I79,Feuil1!$A$11:$G$29,6),IF(AND(H79>1996,H79<2000),VLOOKUP(I79,Feuil1!$A$11:$G$29,5),IF(AND(H79>1999,H79<2002),VLOOKUP(I79,Feuil1!$A$11:$G$29,4),IF(AND(H79>2001,H79<2004),VLOOKUP(I79,Feuil1!$A$11:$G$29,3),VLOOKUP(I79,Feuil1!$A$11:$G$29,2))))),IF(OR(H79="SEN",H79<1997),VLOOKUP(I79,Feuil1!$G$11:$L$25,6),IF(AND(H79>1996,H79<2000),VLOOKUP(I79,Feuil1!$G$11:$L$25,5),IF(AND(H79>1999,H79<2002),VLOOKUP(I79,Feuil1!$G$11:$L$25,4),IF(AND(H79>2001,H79<2004),VLOOKUP(I79,Feuil1!$G$11:$L$25,3),VLOOKUP(I79,Feuil1!$G$11:$L$25,2))))))) -> FC2 58 | Y79: 163.3136987 | AB79: =T79-HLOOKUP(X79,Feuil1!$C$1:$BL$10,2,FALSE) -> 66 | AC79: =T79-HLOOKUP(X79,Feuil1!$C$1:$BL$10,3,FALSE) -> 56 | AD79: =T79-HLOOKUP(X79,Feuil1!$C$1:$BL$10,4,FALSE) -> 46 | AE79: =T79-HLOOKUP(X79,Feuil1!$C$1:$BL$10,5,FALSE) -> 36 | AF79: =T79-HLOOKUP(X79,Feuil1!$C$1:$BL$10,6,FALSE) -> 26 | AG79: =T79-HLOOKUP(X79,Feuil1!$C$1:$BL$10,7,FALSE) -> 16 | AH79: =T79-HLOOKUP(X79,Feuil1!$C$1:$BL$10,8,FALSE) -> 1 | AI79: =T79-HLOOKUP(X79,Feuil1!$C$1:$BL$10,9,FALSE) -> -14 | AJ79: =T79-HLOOKUP(X79,Feuil1!$C$1:$BL$10,10,FALSE) -> -884 | AQ79: INTB +
A80: F | H80: 2000 | I80: 58 | L80: 52 | O80: 52 | P80: 64 | S80: 64 | T80: 116 | V80: INTB + | W80: 1 | X80: =IF(I80="","",IF(A80="H",IF(OR(H80="SEN",H80<1997),VLOOKUP(I80,Feuil1!$A$11:$G$29,6),IF(AND(H80>1996,H80<2000),VLOOKUP(I80,Feuil1!$A$11:$G$29,5),IF(AND(H80>1999,H80<2002),VLOOKUP(I80,Feuil1!$A$11:$G$29,4),IF(AND(H80>2001,H80<2004),VLOOKUP(I80,Feuil1!$A$11:$G$29,3),VLOOKUP(I80,Feuil1!$A$11:$G$29,2))))),IF(OR(H80="SEN",H80<1997),VLOOKUP(I80,Feuil1!$G$11:$L$25,6),IF(AND(H80>1996,H80<2000),VLOOKUP(I80,Feuil1!$G$11:$L$25,5),IF(AND(H80>1999,H80<2002),VLOOKUP(I80,Feuil1!$G$11:$L$25,4),IF(AND(H80>2001,H80<2004),VLOOKUP(I80,Feuil1!$G$11:$L$25,3),VLOOKUP(I80,Feuil1!$G$11:$L$25,2))))))) -> FC2 58 | Y80: 163.3136987 | AB80: =T80-HLOOKUP(X80,Feuil1!$C$1:$BL$10,2,FALSE) -> 66 | AC80: =T80-HLOOKUP(X80,Feuil1!$C$1:$BL$10,3,FALSE) -> 56 | AD80: =T80-HLOOKUP(X80,Feuil1!$C$1:$BL$10,4,FALSE) -> 46 | AE80: =T80-HLOOKUP(X80,Feuil1!$C$1:$BL$10,5,FALSE) -> 36 | AF80: =T80-HLOOKUP(X80,Feuil1!$C$1:$BL$10,6,FALSE) -> 26 | AG80: =T80-HLOOKUP(X80,Feuil1!$C$1:$BL$10,7,FALSE) -> 16 | AH80: =T80-HLOOKUP(X80,Feuil1!$C$1:$BL$10,8,FALSE) -> 1 | AI80: =T80-HLOOKUP(X80,Feuil1!$C$1:$BL$10,9,FALSE) -> -14 | AJ80: =T80-HLOOKUP(X80,Feuil1!$C$1:$BL$10,10,FALSE) -> -884 | AQ80: INTB +
A81: F | H81: 2000 | I81: 58 | L81: 52 | O81: 52 | P81: 64 | S81: 64 | T81: 116 | V81: INTB + | W81: 1 | X81: =IF(I81="","",IF(A81="H",IF(OR(H81="SEN",H81<1997),VLOOKUP(I81,Feuil1!$A$11:$G$29,6),IF(AND(H81>1996,H81<2000),VLOOKUP(I81,Feuil1!$A$11:$G$29,5),IF(AND(H81>1999,H81<2002),VLOOKUP(I81,Feuil1!$A$11:$G$29,4),IF(AND(H81>2001,H81<2004),VLOOKUP(I81,Feuil1!$A$11:$G$29,3),VLOOKUP(I81,Feuil1!$A$11:$G$29,2))))),IF(OR(H81="SEN",H81<1997),VLOOKUP(I81,Feuil1!$G$11:$L$25,6),IF(AND(H81>1996,H81<2000),VLOOKUP(I81,Feuil1!$G$11:$L$25,5),IF(AND(H81>1999,H81<2002),VLOOKUP(I81,Feuil1!$G$11:$L$25,4),IF(AND(H81>2001,H81<2004),VLOOKUP(I81,Feuil1!$G$11:$L$25,3),VLOOKUP(I81,Feuil1!$G$11:$L$25,2))))))) -> FC2 58 | Y81: 163.3136987 | AB81: =T81-HLOOKUP(X81,Feuil1!$C$1:$BL$10,2,FALSE) -> 66 | AC81: =T81-HLOOKUP(X81,Feuil1!$C$1:$BL$10,3,FALSE) -> 56 | AD81: =T81-HLOOKUP(X81,Feuil1!$C$1:$BL$10,4,FALSE) -> 46 | AE81: =T81-HLOOKUP(X81,Feuil1!$C$1:$BL$10,5,FALSE) -> 36 | AF81: =T81-HLOOKUP(X81,Feuil1!$C$1:$BL$10,6,FALSE) -> 26 | AG81: =T81-HLOOKUP(X81,Feuil1!$C$1:$BL$10,7,FALSE) -> 16 | AH81: =T81-HLOOKUP(X81,Feuil1!$C$1:$BL$10,8,FALSE) -> 1 | AI81: =T81-HLOOKUP(X81,Feuil1!$C$1:$BL$10,9,FALSE) -> -14 | AJ81: =T81-HLOOKUP(X81,Feuil1!$C$1:$BL$10,10,FALSE) -> -884 | AQ81: INTB +
A82: F | H82: 2000 | I82: 58 | L82: 52 | O82: =IF(H82="","",IF(MAXA(L82:N82)<=0,0,MAXA(L82:N82))) -> 52 | P82: 64 | S82: =IF(H82="","",IF(MAXA(P82:R82)<=0,0,MAXA(P82:R82))) -> 64 | T82: =IF(H82="","",IF(OR(O82=0,S82=0),0,O82+S82)) -> 116 | V82: =IF(H82="","",AQ82) -> INTB + | W82: =IF(AJ82>=0,AJ82,IF(AI82>=0,AI82,IF(AH82>=0,AH82,IF(AG82>=0,AG82,IF(AF82>=0,AF82,IF(AE82>=0,AE82,IF(AD82>=0,AD82,IF(AC82>=0,AC82,AB82)))))))) -> 1 | X82: =IF(I82="","",IF(A82="H",IF(OR(H82="SEN",H82<1997),VLOOKUP(I82,Feuil1!$A$11:$G$29,6),IF(AND(H82>1996,H82<2000),VLOOKUP(I82,Feuil1!$A$11:$G$29,5),IF(AND(H82>1999,H82<2002),VLOOKUP(I82,Feuil1!$A$11:$G$29,4),IF(AND(H82>2001,H82<2004),VLOOKUP(I82,Feuil1!$A$11:$G$29,3),VLOOKUP(I82,Feuil1!$A$11:$G$29,2))))),IF(OR(H82="SEN",H82<1997),VLOOKUP(I82,Feuil1!$G$11:$L$25,6),IF(AND(H82>1996,H82<2000),VLOOKUP(I82,Feuil1!$G$11:$L$25,5),IF(AND(H82>1999,H82<2002),VLOOKUP(I82,Feuil1!$G$11:$L$25,4),IF(AND(H82>2001,H82<2004),VLOOKUP(I82,Feuil1!$G$11:$L$25,3),VLOOKUP(I82,Feuil1!$G$11:$L$25,2))))))) -> FC2 58 | Y82: =IF(I82="","",IF(A82="H",10^(0.794358141*LOG(I82/174.393)^2)*T82,IF(A82="F",10^(0.89726074*LOG(I82/148.026)^2)*T82,""))) -> 163.3136987 | AB82: =T82-HLOOKUP(X82,Feuil1!$C$1:$BL$10,2,FALSE) -> 66 | AC82: =T82-HLOOKUP(X82,Feuil1!$C$1:$BL$10,3,FALSE) -> 56 | AD82: =T82-HLOOKUP(X82,Feuil1!$C$1:$BL$10,4,FALSE) -> 46 | AE82: =T82-HLOOKUP(X82,Feuil1!$C$1:$BL$10,5,FALSE) -> 36 | AF82: =T82-HLOOKUP(X82,Feuil1!$C$1:$BL$10,6,FALSE) -> 26 | AG82: =T82-HLOOKUP(X82,Feuil1!$C$1:$BL$10,7,FALSE) -> 16 | AH82: =T82-HLOOKUP(X82,Feuil1!$C$1:$BL$10,8,FALSE) -> 1 | AI82: =T82-HLOOKUP(X82,Feuil1!$C$1:$BL$10,9,FALSE) -> -14 | AJ82: =T82-HLOOKUP(X82,Feuil1!$C$1:$BL$10,10,FALSE) -> -884 | AQ82: =IF(AJ82>=0,$AJ$4,IF(AI82>=0,$AI$4,IF(AH82>=0,$AH$4,IF(AG82>=0,$AG$4,IF(AF82>=0,$AF$4,IF(AE82>=0,$AE$4,IF(AD82>=0,$AD$4,IF(AC82>=0,$AC$4,$AB$4)))))))) -> INTB +
A83: F | H83: 2000 | I83: 58 | L83: 52 | O83: 52 | P83: 64 | S83: 64 | T83: 116 | V83: INTB + | W83: 1 | X83: =IF(I83="","",IF(A83="H",IF(OR(H83="SEN",H83<1997),VLOOKUP(I83,Feuil1!$A$11:$G$29,6),IF(AND(H83>1996,H83<2000),VLOOKUP(I83,Feuil1!$A$11:$G$29,5),IF(AND(H83>1999,H83<2002),VLOOKUP(I83,Feuil1!$A$11:$G$29,4),IF(AND(H83>2001,H83<2004),VLOOKUP(I83,Feuil1!$A$11:$G$29,3),VLOOKUP(I83,Feuil1!$A$11:$G$29,2))))),IF(OR(H83="SEN",H83<1997),VLOOKUP(I83,Feuil1!$G$11:$L$25,6),IF(AND(H83>1996,H83<2000),VLOOKUP(I83,Feuil1!$G$11:$L$25,5),IF(AND(H83>1999,H83<2002),VLOOKUP(I83,Feuil1!$G$11:$L$25,4),IF(AND(H83>2001,H83<2004),VLOOKUP(I83,Feuil1!$G$11:$L$25,3),VLOOKUP(I83,Feuil1!$G$11:$L$25,2))))))) -> FC2 58 | Y83: 163.3136987 | AB83: =T83-HLOOKUP(X83,Feuil1!$C$1:$BL$10,2,FALSE) -> 66 | AC83: =T83-HLOOKUP(X83,Feuil1!$C$1:$BL$10,3,FALSE) -> 56 | AD83: =T83-HLOOKUP(X83,Feuil1!$C$1:$BL$10,4,FALSE) -> 46 | AE83: =T83-HLOOKUP(X83,Feuil1!$C$1:$BL$10,5,FALSE) -> 36 | AF83: =T83-HLOOKUP(X83,Feuil1!$C$1:$BL$10,6,FALSE) -> 26 | AG83: =T83-HLOOKUP(X83,Feuil1!$C$1:$BL$10,7,FALSE) -> 16 | AH83: =T83-HLOOKUP(X83,Feuil1!$C$1:$BL$10,8,FALSE) -> 1 | AI83: =T83-HLOOKUP(X83,Feuil1!$C$1:$BL$10,9,FALSE) -> -14 | AJ83: =T83-HLOOKUP(X83,Feuil1!$C$1:$BL$10,10,FALSE) -> -884 | AQ83: INTB +
A84: F | H84: 2000 | I84: 58 | L84: 52 | O84: 52 | P84: 64 | S84: 64 | T84: 116 | V84: INTB + | W84: 1 | X84: =IF(I84="","",IF(A84="H",IF(OR(H84="SEN",H84<1997),VLOOKUP(I84,Feuil1!$A$11:$G$29,6),IF(AND(H84>1996,H84<2000),VLOOKUP(I84,Feuil1!$A$11:$G$29,5),IF(AND(H84>1999,H84<2002),VLOOKUP(I84,Feuil1!$A$11:$G$29,4),IF(AND(H84>2001,H84<2004),VLOOKUP(I84,Feuil1!$A$11:$G$29,3),VLOOKUP(I84,Feuil1!$A$11:$G$29,2))))),IF(OR(H84="SEN",H84<1997),VLOOKUP(I84,Feuil1!$G$11:$L$25,6),IF(AND(H84>1996,H84<2000),VLOOKUP(I84,Feuil1!$G$11:$L$25,5),IF(AND(H84>1999,H84<2002),VLOOKUP(I84,Feuil1!$G$11:$L$25,4),IF(AND(H84>2001,H84<2004),VLOOKUP(I84,Feuil1!$G$11:$L$25,3),VLOOKUP(I84,Feuil1!$G$11:$L$25,2))))))) -> FC2 58 | Y84: 163.3136987 | AB84: =T84-HLOOKUP(X84,Feuil1!$C$1:$BL$10,2,FALSE) -> 66 | AC84: =T84-HLOOKUP(X84,Feuil1!$C$1:$BL$10,3,FALSE) -> 56 | AD84: =T84-HLOOKUP(X84,Feuil1!$C$1:$BL$10,4,FALSE) -> 46 | AE84: =T84-HLOOKUP(X84,Feuil1!$C$1:$BL$10,5,FALSE) -> 36 | AF84: =T84-HLOOKUP(X84,Feuil1!$C$1:$BL$10,6,FALSE) -> 26 | AG84: =T84-HLOOKUP(X84,Feuil1!$C$1:$BL$10,7,FALSE) -> 16 | AH84: =T84-HLOOKUP(X84,Feuil1!$C$1:$BL$10,8,FALSE) -> 1 | AI84: =T84-HLOOKUP(X84,Feuil1!$C$1:$BL$10,9,FALSE) -> -14 | AJ84: =T84-HLOOKUP(X84,Feuil1!$C$1:$BL$10,10,FALSE) -> -884 | AQ84: INTB +
A85: F | H85: 2000 | I85: 58 | L85: 52 | O85: 52 | P85: 64 | S85: 64 | T85: 116 | V85: INTB + | W85: 1 | X85: =IF(I85="","",IF(A85="H",IF(OR(H85="SEN",H85<1997),VLOOKUP(I85,Feuil1!$A$11:$G$29,6),IF(AND(H85>1996,H85<2000),VLOOKUP(I85,Feuil1!$A$11:$G$29,5),IF(AND(H85>1999,H85<2002),VLOOKUP(I85,Feuil1!$A$11:$G$29,4),IF(AND(H85>2001,H85<2004),VLOOKUP(I85,Feuil1!$A$11:$G$29,3),VLOOKUP(I85,Feuil1!$A$11:$G$29,2))))),IF(OR(H85="SEN",H85<1997),VLOOKUP(I85,Feuil1!$G$11:$L$25,6),IF(AND(H85>1996,H85<2000),VLOOKUP(I85,Feuil1!$G$11:$L$25,5),IF(AND(H85>1999,H85<2002),VLOOKUP(I85,Feuil1!$G$11:$L$25,4),IF(AND(H85>2001,H85<2004),VLOOKUP(I85,Feuil1!$G$11:$L$25,3),VLOOKUP(I85,Feuil1!$G$11:$L$25,2))))))) -> FC2 58 | Y85: 163.3136987 | AB85: =T85-HLOOKUP(X85,Feuil1!$C$1:$BL$10,2,FALSE) -> 66 | AC85: =T85-HLOOKUP(X85,Feuil1!$C$1:$BL$10,3,FALSE) -> 56 | AD85: =T85-HLOOKUP(X85,Feuil1!$C$1:$BL$10,4,FALSE) -> 46 | AE85: =T85-HLOOKUP(X85,Feuil1!$C$1:$BL$10,5,FALSE) -> 36 | AF85: =T85-HLOOKUP(X85,Feuil1!$C$1:$BL$10,6,FALSE) -> 26 | AG85: =T85-HLOOKUP(X85,Feuil1!$C$1:$BL$10,7,FALSE) -> 16 | AH85: =T85-HLOOKUP(X85,Feuil1!$C$1:$BL$10,8,FALSE) -> 1 | AI85: =T85-HLOOKUP(X85,Feuil1!$C$1:$BL$10,9,FALSE) -> -14 | AJ85: =T85-HLOOKUP(X85,Feuil1!$C$1:$BL$10,10,FALSE) -> -884 | AQ85: INTB +
A86: F | H86: 2000 | I86: 58 | L86: 52 | O86: 52 | P86: 64 | S86: 64 | T86: 116 | V86: INTB + | W86: 1 | X86: =IF(I86="","",IF(A86="H",IF(OR(H86="SEN",H86<1997),VLOOKUP(I86,Feuil1!$A$11:$G$29,6),IF(AND(H86>1996,H86<2000),VLOOKUP(I86,Feuil1!$A$11:$G$29,5),IF(AND(H86>1999,H86<2002),VLOOKUP(I86,Feuil1!$A$11:$G$29,4),IF(AND(H86>2001,H86<2004),VLOOKUP(I86,Feuil1!$A$11:$G$29,3),VLOOKUP(I86,Feuil1!$A$11:$G$29,2))))),IF(OR(H86="SEN",H86<1997),VLOOKUP(I86,Feuil1!$G$11:$L$25,6),IF(AND(H86>1996,H86<2000),VLOOKUP(I86,Feuil1!$G$11:$L$25,5),IF(AND(H86>1999,H86<2002),VLOOKUP(I86,Feuil1!$G$11:$L$25,4),IF(AND(H86>2001,H86<2004),VLOOKUP(I86,Feuil1!$G$11:$L$25,3),VLOOKUP(I86,Feuil1!$G$11:$L$25,2))))))) -> FC2 58 | Y86: 163.3136987 | AB86: =T86-HLOOKUP(X86,Feuil1!$C$1:$BL$10,2,FALSE) -> 66 | AC86: =T86-HLOOKUP(X86,Feuil1!$C$1:$BL$10,3,FALSE) -> 56 | AD86: =T86-HLOOKUP(X86,Feuil1!$C$1:$BL$10,4,FALSE) -> 46 | AE86: =T86-HLOOKUP(X86,Feuil1!$C$1:$BL$10,5,FALSE) -> 36 | AF86: =T86-HLOOKUP(X86,Feuil1!$C$1:$BL$10,6,FALSE) -> 26 | AG86: =T86-HLOOKUP(X86,Feuil1!$C$1:$BL$10,7,FALSE) -> 16 | AH86: =T86-HLOOKUP(X86,Feuil1!$C$1:$BL$10,8,FALSE) -> 1 | AI86: =T86-HLOOKUP(X86,Feuil1!$C$1:$BL$10,9,FALSE) -> -14 | AJ86: =T86-HLOOKUP(X86,Feuil1!$C$1:$BL$10,10,FALSE) -> -884 | AQ86: INTB +
A87: F | H87: 2000 | I87: 58 | L87: 52 | O87: 52 | P87: 64 | S87: 64 | T87: 116 | V87: INTB + | W87: 1 | X87: =IF(I87="","",IF(A87="H",IF(OR(H87="SEN",H87<1997),VLOOKUP(I87,Feuil1!$A$11:$G$29,6),IF(AND(H87>1996,H87<2000),VLOOKUP(I87,Feuil1!$A$11:$G$29,5),IF(AND(H87>1999,H87<2002),VLOOKUP(I87,Feuil1!$A$11:$G$29,4),IF(AND(H87>2001,H87<2004),VLOOKUP(I87,Feuil1!$A$11:$G$29,3),VLOOKUP(I87,Feuil1!$A$11:$G$29,2))))),IF(OR(H87="SEN",H87<1997),VLOOKUP(I87,Feuil1!$G$11:$L$25,6),IF(AND(H87>1996,H87<2000),VLOOKUP(I87,Feuil1!$G$11:$L$25,5),IF(AND(H87>1999,H87<2002),VLOOKUP(I87,Feuil1!$G$11:$L$25,4),IF(AND(H87>2001,H87<2004),VLOOKUP(I87,Feuil1!$G$11:$L$25,3),VLOOKUP(I87,Feuil1!$G$11:$L$25,2))))))) -> FC2 58 | Y87: 163.3136987 | AB87: =T87-HLOOKUP(X87,Feuil1!$C$1:$BL$10,2,FALSE) -> 66 | AC87: =T87-HLOOKUP(X87,Feuil1!$C$1:$BL$10,3,FALSE) -> 56 | AD87: =T87-HLOOKUP(X87,Feuil1!$C$1:$BL$10,4,FALSE) -> 46 | AE87: =T87-HLOOKUP(X87,Feuil1!$C$1:$BL$10,5,FALSE) -> 36 | AF87: =T87-HLOOKUP(X87,Feuil1!$C$1:$BL$10,6,FALSE) -> 26 | AG87: =T87-HLOOKUP(X87,Feuil1!$C$1:$BL$10,7,FALSE) -> 16 | AH87: =T87-HLOOKUP(X87,Feuil1!$C$1:$BL$10,8,FALSE) -> 1 | AI87: =T87-HLOOKUP(X87,Feuil1!$C$1:$BL$10,9,FALSE) -> -14 | AJ87: =T87-HLOOKUP(X87,Feuil1!$C$1:$BL$10,10,FALSE) -> -884 | AQ87: INTB +
A88: F | H88: 2000 | I88: 58 | L88: 52 | O88: 52 | P88: 64 | S88: 64 | T88: 116 | V88: INTB + | W88: 1 | X88: =IF(I88="","",IF(A88="H",IF(OR(H88="SEN",H88<1997),VLOOKUP(I88,Feuil1!$A$11:$G$29,6),IF(AND(H88>1996,H88<2000),VLOOKUP(I88,Feuil1!$A$11:$G$29,5),IF(AND(H88>1999,H88<2002),VLOOKUP(I88,Feuil1!$A$11:$G$29,4),IF(AND(H88>2001,H88<2004),VLOOKUP(I88,Feuil1!$A$11:$G$29,3),VLOOKUP(I88,Feuil1!$A$11:$G$29,2))))),IF(OR(H88="SEN",H88<1997),VLOOKUP(I88,Feuil1!$G$11:$L$25,6),IF(AND(H88>1996,H88<2000),VLOOKUP(I88,Feuil1!$G$11:$L$25,5),IF(AND(H88>1999,H88<2002),VLOOKUP(I88,Feuil1!$G$11:$L$25,4),IF(AND(H88>2001,H88<2004),VLOOKUP(I88,Feuil1!$G$11:$L$25,3),VLOOKUP(I88,Feuil1!$G$11:$L$25,2))))))) -> FC2 58 | Y88: 163.3136987 | AB88: =T88-HLOOKUP(X88,Feuil1!$C$1:$BL$10,2,FALSE) -> 66 | AC88: =T88-HLOOKUP(X88,Feuil1!$C$1:$BL$10,3,FALSE) -> 56 | AD88: =T88-HLOOKUP(X88,Feuil1!$C$1:$BL$10,4,FALSE) -> 46 | AE88: =T88-HLOOKUP(X88,Feuil1!$C$1:$BL$10,5,FALSE) -> 36 | AF88: =T88-HLOOKUP(X88,Feuil1!$C$1:$BL$10,6,FALSE) -> 26 | AG88: =T88-HLOOKUP(X88,Feuil1!$C$1:$BL$10,7,FALSE) -> 16 | AH88: =T88-HLOOKUP(X88,Feuil1!$C$1:$BL$10,8,FALSE) -> 1 | AI88: =T88-HLOOKUP(X88,Feuil1!$C$1:$BL$10,9,FALSE) -> -14 | AJ88: =T88-HLOOKUP(X88,Feuil1!$C$1:$BL$10,10,FALSE) -> -884 | AQ88: INTB +
A89: F | H89: 2000 | I89: 58 | L89: 52 | O89: 52 | P89: 64 | S89: 64 | T89: 116 | V89: INTB + | W89: 1 | X89: =IF(I89="","",IF(A89="H",IF(OR(H89="SEN",H89<1997),VLOOKUP(I89,Feuil1!$A$11:$G$29,6),IF(AND(H89>1996,H89<2000),VLOOKUP(I89,Feuil1!$A$11:$G$29,5),IF(AND(H89>1999,H89<2002),VLOOKUP(I89,Feuil1!$A$11:$G$29,4),IF(AND(H89>2001,H89<2004),VLOOKUP(I89,Feuil1!$A$11:$G$29,3),VLOOKUP(I89,Feuil1!$A$11:$G$29,2))))),IF(OR(H89="SEN",H89<1997),VLOOKUP(I89,Feuil1!$G$11:$L$25,6),IF(AND(H89>1996,H89<2000),VLOOKUP(I89,Feuil1!$G$11:$L$25,5),IF(AND(H89>1999,H89<2002),VLOOKUP(I89,Feuil1!$G$11:$L$25,4),IF(AND(H89>2001,H89<2004),VLOOKUP(I89,Feuil1!$G$11:$L$25,3),VLOOKUP(I89,Feuil1!$G$11:$L$25,2))))))) -> FC2 58 | Y89: 163.3136987 | AB89: =T89-HLOOKUP(X89,Feuil1!$C$1:$BL$10,2,FALSE) -> 66 | AC89: =T89-HLOOKUP(X89,Feuil1!$C$1:$BL$10,3,FALSE) -> 56 | AD89: =T89-HLOOKUP(X89,Feuil1!$C$1:$BL$10,4,FALSE) -> 46 | AE89: =T89-HLOOKUP(X89,Feuil1!$C$1:$BL$10,5,FALSE) -> 36 | AF89: =T89-HLOOKUP(X89,Feuil1!$C$1:$BL$10,6,FALSE) -> 26 | AG89: =T89-HLOOKUP(X89,Feuil1!$C$1:$BL$10,7,FALSE) -> 16 | AH89: =T89-HLOOKUP(X89,Feuil1!$C$1:$BL$10,8,FALSE) -> 1 | AI89: =T89-HLOOKUP(X89,Feuil1!$C$1:$BL$10,9,FALSE) -> -14 | AJ89: =T89-HLOOKUP(X89,Feuil1!$C$1:$BL$10,10,FALSE) -> -884 | AQ89: INTB +
A90: F | H90: 2000 | I90: 58 | L90: 52 | O90: 52 | P90: 64 | S90: 64 | T90: 116 | V90: INTB + | W90: 1 | X90: =IF(I90="","",IF(A90="H",IF(OR(H90="SEN",H90<1997),VLOOKUP(I90,Feuil1!$A$11:$G$29,6),IF(AND(H90>1996,H90<2000),VLOOKUP(I90,Feuil1!$A$11:$G$29,5),IF(AND(H90>1999,H90<2002),VLOOKUP(I90,Feuil1!$A$11:$G$29,4),IF(AND(H90>2001,H90<2004),VLOOKUP(I90,Feuil1!$A$11:$G$29,3),VLOOKUP(I90,Feuil1!$A$11:$G$29,2))))),IF(OR(H90="SEN",H90<1997),VLOOKUP(I90,Feuil1!$G$11:$L$25,6),IF(AND(H90>1996,H90<2000),VLOOKUP(I90,Feuil1!$G$11:$L$25,5),IF(AND(H90>1999,H90<2002),VLOOKUP(I90,Feuil1!$G$11:$L$25,4),IF(AND(H90>2001,H90<2004),VLOOKUP(I90,Feuil1!$G$11:$L$25,3),VLOOKUP(I90,Feuil1!$G$11:$L$25,2))))))) -> FC2 58 | Y90: 163.3136987 | AB90: =T90-HLOOKUP(X90,Feuil1!$C$1:$BL$10,2,FALSE) -> 66 | AC90: =T90-HLOOKUP(X90,Feuil1!$C$1:$BL$10,3,FALSE) -> 56 | AD90: =T90-HLOOKUP(X90,Feuil1!$C$1:$BL$10,4,FALSE) -> 46 | AE90: =T90-HLOOKUP(X90,Feuil1!$C$1:$BL$10,5,FALSE) -> 36 | AF90: =T90-HLOOKUP(X90,Feuil1!$C$1:$BL$10,6,FALSE) -> 26 | AG90: =T90-HLOOKUP(X90,Feuil1!$C$1:$BL$10,7,FALSE) -> 16 | AH90: =T90-HLOOKUP(X90,Feuil1!$C$1:$BL$10,8,FALSE) -> 1 | AI90: =T90-HLOOKUP(X90,Feuil1!$C$1:$BL$10,9,FALSE) -> -14 | AJ90: =T90-HLOOKUP(X90,Feuil1!$C$1:$BL$10,10,FALSE) -> -884 | AQ90: INTB +
A91: F | H91: 2000 | I91: 58 | L91: 52 | O91: 52 | P91: 64 | S91: 64 | T91: 116 | V91: INTB + | W91: 1 | X91: =IF(I91="","",IF(A91="H",IF(OR(H91="SEN",H91<1997),VLOOKUP(I91,Feuil1!$A$11:$G$29,6),IF(AND(H91>1996,H91<2000),VLOOKUP(I91,Feuil1!$A$11:$G$29,5),IF(AND(H91>1999,H91<2002),VLOOKUP(I91,Feuil1!$A$11:$G$29,4),IF(AND(H91>2001,H91<2004),VLOOKUP(I91,Feuil1!$A$11:$G$29,3),VLOOKUP(I91,Feuil1!$A$11:$G$29,2))))),IF(OR(H91="SEN",H91<1997),VLOOKUP(I91,Feuil1!$G$11:$L$25,6),IF(AND(H91>1996,H91<2000),VLOOKUP(I91,Feuil1!$G$11:$L$25,5),IF(AND(H91>1999,H91<2002),VLOOKUP(I91,Feuil1!$G$11:$L$25,4),IF(AND(H91>2001,H91<2004),VLOOKUP(I91,Feuil1!$G$11:$L$25,3),VLOOKUP(I91,Feuil1!$G$11:$L$25,2))))))) -> FC2 58 | Y91: 163.3136987 | AB91: =T91-HLOOKUP(X91,Feuil1!$C$1:$BL$10,2,FALSE) -> 66 | AC91: =T91-HLOOKUP(X91,Feuil1!$C$1:$BL$10,3,FALSE) -> 56 | AD91: =T91-HLOOKUP(X91,Feuil1!$C$1:$BL$10,4,FALSE) -> 46 | AE91: =T91-HLOOKUP(X91,Feuil1!$C$1:$BL$10,5,FALSE) -> 36 | AF91: =T91-HLOOKUP(X91,Feuil1!$C$1:$BL$10,6,FALSE) -> 26 | AG91: =T91-HLOOKUP(X91,Feuil1!$C$1:$BL$10,7,FALSE) -> 16 | AH91: =T91-HLOOKUP(X91,Feuil1!$C$1:$BL$10,8,FALSE) -> 1 | AI91: =T91-HLOOKUP(X91,Feuil1!$C$1:$BL$10,9,FALSE) -> -14 | AJ91: =T91-HLOOKUP(X91,Feuil1!$C$1:$BL$10,10,FALSE) -> -884 | AQ91: INTB +
A92: F | H92: 2000 | I92: 58 | L92: 52 | O92: 52 | P92: 64 | S92: 64 | T92: 116 | V92: INTB + | W92: 1 | X92: =IF(I92="","",IF(A92="H",IF(OR(H92="SEN",H92<1997),VLOOKUP(I92,Feuil1!$A$11:$G$29,6),IF(AND(H92>1996,H92<2000),VLOOKUP(I92,Feuil1!$A$11:$G$29,5),IF(AND(H92>1999,H92<2002),VLOOKUP(I92,Feuil1!$A$11:$G$29,4),IF(AND(H92>2001,H92<2004),VLOOKUP(I92,Feuil1!$A$11:$G$29,3),VLOOKUP(I92,Feuil1!$A$11:$G$29,2))))),IF(OR(H92="SEN",H92<1997),VLOOKUP(I92,Feuil1!$G$11:$L$25,6),IF(AND(H92>1996,H92<2000),VLOOKUP(I92,Feuil1!$G$11:$L$25,5),IF(AND(H92>1999,H92<2002),VLOOKUP(I92,Feuil1!$G$11:$L$25,4),IF(AND(H92>2001,H92<2004),VLOOKUP(I92,Feuil1!$G$11:$L$25,3),VLOOKUP(I92,Feuil1!$G$11:$L$25,2))))))) -> FC2 58 | Y92: 163.3136987 | AB92: =T92-HLOOKUP(X92,Feuil1!$C$1:$BL$10,2,FALSE) -> 66 | AC92: =T92-HLOOKUP(X92,Feuil1!$C$1:$BL$10,3,FALSE) -> 56 | AD92: =T92-HLOOKUP(X92,Feuil1!$C$1:$BL$10,4,FALSE) -> 46 | AE92: =T92-HLOOKUP(X92,Feuil1!$C$1:$BL$10,5,FALSE) -> 36 | AF92: =T92-HLOOKUP(X92,Feuil1!$C$1:$BL$10,6,FALSE) -> 26 | AG92: =T92-HLOOKUP(X92,Feuil1!$C$1:$BL$10,7,FALSE) -> 16 | AH92: =T92-HLOOKUP(X92,Feuil1!$C$1:$BL$10,8,FALSE) -> 1 | AI92: =T92-HLOOKUP(X92,Feuil1!$C$1:$BL$10,9,FALSE) -> -14 | AJ92: =T92-HLOOKUP(X92,Feuil1!$C$1:$BL$10,10,FALSE) -> -884 | AQ92: INTB +
A93: F | H93: 2000 | I93: 58 | L93: 52 | O93: 52 | P93: 64 | S93: 64 | T93: 116 | V93: INTB + | W93: 1 | X93: =IF(I93="","",IF(A93="H",IF(OR(H93="SEN",H93<1997),VLOOKUP(I93,Feuil1!$A$11:$G$29,6),IF(AND(H93>1996,H93<2000),VLOOKUP(I93,Feuil1!$A$11:$G$29,5),IF(AND(H93>1999,H93<2002),VLOOKUP(I93,Feuil1!$A$11:$G$29,4),IF(AND(H93>2001,H93<2004),VLOOKUP(I93,Feuil1!$A$11:$G$29,3),VLOOKUP(I93,Feuil1!$A$11:$G$29,2))))),IF(OR(H93="SEN",H93<1997),VLOOKUP(I93,Feuil1!$G$11:$L$25,6),IF(AND(H93>1996,H93<2000),VLOOKUP(I93,Feuil1!$G$11:$L$25,5),IF(AND(H93>1999,H93<2002),VLOOKUP(I93,Feuil1!$G$11:$L$25,4),IF(AND(H93>2001,H93<2004),VLOOKUP(I93,Feuil1!$G$11:$L$25,3),VLOOKUP(I93,Feuil1!$G$11:$L$25,2))))))) -> FC2 58 | Y93: 163.3136987 | AB93: =T93-HLOOKUP(X93,Feuil1!$C$1:$BL$10,2,FALSE) -> 66 | AC93: =T93-HLOOKUP(X93,Feuil1!$C$1:$BL$10,3,FALSE) -> 56 | AD93: =T93-HLOOKUP(X93,Feuil1!$C$1:$BL$10,4,FALSE) -> 46 | AE93: =T93-HLOOKUP(X93,Feuil1!$C$1:$BL$10,5,FALSE) -> 36 | AF93: =T93-HLOOKUP(X93,Feuil1!$C$1:$BL$10,6,FALSE) -> 26 | AG93: =T93-HLOOKUP(X93,Feuil1!$C$1:$BL$10,7,FALSE) -> 16 | AH93: =T93-HLOOKUP(X93,Feuil1!$C$1:$BL$10,8,FALSE) -> 1 | AI93: =T93-HLOOKUP(X93,Feuil1!$C$1:$BL$10,9,FALSE) -> -14 | AJ93: =T93-HLOOKUP(X93,Feuil1!$C$1:$BL$10,10,FALSE) -> -884 | AQ93: INTB +
A94: F | H94: 2000 | I94: 58 | L94: 52 | O94: 52 | P94: 64 | S94: 64 | T94: 116 | V94: INTB + | W94: 1 | X94: =IF(I94="","",IF(A94="H",IF(OR(H94="SEN",H94<1997),VLOOKUP(I94,Feuil1!$A$11:$G$29,6),IF(AND(H94>1996,H94<2000),VLOOKUP(I94,Feuil1!$A$11:$G$29,5),IF(AND(H94>1999,H94<2002),VLOOKUP(I94,Feuil1!$A$11:$G$29,4),IF(AND(H94>2001,H94<2004),VLOOKUP(I94,Feuil1!$A$11:$G$29,3),VLOOKUP(I94,Feuil1!$A$11:$G$29,2))))),IF(OR(H94="SEN",H94<1997),VLOOKUP(I94,Feuil1!$G$11:$L$25,6),IF(AND(H94>1996,H94<2000),VLOOKUP(I94,Feuil1!$G$11:$L$25,5),IF(AND(H94>1999,H94<2002),VLOOKUP(I94,Feuil1!$G$11:$L$25,4),IF(AND(H94>2001,H94<2004),VLOOKUP(I94,Feuil1!$G$11:$L$25,3),VLOOKUP(I94,Feuil1!$G$11:$L$25,2))))))) -> FC2 58 | Y94: 163.3136987 | AB94: =T94-HLOOKUP(X94,Feuil1!$C$1:$BL$10,2,FALSE) -> 66 | AC94: =T94-HLOOKUP(X94,Feuil1!$C$1:$BL$10,3,FALSE) -> 56 | AD94: =T94-HLOOKUP(X94,Feuil1!$C$1:$BL$10,4,FALSE) -> 46 | AE94: =T94-HLOOKUP(X94,Feuil1!$C$1:$BL$10,5,FALSE) -> 36 | AF94: =T94-HLOOKUP(X94,Feuil1!$C$1:$BL$10,6,FALSE) -> 26 | AG94: =T94-HLOOKUP(X94,Feuil1!$C$1:$BL$10,7,FALSE) -> 16 | AH94: =T94-HLOOKUP(X94,Feuil1!$C$1:$BL$10,8,FALSE) -> 1 | AI94: =T94-HLOOKUP(X94,Feuil1!$C$1:$BL$10,9,FALSE) -> -14 | AJ94: =T94-HLOOKUP(X94,Feuil1!$C$1:$BL$10,10,FALSE) -> -884 | AQ94: INTB +
A95: F | H95: 2000 | I95: 58 | L95: 52 | O95: 52 | P95: 64 | S95: 64 | T95: 116 | V95: INTB + | W95: 1 | X95: =IF(I95="","",IF(A95="H",IF(OR(H95="SEN",H95<1997),VLOOKUP(I95,Feuil1!$A$11:$G$29,6),IF(AND(H95>1996,H95<2000),VLOOKUP(I95,Feuil1!$A$11:$G$29,5),IF(AND(H95>1999,H95<2002),VLOOKUP(I95,Feuil1!$A$11:$G$29,4),IF(AND(H95>2001,H95<2004),VLOOKUP(I95,Feuil1!$A$11:$G$29,3),VLOOKUP(I95,Feuil1!$A$11:$G$29,2))))),IF(OR(H95="SEN",H95<1997),VLOOKUP(I95,Feuil1!$G$11:$L$25,6),IF(AND(H95>1996,H95<2000),VLOOKUP(I95,Feuil1!$G$11:$L$25,5),IF(AND(H95>1999,H95<2002),VLOOKUP(I95,Feuil1!$G$11:$L$25,4),IF(AND(H95>2001,H95<2004),VLOOKUP(I95,Feuil1!$G$11:$L$25,3),VLOOKUP(I95,Feuil1!$G$11:$L$25,2))))))) -> FC2 58 | Y95: 163.3136987 | AB95: =T95-HLOOKUP(X95,Feuil1!$C$1:$BL$10,2,FALSE) -> 66 | AC95: =T95-HLOOKUP(X95,Feuil1!$C$1:$BL$10,3,FALSE) -> 56 | AD95: =T95-HLOOKUP(X95,Feuil1!$C$1:$BL$10,4,FALSE) -> 46 | AE95: =T95-HLOOKUP(X95,Feuil1!$C$1:$BL$10,5,FALSE) -> 36 | AF95: =T95-HLOOKUP(X95,Feuil1!$C$1:$BL$10,6,FALSE) -> 26 | AG95: =T95-HLOOKUP(X95,Feuil1!$C$1:$BL$10,7,FALSE) -> 16 | AH95: =T95-HLOOKUP(X95,Feuil1!$C$1:$BL$10,8,FALSE) -> 1 | AI95: =T95-HLOOKUP(X95,Feuil1!$C$1:$BL$10,9,FALSE) -> -14 | AJ95: =T95-HLOOKUP(X95,Feuil1!$C$1:$BL$10,10,FALSE) -> -884 | AQ95: INTB +
A96: F | H96: 2000 | I96: 58 | L96: 52 | O96: 52 | P96: 64 | S96: 64 | T96: 116 | V96: INTB + | W96: 1 | X96: =IF(I96="","",IF(A96="H",IF(OR(H96="SEN",H96<1997),VLOOKUP(I96,Feuil1!$A$11:$G$29,6),IF(AND(H96>1996,H96<2000),VLOOKUP(I96,Feuil1!$A$11:$G$29,5),IF(AND(H96>1999,H96<2002),VLOOKUP(I96,Feuil1!$A$11:$G$29,4),IF(AND(H96>2001,H96<2004),VLOOKUP(I96,Feuil1!$A$11:$G$29,3),VLOOKUP(I96,Feuil1!$A$11:$G$29,2))))),IF(OR(H96="SEN",H96<1997),VLOOKUP(I96,Feuil1!$G$11:$L$25,6),IF(AND(H96>1996,H96<2000),VLOOKUP(I96,Feuil1!$G$11:$L$25,5),IF(AND(H96>1999,H96<2002),VLOOKUP(I96,Feuil1!$G$11:$L$25,4),IF(AND(H96>2001,H96<2004),VLOOKUP(I96,Feuil1!$G$11:$L$25,3),VLOOKUP(I96,Feuil1!$G$11:$L$25,2))))))) -> FC2 58 | Y96: 163.3136987 | AB96: =T96-HLOOKUP(X96,Feuil1!$C$1:$BL$10,2,FALSE) -> 66 | AC96: =T96-HLOOKUP(X96,Feuil1!$C$1:$BL$10,3,FALSE) -> 56 | AD96: =T96-HLOOKUP(X96,Feuil1!$C$1:$BL$10,4,FALSE) -> 46 | AE96: =T96-HLOOKUP(X96,Feuil1!$C$1:$BL$10,5,FALSE) -> 36 | AF96: =T96-HLOOKUP(X96,Feuil1!$C$1:$BL$10,6,FALSE) -> 26 | AG96: =T96-HLOOKUP(X96,Feuil1!$C$1:$BL$10,7,FALSE) -> 16 | AH96: =T96-HLOOKUP(X96,Feuil1!$C$1:$BL$10,8,FALSE) -> 1 | AI96: =T96-HLOOKUP(X96,Feuil1!$C$1:$BL$10,9,FALSE) -> -14 | AJ96: =T96-HLOOKUP(X96,Feuil1!$C$1:$BL$10,10,FALSE) -> -884 | AQ96: INTB +
A97: F | H97: 2000 | I97: 58 | L97: 52 | O97: 52 | P97: 64 | S97: 64 | T97: 116 | V97: INTB + | W97: 1 | X97: =IF(I97="","",IF(A97="H",IF(OR(H97="SEN",H97<1997),VLOOKUP(I97,Feuil1!$A$11:$G$29,6),IF(AND(H97>1996,H97<2000),VLOOKUP(I97,Feuil1!$A$11:$G$29,5),IF(AND(H97>1999,H97<2002),VLOOKUP(I97,Feuil1!$A$11:$G$29,4),IF(AND(H97>2001,H97<2004),VLOOKUP(I97,Feuil1!$A$11:$G$29,3),VLOOKUP(I97,Feuil1!$A$11:$G$29,2))))),IF(OR(H97="SEN",H97<1997),VLOOKUP(I97,Feuil1!$G$11:$L$25,6),IF(AND(H97>1996,H97<2000),VLOOKUP(I97,Feuil1!$G$11:$L$25,5),IF(AND(H97>1999,H97<2002),VLOOKUP(I97,Feuil1!$G$11:$L$25,4),IF(AND(H97>2001,H97<2004),VLOOKUP(I97,Feuil1!$G$11:$L$25,3),VLOOKUP(I97,Feuil1!$G$11:$L$25,2))))))) -> FC2 58 | Y97: 163.3136987 | AB97: =T97-HLOOKUP(X97,Feuil1!$C$1:$BL$10,2,FALSE) -> 66 | AC97: =T97-HLOOKUP(X97,Feuil1!$C$1:$BL$10,3,FALSE) -> 56 | AD97: =T97-HLOOKUP(X97,Feuil1!$C$1:$BL$10,4,FALSE) -> 46 | AE97: =T97-HLOOKUP(X97,Feuil1!$C$1:$BL$10,5,FALSE) -> 36 | AF97: =T97-HLOOKUP(X97,Feuil1!$C$1:$BL$10,6,FALSE) -> 26 | AG97: =T97-HLOOKUP(X97,Feuil1!$C$1:$BL$10,7,FALSE) -> 16 | AH97: =T97-HLOOKUP(X97,Feuil1!$C$1:$BL$10,8,FALSE) -> 1 | AI97: =T97-HLOOKUP(X97,Feuil1!$C$1:$BL$10,9,FALSE) -> -14 | AJ97: =T97-HLOOKUP(X97,Feuil1!$C$1:$BL$10,10,FALSE) -> -884 | AQ97: INTB +
A98: F | H98: 2000 | I98: 58 | L98: 52 | O98: 52 | P98: 64 | S98: 64 | T98: 116 | V98: INTB + | W98: 1 | X98: =IF(I98="","",IF(A98="H",IF(OR(H98="SEN",H98<1997),VLOOKUP(I98,Feuil1!$A$11:$G$29,6),IF(AND(H98>1996,H98<2000),VLOOKUP(I98,Feuil1!$A$11:$G$29,5),IF(AND(H98>1999,H98<2002),VLOOKUP(I98,Feuil1!$A$11:$G$29,4),IF(AND(H98>2001,H98<2004),VLOOKUP(I98,Feuil1!$A$11:$G$29,3),VLOOKUP(I98,Feuil1!$A$11:$G$29,2))))),IF(OR(H98="SEN",H98<1997),VLOOKUP(I98,Feuil1!$G$11:$L$25,6),IF(AND(H98>1996,H98<2000),VLOOKUP(I98,Feuil1!$G$11:$L$25,5),IF(AND(H98>1999,H98<2002),VLOOKUP(I98,Feuil1!$G$11:$L$25,4),IF(AND(H98>2001,H98<2004),VLOOKUP(I98,Feuil1!$G$11:$L$25,3),VLOOKUP(I98,Feuil1!$G$11:$L$25,2))))))) -> FC2 58 | Y98: 163.3136987 | AB98: =T98-HLOOKUP(X98,Feuil1!$C$1:$BL$10,2,FALSE) -> 66 | AC98: =T98-HLOOKUP(X98,Feuil1!$C$1:$BL$10,3,FALSE) -> 56 | AD98: =T98-HLOOKUP(X98,Feuil1!$C$1:$BL$10,4,FALSE) -> 46 | AE98: =T98-HLOOKUP(X98,Feuil1!$C$1:$BL$10,5,FALSE) -> 36 | AF98: =T98-HLOOKUP(X98,Feuil1!$C$1:$BL$10,6,FALSE) -> 26 | AG98: =T98-HLOOKUP(X98,Feuil1!$C$1:$BL$10,7,FALSE) -> 16 | AH98: =T98-HLOOKUP(X98,Feuil1!$C$1:$BL$10,8,FALSE) -> 1 | AI98: =T98-HLOOKUP(X98,Feuil1!$C$1:$BL$10,9,FALSE) -> -14 | AJ98: =T98-HLOOKUP(X98,Feuil1!$C$1:$BL$10,10,FALSE) -> -884 | AQ98: INTB +
A99: F | H99: 2000 | I99: 58 | L99: 52 | O99: 52 | P99: 64 | S99: 64 | T99: 116 | V99: INTB + | W99: 1 | X99: =IF(I99="","",IF(A99="H",IF(OR(H99="SEN",H99<1997),VLOOKUP(I99,Feuil1!$A$11:$G$29,6),IF(AND(H99>1996,H99<2000),VLOOKUP(I99,Feuil1!$A$11:$G$29,5),IF(AND(H99>1999,H99<2002),VLOOKUP(I99,Feuil1!$A$11:$G$29,4),IF(AND(H99>2001,H99<2004),VLOOKUP(I99,Feuil1!$A$11:$G$29,3),VLOOKUP(I99,Feuil1!$A$11:$G$29,2))))),IF(OR(H99="SEN",H99<1997),VLOOKUP(I99,Feuil1!$G$11:$L$25,6),IF(AND(H99>1996,H99<2000),VLOOKUP(I99,Feuil1!$G$11:$L$25,5),IF(AND(H99>1999,H99<2002),VLOOKUP(I99,Feuil1!$G$11:$L$25,4),IF(AND(H99>2001,H99<2004),VLOOKUP(I99,Feuil1!$G$11:$L$25,3),VLOOKUP(I99,Feuil1!$G$11:$L$25,2))))))) -> FC2 58 | Y99: 163.3136987 | AB99: =T99-HLOOKUP(X99,Feuil1!$C$1:$BL$10,2,FALSE) -> 66 | AC99: =T99-HLOOKUP(X99,Feuil1!$C$1:$BL$10,3,FALSE) -> 56 | AD99: =T99-HLOOKUP(X99,Feuil1!$C$1:$BL$10,4,FALSE) -> 46 | AE99: =T99-HLOOKUP(X99,Feuil1!$C$1:$BL$10,5,FALSE) -> 36 | AF99: =T99-HLOOKUP(X99,Feuil1!$C$1:$BL$10,6,FALSE) -> 26 | AG99: =T99-HLOOKUP(X99,Feuil1!$C$1:$BL$10,7,FALSE) -> 16 | AH99: =T99-HLOOKUP(X99,Feuil1!$C$1:$BL$10,8,FALSE) -> 1 | AI99: =T99-HLOOKUP(X99,Feuil1!$C$1:$BL$10,9,FALSE) -> -14 | AJ99: =T99-HLOOKUP(X99,Feuil1!$C$1:$BL$10,10,FALSE) -> -884 | AQ99: INTB +
A100: F | H100: 2000 | I100: 58 | L100: 52 | O100: 52 | P100: 64 | S100: 64 | T100: 116 | V100: INTB + | W100: 1 | X100: =IF(I100="","",IF(A100="H",IF(OR(H100="SEN",H100<1997),VLOOKUP(I100,Feuil1!$A$11:$G$29,6),IF(AND(H100>1996,H100<2000),VLOOKUP(I100,Feuil1!$A$11:$G$29,5),IF(AND(H100>1999,H100<2002),VLOOKUP(I100,Feuil1!$A$11:$G$29,4),IF(AND(H100>2001,H100<2004),VLOOKUP(I100,Feuil1!$A$11:$G$29,3),VLOOKUP(I100,Feuil1!$A$11:$G$29,2))))),IF(OR(H100="SEN",H100<1997),VLOOKUP(I100,Feuil1!$G$11:$L$25,6),IF(AND(H100>1996,H100<2000),VLOOKUP(I100,Feuil1!$G$11:$L$25,5),IF(AND(H100>1999,H100<2002),VLOOKUP(I100,Feuil1!$G$11:$L$25,4),IF(AND(H100>2001,H100<2004),VLOOKUP(I100,Feuil1!$G$11:$L$25,3),VLOOKUP(I100,Feuil1!$G$11:$L$25,2))))))) -> FC2 58 | Y100: 163.3136987 | AB100: =T100-HLOOKUP(X100,Feuil1!$C$1:$BL$10,2,FALSE) -> 66 | AC100: =T100-HLOOKUP(X100,Feuil1!$C$1:$BL$10,3,FALSE) -> 56 | AD100: =T100-HLOOKUP(X100,Feuil1!$C$1:$BL$10,4,FALSE) -> 46 | AE100: =T100-HLOOKUP(X100,Feuil1!$C$1:$BL$10,5,FALSE) -> 36 | AF100: =T100-HLOOKUP(X100,Feuil1!$C$1:$BL$10,6,FALSE) -> 26 | AG100: =T100-HLOOKUP(X100,Feuil1!$C$1:$BL$10,7,FALSE) -> 16 | AH100: =T100-HLOOKUP(X100,Feuil1!$C$1:$BL$10,8,FALSE) -> 1 | AI100: =T100-HLOOKUP(X100,Feuil1!$C$1:$BL$10,9,FALSE) -> -14 | AJ100: =T100-HLOOKUP(X100,Feuil1!$C$1:$BL$10,10,FALSE) -> -884 | AQ100: INTB +
A101: F | H101: 2000 | I101: 58 | L101: 52 | O101: 52 | P101: 64 | S101: 64 | T101: 116 | V101: INTB + | W101: 1 | X101: =IF(I101="","",IF(A101="H",IF(OR(H101="SEN",H101<1997),VLOOKUP(I101,Feuil1!$A$11:$G$29,6),IF(AND(H101>1996,H101<2000),VLOOKUP(I101,Feuil1!$A$11:$G$29,5),IF(AND(H101>1999,H101<2002),VLOOKUP(I101,Feuil1!$A$11:$G$29,4),IF(AND(H101>2001,H101<2004),VLOOKUP(I101,Feuil1!$A$11:$G$29,3),VLOOKUP(I101,Feuil1!$A$11:$G$29,2))))),IF(OR(H101="SEN",H101<1997),VLOOKUP(I101,Feuil1!$G$11:$L$25,6),IF(AND(H101>1996,H101<2000),VLOOKUP(I101,Feuil1!$G$11:$L$25,5),IF(AND(H101>1999,H101<2002),VLOOKUP(I101,Feuil1!$G$11:$L$25,4),IF(AND(H101>2001,H101<2004),VLOOKUP(I101,Feuil1!$G$11:$L$25,3),VLOOKUP(I101,Feuil1!$G$11:$L$25,2))))))) -> FC2 58 | Y101: 163.3136987 | AB101: =T101-HLOOKUP(X101,Feuil1!$C$1:$BL$10,2,FALSE) -> 66 | AC101: =T101-HLOOKUP(X101,Feuil1!$C$1:$BL$10,3,FALSE) -> 56 | AD101: =T101-HLOOKUP(X101,Feuil1!$C$1:$BL$10,4,FALSE) -> 46 | AE101: =T101-HLOOKUP(X101,Feuil1!$C$1:$BL$10,5,FALSE) -> 36 | AF101: =T101-HLOOKUP(X101,Feuil1!$C$1:$BL$10,6,FALSE) -> 26 | AG101: =T101-HLOOKUP(X101,Feuil1!$C$1:$BL$10,7,FALSE) -> 16 | AH101: =T101-HLOOKUP(X101,Feuil1!$C$1:$BL$10,8,FALSE) -> 1 | AI101: =T101-HLOOKUP(X101,Feuil1!$C$1:$BL$10,9,FALSE) -> -14 | AJ101: =T101-HLOOKUP(X101,Feuil1!$C$1:$BL$10,10,FALSE) -> -884 | AQ101: INTB +
A102: F | H102: 2000 | I102: 58 | L102: 52 | O102: 52 | P102: 64 | S102: 64 | T102: 116 | V102: INTB + | W102: 1 | X102: =IF(I102="","",IF(A102="H",IF(OR(H102="SEN",H102<1997),VLOOKUP(I102,Feuil1!$A$11:$G$29,6),IF(AND(H102>1996,H102<2000),VLOOKUP(I102,Feuil1!$A$11:$G$29,5),IF(AND(H102>1999,H102<2002),VLOOKUP(I102,Feuil1!$A$11:$G$29,4),IF(AND(H102>2001,H102<2004),VLOOKUP(I102,Feuil1!$A$11:$G$29,3),VLOOKUP(I102,Feuil1!$A$11:$G$29,2))))),IF(OR(H102="SEN",H102<1997),VLOOKUP(I102,Feuil1!$G$11:$L$25,6),IF(AND(H102>1996,H102<2000),VLOOKUP(I102,Feuil1!$G$11:$L$25,5),IF(AND(H102>1999,H102<2002),VLOOKUP(I102,Feuil1!$G$11:$L$25,4),IF(AND(H102>2001,H102<2004),VLOOKUP(I102,Feuil1!$G$11:$L$25,3),VLOOKUP(I102,Feuil1!$G$11:$L$25,2))))))) -> FC2 58 | Y102: 163.3136987 | AB102: =T102-HLOOKUP(X102,Feuil1!$C$1:$BL$10,2,FALSE) -> 66 | AC102: =T102-HLOOKUP(X102,Feuil1!$C$1:$BL$10,3,FALSE) -> 56 | AD102: =T102-HLOOKUP(X102,Feuil1!$C$1:$BL$10,4,FALSE) -> 46 | AE102: =T102-HLOOKUP(X102,Feuil1!$C$1:$BL$10,5,FALSE) -> 36 | AF102: =T102-HLOOKUP(X102,Feuil1!$C$1:$BL$10,6,FALSE) -> 26 | AG102: =T102-HLOOKUP(X102,Feuil1!$C$1:$BL$10,7,FALSE) -> 16 | AH102: =T102-HLOOKUP(X102,Feuil1!$C$1:$BL$10,8,FALSE) -> 1 | AI102: =T102-HLOOKUP(X102,Feuil1!$C$1:$BL$10,9,FALSE) -> -14 | AJ102: =T102-HLOOKUP(X102,Feuil1!$C$1:$BL$10,10,FALSE) -> -884 | AQ102: INTB +
A103: F | H103: 2000 | I103: 58 | L103: 52 | O103: 52 | P103: 64 | S103: 64 | T103: 116 | V103: INTB + | W103: 1 | X103: =IF(I103="","",IF(A103="H",IF(OR(H103="SEN",H103<1997),VLOOKUP(I103,Feuil1!$A$11:$G$29,6),IF(AND(H103>1996,H103<2000),VLOOKUP(I103,Feuil1!$A$11:$G$29,5),IF(AND(H103>1999,H103<2002),VLOOKUP(I103,Feuil1!$A$11:$G$29,4),IF(AND(H103>2001,H103<2004),VLOOKUP(I103,Feuil1!$A$11:$G$29,3),VLOOKUP(I103,Feuil1!$A$11:$G$29,2))))),IF(OR(H103="SEN",H103<1997),VLOOKUP(I103,Feuil1!$G$11:$L$25,6),IF(AND(H103>1996,H103<2000),VLOOKUP(I103,Feuil1!$G$11:$L$25,5),IF(AND(H103>1999,H103<2002),VLOOKUP(I103,Feuil1!$G$11:$L$25,4),IF(AND(H103>2001,H103<2004),VLOOKUP(I103,Feuil1!$G$11:$L$25,3),VLOOKUP(I103,Feuil1!$G$11:$L$25,2))))))) -> FC2 58 | Y103: 163.3136987 | AB103: =T103-HLOOKUP(X103,Feuil1!$C$1:$BL$10,2,FALSE) -> 66 | AC103: =T103-HLOOKUP(X103,Feuil1!$C$1:$BL$10,3,FALSE) -> 56 | AD103: =T103-HLOOKUP(X103,Feuil1!$C$1:$BL$10,4,FALSE) -> 46 | AE103: =T103-HLOOKUP(X103,Feuil1!$C$1:$BL$10,5,FALSE) -> 36 | AF103: =T103-HLOOKUP(X103,Feuil1!$C$1:$BL$10,6,FALSE) -> 26 | AG103: =T103-HLOOKUP(X103,Feuil1!$C$1:$BL$10,7,FALSE) -> 16 | AH103: =T103-HLOOKUP(X103,Feuil1!$C$1:$BL$10,8,FALSE) -> 1 | AI103: =T103-HLOOKUP(X103,Feuil1!$C$1:$BL$10,9,FALSE) -> -14 | AJ103: =T103-HLOOKUP(X103,Feuil1!$C$1:$BL$10,10,FALSE) -> -884 | AQ103: INTB +
A104: F | H104: 2000 | I104: 58 | L104: 52 | O104: 52 | P104: 64 | S104: 64 | T104: 116 | V104: INTB + | W104: 1 | X104: =IF(I104="","",IF(A104="H",IF(OR(H104="SEN",H104<1997),VLOOKUP(I104,Feuil1!$A$11:$G$29,6),IF(AND(H104>1996,H104<2000),VLOOKUP(I104,Feuil1!$A$11:$G$29,5),IF(AND(H104>1999,H104<2002),VLOOKUP(I104,Feuil1!$A$11:$G$29,4),IF(AND(H104>2001,H104<2004),VLOOKUP(I104,Feuil1!$A$11:$G$29,3),VLOOKUP(I104,Feuil1!$A$11:$G$29,2))))),IF(OR(H104="SEN",H104<1997),VLOOKUP(I104,Feuil1!$G$11:$L$25,6),IF(AND(H104>1996,H104<2000),VLOOKUP(I104,Feuil1!$G$11:$L$25,5),IF(AND(H104>1999,H104<2002),VLOOKUP(I104,Feuil1!$G$11:$L$25,4),IF(AND(H104>2001,H104<2004),VLOOKUP(I104,Feuil1!$G$11:$L$25,3),VLOOKUP(I104,Feuil1!$G$11:$L$25,2))))))) -> FC2 58 | Y104: 163.3136987 | AB104: =T104-HLOOKUP(X104,Feuil1!$C$1:$BL$10,2,FALSE) -> 66 | AC104: =T104-HLOOKUP(X104,Feuil1!$C$1:$BL$10,3,FALSE) -> 56 | AD104: =T104-HLOOKUP(X104,Feuil1!$C$1:$BL$10,4,FALSE) -> 46 | AE104: =T104-HLOOKUP(X104,Feuil1!$C$1:$BL$10,5,FALSE) -> 36 | AF104: =T104-HLOOKUP(X104,Feuil1!$C$1:$BL$10,6,FALSE) -> 26 | AG104: =T104-HLOOKUP(X104,Feuil1!$C$1:$BL$10,7,FALSE) -> 16 | AH104: =T104-HLOOKUP(X104,Feuil1!$C$1:$BL$10,8,FALSE) -> 1 | AI104: =T104-HLOOKUP(X104,Feuil1!$C$1:$BL$10,9,FALSE) -> -14 | AJ104: =T104-HLOOKUP(X104,Feuil1!$C$1:$BL$10,10,FALSE) -> -884 | AQ104: INTB +
A105: F | H105: 2000 | I105: 58 | L105: 52 | O105: 52 | P105: 64 | S105: 64 | T105: 116 | V105: INTB + | W105: 1 | X105: =IF(I105="","",IF(A105="H",IF(OR(H105="SEN",H105<1997),VLOOKUP(I105,Feuil1!$A$11:$G$29,6),IF(AND(H105>1996,H105<2000),VLOOKUP(I105,Feuil1!$A$11:$G$29,5),IF(AND(H105>1999,H105<2002),VLOOKUP(I105,Feuil1!$A$11:$G$29,4),IF(AND(H105>2001,H105<2004),VLOOKUP(I105,Feuil1!$A$11:$G$29,3),VLOOKUP(I105,Feuil1!$A$11:$G$29,2))))),IF(OR(H105="SEN",H105<1997),VLOOKUP(I105,Feuil1!$G$11:$L$25,6),IF(AND(H105>1996,H105<2000),VLOOKUP(I105,Feuil1!$G$11:$L$25,5),IF(AND(H105>1999,H105<2002),VLOOKUP(I105,Feuil1!$G$11:$L$25,4),IF(AND(H105>2001,H105<2004),VLOOKUP(I105,Feuil1!$G$11:$L$25,3),VLOOKUP(I105,Feuil1!$G$11:$L$25,2))))))) -> FC2 58 | Y105: 163.3136987 | AB105: =T105-HLOOKUP(X105,Feuil1!$C$1:$BL$10,2,FALSE) -> 66 | AC105: =T105-HLOOKUP(X105,Feuil1!$C$1:$BL$10,3,FALSE) -> 56 | AD105: =T105-HLOOKUP(X105,Feuil1!$C$1:$BL$10,4,FALSE) -> 46 | AE105: =T105-HLOOKUP(X105,Feuil1!$C$1:$BL$10,5,FALSE) -> 36 | AF105: =T105-HLOOKUP(X105,Feuil1!$C$1:$BL$10,6,FALSE) -> 26 | AG105: =T105-HLOOKUP(X105,Feuil1!$C$1:$BL$10,7,FALSE) -> 16 | AH105: =T105-HLOOKUP(X105,Feuil1!$C$1:$BL$10,8,FALSE) -> 1 | AI105: =T105-HLOOKUP(X105,Feuil1!$C$1:$BL$10,9,FALSE) -> -14 | AJ105: =T105-HLOOKUP(X105,Feuil1!$C$1:$BL$10,10,FALSE) -> -884 | AQ105: INTB +
A106: F | H106: 2000 | I106: 58 | L106: 52 | O106: 52 | P106: 64 | S106: 64 | T106: 116 | V106: INTB + | W106: 1 | X106: =IF(I106="","",IF(A106="H",IF(OR(H106="SEN",H106<1997),VLOOKUP(I106,Feuil1!$A$11:$G$29,6),IF(AND(H106>1996,H106<2000),VLOOKUP(I106,Feuil1!$A$11:$G$29,5),IF(AND(H106>1999,H106<2002),VLOOKUP(I106,Feuil1!$A$11:$G$29,4),IF(AND(H106>2001,H106<2004),VLOOKUP(I106,Feuil1!$A$11:$G$29,3),VLOOKUP(I106,Feuil1!$A$11:$G$29,2))))),IF(OR(H106="SEN",H106<1997),VLOOKUP(I106,Feuil1!$G$11:$L$25,6),IF(AND(H106>1996,H106<2000),VLOOKUP(I106,Feuil1!$G$11:$L$25,5),IF(AND(H106>1999,H106<2002),VLOOKUP(I106,Feuil1!$G$11:$L$25,4),IF(AND(H106>2001,H106<2004),VLOOKUP(I106,Feuil1!$G$11:$L$25,3),VLOOKUP(I106,Feuil1!$G$11:$L$25,2))))))) -> FC2 58 | Y106: 163.3136987 | AB106: =T106-HLOOKUP(X106,Feuil1!$C$1:$BL$10,2,FALSE) -> 66 | AC106: =T106-HLOOKUP(X106,Feuil1!$C$1:$BL$10,3,FALSE) -> 56 | AD106: =T106-HLOOKUP(X106,Feuil1!$C$1:$BL$10,4,FALSE) -> 46 | AE106: =T106-HLOOKUP(X106,Feuil1!$C$1:$BL$10,5,FALSE) -> 36 | AF106: =T106-HLOOKUP(X106,Feuil1!$C$1:$BL$10,6,FALSE) -> 26 | AG106: =T106-HLOOKUP(X106,Feuil1!$C$1:$BL$10,7,FALSE) -> 16 | AH106: =T106-HLOOKUP(X106,Feuil1!$C$1:$BL$10,8,FALSE) -> 1 | AI106: =T106-HLOOKUP(X106,Feuil1!$C$1:$BL$10,9,FALSE) -> -14 | AJ106: =T106-HLOOKUP(X106,Feuil1!$C$1:$BL$10,10,FALSE) -> -884 | AQ106: INTB +
A107: F | H107: 2000 | I107: 58 | L107: 52 | O107: 52 | P107: 64 | S107: 64 | T107: 116 | V107: INTB + | W107: 1 | X107: =IF(I107="","",IF(A107="H",IF(OR(H107="SEN",H107<1997),VLOOKUP(I107,Feuil1!$A$11:$G$29,6),IF(AND(H107>1996,H107<2000),VLOOKUP(I107,Feuil1!$A$11:$G$29,5),IF(AND(H107>1999,H107<2002),VLOOKUP(I107,Feuil1!$A$11:$G$29,4),IF(AND(H107>2001,H107<2004),VLOOKUP(I107,Feuil1!$A$11:$G$29,3),VLOOKUP(I107,Feuil1!$A$11:$G$29,2))))),IF(OR(H107="SEN",H107<1997),VLOOKUP(I107,Feuil1!$G$11:$L$25,6),IF(AND(H107>1996,H107<2000),VLOOKUP(I107,Feuil1!$G$11:$L$25,5),IF(AND(H107>1999,H107<2002),VLOOKUP(I107,Feuil1!$G$11:$L$25,4),IF(AND(H107>2001,H107<2004),VLOOKUP(I107,Feuil1!$G$11:$L$25,3),VLOOKUP(I107,Feuil1!$G$11:$L$25,2))))))) -> FC2 58 | Y107: 163.3136987 | AB107: =T107-HLOOKUP(X107,Feuil1!$C$1:$BL$10,2,FALSE) -> 66 | AC107: =T107-HLOOKUP(X107,Feuil1!$C$1:$BL$10,3,FALSE) -> 56 | AD107: =T107-HLOOKUP(X107,Feuil1!$C$1:$BL$10,4,FALSE) -> 46 | AE107: =T107-HLOOKUP(X107,Feuil1!$C$1:$BL$10,5,FALSE) -> 36 | AF107: =T107-HLOOKUP(X107,Feuil1!$C$1:$BL$10,6,FALSE) -> 26 | AG107: =T107-HLOOKUP(X107,Feuil1!$C$1:$BL$10,7,FALSE) -> 16 | AH107: =T107-HLOOKUP(X107,Feuil1!$C$1:$BL$10,8,FALSE) -> 1 | AI107: =T107-HLOOKUP(X107,Feuil1!$C$1:$BL$10,9,FALSE) -> -14 | AJ107: =T107-HLOOKUP(X107,Feuil1!$C$1:$BL$10,10,FALSE) -> -884 | AQ107: INTB +
A108: F | H108: 2000 | I108: 58 | L108: 52 | O108: 52 | P108: 64 | S108: 64 | T108: 116 | V108: INTB + | W108: 1 | X108: =IF(I108="","",IF(A108="H",IF(OR(H108="SEN",H108<1997),VLOOKUP(I108,Feuil1!$A$11:$G$29,6),IF(AND(H108>1996,H108<2000),VLOOKUP(I108,Feuil1!$A$11:$G$29,5),IF(AND(H108>1999,H108<2002),VLOOKUP(I108,Feuil1!$A$11:$G$29,4),IF(AND(H108>2001,H108<2004),VLOOKUP(I108,Feuil1!$A$11:$G$29,3),VLOOKUP(I108,Feuil1!$A$11:$G$29,2))))),IF(OR(H108="SEN",H108<1997),VLOOKUP(I108,Feuil1!$G$11:$L$25,6),IF(AND(H108>1996,H108<2000),VLOOKUP(I108,Feuil1!$G$11:$L$25,5),IF(AND(H108>1999,H108<2002),VLOOKUP(I108,Feuil1!$G$11:$L$25,4),IF(AND(H108>2001,H108<2004),VLOOKUP(I108,Feuil1!$G$11:$L$25,3),VLOOKUP(I108,Feuil1!$G$11:$L$25,2))))))) -> FC2 58 | Y108: 163.3136987 | AB108: =T108-HLOOKUP(X108,Feuil1!$C$1:$BL$10,2,FALSE) -> 66 | AC108: =T108-HLOOKUP(X108,Feuil1!$C$1:$BL$10,3,FALSE) -> 56 | AD108: =T108-HLOOKUP(X108,Feuil1!$C$1:$BL$10,4,FALSE) -> 46 | AE108: =T108-HLOOKUP(X108,Feuil1!$C$1:$BL$10,5,FALSE) -> 36 | AF108: =T108-HLOOKUP(X108,Feuil1!$C$1:$BL$10,6,FALSE) -> 26 | AG108: =T108-HLOOKUP(X108,Feuil1!$C$1:$BL$10,7,FALSE) -> 16 | AH108: =T108-HLOOKUP(X108,Feuil1!$C$1:$BL$10,8,FALSE) -> 1 | AI108: =T108-HLOOKUP(X108,Feuil1!$C$1:$BL$10,9,FALSE) -> -14 | AJ108: =T108-HLOOKUP(X108,Feuil1!$C$1:$BL$10,10,FALSE) -> -884 | AQ108: INTB +
A109: F | H109: 2000 | I109: 58 | L109: 52 | O109: 52 | P109: 64 | S109: 64 | T109: 116 | V109: INTB + | W109: 1 | X109: =IF(I109="","",IF(A109="H",IF(OR(H109="SEN",H109<1997),VLOOKUP(I109,Feuil1!$A$11:$G$29,6),IF(AND(H109>1996,H109<2000),VLOOKUP(I109,Feuil1!$A$11:$G$29,5),IF(AND(H109>1999,H109<2002),VLOOKUP(I109,Feuil1!$A$11:$G$29,4),IF(AND(H109>2001,H109<2004),VLOOKUP(I109,Feuil1!$A$11:$G$29,3),VLOOKUP(I109,Feuil1!$A$11:$G$29,2))))),IF(OR(H109="SEN",H109<1997),VLOOKUP(I109,Feuil1!$G$11:$L$25,6),IF(AND(H109>1996,H109<2000),VLOOKUP(I109,Feuil1!$G$11:$L$25,5),IF(AND(H109>1999,H109<2002),VLOOKUP(I109,Feuil1!$G$11:$L$25,4),IF(AND(H109>2001,H109<2004),VLOOKUP(I109,Feuil1!$G$11:$L$25,3),VLOOKUP(I109,Feuil1!$G$11:$L$25,2))))))) -> FC2 58 | Y109: 163.3136987 | AB109: =T109-HLOOKUP(X109,Feuil1!$C$1:$BL$10,2,FALSE) -> 66 | AC109: =T109-HLOOKUP(X109,Feuil1!$C$1:$BL$10,3,FALSE) -> 56 | AD109: =T109-HLOOKUP(X109,Feuil1!$C$1:$BL$10,4,FALSE) -> 46 | AE109: =T109-HLOOKUP(X109,Feuil1!$C$1:$BL$10,5,FALSE) -> 36 | AF109: =T109-HLOOKUP(X109,Feuil1!$C$1:$BL$10,6,FALSE) -> 26 | AG109: =T109-HLOOKUP(X109,Feuil1!$C$1:$BL$10,7,FALSE) -> 16 | AH109: =T109-HLOOKUP(X109,Feuil1!$C$1:$BL$10,8,FALSE) -> 1 | AI109: =T109-HLOOKUP(X109,Feuil1!$C$1:$BL$10,9,FALSE) -> -14 | AJ109: =T109-HLOOKUP(X109,Feuil1!$C$1:$BL$10,10,FALSE) -> -884 | AQ109: INTB +
A110: F | H110: 2000 | I110: 58 | L110: 52 | O110: 52 | P110: 64 | S110: 64 | T110: 116 | V110: INTB + | W110: 1 | X110: =IF(I110="","",IF(A110="H",IF(OR(H110="SEN",H110<1997),VLOOKUP(I110,Feuil1!$A$11:$G$29,6),IF(AND(H110>1996,H110<2000),VLOOKUP(I110,Feuil1!$A$11:$G$29,5),IF(AND(H110>1999,H110<2002),VLOOKUP(I110,Feuil1!$A$11:$G$29,4),IF(AND(H110>2001,H110<2004),VLOOKUP(I110,Feuil1!$A$11:$G$29,3),VLOOKUP(I110,Feuil1!$A$11:$G$29,2))))),IF(OR(H110="SEN",H110<1997),VLOOKUP(I110,Feuil1!$G$11:$L$25,6),IF(AND(H110>1996,H110<2000),VLOOKUP(I110,Feuil1!$G$11:$L$25,5),IF(AND(H110>1999,H110<2002),VLOOKUP(I110,Feuil1!$G$11:$L$25,4),IF(AND(H110>2001,H110<2004),VLOOKUP(I110,Feuil1!$G$11:$L$25,3),VLOOKUP(I110,Feuil1!$G$11:$L$25,2))))))) -> FC2 58 | Y110: 163.3136987 | AB110: =T110-HLOOKUP(X110,Feuil1!$C$1:$BL$10,2,FALSE) -> 66 | AC110: =T110-HLOOKUP(X110,Feuil1!$C$1:$BL$10,3,FALSE) -> 56 | AD110: =T110-HLOOKUP(X110,Feuil1!$C$1:$BL$10,4,FALSE) -> 46 | AE110: =T110-HLOOKUP(X110,Feuil1!$C$1:$BL$10,5,FALSE) -> 36 | AF110: =T110-HLOOKUP(X110,Feuil1!$C$1:$BL$10,6,FALSE) -> 26 | AG110: =T110-HLOOKUP(X110,Feuil1!$C$1:$BL$10,7,FALSE) -> 16 | AH110: =T110-HLOOKUP(X110,Feuil1!$C$1:$BL$10,8,FALSE) -> 1 | AI110: =T110-HLOOKUP(X110,Feuil1!$C$1:$BL$10,9,FALSE) -> -14 | AJ110: =T110-HLOOKUP(X110,Feuil1!$C$1:$BL$10,10,FALSE) -> -884 | AQ110: INTB +
A111: F | H111: 2000 | I111: 58 | L111: 52 | O111: 52 | P111: 64 | S111: 64 | T111: 116 | V111: INTB + | W111: 1 | X111: =IF(I111="","",IF(A111="H",IF(OR(H111="SEN",H111<1997),VLOOKUP(I111,Feuil1!$A$11:$G$29,6),IF(AND(H111>1996,H111<2000),VLOOKUP(I111,Feuil1!$A$11:$G$29,5),IF(AND(H111>1999,H111<2002),VLOOKUP(I111,Feuil1!$A$11:$G$29,4),IF(AND(H111>2001,H111<2004),VLOOKUP(I111,Feuil1!$A$11:$G$29,3),VLOOKUP(I111,Feuil1!$A$11:$G$29,2))))),IF(OR(H111="SEN",H111<1997),VLOOKUP(I111,Feuil1!$G$11:$L$25,6),IF(AND(H111>1996,H111<2000),VLOOKUP(I111,Feuil1!$G$11:$L$25,5),IF(AND(H111>1999,H111<2002),VLOOKUP(I111,Feuil1!$G$11:$L$25,4),IF(AND(H111>2001,H111<2004),VLOOKUP(I111,Feuil1!$G$11:$L$25,3),VLOOKUP(I111,Feuil1!$G$11:$L$25,2))))))) -> FC2 58 | Y111: 163.3136987 | AB111: =T111-HLOOKUP(X111,Feuil1!$C$1:$BL$10,2,FALSE) -> 66 | AC111: =T111-HLOOKUP(X111,Feuil1!$C$1:$BL$10,3,FALSE) -> 56 | AD111: =T111-HLOOKUP(X111,Feuil1!$C$1:$BL$10,4,FALSE) -> 46 | AE111: =T111-HLOOKUP(X111,Feuil1!$C$1:$BL$10,5,FALSE) -> 36 | AF111: =T111-HLOOKUP(X111,Feuil1!$C$1:$BL$10,6,FALSE) -> 26 | AG111: =T111-HLOOKUP(X111,Feuil1!$C$1:$BL$10,7,FALSE) -> 16 | AH111: =T111-HLOOKUP(X111,Feuil1!$C$1:$BL$10,8,FALSE) -> 1 | AI111: =T111-HLOOKUP(X111,Feuil1!$C$1:$BL$10,9,FALSE) -> -14 | AJ111: =T111-HLOOKUP(X111,Feuil1!$C$1:$BL$10,10,FALSE) -> -884 | AQ111: INTB +
A112: F | H112: 2000 | I112: 58 | L112: 52 | O112: 52 | P112: 64 | S112: 64 | T112: 116 | V112: INTB + | W112: 1 | X112: =IF(I112="","",IF(A112="H",IF(OR(H112="SEN",H112<1997),VLOOKUP(I112,Feuil1!$A$11:$G$29,6),IF(AND(H112>1996,H112<2000),VLOOKUP(I112,Feuil1!$A$11:$G$29,5),IF(AND(H112>1999,H112<2002),VLOOKUP(I112,Feuil1!$A$11:$G$29,4),IF(AND(H112>2001,H112<2004),VLOOKUP(I112,Feuil1!$A$11:$G$29,3),VLOOKUP(I112,Feuil1!$A$11:$G$29,2))))),IF(OR(H112="SEN",H112<1997),VLOOKUP(I112,Feuil1!$G$11:$L$25,6),IF(AND(H112>1996,H112<2000),VLOOKUP(I112,Feuil1!$G$11:$L$25,5),IF(AND(H112>1999,H112<2002),VLOOKUP(I112,Feuil1!$G$11:$L$25,4),IF(AND(H112>2001,H112<2004),VLOOKUP(I112,Feuil1!$G$11:$L$25,3),VLOOKUP(I112,Feuil1!$G$11:$L$25,2))))))) -> FC2 58 | Y112: 163.3136987 | AB112: =T112-HLOOKUP(X112,Feuil1!$C$1:$BL$10,2,FALSE) -> 66 | AC112: =T112-HLOOKUP(X112,Feuil1!$C$1:$BL$10,3,FALSE) -> 56 | AD112: =T112-HLOOKUP(X112,Feuil1!$C$1:$BL$10,4,FALSE) -> 46 | AE112: =T112-HLOOKUP(X112,Feuil1!$C$1:$BL$10,5,FALSE) -> 36 | AF112: =T112-HLOOKUP(X112,Feuil1!$C$1:$BL$10,6,FALSE) -> 26 | AG112: =T112-HLOOKUP(X112,Feuil1!$C$1:$BL$10,7,FALSE) -> 16 | AH112: =T112-HLOOKUP(X112,Feuil1!$C$1:$BL$10,8,FALSE) -> 1 | AI112: =T112-HLOOKUP(X112,Feuil1!$C$1:$BL$10,9,FALSE) -> -14 | AJ112: =T112-HLOOKUP(X112,Feuil1!$C$1:$BL$10,10,FALSE) -> -884 | AQ112: INTB +
A113: F | H113: 2000 | I113: 58 | L113: 52 | O113: 52 | P113: 64 | S113: 64 | T113: 116 | V113: INTB + | W113: 1 | X113: =IF(I113="","",IF(A113="H",IF(OR(H113="SEN",H113<1997),VLOOKUP(I113,Feuil1!$A$11:$G$29,6),IF(AND(H113>1996,H113<2000),VLOOKUP(I113,Feuil1!$A$11:$G$29,5),IF(AND(H113>1999,H113<2002),VLOOKUP(I113,Feuil1!$A$11:$G$29,4),IF(AND(H113>2001,H113<2004),VLOOKUP(I113,Feuil1!$A$11:$G$29,3),VLOOKUP(I113,Feuil1!$A$11:$G$29,2))))),IF(OR(H113="SEN",H113<1997),VLOOKUP(I113,Feuil1!$G$11:$L$25,6),IF(AND(H113>1996,H113<2000),VLOOKUP(I113,Feuil1!$G$11:$L$25,5),IF(AND(H113>1999,H113<2002),VLOOKUP(I113,Feuil1!$G$11:$L$25,4),IF(AND(H113>2001,H113<2004),VLOOKUP(I113,Feuil1!$G$11:$L$25,3),VLOOKUP(I113,Feuil1!$G$11:$L$25,2))))))) -> FC2 58 | Y113: 163.3136987 | AB113: =T113-HLOOKUP(X113,Feuil1!$C$1:$BL$10,2,FALSE) -> 66 | AC113: =T113-HLOOKUP(X113,Feuil1!$C$1:$BL$10,3,FALSE) -> 56 | AD113: =T113-HLOOKUP(X113,Feuil1!$C$1:$BL$10,4,FALSE) -> 46 | AE113: =T113-HLOOKUP(X113,Feuil1!$C$1:$BL$10,5,FALSE) -> 36 | AF113: =T113-HLOOKUP(X113,Feuil1!$C$1:$BL$10,6,FALSE) -> 26 | AG113: =T113-HLOOKUP(X113,Feuil1!$C$1:$BL$10,7,FALSE) -> 16 | AH113: =T113-HLOOKUP(X113,Feuil1!$C$1:$BL$10,8,FALSE) -> 1 | AI113: =T113-HLOOKUP(X113,Feuil1!$C$1:$BL$10,9,FALSE) -> -14 | AJ113: =T113-HLOOKUP(X113,Feuil1!$C$1:$BL$10,10,FALSE) -> -884 | AQ113: INTB +
A114: F | H114: 2000 | I114: 58 | L114: 52 | O114: 52 | P114: 64 | S114: 64 | T114: 116 | V114: INTB + | W114: 1 | X114: =IF(I114="","",IF(A114="H",IF(OR(H114="SEN",H114<1997),VLOOKUP(I114,Feuil1!$A$11:$G$29,6),IF(AND(H114>1996,H114<2000),VLOOKUP(I114,Feuil1!$A$11:$G$29,5),IF(AND(H114>1999,H114<2002),VLOOKUP(I114,Feuil1!$A$11:$G$29,4),IF(AND(H114>2001,H114<2004),VLOOKUP(I114,Feuil1!$A$11:$G$29,3),VLOOKUP(I114,Feuil1!$A$11:$G$29,2))))),IF(OR(H114="SEN",H114<1997),VLOOKUP(I114,Feuil1!$G$11:$L$25,6),IF(AND(H114>1996,H114<2000),VLOOKUP(I114,Feuil1!$G$11:$L$25,5),IF(AND(H114>1999,H114<2002),VLOOKUP(I114,Feuil1!$G$11:$L$25,4),IF(AND(H114>2001,H114<2004),VLOOKUP(I114,Feuil1!$G$11:$L$25,3),VLOOKUP(I114,Feuil1!$G$11:$L$25,2))))))) -> FC2 58 | Y114: 163.3136987 | AB114: =T114-HLOOKUP(X114,Feuil1!$C$1:$BL$10,2,FALSE) -> 66 | AC114: =T114-HLOOKUP(X114,Feuil1!$C$1:$BL$10,3,FALSE) -> 56 | AD114: =T114-HLOOKUP(X114,Feuil1!$C$1:$BL$10,4,FALSE) -> 46 | AE114: =T114-HLOOKUP(X114,Feuil1!$C$1:$BL$10,5,FALSE) -> 36 | AF114: =T114-HLOOKUP(X114,Feuil1!$C$1:$BL$10,6,FALSE) -> 26 | AG114: =T114-HLOOKUP(X114,Feuil1!$C$1:$BL$10,7,FALSE) -> 16 | AH114: =T114-HLOOKUP(X114,Feuil1!$C$1:$BL$10,8,FALSE) -> 1 | AI114: =T114-HLOOKUP(X114,Feuil1!$C$1:$BL$10,9,FALSE) -> -14 | AJ114: =T114-HLOOKUP(X114,Feuil1!$C$1:$BL$10,10,FALSE) -> -884 | AQ114: INTB +
A115: F | H115: 2000 | I115: 58 | L115: 52 | O115: 52 | P115: 64 | S115: 64 | T115: 116 | V115: INTB + | W115: 1 | X115: =IF(I115="","",IF(A115="H",IF(OR(H115="SEN",H115<1997),VLOOKUP(I115,Feuil1!$A$11:$G$29,6),IF(AND(H115>1996,H115<2000),VLOOKUP(I115,Feuil1!$A$11:$G$29,5),IF(AND(H115>1999,H115<2002),VLOOKUP(I115,Feuil1!$A$11:$G$29,4),IF(AND(H115>2001,H115<2004),VLOOKUP(I115,Feuil1!$A$11:$G$29,3),VLOOKUP(I115,Feuil1!$A$11:$G$29,2))))),IF(OR(H115="SEN",H115<1997),VLOOKUP(I115,Feuil1!$G$11:$L$25,6),IF(AND(H115>1996,H115<2000),VLOOKUP(I115,Feuil1!$G$11:$L$25,5),IF(AND(H115>1999,H115<2002),VLOOKUP(I115,Feuil1!$G$11:$L$25,4),IF(AND(H115>2001,H115<2004),VLOOKUP(I115,Feuil1!$G$11:$L$25,3),VLOOKUP(I115,Feuil1!$G$11:$L$25,2))))))) -> FC2 58 | Y115: 163.3136987 | AB115: =T115-HLOOKUP(X115,Feuil1!$C$1:$BL$10,2,FALSE) -> 66 | AC115: =T115-HLOOKUP(X115,Feuil1!$C$1:$BL$10,3,FALSE) -> 56 | AD115: =T115-HLOOKUP(X115,Feuil1!$C$1:$BL$10,4,FALSE) -> 46 | AE115: =T115-HLOOKUP(X115,Feuil1!$C$1:$BL$10,5,FALSE) -> 36 | AF115: =T115-HLOOKUP(X115,Feuil1!$C$1:$BL$10,6,FALSE) -> 26 | AG115: =T115-HLOOKUP(X115,Feuil1!$C$1:$BL$10,7,FALSE) -> 16 | AH115: =T115-HLOOKUP(X115,Feuil1!$C$1:$BL$10,8,FALSE) -> 1 | AI115: =T115-HLOOKUP(X115,Feuil1!$C$1:$BL$10,9,FALSE) -> -14 | AJ115: =T115-HLOOKUP(X115,Feuil1!$C$1:$BL$10,10,FALSE) -> -884 | AQ115: INTB +
A116: F | H116: 2000 | I116: 58 | L116: 52 | O116: 52 | P116: 64 | S116: 64 | T116: 116 | V116: INTB + | W116: 1 | X116: =IF(I116="","",IF(A116="H",IF(OR(H116="SEN",H116<1997),VLOOKUP(I116,Feuil1!$A$11:$G$29,6),IF(AND(H116>1996,H116<2000),VLOOKUP(I116,Feuil1!$A$11:$G$29,5),IF(AND(H116>1999,H116<2002),VLOOKUP(I116,Feuil1!$A$11:$G$29,4),IF(AND(H116>2001,H116<2004),VLOOKUP(I116,Feuil1!$A$11:$G$29,3),VLOOKUP(I116,Feuil1!$A$11:$G$29,2))))),IF(OR(H116="SEN",H116<1997),VLOOKUP(I116,Feuil1!$G$11:$L$25,6),IF(AND(H116>1996,H116<2000),VLOOKUP(I116,Feuil1!$G$11:$L$25,5),IF(AND(H116>1999,H116<2002),VLOOKUP(I116,Feuil1!$G$11:$L$25,4),IF(AND(H116>2001,H116<2004),VLOOKUP(I116,Feuil1!$G$11:$L$25,3),VLOOKUP(I116,Feuil1!$G$11:$L$25,2))))))) -> FC2 58 | Y116: 163.3136987 | AB116: =T116-HLOOKUP(X116,Feuil1!$C$1:$BL$10,2,FALSE) -> 66 | AC116: =T116-HLOOKUP(X116,Feuil1!$C$1:$BL$10,3,FALSE) -> 56 | AD116: =T116-HLOOKUP(X116,Feuil1!$C$1:$BL$10,4,FALSE) -> 46 | AE116: =T116-HLOOKUP(X116,Feuil1!$C$1:$BL$10,5,FALSE) -> 36 | AF116: =T116-HLOOKUP(X116,Feuil1!$C$1:$BL$10,6,FALSE) -> 26 | AG116: =T116-HLOOKUP(X116,Feuil1!$C$1:$BL$10,7,FALSE) -> 16 | AH116: =T116-HLOOKUP(X116,Feuil1!$C$1:$BL$10,8,FALSE) -> 1 | AI116: =T116-HLOOKUP(X116,Feuil1!$C$1:$BL$10,9,FALSE) -> -14 | AJ116: =T116-HLOOKUP(X116,Feuil1!$C$1:$BL$10,10,FALSE) -> -884 | AQ116: INTB +
A117: F | H117: 2000 | I117: 58 | L117: 52 | O117: 52 | P117: 64 | S117: 64 | T117: 116 | V117: INTB + | W117: 1 | X117: =IF(I117="","",IF(A117="H",IF(OR(H117="SEN",H117<1997),VLOOKUP(I117,Feuil1!$A$11:$G$29,6),IF(AND(H117>1996,H117<2000),VLOOKUP(I117,Feuil1!$A$11:$G$29,5),IF(AND(H117>1999,H117<2002),VLOOKUP(I117,Feuil1!$A$11:$G$29,4),IF(AND(H117>2001,H117<2004),VLOOKUP(I117,Feuil1!$A$11:$G$29,3),VLOOKUP(I117,Feuil1!$A$11:$G$29,2))))),IF(OR(H117="SEN",H117<1997),VLOOKUP(I117,Feuil1!$G$11:$L$25,6),IF(AND(H117>1996,H117<2000),VLOOKUP(I117,Feuil1!$G$11:$L$25,5),IF(AND(H117>1999,H117<2002),VLOOKUP(I117,Feuil1!$G$11:$L$25,4),IF(AND(H117>2001,H117<2004),VLOOKUP(I117,Feuil1!$G$11:$L$25,3),VLOOKUP(I117,Feuil1!$G$11:$L$25,2))))))) -> FC2 58 | Y117: 163.3136987 | AB117: =T117-HLOOKUP(X117,Feuil1!$C$1:$BL$10,2,FALSE) -> 66 | AC117: =T117-HLOOKUP(X117,Feuil1!$C$1:$BL$10,3,FALSE) -> 56 | AD117: =T117-HLOOKUP(X117,Feuil1!$C$1:$BL$10,4,FALSE) -> 46 | AE117: =T117-HLOOKUP(X117,Feuil1!$C$1:$BL$10,5,FALSE) -> 36 | AF117: =T117-HLOOKUP(X117,Feuil1!$C$1:$BL$10,6,FALSE) -> 26 | AG117: =T117-HLOOKUP(X117,Feuil1!$C$1:$BL$10,7,FALSE) -> 16 | AH117: =T117-HLOOKUP(X117,Feuil1!$C$1:$BL$10,8,FALSE) -> 1 | AI117: =T117-HLOOKUP(X117,Feuil1!$C$1:$BL$10,9,FALSE) -> -14 | AJ117: =T117-HLOOKUP(X117,Feuil1!$C$1:$BL$10,10,FALSE) -> -884 | AQ117: INTB +
A118: F | H118: 2000 | I118: 58 | L118: 52 | O118: 52 | P118: 64 | S118: 64 | T118: 116 | V118: INTB + | W118: 1 | X118: =IF(I118="","",IF(A118="H",IF(OR(H118="SEN",H118<1997),VLOOKUP(I118,Feuil1!$A$11:$G$29,6),IF(AND(H118>1996,H118<2000),VLOOKUP(I118,Feuil1!$A$11:$G$29,5),IF(AND(H118>1999,H118<2002),VLOOKUP(I118,Feuil1!$A$11:$G$29,4),IF(AND(H118>2001,H118<2004),VLOOKUP(I118,Feuil1!$A$11:$G$29,3),VLOOKUP(I118,Feuil1!$A$11:$G$29,2))))),IF(OR(H118="SEN",H118<1997),VLOOKUP(I118,Feuil1!$G$11:$L$25,6),IF(AND(H118>1996,H118<2000),VLOOKUP(I118,Feuil1!$G$11:$L$25,5),IF(AND(H118>1999,H118<2002),VLOOKUP(I118,Feuil1!$G$11:$L$25,4),IF(AND(H118>2001,H118<2004),VLOOKUP(I118,Feuil1!$G$11:$L$25,3),VLOOKUP(I118,Feuil1!$G$11:$L$25,2))))))) -> FC2 58 | Y118: 163.3136987 | AB118: =T118-HLOOKUP(X118,Feuil1!$C$1:$BL$10,2,FALSE) -> 66 | AC118: =T118-HLOOKUP(X118,Feuil1!$C$1:$BL$10,3,FALSE) -> 56 | AD118: =T118-HLOOKUP(X118,Feuil1!$C$1:$BL$10,4,FALSE) -> 46 | AE118: =T118-HLOOKUP(X118,Feuil1!$C$1:$BL$10,5,FALSE) -> 36 | AF118: =T118-HLOOKUP(X118,Feuil1!$C$1:$BL$10,6,FALSE) -> 26 | AG118: =T118-HLOOKUP(X118,Feuil1!$C$1:$BL$10,7,FALSE) -> 16 | AH118: =T118-HLOOKUP(X118,Feuil1!$C$1:$BL$10,8,FALSE) -> 1 | AI118: =T118-HLOOKUP(X118,Feuil1!$C$1:$BL$10,9,FALSE) -> -14 | AJ118: =T118-HLOOKUP(X118,Feuil1!$C$1:$BL$10,10,FALSE) -> -884 | AQ118: INTB +
A119: F | H119: 2000 | I119: 58 | L119: 52 | O119: 52 | P119: 64 | S119: 64 | T119: 116 | V119: INTB + | W119: 1 | X119: =IF(I119="","",IF(A119="H",IF(OR(H119="SEN",H119<1997),VLOOKUP(I119,Feuil1!$A$11:$G$29,6),IF(AND(H119>1996,H119<2000),VLOOKUP(I119,Feuil1!$A$11:$G$29,5),IF(AND(H119>1999,H119<2002),VLOOKUP(I119,Feuil1!$A$11:$G$29,4),IF(AND(H119>2001,H119<2004),VLOOKUP(I119,Feuil1!$A$11:$G$29,3),VLOOKUP(I119,Feuil1!$A$11:$G$29,2))))),IF(OR(H119="SEN",H119<1997),VLOOKUP(I119,Feuil1!$G$11:$L$25,6),IF(AND(H119>1996,H119<2000),VLOOKUP(I119,Feuil1!$G$11:$L$25,5),IF(AND(H119>1999,H119<2002),VLOOKUP(I119,Feuil1!$G$11:$L$25,4),IF(AND(H119>2001,H119<2004),VLOOKUP(I119,Feuil1!$G$11:$L$25,3),VLOOKUP(I119,Feuil1!$G$11:$L$25,2))))))) -> FC2 58 | Y119: 163.3136987 | AB119: =T119-HLOOKUP(X119,Feuil1!$C$1:$BL$10,2,FALSE) -> 66 | AC119: =T119-HLOOKUP(X119,Feuil1!$C$1:$BL$10,3,FALSE) -> 56 | AD119: =T119-HLOOKUP(X119,Feuil1!$C$1:$BL$10,4,FALSE) -> 46 | AE119: =T119-HLOOKUP(X119,Feuil1!$C$1:$BL$10,5,FALSE) -> 36 | AF119: =T119-HLOOKUP(X119,Feuil1!$C$1:$BL$10,6,FALSE) -> 26 | AG119: =T119-HLOOKUP(X119,Feuil1!$C$1:$BL$10,7,FALSE) -> 16 | AH119: =T119-HLOOKUP(X119,Feuil1!$C$1:$BL$10,8,FALSE) -> 1 | AI119: =T119-HLOOKUP(X119,Feuil1!$C$1:$BL$10,9,FALSE) -> -14 | AJ119: =T119-HLOOKUP(X119,Feuil1!$C$1:$BL$10,10,FALSE) -> -884 | AQ119: INTB +
A120: F | H120: 2000 | I120: 58 | L120: 52 | O120: 52 | P120: 64 | S120: 64 | T120: 116 | V120: INTB + | W120: 1 | X120: =IF(I120="","",IF(A120="H",IF(OR(H120="SEN",H120<1997),VLOOKUP(I120,Feuil1!$A$11:$G$29,6),IF(AND(H120>1996,H120<2000),VLOOKUP(I120,Feuil1!$A$11:$G$29,5),IF(AND(H120>1999,H120<2002),VLOOKUP(I120,Feuil1!$A$11:$G$29,4),IF(AND(H120>2001,H120<2004),VLOOKUP(I120,Feuil1!$A$11:$G$29,3),VLOOKUP(I120,Feuil1!$A$11:$G$29,2))))),IF(OR(H120="SEN",H120<1997),VLOOKUP(I120,Feuil1!$G$11:$L$25,6),IF(AND(H120>1996,H120<2000),VLOOKUP(I120,Feuil1!$G$11:$L$25,5),IF(AND(H120>1999,H120<2002),VLOOKUP(I120,Feuil1!$G$11:$L$25,4),IF(AND(H120>2001,H120<2004),VLOOKUP(I120,Feuil1!$G$11:$L$25,3),VLOOKUP(I120,Feuil1!$G$11:$L$25,2))))))) -> FC2 58 | Y120: 163.3136987 | AB120: =T120-HLOOKUP(X120,Feuil1!$C$1:$BL$10,2,FALSE) -> 66 | AC120: =T120-HLOOKUP(X120,Feuil1!$C$1:$BL$10,3,FALSE) -> 56 | AD120: =T120-HLOOKUP(X120,Feuil1!$C$1:$BL$10,4,FALSE) -> 46 | AE120: =T120-HLOOKUP(X120,Feuil1!$C$1:$BL$10,5,FALSE) -> 36 | AF120: =T120-HLOOKUP(X120,Feuil1!$C$1:$BL$10,6,FALSE) -> 26 | AG120: =T120-HLOOKUP(X120,Feuil1!$C$1:$BL$10,7,FALSE) -> 16 | AH120: =T120-HLOOKUP(X120,Feuil1!$C$1:$BL$10,8,FALSE) -> 1 | AI120: =T120-HLOOKUP(X120,Feuil1!$C$1:$BL$10,9,FALSE) -> -14 | AJ120: =T120-HLOOKUP(X120,Feuil1!$C$1:$BL$10,10,FALSE) -> -884 | AQ120: INTB +
A121: F | H121: 2000 | I121: 58 | L121: 52 | O121: 52 | P121: 64 | S121: 64 | T121: 116 | V121: INTB + | W121: 1 | X121: =IF(I121="","",IF(A121="H",IF(OR(H121="SEN",H121<1997),VLOOKUP(I121,Feuil1!$A$11:$G$29,6),IF(AND(H121>1996,H121<2000),VLOOKUP(I121,Feuil1!$A$11:$G$29,5),IF(AND(H121>1999,H121<2002),VLOOKUP(I121,Feuil1!$A$11:$G$29,4),IF(AND(H121>2001,H121<2004),VLOOKUP(I121,Feuil1!$A$11:$G$29,3),VLOOKUP(I121,Feuil1!$A$11:$G$29,2))))),IF(OR(H121="SEN",H121<1997),VLOOKUP(I121,Feuil1!$G$11:$L$25,6),IF(AND(H121>1996,H121<2000),VLOOKUP(I121,Feuil1!$G$11:$L$25,5),IF(AND(H121>1999,H121<2002),VLOOKUP(I121,Feuil1!$G$11:$L$25,4),IF(AND(H121>2001,H121<2004),VLOOKUP(I121,Feuil1!$G$11:$L$25,3),VLOOKUP(I121,Feuil1!$G$11:$L$25,2))))))) -> FC2 58 | Y121: 163.3136987 | AB121: =T121-HLOOKUP(X121,Feuil1!$C$1:$BL$10,2,FALSE) -> 66 | AC121: =T121-HLOOKUP(X121,Feuil1!$C$1:$BL$10,3,FALSE) -> 56 | AD121: =T121-HLOOKUP(X121,Feuil1!$C$1:$BL$10,4,FALSE) -> 46 | AE121: =T121-HLOOKUP(X121,Feuil1!$C$1:$BL$10,5,FALSE) -> 36 | AF121: =T121-HLOOKUP(X121,Feuil1!$C$1:$BL$10,6,FALSE) -> 26 | AG121: =T121-HLOOKUP(X121,Feuil1!$C$1:$BL$10,7,FALSE) -> 16 | AH121: =T121-HLOOKUP(X121,Feuil1!$C$1:$BL$10,8,FALSE) -> 1 | AI121: =T121-HLOOKUP(X121,Feuil1!$C$1:$BL$10,9,FALSE) -> -14 | AJ121: =T121-HLOOKUP(X121,Feuil1!$C$1:$BL$10,10,FALSE) -> -884 | AQ121: INTB +
A122: F | H122: 2000 | I122: 58 | L122: 52 | O122: 52 | P122: 64 | S122: 64 | T122: 116 | V122: INTB + | W122: 1 | X122: =IF(I122="","",IF(A122="H",IF(OR(H122="SEN",H122<1997),VLOOKUP(I122,Feuil1!$A$11:$G$29,6),IF(AND(H122>1996,H122<2000),VLOOKUP(I122,Feuil1!$A$11:$G$29,5),IF(AND(H122>1999,H122<2002),VLOOKUP(I122,Feuil1!$A$11:$G$29,4),IF(AND(H122>2001,H122<2004),VLOOKUP(I122,Feuil1!$A$11:$G$29,3),VLOOKUP(I122,Feuil1!$A$11:$G$29,2))))),IF(OR(H122="SEN",H122<1997),VLOOKUP(I122,Feuil1!$G$11:$L$25,6),IF(AND(H122>1996,H122<2000),VLOOKUP(I122,Feuil1!$G$11:$L$25,5),IF(AND(H122>1999,H122<2002),VLOOKUP(I122,Feuil1!$G$11:$L$25,4),IF(AND(H122>2001,H122<2004),VLOOKUP(I122,Feuil1!$G$11:$L$25,3),VLOOKUP(I122,Feuil1!$G$11:$L$25,2))))))) -> FC2 58 | Y122: 163.3136987 | AB122: =T122-HLOOKUP(X122,Feuil1!$C$1:$BL$10,2,FALSE) -> 66 | AC122: =T122-HLOOKUP(X122,Feuil1!$C$1:$BL$10,3,FALSE) -> 56 | AD122: =T122-HLOOKUP(X122,Feuil1!$C$1:$BL$10,4,FALSE) -> 46 | AE122: =T122-HLOOKUP(X122,Feuil1!$C$1:$BL$10,5,FALSE) -> 36 | AF122: =T122-HLOOKUP(X122,Feuil1!$C$1:$BL$10,6,FALSE) -> 26 | AG122: =T122-HLOOKUP(X122,Feuil1!$C$1:$BL$10,7,FALSE) -> 16 | AH122: =T122-HLOOKUP(X122,Feuil1!$C$1:$BL$10,8,FALSE) -> 1 | AI122: =T122-HLOOKUP(X122,Feuil1!$C$1:$BL$10,9,FALSE) -> -14 | AJ122: =T122-HLOOKUP(X122,Feuil1!$C$1:$BL$10,10,FALSE) -> -884 | AQ122: INTB +
A123: F | H123: 2000 | I123: 58 | L123: 52 | O123: 52 | P123: 64 | S123: 64 | T123: 116 | V123: INTB + | W123: 1 | X123: =IF(I123="","",IF(A123="H",IF(OR(H123="SEN",H123<1997),VLOOKUP(I123,Feuil1!$A$11:$G$29,6),IF(AND(H123>1996,H123<2000),VLOOKUP(I123,Feuil1!$A$11:$G$29,5),IF(AND(H123>1999,H123<2002),VLOOKUP(I123,Feuil1!$A$11:$G$29,4),IF(AND(H123>2001,H123<2004),VLOOKUP(I123,Feuil1!$A$11:$G$29,3),VLOOKUP(I123,Feuil1!$A$11:$G$29,2))))),IF(OR(H123="SEN",H123<1997),VLOOKUP(I123,Feuil1!$G$11:$L$25,6),IF(AND(H123>1996,H123<2000),VLOOKUP(I123,Feuil1!$G$11:$L$25,5),IF(AND(H123>1999,H123<2002),VLOOKUP(I123,Feuil1!$G$11:$L$25,4),IF(AND(H123>2001,H123<2004),VLOOKUP(I123,Feuil1!$G$11:$L$25,3),VLOOKUP(I123,Feuil1!$G$11:$L$25,2))))))) -> FC2 58 | Y123: 163.3136987 | AB123: =T123-HLOOKUP(X123,Feuil1!$C$1:$BL$10,2,FALSE) -> 66 | AC123: =T123-HLOOKUP(X123,Feuil1!$C$1:$BL$10,3,FALSE) -> 56 | AD123: =T123-HLOOKUP(X123,Feuil1!$C$1:$BL$10,4,FALSE) -> 46 | AE123: =T123-HLOOKUP(X123,Feuil1!$C$1:$BL$10,5,FALSE) -> 36 | AF123: =T123-HLOOKUP(X123,Feuil1!$C$1:$BL$10,6,FALSE) -> 26 | AG123: =T123-HLOOKUP(X123,Feuil1!$C$1:$BL$10,7,FALSE) -> 16 | AH123: =T123-HLOOKUP(X123,Feuil1!$C$1:$BL$10,8,FALSE) -> 1 | AI123: =T123-HLOOKUP(X123,Feuil1!$C$1:$BL$10,9,FALSE) -> -14 | AJ123: =T123-HLOOKUP(X123,Feuil1!$C$1:$BL$10,10,FALSE) -> -884 | AQ123: INTB +
A124: F | H124: 2000 | I124: 58 | L124: 52 | O124: 52 | P124: 64 | S124: 64 | T124: 116 | V124: INTB + | W124: 1 | X124: =IF(I124="","",IF(A124="H",IF(OR(H124="SEN",H124<1997),VLOOKUP(I124,Feuil1!$A$11:$G$29,6),IF(AND(H124>1996,H124<2000),VLOOKUP(I124,Feuil1!$A$11:$G$29,5),IF(AND(H124>1999,H124<2002),VLOOKUP(I124,Feuil1!$A$11:$G$29,4),IF(AND(H124>2001,H124<2004),VLOOKUP(I124,Feuil1!$A$11:$G$29,3),VLOOKUP(I124,Feuil1!$A$11:$G$29,2))))),IF(OR(H124="SEN",H124<1997),VLOOKUP(I124,Feuil1!$G$11:$L$25,6),IF(AND(H124>1996,H124<2000),VLOOKUP(I124,Feuil1!$G$11:$L$25,5),IF(AND(H124>1999,H124<2002),VLOOKUP(I124,Feuil1!$G$11:$L$25,4),IF(AND(H124>2001,H124<2004),VLOOKUP(I124,Feuil1!$G$11:$L$25,3),VLOOKUP(I124,Feuil1!$G$11:$L$25,2))))))) -> FC2 58 | Y124: 163.3136987 | AB124: =T124-HLOOKUP(X124,Feuil1!$C$1:$BL$10,2,FALSE) -> 66 | AC124: =T124-HLOOKUP(X124,Feuil1!$C$1:$BL$10,3,FALSE) -> 56 | AD124: =T124-HLOOKUP(X124,Feuil1!$C$1:$BL$10,4,FALSE) -> 46 | AE124: =T124-HLOOKUP(X124,Feuil1!$C$1:$BL$10,5,FALSE) -> 36 | AF124: =T124-HLOOKUP(X124,Feuil1!$C$1:$BL$10,6,FALSE) -> 26 | AG124: =T124-HLOOKUP(X124,Feuil1!$C$1:$BL$10,7,FALSE) -> 16 | AH124: =T124-HLOOKUP(X124,Feuil1!$C$1:$BL$10,8,FALSE) -> 1 | AI124: =T124-HLOOKUP(X124,Feuil1!$C$1:$BL$10,9,FALSE) -> -14 | AJ124: =T124-HLOOKUP(X124,Feuil1!$C$1:$BL$10,10,FALSE) -> -884 | AQ124: INTB +
A125: F | H125: 2000 | I125: 58 | L125: 52 | O125: 52 | P125: 64 | S125: 64 | T125: 116 | V125: INTB + | W125: 1 | X125: =IF(I125="","",IF(A125="H",IF(OR(H125="SEN",H125<1997),VLOOKUP(I125,Feuil1!$A$11:$G$29,6),IF(AND(H125>1996,H125<2000),VLOOKUP(I125,Feuil1!$A$11:$G$29,5),IF(AND(H125>1999,H125<2002),VLOOKUP(I125,Feuil1!$A$11:$G$29,4),IF(AND(H125>2001,H125<2004),VLOOKUP(I125,Feuil1!$A$11:$G$29,3),VLOOKUP(I125,Feuil1!$A$11:$G$29,2))))),IF(OR(H125="SEN",H125<1997),VLOOKUP(I125,Feuil1!$G$11:$L$25,6),IF(AND(H125>1996,H125<2000),VLOOKUP(I125,Feuil1!$G$11:$L$25,5),IF(AND(H125>1999,H125<2002),VLOOKUP(I125,Feuil1!$G$11:$L$25,4),IF(AND(H125>2001,H125<2004),VLOOKUP(I125,Feuil1!$G$11:$L$25,3),VLOOKUP(I125,Feuil1!$G$11:$L$25,2))))))) -> FC2 58 | Y125: 163.3136987 | AB125: =T125-HLOOKUP(X125,Feuil1!$C$1:$BL$10,2,FALSE) -> 66 | AC125: =T125-HLOOKUP(X125,Feuil1!$C$1:$BL$10,3,FALSE) -> 56 | AD125: =T125-HLOOKUP(X125,Feuil1!$C$1:$BL$10,4,FALSE) -> 46 | AE125: =T125-HLOOKUP(X125,Feuil1!$C$1:$BL$10,5,FALSE) -> 36 | AF125: =T125-HLOOKUP(X125,Feuil1!$C$1:$BL$10,6,FALSE) -> 26 | AG125: =T125-HLOOKUP(X125,Feuil1!$C$1:$BL$10,7,FALSE) -> 16 | AH125: =T125-HLOOKUP(X125,Feuil1!$C$1:$BL$10,8,FALSE) -> 1 | AI125: =T125-HLOOKUP(X125,Feuil1!$C$1:$BL$10,9,FALSE) -> -14 | AJ125: =T125-HLOOKUP(X125,Feuil1!$C$1:$BL$10,10,FALSE) -> -884 | AQ125: INTB +
A126: F | H126: 2000 | I126: 58 | L126: 52 | O126: 52 | P126: 64 | S126: 64 | T126: 116 | V126: INTB + | W126: 1 | X126: =IF(I126="","",IF(A126="H",IF(OR(H126="SEN",H126<1997),VLOOKUP(I126,Feuil1!$A$11:$G$29,6),IF(AND(H126>1996,H126<2000),VLOOKUP(I126,Feuil1!$A$11:$G$29,5),IF(AND(H126>1999,H126<2002),VLOOKUP(I126,Feuil1!$A$11:$G$29,4),IF(AND(H126>2001,H126<2004),VLOOKUP(I126,Feuil1!$A$11:$G$29,3),VLOOKUP(I126,Feuil1!$A$11:$G$29,2))))),IF(OR(H126="SEN",H126<1997),VLOOKUP(I126,Feuil1!$G$11:$L$25,6),IF(AND(H126>1996,H126<2000),VLOOKUP(I126,Feuil1!$G$11:$L$25,5),IF(AND(H126>1999,H126<2002),VLOOKUP(I126,Feuil1!$G$11:$L$25,4),IF(AND(H126>2001,H126<2004),VLOOKUP(I126,Feuil1!$G$11:$L$25,3),VLOOKUP(I126,Feuil1!$G$11:$L$25,2))))))) -> FC2 58 | Y126: 163.3136987 | AB126: =T126-HLOOKUP(X126,Feuil1!$C$1:$BL$10,2,FALSE) -> 66 | AC126: =T126-HLOOKUP(X126,Feuil1!$C$1:$BL$10,3,FALSE) -> 56 | AD126: =T126-HLOOKUP(X126,Feuil1!$C$1:$BL$10,4,FALSE) -> 46 | AE126: =T126-HLOOKUP(X126,Feuil1!$C$1:$BL$10,5,FALSE) -> 36 | AF126: =T126-HLOOKUP(X126,Feuil1!$C$1:$BL$10,6,FALSE) -> 26 | AG126: =T126-HLOOKUP(X126,Feuil1!$C$1:$BL$10,7,FALSE) -> 16 | AH126: =T126-HLOOKUP(X126,Feuil1!$C$1:$BL$10,8,FALSE) -> 1 | AI126: =T126-HLOOKUP(X126,Feuil1!$C$1:$BL$10,9,FALSE) -> -14 | AJ126: =T126-HLOOKUP(X126,Feuil1!$C$1:$BL$10,10,FALSE) -> -884 | AQ126: INTB +
A127: F | H127: 2000 | I127: 58 | L127: 52 | O127: 52 | P127: 64 | S127: 64 | T127: 116 | V127: INTB + | W127: 1 | X127: =IF(I127="","",IF(A127="H",IF(OR(H127="SEN",H127<1997),VLOOKUP(I127,Feuil1!$A$11:$G$29,6),IF(AND(H127>1996,H127<2000),VLOOKUP(I127,Feuil1!$A$11:$G$29,5),IF(AND(H127>1999,H127<2002),VLOOKUP(I127,Feuil1!$A$11:$G$29,4),IF(AND(H127>2001,H127<2004),VLOOKUP(I127,Feuil1!$A$11:$G$29,3),VLOOKUP(I127,Feuil1!$A$11:$G$29,2))))),IF(OR(H127="SEN",H127<1997),VLOOKUP(I127,Feuil1!$G$11:$L$25,6),IF(AND(H127>1996,H127<2000),VLOOKUP(I127,Feuil1!$G$11:$L$25,5),IF(AND(H127>1999,H127<2002),VLOOKUP(I127,Feuil1!$G$11:$L$25,4),IF(AND(H127>2001,H127<2004),VLOOKUP(I127,Feuil1!$G$11:$L$25,3),VLOOKUP(I127,Feuil1!$G$11:$L$25,2))))))) -> FC2 58 | Y127: 163.3136987 | AB127: =T127-HLOOKUP(X127,Feuil1!$C$1:$BL$10,2,FALSE) -> 66 | AC127: =T127-HLOOKUP(X127,Feuil1!$C$1:$BL$10,3,FALSE) -> 56 | AD127: =T127-HLOOKUP(X127,Feuil1!$C$1:$BL$10,4,FALSE) -> 46 | AE127: =T127-HLOOKUP(X127,Feuil1!$C$1:$BL$10,5,FALSE) -> 36 | AF127: =T127-HLOOKUP(X127,Feuil1!$C$1:$BL$10,6,FALSE) -> 26 | AG127: =T127-HLOOKUP(X127,Feuil1!$C$1:$BL$10,7,FALSE) -> 16 | AH127: =T127-HLOOKUP(X127,Feuil1!$C$1:$BL$10,8,FALSE) -> 1 | AI127: =T127-HLOOKUP(X127,Feuil1!$C$1:$BL$10,9,FALSE) -> -14 | AJ127: =T127-HLOOKUP(X127,Feuil1!$C$1:$BL$10,10,FALSE) -> -884 | AQ127: INTB +
A128: F | H128: 2000 | I128: 58 | L128: 52 | O128: 52 | P128: 64 | S128: 64 | T128: 116 | V128: INTB + | W128: 1 | X128: =IF(I128="","",IF(A128="H",IF(OR(H128="SEN",H128<1997),VLOOKUP(I128,Feuil1!$A$11:$G$29,6),IF(AND(H128>1996,H128<2000),VLOOKUP(I128,Feuil1!$A$11:$G$29,5),IF(AND(H128>1999,H128<2002),VLOOKUP(I128,Feuil1!$A$11:$G$29,4),IF(AND(H128>2001,H128<2004),VLOOKUP(I128,Feuil1!$A$11:$G$29,3),VLOOKUP(I128,Feuil1!$A$11:$G$29,2))))),IF(OR(H128="SEN",H128<1997),VLOOKUP(I128,Feuil1!$G$11:$L$25,6),IF(AND(H128>1996,H128<2000),VLOOKUP(I128,Feuil1!$G$11:$L$25,5),IF(AND(H128>1999,H128<2002),VLOOKUP(I128,Feuil1!$G$11:$L$25,4),IF(AND(H128>2001,H128<2004),VLOOKUP(I128,Feuil1!$G$11:$L$25,3),VLOOKUP(I128,Feuil1!$G$11:$L$25,2))))))) -> FC2 58 | Y128: 163.3136987 | AB128: =T128-HLOOKUP(X128,Feuil1!$C$1:$BL$10,2,FALSE) -> 66 | AC128: =T128-HLOOKUP(X128,Feuil1!$C$1:$BL$10,3,FALSE) -> 56 | AD128: =T128-HLOOKUP(X128,Feuil1!$C$1:$BL$10,4,FALSE) -> 46 | AE128: =T128-HLOOKUP(X128,Feuil1!$C$1:$BL$10,5,FALSE) -> 36 | AF128: =T128-HLOOKUP(X128,Feuil1!$C$1:$BL$10,6,FALSE) -> 26 | AG128: =T128-HLOOKUP(X128,Feuil1!$C$1:$BL$10,7,FALSE) -> 16 | AH128: =T128-HLOOKUP(X128,Feuil1!$C$1:$BL$10,8,FALSE) -> 1 | AI128: =T128-HLOOKUP(X128,Feuil1!$C$1:$BL$10,9,FALSE) -> -14 | AJ128: =T128-HLOOKUP(X128,Feuil1!$C$1:$BL$10,10,FALSE) -> -884 | AQ128: INTB +
A129: F | H129: 2000 | I129: 58 | L129: 52 | O129: 52 | P129: 64 | S129: 64 | T129: 116 | V129: INTB + | W129: 1 | X129: =IF(I129="","",IF(A129="H",IF(OR(H129="SEN",H129<1997),VLOOKUP(I129,Feuil1!$A$11:$G$29,6),IF(AND(H129>1996,H129<2000),VLOOKUP(I129,Feuil1!$A$11:$G$29,5),IF(AND(H129>1999,H129<2002),VLOOKUP(I129,Feuil1!$A$11:$G$29,4),IF(AND(H129>2001,H129<2004),VLOOKUP(I129,Feuil1!$A$11:$G$29,3),VLOOKUP(I129,Feuil1!$A$11:$G$29,2))))),IF(OR(H129="SEN",H129<1997),VLOOKUP(I129,Feuil1!$G$11:$L$25,6),IF(AND(H129>1996,H129<2000),VLOOKUP(I129,Feuil1!$G$11:$L$25,5),IF(AND(H129>1999,H129<2002),VLOOKUP(I129,Feuil1!$G$11:$L$25,4),IF(AND(H129>2001,H129<2004),VLOOKUP(I129,Feuil1!$G$11:$L$25,3),VLOOKUP(I129,Feuil1!$G$11:$L$25,2))))))) -> FC2 58 | Y129: 163.3136987 | AB129: =T129-HLOOKUP(X129,Feuil1!$C$1:$BL$10,2,FALSE) -> 66 | AC129: =T129-HLOOKUP(X129,Feuil1!$C$1:$BL$10,3,FALSE) -> 56 | AD129: =T129-HLOOKUP(X129,Feuil1!$C$1:$BL$10,4,FALSE) -> 46 | AE129: =T129-HLOOKUP(X129,Feuil1!$C$1:$BL$10,5,FALSE) -> 36 | AF129: =T129-HLOOKUP(X129,Feuil1!$C$1:$BL$10,6,FALSE) -> 26 | AG129: =T129-HLOOKUP(X129,Feuil1!$C$1:$BL$10,7,FALSE) -> 16 | AH129: =T129-HLOOKUP(X129,Feuil1!$C$1:$BL$10,8,FALSE) -> 1 | AI129: =T129-HLOOKUP(X129,Feuil1!$C$1:$BL$10,9,FALSE) -> -14 | AJ129: =T129-HLOOKUP(X129,Feuil1!$C$1:$BL$10,10,FALSE) -> -884 | AQ129: INTB +
A130: F | H130: 2000 | I130: 58 | L130: 52 | O130: 52 | P130: 64 | S130: 64 | T130: 116 | V130: INTB + | W130: 1 | X130: =IF(I130="","",IF(A130="H",IF(OR(H130="SEN",H130<1997),VLOOKUP(I130,Feuil1!$A$11:$G$29,6),IF(AND(H130>1996,H130<2000),VLOOKUP(I130,Feuil1!$A$11:$G$29,5),IF(AND(H130>1999,H130<2002),VLOOKUP(I130,Feuil1!$A$11:$G$29,4),IF(AND(H130>2001,H130<2004),VLOOKUP(I130,Feuil1!$A$11:$G$29,3),VLOOKUP(I130,Feuil1!$A$11:$G$29,2))))),IF(OR(H130="SEN",H130<1997),VLOOKUP(I130,Feuil1!$G$11:$L$25,6),IF(AND(H130>1996,H130<2000),VLOOKUP(I130,Feuil1!$G$11:$L$25,5),IF(AND(H130>1999,H130<2002),VLOOKUP(I130,Feuil1!$G$11:$L$25,4),IF(AND(H130>2001,H130<2004),VLOOKUP(I130,Feuil1!$G$11:$L$25,3),VLOOKUP(I130,Feuil1!$G$11:$L$25,2))))))) -> FC2 58 | Y130: 163.3136987 | AB130: =T130-HLOOKUP(X130,Feuil1!$C$1:$BL$10,2,FALSE) -> 66 | AC130: =T130-HLOOKUP(X130,Feuil1!$C$1:$BL$10,3,FALSE) -> 56 | AD130: =T130-HLOOKUP(X130,Feuil1!$C$1:$BL$10,4,FALSE) -> 46 | AE130: =T130-HLOOKUP(X130,Feuil1!$C$1:$BL$10,5,FALSE) -> 36 | AF130: =T130-HLOOKUP(X130,Feuil1!$C$1:$BL$10,6,FALSE) -> 26 | AG130: =T130-HLOOKUP(X130,Feuil1!$C$1:$BL$10,7,FALSE) -> 16 | AH130: =T130-HLOOKUP(X130,Feuil1!$C$1:$BL$10,8,FALSE) -> 1 | AI130: =T130-HLOOKUP(X130,Feuil1!$C$1:$BL$10,9,FALSE) -> -14 | AJ130: =T130-HLOOKUP(X130,Feuil1!$C$1:$BL$10,10,FALSE) -> -884 | AQ130: INTB +
A131: F | H131: 2000 | I131: 58 | L131: 52 | O131: 52 | P131: 64 | S131: 64 | T131: 116 | V131: INTB + | W131: 1 | X131: =IF(I131="","",IF(A131="H",IF(OR(H131="SEN",H131<1997),VLOOKUP(I131,Feuil1!$A$11:$G$29,6),IF(AND(H131>1996,H131<2000),VLOOKUP(I131,Feuil1!$A$11:$G$29,5),IF(AND(H131>1999,H131<2002),VLOOKUP(I131,Feuil1!$A$11:$G$29,4),IF(AND(H131>2001,H131<2004),VLOOKUP(I131,Feuil1!$A$11:$G$29,3),VLOOKUP(I131,Feuil1!$A$11:$G$29,2))))),IF(OR(H131="SEN",H131<1997),VLOOKUP(I131,Feuil1!$G$11:$L$25,6),IF(AND(H131>1996,H131<2000),VLOOKUP(I131,Feuil1!$G$11:$L$25,5),IF(AND(H131>1999,H131<2002),VLOOKUP(I131,Feuil1!$G$11:$L$25,4),IF(AND(H131>2001,H131<2004),VLOOKUP(I131,Feuil1!$G$11:$L$25,3),VLOOKUP(I131,Feuil1!$G$11:$L$25,2))))))) -> FC2 58 | Y131: 163.3136987 | AB131: =T131-HLOOKUP(X131,Feuil1!$C$1:$BL$10,2,FALSE) -> 66 | AC131: =T131-HLOOKUP(X131,Feuil1!$C$1:$BL$10,3,FALSE) -> 56 | AD131: =T131-HLOOKUP(X131,Feuil1!$C$1:$BL$10,4,FALSE) -> 46 | AE131: =T131-HLOOKUP(X131,Feuil1!$C$1:$BL$10,5,FALSE) -> 36 | AF131: =T131-HLOOKUP(X131,Feuil1!$C$1:$BL$10,6,FALSE) -> 26 | AG131: =T131-HLOOKUP(X131,Feuil1!$C$1:$BL$10,7,FALSE) -> 16 | AH131: =T131-HLOOKUP(X131,Feuil1!$C$1:$BL$10,8,FALSE) -> 1 | AI131: =T131-HLOOKUP(X131,Feuil1!$C$1:$BL$10,9,FALSE) -> -14 | AJ131: =T131-HLOOKUP(X131,Feuil1!$C$1:$BL$10,10,FALSE) -> -884 | AQ131: INTB +
A132: F | H132: 2000 | I132: 58 | L132: 52 | O132: 52 | P132: 64 | S132: 64 | T132: 116 | V132: INTB + | W132: 1 | X132: =IF(I132="","",IF(A132="H",IF(OR(H132="SEN",H132<1997),VLOOKUP(I132,Feuil1!$A$11:$G$29,6),IF(AND(H132>1996,H132<2000),VLOOKUP(I132,Feuil1!$A$11:$G$29,5),IF(AND(H132>1999,H132<2002),VLOOKUP(I132,Feuil1!$A$11:$G$29,4),IF(AND(H132>2001,H132<2004),VLOOKUP(I132,Feuil1!$A$11:$G$29,3),VLOOKUP(I132,Feuil1!$A$11:$G$29,2))))),IF(OR(H132="SEN",H132<1997),VLOOKUP(I132,Feuil1!$G$11:$L$25,6),IF(AND(H132>1996,H132<2000),VLOOKUP(I132,Feuil1!$G$11:$L$25,5),IF(AND(H132>1999,H132<2002),VLOOKUP(I132,Feuil1!$G$11:$L$25,4),IF(AND(H132>2001,H132<2004),VLOOKUP(I132,Feuil1!$G$11:$L$25,3),VLOOKUP(I132,Feuil1!$G$11:$L$25,2))))))) -> FC2 58 | Y132: 163.3136987 | AB132: =T132-HLOOKUP(X132,Feuil1!$C$1:$BL$10,2,FALSE) -> 66 | AC132: =T132-HLOOKUP(X132,Feuil1!$C$1:$BL$10,3,FALSE) -> 56 | AD132: =T132-HLOOKUP(X132,Feuil1!$C$1:$BL$10,4,FALSE) -> 46 | AE132: =T132-HLOOKUP(X132,Feuil1!$C$1:$BL$10,5,FALSE) -> 36 | AF132: =T132-HLOOKUP(X132,Feuil1!$C$1:$BL$10,6,FALSE) -> 26 | AG132: =T132-HLOOKUP(X132,Feuil1!$C$1:$BL$10,7,FALSE) -> 16 | AH132: =T132-HLOOKUP(X132,Feuil1!$C$1:$BL$10,8,FALSE) -> 1 | AI132: =T132-HLOOKUP(X132,Feuil1!$C$1:$BL$10,9,FALSE) -> -14 | AJ132: =T132-HLOOKUP(X132,Feuil1!$C$1:$BL$10,10,FALSE) -> -884 | AQ132: INTB +
A133: F | H133: 2000 | I133: 58 | L133: 52 | O133: 52 | P133: 64 | S133: 64 | T133: 116 | V133: INTB + | W133: 1 | X133: =IF(I133="","",IF(A133="H",IF(OR(H133="SEN",H133<1997),VLOOKUP(I133,Feuil1!$A$11:$G$29,6),IF(AND(H133>1996,H133<2000),VLOOKUP(I133,Feuil1!$A$11:$G$29,5),IF(AND(H133>1999,H133<2002),VLOOKUP(I133,Feuil1!$A$11:$G$29,4),IF(AND(H133>2001,H133<2004),VLOOKUP(I133,Feuil1!$A$11:$G$29,3),VLOOKUP(I133,Feuil1!$A$11:$G$29,2))))),IF(OR(H133="SEN",H133<1997),VLOOKUP(I133,Feuil1!$G$11:$L$25,6),IF(AND(H133>1996,H133<2000),VLOOKUP(I133,Feuil1!$G$11:$L$25,5),IF(AND(H133>1999,H133<2002),VLOOKUP(I133,Feuil1!$G$11:$L$25,4),IF(AND(H133>2001,H133<2004),VLOOKUP(I133,Feuil1!$G$11:$L$25,3),VLOOKUP(I133,Feuil1!$G$11:$L$25,2))))))) -> FC2 58 | Y133: 163.3136987 | AB133: =T133-HLOOKUP(X133,Feuil1!$C$1:$BL$10,2,FALSE) -> 66 | AC133: =T133-HLOOKUP(X133,Feuil1!$C$1:$BL$10,3,FALSE) -> 56 | AD133: =T133-HLOOKUP(X133,Feuil1!$C$1:$BL$10,4,FALSE) -> 46 | AE133: =T133-HLOOKUP(X133,Feuil1!$C$1:$BL$10,5,FALSE) -> 36 | AF133: =T133-HLOOKUP(X133,Feuil1!$C$1:$BL$10,6,FALSE) -> 26 | AG133: =T133-HLOOKUP(X133,Feuil1!$C$1:$BL$10,7,FALSE) -> 16 | AH133: =T133-HLOOKUP(X133,Feuil1!$C$1:$BL$10,8,FALSE) -> 1 | AI133: =T133-HLOOKUP(X133,Feuil1!$C$1:$BL$10,9,FALSE) -> -14 | AJ133: =T133-HLOOKUP(X133,Feuil1!$C$1:$BL$10,10,FALSE) -> -884 | AQ133: INTB +
A134: F | H134: 2000 | I134: 58 | L134: 52 | O134: 52 | P134: 64 | S134: 64 | T134: 116 | V134: INTB + | W134: 1 | X134: =IF(I134="","",IF(A134="H",IF(OR(H134="SEN",H134<1997),VLOOKUP(I134,Feuil1!$A$11:$G$29,6),IF(AND(H134>1996,H134<2000),VLOOKUP(I134,Feuil1!$A$11:$G$29,5),IF(AND(H134>1999,H134<2002),VLOOKUP(I134,Feuil1!$A$11:$G$29,4),IF(AND(H134>2001,H134<2004),VLOOKUP(I134,Feuil1!$A$11:$G$29,3),VLOOKUP(I134,Feuil1!$A$11:$G$29,2))))),IF(OR(H134="SEN",H134<1997),VLOOKUP(I134,Feuil1!$G$11:$L$25,6),IF(AND(H134>1996,H134<2000),VLOOKUP(I134,Feuil1!$G$11:$L$25,5),IF(AND(H134>1999,H134<2002),VLOOKUP(I134,Feuil1!$G$11:$L$25,4),IF(AND(H134>2001,H134<2004),VLOOKUP(I134,Feuil1!$G$11:$L$25,3),VLOOKUP(I134,Feuil1!$G$11:$L$25,2))))))) -> FC2 58 | Y134: 163.3136987 | AB134: =T134-HLOOKUP(X134,Feuil1!$C$1:$BL$10,2,FALSE) -> 66 | AC134: =T134-HLOOKUP(X134,Feuil1!$C$1:$BL$10,3,FALSE) -> 56 | AD134: =T134-HLOOKUP(X134,Feuil1!$C$1:$BL$10,4,FALSE) -> 46 | AE134: =T134-HLOOKUP(X134,Feuil1!$C$1:$BL$10,5,FALSE) -> 36 | AF134: =T134-HLOOKUP(X134,Feuil1!$C$1:$BL$10,6,FALSE) -> 26 | AG134: =T134-HLOOKUP(X134,Feuil1!$C$1:$BL$10,7,FALSE) -> 16 | AH134: =T134-HLOOKUP(X134,Feuil1!$C$1:$BL$10,8,FALSE) -> 1 | AI134: =T134-HLOOKUP(X134,Feuil1!$C$1:$BL$10,9,FALSE) -> -14 | AJ134: =T134-HLOOKUP(X134,Feuil1!$C$1:$BL$10,10,FALSE) -> -884 | AQ134: INTB +
A135: F | H135: 2000 | I135: 58 | L135: 52 | O135: 52 | P135: 64 | S135: 64 | T135: 116 | V135: INTB + | W135: 1 | X135: =IF(I135="","",IF(A135="H",IF(OR(H135="SEN",H135<1997),VLOOKUP(I135,Feuil1!$A$11:$G$29,6),IF(AND(H135>1996,H135<2000),VLOOKUP(I135,Feuil1!$A$11:$G$29,5),IF(AND(H135>1999,H135<2002),VLOOKUP(I135,Feuil1!$A$11:$G$29,4),IF(AND(H135>2001,H135<2004),VLOOKUP(I135,Feuil1!$A$11:$G$29,3),VLOOKUP(I135,Feuil1!$A$11:$G$29,2))))),IF(OR(H135="SEN",H135<1997),VLOOKUP(I135,Feuil1!$G$11:$L$25,6),IF(AND(H135>1996,H135<2000),VLOOKUP(I135,Feuil1!$G$11:$L$25,5),IF(AND(H135>1999,H135<2002),VLOOKUP(I135,Feuil1!$G$11:$L$25,4),IF(AND(H135>2001,H135<2004),VLOOKUP(I135,Feuil1!$G$11:$L$25,3),VLOOKUP(I135,Feuil1!$G$11:$L$25,2))))))) -> FC2 58 | Y135: 163.3136987 | AB135: =T135-HLOOKUP(X135,Feuil1!$C$1:$BL$10,2,FALSE) -> 66 | AC135: =T135-HLOOKUP(X135,Feuil1!$C$1:$BL$10,3,FALSE) -> 56 | AD135: =T135-HLOOKUP(X135,Feuil1!$C$1:$BL$10,4,FALSE) -> 46 | AE135: =T135-HLOOKUP(X135,Feuil1!$C$1:$BL$10,5,FALSE) -> 36 | AF135: =T135-HLOOKUP(X135,Feuil1!$C$1:$BL$10,6,FALSE) -> 26 | AG135: =T135-HLOOKUP(X135,Feuil1!$C$1:$BL$10,7,FALSE) -> 16 | AH135: =T135-HLOOKUP(X135,Feuil1!$C$1:$BL$10,8,FALSE) -> 1 | AI135: =T135-HLOOKUP(X135,Feuil1!$C$1:$BL$10,9,FALSE) -> -14 | AJ135: =T135-HLOOKUP(X135,Feuil1!$C$1:$BL$10,10,FALSE) -> -884 | AQ135: INTB +
A136: F | H136: 2000 | I136: 58 | L136: 52 | O136: 52 | P136: 64 | S136: 64 | T136: 116 | V136: INTB + | W136: 1 | X136: =IF(I136="","",IF(A136="H",IF(OR(H136="SEN",H136<1997),VLOOKUP(I136,Feuil1!$A$11:$G$29,6),IF(AND(H136>1996,H136<2000),VLOOKUP(I136,Feuil1!$A$11:$G$29,5),IF(AND(H136>1999,H136<2002),VLOOKUP(I136,Feuil1!$A$11:$G$29,4),IF(AND(H136>2001,H136<2004),VLOOKUP(I136,Feuil1!$A$11:$G$29,3),VLOOKUP(I136,Feuil1!$A$11:$G$29,2))))),IF(OR(H136="SEN",H136<1997),VLOOKUP(I136,Feuil1!$G$11:$L$25,6),IF(AND(H136>1996,H136<2000),VLOOKUP(I136,Feuil1!$G$11:$L$25,5),IF(AND(H136>1999,H136<2002),VLOOKUP(I136,Feuil1!$G$11:$L$25,4),IF(AND(H136>2001,H136<2004),VLOOKUP(I136,Feuil1!$G$11:$L$25,3),VLOOKUP(I136,Feuil1!$G$11:$L$25,2))))))) -> FC2 58 | Y136: 163.3136987 | AB136: =T136-HLOOKUP(X136,Feuil1!$C$1:$BL$10,2,FALSE) -> 66 | AC136: =T136-HLOOKUP(X136,Feuil1!$C$1:$BL$10,3,FALSE) -> 56 | AD136: =T136-HLOOKUP(X136,Feuil1!$C$1:$BL$10,4,FALSE) -> 46 | AE136: =T136-HLOOKUP(X136,Feuil1!$C$1:$BL$10,5,FALSE) -> 36 | AF136: =T136-HLOOKUP(X136,Feuil1!$C$1:$BL$10,6,FALSE) -> 26 | AG136: =T136-HLOOKUP(X136,Feuil1!$C$1:$BL$10,7,FALSE) -> 16 | AH136: =T136-HLOOKUP(X136,Feuil1!$C$1:$BL$10,8,FALSE) -> 1 | AI136: =T136-HLOOKUP(X136,Feuil1!$C$1:$BL$10,9,FALSE) -> -14 | AJ136: =T136-HLOOKUP(X136,Feuil1!$C$1:$BL$10,10,FALSE) -> -884 | AQ136: INTB +
A137: F | H137: 2000 | I137: 58 | L137: 52 | O137: 52 | P137: 64 | S137: 64 | T137: 116 | V137: INTB + | W137: 1 | X137: =IF(I137="","",IF(A137="H",IF(OR(H137="SEN",H137<1997),VLOOKUP(I137,Feuil1!$A$11:$G$29,6),IF(AND(H137>1996,H137<2000),VLOOKUP(I137,Feuil1!$A$11:$G$29,5),IF(AND(H137>1999,H137<2002),VLOOKUP(I137,Feuil1!$A$11:$G$29,4),IF(AND(H137>2001,H137<2004),VLOOKUP(I137,Feuil1!$A$11:$G$29,3),VLOOKUP(I137,Feuil1!$A$11:$G$29,2))))),IF(OR(H137="SEN",H137<1997),VLOOKUP(I137,Feuil1!$G$11:$L$25,6),IF(AND(H137>1996,H137<2000),VLOOKUP(I137,Feuil1!$G$11:$L$25,5),IF(AND(H137>1999,H137<2002),VLOOKUP(I137,Feuil1!$G$11:$L$25,4),IF(AND(H137>2001,H137<2004),VLOOKUP(I137,Feuil1!$G$11:$L$25,3),VLOOKUP(I137,Feuil1!$G$11:$L$25,2))))))) -> FC2 58 | Y137: 163.3136987 | AB137: =T137-HLOOKUP(X137,Feuil1!$C$1:$BL$10,2,FALSE) -> 66 | AC137: =T137-HLOOKUP(X137,Feuil1!$C$1:$BL$10,3,FALSE) -> 56 | AD137: =T137-HLOOKUP(X137,Feuil1!$C$1:$BL$10,4,FALSE) -> 46 | AE137: =T137-HLOOKUP(X137,Feuil1!$C$1:$BL$10,5,FALSE) -> 36 | AF137: =T137-HLOOKUP(X137,Feuil1!$C$1:$BL$10,6,FALSE) -> 26 | AG137: =T137-HLOOKUP(X137,Feuil1!$C$1:$BL$10,7,FALSE) -> 16 | AH137: =T137-HLOOKUP(X137,Feuil1!$C$1:$BL$10,8,FALSE) -> 1 | AI137: =T137-HLOOKUP(X137,Feuil1!$C$1:$BL$10,9,FALSE) -> -14 | AJ137: =T137-HLOOKUP(X137,Feuil1!$C$1:$BL$10,10,FALSE) -> -884 | AQ137: INTB +
A138: F | H138: 2000 | I138: 58 | L138: 52 | O138: 52 | P138: 64 | S138: 64 | T138: 116 | V138: INTB + | W138: 1 | X138: =IF(I138="","",IF(A138="H",IF(OR(H138="SEN",H138<1997),VLOOKUP(I138,Feuil1!$A$11:$G$29,6),IF(AND(H138>1996,H138<2000),VLOOKUP(I138,Feuil1!$A$11:$G$29,5),IF(AND(H138>1999,H138<2002),VLOOKUP(I138,Feuil1!$A$11:$G$29,4),IF(AND(H138>2001,H138<2004),VLOOKUP(I138,Feuil1!$A$11:$G$29,3),VLOOKUP(I138,Feuil1!$A$11:$G$29,2))))),IF(OR(H138="SEN",H138<1997),VLOOKUP(I138,Feuil1!$G$11:$L$25,6),IF(AND(H138>1996,H138<2000),VLOOKUP(I138,Feuil1!$G$11:$L$25,5),IF(AND(H138>1999,H138<2002),VLOOKUP(I138,Feuil1!$G$11:$L$25,4),IF(AND(H138>2001,H138<2004),VLOOKUP(I138,Feuil1!$G$11:$L$25,3),VLOOKUP(I138,Feuil1!$G$11:$L$25,2))))))) -> FC2 58 | Y138: 163.3136987 | AB138: =T138-HLOOKUP(X138,Feuil1!$C$1:$BL$10,2,FALSE) -> 66 | AC138: =T138-HLOOKUP(X138,Feuil1!$C$1:$BL$10,3,FALSE) -> 56 | AD138: =T138-HLOOKUP(X138,Feuil1!$C$1:$BL$10,4,FALSE) -> 46 | AE138: =T138-HLOOKUP(X138,Feuil1!$C$1:$BL$10,5,FALSE) -> 36 | AF138: =T138-HLOOKUP(X138,Feuil1!$C$1:$BL$10,6,FALSE) -> 26 | AG138: =T138-HLOOKUP(X138,Feuil1!$C$1:$BL$10,7,FALSE) -> 16 | AH138: =T138-HLOOKUP(X138,Feuil1!$C$1:$BL$10,8,FALSE) -> 1 | AI138: =T138-HLOOKUP(X138,Feuil1!$C$1:$BL$10,9,FALSE) -> -14 | AJ138: =T138-HLOOKUP(X138,Feuil1!$C$1:$BL$10,10,FALSE) -> -884 | AQ138: INTB +
A139: F | H139: 2000 | I139: 58 | L139: 52 | O139: 52 | P139: 64 | S139: 64 | T139: 116 | V139: INTB + | W139: 1 | X139: =IF(I139="","",IF(A139="H",IF(OR(H139="SEN",H139<1997),VLOOKUP(I139,Feuil1!$A$11:$G$29,6),IF(AND(H139>1996,H139<2000),VLOOKUP(I139,Feuil1!$A$11:$G$29,5),IF(AND(H139>1999,H139<2002),VLOOKUP(I139,Feuil1!$A$11:$G$29,4),IF(AND(H139>2001,H139<2004),VLOOKUP(I139,Feuil1!$A$11:$G$29,3),VLOOKUP(I139,Feuil1!$A$11:$G$29,2))))),IF(OR(H139="SEN",H139<1997),VLOOKUP(I139,Feuil1!$G$11:$L$25,6),IF(AND(H139>1996,H139<2000),VLOOKUP(I139,Feuil1!$G$11:$L$25,5),IF(AND(H139>1999,H139<2002),VLOOKUP(I139,Feuil1!$G$11:$L$25,4),IF(AND(H139>2001,H139<2004),VLOOKUP(I139,Feuil1!$G$11:$L$25,3),VLOOKUP(I139,Feuil1!$G$11:$L$25,2))))))) -> FC2 58 | Y139: 163.3136987 | AB139: =T139-HLOOKUP(X139,Feuil1!$C$1:$BL$10,2,FALSE) -> 66 | AC139: =T139-HLOOKUP(X139,Feuil1!$C$1:$BL$10,3,FALSE) -> 56 | AD139: =T139-HLOOKUP(X139,Feuil1!$C$1:$BL$10,4,FALSE) -> 46 | AE139: =T139-HLOOKUP(X139,Feuil1!$C$1:$BL$10,5,FALSE) -> 36 | AF139: =T139-HLOOKUP(X139,Feuil1!$C$1:$BL$10,6,FALSE) -> 26 | AG139: =T139-HLOOKUP(X139,Feuil1!$C$1:$BL$10,7,FALSE) -> 16 | AH139: =T139-HLOOKUP(X139,Feuil1!$C$1:$BL$10,8,FALSE) -> 1 | AI139: =T139-HLOOKUP(X139,Feuil1!$C$1:$BL$10,9,FALSE) -> -14 | AJ139: =T139-HLOOKUP(X139,Feuil1!$C$1:$BL$10,10,FALSE) -> -884 | AQ139: INTB +
A140: F | H140: 2000 | I140: 58 | L140: 52 | O140: 52 | P140: 64 | S140: 64 | T140: 116 | V140: INTB + | W140: 1 | X140: =IF(I140="","",IF(A140="H",IF(OR(H140="SEN",H140<1997),VLOOKUP(I140,Feuil1!$A$11:$G$29,6),IF(AND(H140>1996,H140<2000),VLOOKUP(I140,Feuil1!$A$11:$G$29,5),IF(AND(H140>1999,H140<2002),VLOOKUP(I140,Feuil1!$A$11:$G$29,4),IF(AND(H140>2001,H140<2004),VLOOKUP(I140,Feuil1!$A$11:$G$29,3),VLOOKUP(I140,Feuil1!$A$11:$G$29,2))))),IF(OR(H140="SEN",H140<1997),VLOOKUP(I140,Feuil1!$G$11:$L$25,6),IF(AND(H140>1996,H140<2000),VLOOKUP(I140,Feuil1!$G$11:$L$25,5),IF(AND(H140>1999,H140<2002),VLOOKUP(I140,Feuil1!$G$11:$L$25,4),IF(AND(H140>2001,H140<2004),VLOOKUP(I140,Feuil1!$G$11:$L$25,3),VLOOKUP(I140,Feuil1!$G$11:$L$25,2))))))) -> FC2 58 | Y140: 163.3136987 | AB140: =T140-HLOOKUP(X140,Feuil1!$C$1:$BL$10,2,FALSE) -> 66 | AC140: =T140-HLOOKUP(X140,Feuil1!$C$1:$BL$10,3,FALSE) -> 56 | AD140: =T140-HLOOKUP(X140,Feuil1!$C$1:$BL$10,4,FALSE) -> 46 | AE140: =T140-HLOOKUP(X140,Feuil1!$C$1:$BL$10,5,FALSE) -> 36 | AF140: =T140-HLOOKUP(X140,Feuil1!$C$1:$BL$10,6,FALSE) -> 26 | AG140: =T140-HLOOKUP(X140,Feuil1!$C$1:$BL$10,7,FALSE) -> 16 | AH140: =T140-HLOOKUP(X140,Feuil1!$C$1:$BL$10,8,FALSE) -> 1 | AI140: =T140-HLOOKUP(X140,Feuil1!$C$1:$BL$10,9,FALSE) -> -14 | AJ140: =T140-HLOOKUP(X140,Feuil1!$C$1:$BL$10,10,FALSE) -> -884 | AQ140: INTB +
A141: F | H141: 2000 | I141: 58 | L141: 52 | O141: 52 | P141: 64 | S141: 64 | T141: 116 | V141: INTB + | W141: 1 | X141: =IF(I141="","",IF(A141="H",IF(OR(H141="SEN",H141<1997),VLOOKUP(I141,Feuil1!$A$11:$G$29,6),IF(AND(H141>1996,H141<2000),VLOOKUP(I141,Feuil1!$A$11:$G$29,5),IF(AND(H141>1999,H141<2002),VLOOKUP(I141,Feuil1!$A$11:$G$29,4),IF(AND(H141>2001,H141<2004),VLOOKUP(I141,Feuil1!$A$11:$G$29,3),VLOOKUP(I141,Feuil1!$A$11:$G$29,2))))),IF(OR(H141="SEN",H141<1997),VLOOKUP(I141,Feuil1!$G$11:$L$25,6),IF(AND(H141>1996,H141<2000),VLOOKUP(I141,Feuil1!$G$11:$L$25,5),IF(AND(H141>1999,H141<2002),VLOOKUP(I141,Feuil1!$G$11:$L$25,4),IF(AND(H141>2001,H141<2004),VLOOKUP(I141,Feuil1!$G$11:$L$25,3),VLOOKUP(I141,Feuil1!$G$11:$L$25,2))))))) -> FC2 58 | Y141: 163.3136987 | AB141: =T141-HLOOKUP(X141,Feuil1!$C$1:$BL$10,2,FALSE) -> 66 | AC141: =T141-HLOOKUP(X141,Feuil1!$C$1:$BL$10,3,FALSE) -> 56 | AD141: =T141-HLOOKUP(X141,Feuil1!$C$1:$BL$10,4,FALSE) -> 46 | AE141: =T141-HLOOKUP(X141,Feuil1!$C$1:$BL$10,5,FALSE) -> 36 | AF141: =T141-HLOOKUP(X141,Feuil1!$C$1:$BL$10,6,FALSE) -> 26 | AG141: =T141-HLOOKUP(X141,Feuil1!$C$1:$BL$10,7,FALSE) -> 16 | AH141: =T141-HLOOKUP(X141,Feuil1!$C$1:$BL$10,8,FALSE) -> 1 | AI141: =T141-HLOOKUP(X141,Feuil1!$C$1:$BL$10,9,FALSE) -> -14 | AJ141: =T141-HLOOKUP(X141,Feuil1!$C$1:$BL$10,10,FALSE) -> -884 | AQ141: INTB +
A142: F | H142: 2000 | I142: 58 | L142: 52 | O142: 52 | P142: 64 | S142: 64 | T142: 116 | V142: INTB + | W142: 1 | X142: =IF(I142="","",IF(A142="H",IF(OR(H142="SEN",H142<1997),VLOOKUP(I142,Feuil1!$A$11:$G$29,6),IF(AND(H142>1996,H142<2000),VLOOKUP(I142,Feuil1!$A$11:$G$29,5),IF(AND(H142>1999,H142<2002),VLOOKUP(I142,Feuil1!$A$11:$G$29,4),IF(AND(H142>2001,H142<2004),VLOOKUP(I142,Feuil1!$A$11:$G$29,3),VLOOKUP(I142,Feuil1!$A$11:$G$29,2))))),IF(OR(H142="SEN",H142<1997),VLOOKUP(I142,Feuil1!$G$11:$L$25,6),IF(AND(H142>1996,H142<2000),VLOOKUP(I142,Feuil1!$G$11:$L$25,5),IF(AND(H142>1999,H142<2002),VLOOKUP(I142,Feuil1!$G$11:$L$25,4),IF(AND(H142>2001,H142<2004),VLOOKUP(I142,Feuil1!$G$11:$L$25,3),VLOOKUP(I142,Feuil1!$G$11:$L$25,2))))))) -> FC2 58 | Y142: 163.3136987 | AB142: =T142-HLOOKUP(X142,Feuil1!$C$1:$BL$10,2,FALSE) -> 66 | AC142: =T142-HLOOKUP(X142,Feuil1!$C$1:$BL$10,3,FALSE) -> 56 | AD142: =T142-HLOOKUP(X142,Feuil1!$C$1:$BL$10,4,FALSE) -> 46 | AE142: =T142-HLOOKUP(X142,Feuil1!$C$1:$BL$10,5,FALSE) -> 36 | AF142: =T142-HLOOKUP(X142,Feuil1!$C$1:$BL$10,6,FALSE) -> 26 | AG142: =T142-HLOOKUP(X142,Feuil1!$C$1:$BL$10,7,FALSE) -> 16 | AH142: =T142-HLOOKUP(X142,Feuil1!$C$1:$BL$10,8,FALSE) -> 1 | AI142: =T142-HLOOKUP(X142,Feuil1!$C$1:$BL$10,9,FALSE) -> -14 | AJ142: =T142-HLOOKUP(X142,Feuil1!$C$1:$BL$10,10,FALSE) -> -884 | AQ142: INTB +
A143: F | H143: 2000 | I143: 58 | L143: 52 | O143: 52 | P143: 64 | S143: 64 | T143: 116 | V143: INTB + | W143: 1 | X143: =IF(I143="","",IF(A143="H",IF(OR(H143="SEN",H143<1997),VLOOKUP(I143,Feuil1!$A$11:$G$29,6),IF(AND(H143>1996,H143<2000),VLOOKUP(I143,Feuil1!$A$11:$G$29,5),IF(AND(H143>1999,H143<2002),VLOOKUP(I143,Feuil1!$A$11:$G$29,4),IF(AND(H143>2001,H143<2004),VLOOKUP(I143,Feuil1!$A$11:$G$29,3),VLOOKUP(I143,Feuil1!$A$11:$G$29,2))))),IF(OR(H143="SEN",H143<1997),VLOOKUP(I143,Feuil1!$G$11:$L$25,6),IF(AND(H143>1996,H143<2000),VLOOKUP(I143,Feuil1!$G$11:$L$25,5),IF(AND(H143>1999,H143<2002),VLOOKUP(I143,Feuil1!$G$11:$L$25,4),IF(AND(H143>2001,H143<2004),VLOOKUP(I143,Feuil1!$G$11:$L$25,3),VLOOKUP(I143,Feuil1!$G$11:$L$25,2))))))) -> FC2 58 | Y143: 163.3136987 | AB143: =T143-HLOOKUP(X143,Feuil1!$C$1:$BL$10,2,FALSE) -> 66 | AC143: =T143-HLOOKUP(X143,Feuil1!$C$1:$BL$10,3,FALSE) -> 56 | AD143: =T143-HLOOKUP(X143,Feuil1!$C$1:$BL$10,4,FALSE) -> 46 | AE143: =T143-HLOOKUP(X143,Feuil1!$C$1:$BL$10,5,FALSE) -> 36 | AF143: =T143-HLOOKUP(X143,Feuil1!$C$1:$BL$10,6,FALSE) -> 26 | AG143: =T143-HLOOKUP(X143,Feuil1!$C$1:$BL$10,7,FALSE) -> 16 | AH143: =T143-HLOOKUP(X143,Feuil1!$C$1:$BL$10,8,FALSE) -> 1 | AI143: =T143-HLOOKUP(X143,Feuil1!$C$1:$BL$10,9,FALSE) -> -14 | AJ143: =T143-HLOOKUP(X143,Feuil1!$C$1:$BL$10,10,FALSE) -> -884 | AQ143: INTB +
A144: F | H144: 2000 | I144: 58 | L144: 52 | O144: 52 | P144: 64 | S144: 64 | T144: 116 | V144: INTB + | W144: 1 | X144: =IF(I144="","",IF(A144="H",IF(OR(H144="SEN",H144<1997),VLOOKUP(I144,Feuil1!$A$11:$G$29,6),IF(AND(H144>1996,H144<2000),VLOOKUP(I144,Feuil1!$A$11:$G$29,5),IF(AND(H144>1999,H144<2002),VLOOKUP(I144,Feuil1!$A$11:$G$29,4),IF(AND(H144>2001,H144<2004),VLOOKUP(I144,Feuil1!$A$11:$G$29,3),VLOOKUP(I144,Feuil1!$A$11:$G$29,2))))),IF(OR(H144="SEN",H144<1997),VLOOKUP(I144,Feuil1!$G$11:$L$25,6),IF(AND(H144>1996,H144<2000),VLOOKUP(I144,Feuil1!$G$11:$L$25,5),IF(AND(H144>1999,H144<2002),VLOOKUP(I144,Feuil1!$G$11:$L$25,4),IF(AND(H144>2001,H144<2004),VLOOKUP(I144,Feuil1!$G$11:$L$25,3),VLOOKUP(I144,Feuil1!$G$11:$L$25,2))))))) -> FC2 58 | Y144: 163.3136987 | AB144: =T144-HLOOKUP(X144,Feuil1!$C$1:$BL$10,2,FALSE) -> 66 | AC144: =T144-HLOOKUP(X144,Feuil1!$C$1:$BL$10,3,FALSE) -> 56 | AD144: =T144-HLOOKUP(X144,Feuil1!$C$1:$BL$10,4,FALSE) -> 46 | AE144: =T144-HLOOKUP(X144,Feuil1!$C$1:$BL$10,5,FALSE) -> 36 | AF144: =T144-HLOOKUP(X144,Feuil1!$C$1:$BL$10,6,FALSE) -> 26 | AG144: =T144-HLOOKUP(X144,Feuil1!$C$1:$BL$10,7,FALSE) -> 16 | AH144: =T144-HLOOKUP(X144,Feuil1!$C$1:$BL$10,8,FALSE) -> 1 | AI144: =T144-HLOOKUP(X144,Feuil1!$C$1:$BL$10,9,FALSE) -> -14 | AJ144: =T144-HLOOKUP(X144,Feuil1!$C$1:$BL$10,10,FALSE) -> -884 | AQ144: INTB +
A145: F | H145: 2000 | I145: 58 | L145: 52 | O145: 52 | P145: 64 | S145: 64 | T145: 116 | V145: INTB + | W145: 1 | X145: =IF(I145="","",IF(A145="H",IF(OR(H145="SEN",H145<1997),VLOOKUP(I145,Feuil1!$A$11:$G$29,6),IF(AND(H145>1996,H145<2000),VLOOKUP(I145,Feuil1!$A$11:$G$29,5),IF(AND(H145>1999,H145<2002),VLOOKUP(I145,Feuil1!$A$11:$G$29,4),IF(AND(H145>2001,H145<2004),VLOOKUP(I145,Feuil1!$A$11:$G$29,3),VLOOKUP(I145,Feuil1!$A$11:$G$29,2))))),IF(OR(H145="SEN",H145<1997),VLOOKUP(I145,Feuil1!$G$11:$L$25,6),IF(AND(H145>1996,H145<2000),VLOOKUP(I145,Feuil1!$G$11:$L$25,5),IF(AND(H145>1999,H145<2002),VLOOKUP(I145,Feuil1!$G$11:$L$25,4),IF(AND(H145>2001,H145<2004),VLOOKUP(I145,Feuil1!$G$11:$L$25,3),VLOOKUP(I145,Feuil1!$G$11:$L$25,2))))))) -> FC2 58 | Y145: 163.3136987 | AB145: =T145-HLOOKUP(X145,Feuil1!$C$1:$BL$10,2,FALSE) -> 66 | AC145: =T145-HLOOKUP(X145,Feuil1!$C$1:$BL$10,3,FALSE) -> 56 | AD145: =T145-HLOOKUP(X145,Feuil1!$C$1:$BL$10,4,FALSE) -> 46 | AE145: =T145-HLOOKUP(X145,Feuil1!$C$1:$BL$10,5,FALSE) -> 36 | AF145: =T145-HLOOKUP(X145,Feuil1!$C$1:$BL$10,6,FALSE) -> 26 | AG145: =T145-HLOOKUP(X145,Feuil1!$C$1:$BL$10,7,FALSE) -> 16 | AH145: =T145-HLOOKUP(X145,Feuil1!$C$1:$BL$10,8,FALSE) -> 1 | AI145: =T145-HLOOKUP(X145,Feuil1!$C$1:$BL$10,9,FALSE) -> -14 | AJ145: =T145-HLOOKUP(X145,Feuil1!$C$1:$BL$10,10,FALSE) -> -884 | AQ145: INTB +
A146: F | H146: 2000 | I146: 58 | L146: 52 | O146: =IF(H146="","",IF(MAXA(L146:N146)<=0,0,MAXA(L146:N146))) -> 52 | P146: 64 | S146: =IF(H146="","",IF(MAXA(P146:R146)<=0,0,MAXA(P146:R146))) -> 64 | T146: =IF(H146="","",IF(OR(O146=0,S146=0),0,O146+S146)) -> 116 | V146: =IF(H146="","",AQ146) -> INTB + | W146: =IF(AJ146>=0,AJ146,IF(AI146>=0,AI146,IF(AH146>=0,AH146,IF(AG146>=0,AG146,IF(AF146>=0,AF146,IF(AE146>=0,AE146,IF(AD146>=0,AD146,IF(AC146>=0,AC146,AB146)))))))) -> 1 | X146: =IF(I146="","",IF(A146="H",IF(OR(H146="SEN",H146<1997),VLOOKUP(I146,Feuil1!$A$11:$G$29,6),IF(AND(H146>1996,H146<2000),VLOOKUP(I146,Feuil1!$A$11:$G$29,5),IF(AND(H146>1999,H146<2002),VLOOKUP(I146,Feuil1!$A$11:$G$29,4),IF(AND(H146>2001,H146<2004),VLOOKUP(I146,Feuil1!$A$11:$G$29,3),VLOOKUP(I146,Feuil1!$A$11:$G$29,2))))),IF(OR(H146="SEN",H146<1997),VLOOKUP(I146,Feuil1!$G$11:$L$25,6),IF(AND(H146>1996,H146<2000),VLOOKUP(I146,Feuil1!$G$11:$L$25,5),IF(AND(H146>1999,H146<2002),VLOOKUP(I146,Feuil1!$G$11:$L$25,4),IF(AND(H146>2001,H146<2004),VLOOKUP(I146,Feuil1!$G$11:$L$25,3),VLOOKUP(I146,Feuil1!$G$11:$L$25,2))))))) -> FC2 58 | Y146: =IF(I146="","",IF(A146="H",10^(0.794358141*LOG(I146/174.393)^2)*T146,IF(A146="F",10^(0.89726074*LOG(I146/148.026)^2)*T146,""))) -> 163.3136987 | AB146: =T146-HLOOKUP(X146,Feuil1!$C$1:$BL$10,2,FALSE) -> 66 | AC146: =T146-HLOOKUP(X146,Feuil1!$C$1:$BL$10,3,FALSE) -> 56 | AD146: =T146-HLOOKUP(X146,Feuil1!$C$1:$BL$10,4,FALSE) -> 46 | AE146: =T146-HLOOKUP(X146,Feuil1!$C$1:$BL$10,5,FALSE) -> 36 | AF146: =T146-HLOOKUP(X146,Feuil1!$C$1:$BL$10,6,FALSE) -> 26 | AG146: =T146-HLOOKUP(X146,Feuil1!$C$1:$BL$10,7,FALSE) -> 16 | AH146: =T146-HLOOKUP(X146,Feuil1!$C$1:$BL$10,8,FALSE) -> 1 | AI146: =T146-HLOOKUP(X146,Feuil1!$C$1:$BL$10,9,FALSE) -> -14 | AJ146: =T146-HLOOKUP(X146,Feuil1!$C$1:$BL$10,10,FALSE) -> -884 | AQ146: =IF(AJ146>=0,$AJ$4,IF(AI146>=0,$AI$4,IF(AH146>=0,$AH$4,IF(AG146>=0,$AG$4,IF(AF146>=0,$AF$4,IF(AE146>=0,$AE$4,IF(AD146>=0,$AD$4,IF(AC146>=0,$AC$4,$AB$4)))))))) -> INTB +
A147: F | H147: 2000 | I147: 58 | L147: 52 | O147: 52 | P147: 64 | S147: 64 | T147: 116 | V147: INTB + | W147: 1 | X147: =IF(I147="","",IF(A147="H",IF(OR(H147="SEN",H147<1997),VLOOKUP(I147,Feuil1!$A$11:$G$29,6),IF(AND(H147>1996,H147<2000),VLOOKUP(I147,Feuil1!$A$11:$G$29,5),IF(AND(H147>1999,H147<2002),VLOOKUP(I147,Feuil1!$A$11:$G$29,4),IF(AND(H147>2001,H147<2004),VLOOKUP(I147,Feuil1!$A$11:$G$29,3),VLOOKUP(I147,Feuil1!$A$11:$G$29,2))))),IF(OR(H147="SEN",H147<1997),VLOOKUP(I147,Feuil1!$G$11:$L$25,6),IF(AND(H147>1996,H147<2000),VLOOKUP(I147,Feuil1!$G$11:$L$25,5),IF(AND(H147>1999,H147<2002),VLOOKUP(I147,Feuil1!$G$11:$L$25,4),IF(AND(H147>2001,H147<2004),VLOOKUP(I147,Feuil1!$G$11:$L$25,3),VLOOKUP(I147,Feuil1!$G$11:$L$25,2))))))) -> FC2 58 | Y147: 163.3136987 | AB147: =T147-HLOOKUP(X147,Feuil1!$C$1:$BL$10,2,FALSE) -> 66 | AC147: =T147-HLOOKUP(X147,Feuil1!$C$1:$BL$10,3,FALSE) -> 56 | AD147: =T147-HLOOKUP(X147,Feuil1!$C$1:$BL$10,4,FALSE) -> 46 | AE147: =T147-HLOOKUP(X147,Feuil1!$C$1:$BL$10,5,FALSE) -> 36 | AF147: =T147-HLOOKUP(X147,Feuil1!$C$1:$BL$10,6,FALSE) -> 26 | AG147: =T147-HLOOKUP(X147,Feuil1!$C$1:$BL$10,7,FALSE) -> 16 | AH147: =T147-HLOOKUP(X147,Feuil1!$C$1:$BL$10,8,FALSE) -> 1 | AI147: =T147-HLOOKUP(X147,Feuil1!$C$1:$BL$10,9,FALSE) -> -14 | AJ147: =T147-HLOOKUP(X147,Feuil1!$C$1:$BL$10,10,FALSE) -> -884 | AQ147: INTB +
A148: F | H148: 2000 | I148: 58 | L148: 52 | O148: 52 | P148: 64 | S148: 64 | T148: 116 | V148: INTB + | W148: 1 | X148: =IF(I148="","",IF(A148="H",IF(OR(H148="SEN",H148<1997),VLOOKUP(I148,Feuil1!$A$11:$G$29,6),IF(AND(H148>1996,H148<2000),VLOOKUP(I148,Feuil1!$A$11:$G$29,5),IF(AND(H148>1999,H148<2002),VLOOKUP(I148,Feuil1!$A$11:$G$29,4),IF(AND(H148>2001,H148<2004),VLOOKUP(I148,Feuil1!$A$11:$G$29,3),VLOOKUP(I148,Feuil1!$A$11:$G$29,2))))),IF(OR(H148="SEN",H148<1997),VLOOKUP(I148,Feuil1!$G$11:$L$25,6),IF(AND(H148>1996,H148<2000),VLOOKUP(I148,Feuil1!$G$11:$L$25,5),IF(AND(H148>1999,H148<2002),VLOOKUP(I148,Feuil1!$G$11:$L$25,4),IF(AND(H148>2001,H148<2004),VLOOKUP(I148,Feuil1!$G$11:$L$25,3),VLOOKUP(I148,Feuil1!$G$11:$L$25,2))))))) -> FC2 58 | Y148: 163.3136987 | AB148: =T148-HLOOKUP(X148,Feuil1!$C$1:$BL$10,2,FALSE) -> 66 | AC148: =T148-HLOOKUP(X148,Feuil1!$C$1:$BL$10,3,FALSE) -> 56 | AD148: =T148-HLOOKUP(X148,Feuil1!$C$1:$BL$10,4,FALSE) -> 46 | AE148: =T148-HLOOKUP(X148,Feuil1!$C$1:$BL$10,5,FALSE) -> 36 | AF148: =T148-HLOOKUP(X148,Feuil1!$C$1:$BL$10,6,FALSE) -> 26 | AG148: =T148-HLOOKUP(X148,Feuil1!$C$1:$BL$10,7,FALSE) -> 16 | AH148: =T148-HLOOKUP(X148,Feuil1!$C$1:$BL$10,8,FALSE) -> 1 | AI148: =T148-HLOOKUP(X148,Feuil1!$C$1:$BL$10,9,FALSE) -> -14 | AJ148: =T148-HLOOKUP(X148,Feuil1!$C$1:$BL$10,10,FALSE) -> -884 | AQ148: INTB +
A149: F | H149: 2000 | I149: 58 | L149: 52 | O149: 52 | P149: 64 | S149: 64 | T149: 116 | V149: INTB + | W149: 1 | X149: =IF(I149="","",IF(A149="H",IF(OR(H149="SEN",H149<1997),VLOOKUP(I149,Feuil1!$A$11:$G$29,6),IF(AND(H149>1996,H149<2000),VLOOKUP(I149,Feuil1!$A$11:$G$29,5),IF(AND(H149>1999,H149<2002),VLOOKUP(I149,Feuil1!$A$11:$G$29,4),IF(AND(H149>2001,H149<2004),VLOOKUP(I149,Feuil1!$A$11:$G$29,3),VLOOKUP(I149,Feuil1!$A$11:$G$29,2))))),IF(OR(H149="SEN",H149<1997),VLOOKUP(I149,Feuil1!$G$11:$L$25,6),IF(AND(H149>1996,H149<2000),VLOOKUP(I149,Feuil1!$G$11:$L$25,5),IF(AND(H149>1999,H149<2002),VLOOKUP(I149,Feuil1!$G$11:$L$25,4),IF(AND(H149>2001,H149<2004),VLOOKUP(I149,Feuil1!$G$11:$L$25,3),VLOOKUP(I149,Feuil1!$G$11:$L$25,2))))))) -> FC2 58 | Y149: 163.3136987 | AB149: =T149-HLOOKUP(X149,Feuil1!$C$1:$BL$10,2,FALSE) -> 66 | AC149: =T149-HLOOKUP(X149,Feuil1!$C$1:$BL$10,3,FALSE) -> 56 | AD149: =T149-HLOOKUP(X149,Feuil1!$C$1:$BL$10,4,FALSE) -> 46 | AE149: =T149-HLOOKUP(X149,Feuil1!$C$1:$BL$10,5,FALSE) -> 36 | AF149: =T149-HLOOKUP(X149,Feuil1!$C$1:$BL$10,6,FALSE) -> 26 | AG149: =T149-HLOOKUP(X149,Feuil1!$C$1:$BL$10,7,FALSE) -> 16 | AH149: =T149-HLOOKUP(X149,Feuil1!$C$1:$BL$10,8,FALSE) -> 1 | AI149: =T149-HLOOKUP(X149,Feuil1!$C$1:$BL$10,9,FALSE) -> -14 | AJ149: =T149-HLOOKUP(X149,Feuil1!$C$1:$BL$10,10,FALSE) -> -884 | AQ149: INTB +
A150: F | H150: 2000 | I150: 58 | L150: 52 | O150: 52 | P150: 64 | S150: 64 | T150: 116 | V150: INTB + | W150: 1 | X150: =IF(I150="","",IF(A150="H",IF(OR(H150="SEN",H150<1997),VLOOKUP(I150,Feuil1!$A$11:$G$29,6),IF(AND(H150>1996,H150<2000),VLOOKUP(I150,Feuil1!$A$11:$G$29,5),IF(AND(H150>1999,H150<2002),VLOOKUP(I150,Feuil1!$A$11:$G$29,4),IF(AND(H150>2001,H150<2004),VLOOKUP(I150,Feuil1!$A$11:$G$29,3),VLOOKUP(I150,Feuil1!$A$11:$G$29,2))))),IF(OR(H150="SEN",H150<1997),VLOOKUP(I150,Feuil1!$G$11:$L$25,6),IF(AND(H150>1996,H150<2000),VLOOKUP(I150,Feuil1!$G$11:$L$25,5),IF(AND(H150>1999,H150<2002),VLOOKUP(I150,Feuil1!$G$11:$L$25,4),IF(AND(H150>2001,H150<2004),VLOOKUP(I150,Feuil1!$G$11:$L$25,3),VLOOKUP(I150,Feuil1!$G$11:$L$25,2))))))) -> FC2 58 | Y150: 163.3136987 | AB150: =T150-HLOOKUP(X150,Feuil1!$C$1:$BL$10,2,FALSE) -> 66 | AC150: =T150-HLOOKUP(X150,Feuil1!$C$1:$BL$10,3,FALSE) -> 56 | AD150: =T150-HLOOKUP(X150,Feuil1!$C$1:$BL$10,4,FALSE) -> 46 | AE150: =T150-HLOOKUP(X150,Feuil1!$C$1:$BL$10,5,FALSE) -> 36 | AF150: =T150-HLOOKUP(X150,Feuil1!$C$1:$BL$10,6,FALSE) -> 26 | AG150: =T150-HLOOKUP(X150,Feuil1!$C$1:$BL$10,7,FALSE) -> 16 | AH150: =T150-HLOOKUP(X150,Feuil1!$C$1:$BL$10,8,FALSE) -> 1 | AI150: =T150-HLOOKUP(X150,Feuil1!$C$1:$BL$10,9,FALSE) -> -14 | AJ150: =T150-HLOOKUP(X150,Feuil1!$C$1:$BL$10,10,FALSE) -> -884 | AQ150: INTB +
A151: F | H151: 2000 | I151: 58 | L151: 52 | O151: 52 | P151: 64 | S151: 64 | T151: 116 | V151: INTB + | W151: 1 | X151: =IF(I151="","",IF(A151="H",IF(OR(H151="SEN",H151<1997),VLOOKUP(I151,Feuil1!$A$11:$G$29,6),IF(AND(H151>1996,H151<2000),VLOOKUP(I151,Feuil1!$A$11:$G$29,5),IF(AND(H151>1999,H151<2002),VLOOKUP(I151,Feuil1!$A$11:$G$29,4),IF(AND(H151>2001,H151<2004),VLOOKUP(I151,Feuil1!$A$11:$G$29,3),VLOOKUP(I151,Feuil1!$A$11:$G$29,2))))),IF(OR(H151="SEN",H151<1997),VLOOKUP(I151,Feuil1!$G$11:$L$25,6),IF(AND(H151>1996,H151<2000),VLOOKUP(I151,Feuil1!$G$11:$L$25,5),IF(AND(H151>1999,H151<2002),VLOOKUP(I151,Feuil1!$G$11:$L$25,4),IF(AND(H151>2001,H151<2004),VLOOKUP(I151,Feuil1!$G$11:$L$25,3),VLOOKUP(I151,Feuil1!$G$11:$L$25,2))))))) -> FC2 58 | Y151: 163.3136987 | AB151: =T151-HLOOKUP(X151,Feuil1!$C$1:$BL$10,2,FALSE) -> 66 | AC151: =T151-HLOOKUP(X151,Feuil1!$C$1:$BL$10,3,FALSE) -> 56 | AD151: =T151-HLOOKUP(X151,Feuil1!$C$1:$BL$10,4,FALSE) -> 46 | AE151: =T151-HLOOKUP(X151,Feuil1!$C$1:$BL$10,5,FALSE) -> 36 | AF151: =T151-HLOOKUP(X151,Feuil1!$C$1:$BL$10,6,FALSE) -> 26 | AG151: =T151-HLOOKUP(X151,Feuil1!$C$1:$BL$10,7,FALSE) -> 16 | AH151: =T151-HLOOKUP(X151,Feuil1!$C$1:$BL$10,8,FALSE) -> 1 | AI151: =T151-HLOOKUP(X151,Feuil1!$C$1:$BL$10,9,FALSE) -> -14 | AJ151: =T151-HLOOKUP(X151,Feuil1!$C$1:$BL$10,10,FALSE) -> -884 | AQ151: INTB +
A152: F | H152: 2000 | I152: 58 | L152: 52 | O152: 52 | P152: 64 | S152: 64 | T152: 116 | V152: INTB + | W152: 1 | X152: =IF(I152="","",IF(A152="H",IF(OR(H152="SEN",H152<1997),VLOOKUP(I152,Feuil1!$A$11:$G$29,6),IF(AND(H152>1996,H152<2000),VLOOKUP(I152,Feuil1!$A$11:$G$29,5),IF(AND(H152>1999,H152<2002),VLOOKUP(I152,Feuil1!$A$11:$G$29,4),IF(AND(H152>2001,H152<2004),VLOOKUP(I152,Feuil1!$A$11:$G$29,3),VLOOKUP(I152,Feuil1!$A$11:$G$29,2))))),IF(OR(H152="SEN",H152<1997),VLOOKUP(I152,Feuil1!$G$11:$L$25,6),IF(AND(H152>1996,H152<2000),VLOOKUP(I152,Feuil1!$G$11:$L$25,5),IF(AND(H152>1999,H152<2002),VLOOKUP(I152,Feuil1!$G$11:$L$25,4),IF(AND(H152>2001,H152<2004),VLOOKUP(I152,Feuil1!$G$11:$L$25,3),VLOOKUP(I152,Feuil1!$G$11:$L$25,2))))))) -> FC2 58 | Y152: 163.3136987 | AB152: =T152-HLOOKUP(X152,Feuil1!$C$1:$BL$10,2,FALSE) -> 66 | AC152: =T152-HLOOKUP(X152,Feuil1!$C$1:$BL$10,3,FALSE) -> 56 | AD152: =T152-HLOOKUP(X152,Feuil1!$C$1:$BL$10,4,FALSE) -> 46 | AE152: =T152-HLOOKUP(X152,Feuil1!$C$1:$BL$10,5,FALSE) -> 36 | AF152: =T152-HLOOKUP(X152,Feuil1!$C$1:$BL$10,6,FALSE) -> 26 | AG152: =T152-HLOOKUP(X152,Feuil1!$C$1:$BL$10,7,FALSE) -> 16 | AH152: =T152-HLOOKUP(X152,Feuil1!$C$1:$BL$10,8,FALSE) -> 1 | AI152: =T152-HLOOKUP(X152,Feuil1!$C$1:$BL$10,9,FALSE) -> -14 | AJ152: =T152-HLOOKUP(X152,Feuil1!$C$1:$BL$10,10,FALSE) -> -884 | AQ152: INTB +
A153: F | H153: 2000 | I153: 58 | L153: 52 | O153: 52 | P153: 64 | S153: 64 | T153: 116 | V153: INTB + | W153: 1 | X153: =IF(I153="","",IF(A153="H",IF(OR(H153="SEN",H153<1997),VLOOKUP(I153,Feuil1!$A$11:$G$29,6),IF(AND(H153>1996,H153<2000),VLOOKUP(I153,Feuil1!$A$11:$G$29,5),IF(AND(H153>1999,H153<2002),VLOOKUP(I153,Feuil1!$A$11:$G$29,4),IF(AND(H153>2001,H153<2004),VLOOKUP(I153,Feuil1!$A$11:$G$29,3),VLOOKUP(I153,Feuil1!$A$11:$G$29,2))))),IF(OR(H153="SEN",H153<1997),VLOOKUP(I153,Feuil1!$G$11:$L$25,6),IF(AND(H153>1996,H153<2000),VLOOKUP(I153,Feuil1!$G$11:$L$25,5),IF(AND(H153>1999,H153<2002),VLOOKUP(I153,Feuil1!$G$11:$L$25,4),IF(AND(H153>2001,H153<2004),VLOOKUP(I153,Feuil1!$G$11:$L$25,3),VLOOKUP(I153,Feuil1!$G$11:$L$25,2))))))) -> FC2 58 | Y153: 163.3136987 | AB153: =T153-HLOOKUP(X153,Feuil1!$C$1:$BL$10,2,FALSE) -> 66 | AC153: =T153-HLOOKUP(X153,Feuil1!$C$1:$BL$10,3,FALSE) -> 56 | AD153: =T153-HLOOKUP(X153,Feuil1!$C$1:$BL$10,4,FALSE) -> 46 | AE153: =T153-HLOOKUP(X153,Feuil1!$C$1:$BL$10,5,FALSE) -> 36 | AF153: =T153-HLOOKUP(X153,Feuil1!$C$1:$BL$10,6,FALSE) -> 26 | AG153: =T153-HLOOKUP(X153,Feuil1!$C$1:$BL$10,7,FALSE) -> 16 | AH153: =T153-HLOOKUP(X153,Feuil1!$C$1:$BL$10,8,FALSE) -> 1 | AI153: =T153-HLOOKUP(X153,Feuil1!$C$1:$BL$10,9,FALSE) -> -14 | AJ153: =T153-HLOOKUP(X153,Feuil1!$C$1:$BL$10,10,FALSE) -> -884 | AQ153: INTB +
A154: F | H154: 2000 | I154: 58 | L154: 52 | O154: 52 | P154: 64 | S154: 64 | T154: 116 | V154: INTB + | W154: 1 | X154: =IF(I154="","",IF(A154="H",IF(OR(H154="SEN",H154<1997),VLOOKUP(I154,Feuil1!$A$11:$G$29,6),IF(AND(H154>1996,H154<2000),VLOOKUP(I154,Feuil1!$A$11:$G$29,5),IF(AND(H154>1999,H154<2002),VLOOKUP(I154,Feuil1!$A$11:$G$29,4),IF(AND(H154>2001,H154<2004),VLOOKUP(I154,Feuil1!$A$11:$G$29,3),VLOOKUP(I154,Feuil1!$A$11:$G$29,2))))),IF(OR(H154="SEN",H154<1997),VLOOKUP(I154,Feuil1!$G$11:$L$25,6),IF(AND(H154>1996,H154<2000),VLOOKUP(I154,Feuil1!$G$11:$L$25,5),IF(AND(H154>1999,H154<2002),VLOOKUP(I154,Feuil1!$G$11:$L$25,4),IF(AND(H154>2001,H154<2004),VLOOKUP(I154,Feuil1!$G$11:$L$25,3),VLOOKUP(I154,Feuil1!$G$11:$L$25,2))))))) -> FC2 58 | Y154: 163.3136987 | AB154: =T154-HLOOKUP(X154,Feuil1!$C$1:$BL$10,2,FALSE) -> 66 | AC154: =T154-HLOOKUP(X154,Feuil1!$C$1:$BL$10,3,FALSE) -> 56 | AD154: =T154-HLOOKUP(X154,Feuil1!$C$1:$BL$10,4,FALSE) -> 46 | AE154: =T154-HLOOKUP(X154,Feuil1!$C$1:$BL$10,5,FALSE) -> 36 | AF154: =T154-HLOOKUP(X154,Feuil1!$C$1:$BL$10,6,FALSE) -> 26 | AG154: =T154-HLOOKUP(X154,Feuil1!$C$1:$BL$10,7,FALSE) -> 16 | AH154: =T154-HLOOKUP(X154,Feuil1!$C$1:$BL$10,8,FALSE) -> 1 | AI154: =T154-HLOOKUP(X154,Feuil1!$C$1:$BL$10,9,FALSE) -> -14 | AJ154: =T154-HLOOKUP(X154,Feuil1!$C$1:$BL$10,10,FALSE) -> -884 | AQ154: INTB +
A155: F | H155: 2000 | I155: 58 | L155: 52 | O155: 52 | P155: 64 | S155: 64 | T155: 116 | V155: INTB + | W155: 1 | X155: =IF(I155="","",IF(A155="H",IF(OR(H155="SEN",H155<1997),VLOOKUP(I155,Feuil1!$A$11:$G$29,6),IF(AND(H155>1996,H155<2000),VLOOKUP(I155,Feuil1!$A$11:$G$29,5),IF(AND(H155>1999,H155<2002),VLOOKUP(I155,Feuil1!$A$11:$G$29,4),IF(AND(H155>2001,H155<2004),VLOOKUP(I155,Feuil1!$A$11:$G$29,3),VLOOKUP(I155,Feuil1!$A$11:$G$29,2))))),IF(OR(H155="SEN",H155<1997),VLOOKUP(I155,Feuil1!$G$11:$L$25,6),IF(AND(H155>1996,H155<2000),VLOOKUP(I155,Feuil1!$G$11:$L$25,5),IF(AND(H155>1999,H155<2002),VLOOKUP(I155,Feuil1!$G$11:$L$25,4),IF(AND(H155>2001,H155<2004),VLOOKUP(I155,Feuil1!$G$11:$L$25,3),VLOOKUP(I155,Feuil1!$G$11:$L$25,2))))))) -> FC2 58 | Y155: 163.3136987 | AB155: =T155-HLOOKUP(X155,Feuil1!$C$1:$BL$10,2,FALSE) -> 66 | AC155: =T155-HLOOKUP(X155,Feuil1!$C$1:$BL$10,3,FALSE) -> 56 | AD155: =T155-HLOOKUP(X155,Feuil1!$C$1:$BL$10,4,FALSE) -> 46 | AE155: =T155-HLOOKUP(X155,Feuil1!$C$1:$BL$10,5,FALSE) -> 36 | AF155: =T155-HLOOKUP(X155,Feuil1!$C$1:$BL$10,6,FALSE) -> 26 | AG155: =T155-HLOOKUP(X155,Feuil1!$C$1:$BL$10,7,FALSE) -> 16 | AH155: =T155-HLOOKUP(X155,Feuil1!$C$1:$BL$10,8,FALSE) -> 1 | AI155: =T155-HLOOKUP(X155,Feuil1!$C$1:$BL$10,9,FALSE) -> -14 | AJ155: =T155-HLOOKUP(X155,Feuil1!$C$1:$BL$10,10,FALSE) -> -884 | AQ155: INTB +
A156: F | H156: 2000 | I156: 58 | L156: 52 | O156: 52 | P156: 64 | S156: 64 | T156: 116 | V156: INTB + | W156: 1 | X156: =IF(I156="","",IF(A156="H",IF(OR(H156="SEN",H156<1997),VLOOKUP(I156,Feuil1!$A$11:$G$29,6),IF(AND(H156>1996,H156<2000),VLOOKUP(I156,Feuil1!$A$11:$G$29,5),IF(AND(H156>1999,H156<2002),VLOOKUP(I156,Feuil1!$A$11:$G$29,4),IF(AND(H156>2001,H156<2004),VLOOKUP(I156,Feuil1!$A$11:$G$29,3),VLOOKUP(I156,Feuil1!$A$11:$G$29,2))))),IF(OR(H156="SEN",H156<1997),VLOOKUP(I156,Feuil1!$G$11:$L$25,6),IF(AND(H156>1996,H156<2000),VLOOKUP(I156,Feuil1!$G$11:$L$25,5),IF(AND(H156>1999,H156<2002),VLOOKUP(I156,Feuil1!$G$11:$L$25,4),IF(AND(H156>2001,H156<2004),VLOOKUP(I156,Feuil1!$G$11:$L$25,3),VLOOKUP(I156,Feuil1!$G$11:$L$25,2))))))) -> FC2 58 | Y156: 163.3136987 | AB156: =T156-HLOOKUP(X156,Feuil1!$C$1:$BL$10,2,FALSE) -> 66 | AC156: =T156-HLOOKUP(X156,Feuil1!$C$1:$BL$10,3,FALSE) -> 56 | AD156: =T156-HLOOKUP(X156,Feuil1!$C$1:$BL$10,4,FALSE) -> 46 | AE156: =T156-HLOOKUP(X156,Feuil1!$C$1:$BL$10,5,FALSE) -> 36 | AF156: =T156-HLOOKUP(X156,Feuil1!$C$1:$BL$10,6,FALSE) -> 26 | AG156: =T156-HLOOKUP(X156,Feuil1!$C$1:$BL$10,7,FALSE) -> 16 | AH156: =T156-HLOOKUP(X156,Feuil1!$C$1:$BL$10,8,FALSE) -> 1 | AI156: =T156-HLOOKUP(X156,Feuil1!$C$1:$BL$10,9,FALSE) -> -14 | AJ156: =T156-HLOOKUP(X156,Feuil1!$C$1:$BL$10,10,FALSE) -> -884 | AQ156: INTB +
A157: F | H157: 2000 | I157: 58 | L157: 52 | O157: 52 | P157: 64 | S157: 64 | T157: 116 | V157: INTB + | W157: 1 | X157: =IF(I157="","",IF(A157="H",IF(OR(H157="SEN",H157<1997),VLOOKUP(I157,Feuil1!$A$11:$G$29,6),IF(AND(H157>1996,H157<2000),VLOOKUP(I157,Feuil1!$A$11:$G$29,5),IF(AND(H157>1999,H157<2002),VLOOKUP(I157,Feuil1!$A$11:$G$29,4),IF(AND(H157>2001,H157<2004),VLOOKUP(I157,Feuil1!$A$11:$G$29,3),VLOOKUP(I157,Feuil1!$A$11:$G$29,2))))),IF(OR(H157="SEN",H157<1997),VLOOKUP(I157,Feuil1!$G$11:$L$25,6),IF(AND(H157>1996,H157<2000),VLOOKUP(I157,Feuil1!$G$11:$L$25,5),IF(AND(H157>1999,H157<2002),VLOOKUP(I157,Feuil1!$G$11:$L$25,4),IF(AND(H157>2001,H157<2004),VLOOKUP(I157,Feuil1!$G$11:$L$25,3),VLOOKUP(I157,Feuil1!$G$11:$L$25,2))))))) -> FC2 58 | Y157: 163.3136987 | AB157: =T157-HLOOKUP(X157,Feuil1!$C$1:$BL$10,2,FALSE) -> 66 | AC157: =T157-HLOOKUP(X157,Feuil1!$C$1:$BL$10,3,FALSE) -> 56 | AD157: =T157-HLOOKUP(X157,Feuil1!$C$1:$BL$10,4,FALSE) -> 46 | AE157: =T157-HLOOKUP(X157,Feuil1!$C$1:$BL$10,5,FALSE) -> 36 | AF157: =T157-HLOOKUP(X157,Feuil1!$C$1:$BL$10,6,FALSE) -> 26 | AG157: =T157-HLOOKUP(X157,Feuil1!$C$1:$BL$10,7,FALSE) -> 16 | AH157: =T157-HLOOKUP(X157,Feuil1!$C$1:$BL$10,8,FALSE) -> 1 | AI157: =T157-HLOOKUP(X157,Feuil1!$C$1:$BL$10,9,FALSE) -> -14 | AJ157: =T157-HLOOKUP(X157,Feuil1!$C$1:$BL$10,10,FALSE) -> -884 | AQ157: INTB +
A158: F | H158: 2000 | I158: 58 | L158: 52 | O158: 52 | P158: 64 | S158: 64 | T158: 116 | V158: INTB + | W158: 1 | X158: =IF(I158="","",IF(A158="H",IF(OR(H158="SEN",H158<1997),VLOOKUP(I158,Feuil1!$A$11:$G$29,6),IF(AND(H158>1996,H158<2000),VLOOKUP(I158,Feuil1!$A$11:$G$29,5),IF(AND(H158>1999,H158<2002),VLOOKUP(I158,Feuil1!$A$11:$G$29,4),IF(AND(H158>2001,H158<2004),VLOOKUP(I158,Feuil1!$A$11:$G$29,3),VLOOKUP(I158,Feuil1!$A$11:$G$29,2))))),IF(OR(H158="SEN",H158<1997),VLOOKUP(I158,Feuil1!$G$11:$L$25,6),IF(AND(H158>1996,H158<2000),VLOOKUP(I158,Feuil1!$G$11:$L$25,5),IF(AND(H158>1999,H158<2002),VLOOKUP(I158,Feuil1!$G$11:$L$25,4),IF(AND(H158>2001,H158<2004),VLOOKUP(I158,Feuil1!$G$11:$L$25,3),VLOOKUP(I158,Feuil1!$G$11:$L$25,2))))))) -> FC2 58 | Y158: 163.3136987 | AB158: =T158-HLOOKUP(X158,Feuil1!$C$1:$BL$10,2,FALSE) -> 66 | AC158: =T158-HLOOKUP(X158,Feuil1!$C$1:$BL$10,3,FALSE) -> 56 | AD158: =T158-HLOOKUP(X158,Feuil1!$C$1:$BL$10,4,FALSE) -> 46 | AE158: =T158-HLOOKUP(X158,Feuil1!$C$1:$BL$10,5,FALSE) -> 36 | AF158: =T158-HLOOKUP(X158,Feuil1!$C$1:$BL$10,6,FALSE) -> 26 | AG158: =T158-HLOOKUP(X158,Feuil1!$C$1:$BL$10,7,FALSE) -> 16 | AH158: =T158-HLOOKUP(X158,Feuil1!$C$1:$BL$10,8,FALSE) -> 1 | AI158: =T158-HLOOKUP(X158,Feuil1!$C$1:$BL$10,9,FALSE) -> -14 | AJ158: =T158-HLOOKUP(X158,Feuil1!$C$1:$BL$10,10,FALSE) -> -884 | AQ158: INTB +
A159: F | H159: 2000 | I159: 58 | L159: 52 | O159: 52 | P159: 64 | S159: 64 | T159: 116 | V159: INTB + | W159: 1 | X159: =IF(I159="","",IF(A159="H",IF(OR(H159="SEN",H159<1997),VLOOKUP(I159,Feuil1!$A$11:$G$29,6),IF(AND(H159>1996,H159<2000),VLOOKUP(I159,Feuil1!$A$11:$G$29,5),IF(AND(H159>1999,H159<2002),VLOOKUP(I159,Feuil1!$A$11:$G$29,4),IF(AND(H159>2001,H159<2004),VLOOKUP(I159,Feuil1!$A$11:$G$29,3),VLOOKUP(I159,Feuil1!$A$11:$G$29,2))))),IF(OR(H159="SEN",H159<1997),VLOOKUP(I159,Feuil1!$G$11:$L$25,6),IF(AND(H159>1996,H159<2000),VLOOKUP(I159,Feuil1!$G$11:$L$25,5),IF(AND(H159>1999,H159<2002),VLOOKUP(I159,Feuil1!$G$11:$L$25,4),IF(AND(H159>2001,H159<2004),VLOOKUP(I159,Feuil1!$G$11:$L$25,3),VLOOKUP(I159,Feuil1!$G$11:$L$25,2))))))) -> FC2 58 | Y159: 163.3136987 | AB159: =T159-HLOOKUP(X159,Feuil1!$C$1:$BL$10,2,FALSE) -> 66 | AC159: =T159-HLOOKUP(X159,Feuil1!$C$1:$BL$10,3,FALSE) -> 56 | AD159: =T159-HLOOKUP(X159,Feuil1!$C$1:$BL$10,4,FALSE) -> 46 | AE159: =T159-HLOOKUP(X159,Feuil1!$C$1:$BL$10,5,FALSE) -> 36 | AF159: =T159-HLOOKUP(X159,Feuil1!$C$1:$BL$10,6,FALSE) -> 26 | AG159: =T159-HLOOKUP(X159,Feuil1!$C$1:$BL$10,7,FALSE) -> 16 | AH159: =T159-HLOOKUP(X159,Feuil1!$C$1:$BL$10,8,FALSE) -> 1 | AI159: =T159-HLOOKUP(X159,Feuil1!$C$1:$BL$10,9,FALSE) -> -14 | AJ159: =T159-HLOOKUP(X159,Feuil1!$C$1:$BL$10,10,FALSE) -> -884 | AQ159: INTB +
A160: F | H160: 2000 | I160: 58 | L160: 52 | O160: 52 | P160: 64 | S160: 64 | T160: 116 | V160: INTB + | W160: 1 | X160: =IF(I160="","",IF(A160="H",IF(OR(H160="SEN",H160<1997),VLOOKUP(I160,Feuil1!$A$11:$G$29,6),IF(AND(H160>1996,H160<2000),VLOOKUP(I160,Feuil1!$A$11:$G$29,5),IF(AND(H160>1999,H160<2002),VLOOKUP(I160,Feuil1!$A$11:$G$29,4),IF(AND(H160>2001,H160<2004),VLOOKUP(I160,Feuil1!$A$11:$G$29,3),VLOOKUP(I160,Feuil1!$A$11:$G$29,2))))),IF(OR(H160="SEN",H160<1997),VLOOKUP(I160,Feuil1!$G$11:$L$25,6),IF(AND(H160>1996,H160<2000),VLOOKUP(I160,Feuil1!$G$11:$L$25,5),IF(AND(H160>1999,H160<2002),VLOOKUP(I160,Feuil1!$G$11:$L$25,4),IF(AND(H160>2001,H160<2004),VLOOKUP(I160,Feuil1!$G$11:$L$25,3),VLOOKUP(I160,Feuil1!$G$11:$L$25,2))))))) -> FC2 58 | Y160: 163.3136987 | AB160: =T160-HLOOKUP(X160,Feuil1!$C$1:$BL$10,2,FALSE) -> 66 | AC160: =T160-HLOOKUP(X160,Feuil1!$C$1:$BL$10,3,FALSE) -> 56 | AD160: =T160-HLOOKUP(X160,Feuil1!$C$1:$BL$10,4,FALSE) -> 46 | AE160: =T160-HLOOKUP(X160,Feuil1!$C$1:$BL$10,5,FALSE) -> 36 | AF160: =T160-HLOOKUP(X160,Feuil1!$C$1:$BL$10,6,FALSE) -> 26 | AG160: =T160-HLOOKUP(X160,Feuil1!$C$1:$BL$10,7,FALSE) -> 16 | AH160: =T160-HLOOKUP(X160,Feuil1!$C$1:$BL$10,8,FALSE) -> 1 | AI160: =T160-HLOOKUP(X160,Feuil1!$C$1:$BL$10,9,FALSE) -> -14 | AJ160: =T160-HLOOKUP(X160,Feuil1!$C$1:$BL$10,10,FALSE) -> -884 | AQ160: INTB +
A161: F | H161: 2000 | I161: 58 | L161: 52 | O161: 52 | P161: 64 | S161: 64 | T161: 116 | V161: INTB + | W161: 1 | X161: =IF(I161="","",IF(A161="H",IF(OR(H161="SEN",H161<1997),VLOOKUP(I161,Feuil1!$A$11:$G$29,6),IF(AND(H161>1996,H161<2000),VLOOKUP(I161,Feuil1!$A$11:$G$29,5),IF(AND(H161>1999,H161<2002),VLOOKUP(I161,Feuil1!$A$11:$G$29,4),IF(AND(H161>2001,H161<2004),VLOOKUP(I161,Feuil1!$A$11:$G$29,3),VLOOKUP(I161,Feuil1!$A$11:$G$29,2))))),IF(OR(H161="SEN",H161<1997),VLOOKUP(I161,Feuil1!$G$11:$L$25,6),IF(AND(H161>1996,H161<2000),VLOOKUP(I161,Feuil1!$G$11:$L$25,5),IF(AND(H161>1999,H161<2002),VLOOKUP(I161,Feuil1!$G$11:$L$25,4),IF(AND(H161>2001,H161<2004),VLOOKUP(I161,Feuil1!$G$11:$L$25,3),VLOOKUP(I161,Feuil1!$G$11:$L$25,2))))))) -> FC2 58 | Y161: 163.3136987 | AB161: =T161-HLOOKUP(X161,Feuil1!$C$1:$BL$10,2,FALSE) -> 66 | AC161: =T161-HLOOKUP(X161,Feuil1!$C$1:$BL$10,3,FALSE) -> 56 | AD161: =T161-HLOOKUP(X161,Feuil1!$C$1:$BL$10,4,FALSE) -> 46 | AE161: =T161-HLOOKUP(X161,Feuil1!$C$1:$BL$10,5,FALSE) -> 36 | AF161: =T161-HLOOKUP(X161,Feuil1!$C$1:$BL$10,6,FALSE) -> 26 | AG161: =T161-HLOOKUP(X161,Feuil1!$C$1:$BL$10,7,FALSE) -> 16 | AH161: =T161-HLOOKUP(X161,Feuil1!$C$1:$BL$10,8,FALSE) -> 1 | AI161: =T161-HLOOKUP(X161,Feuil1!$C$1:$BL$10,9,FALSE) -> -14 | AJ161: =T161-HLOOKUP(X161,Feuil1!$C$1:$BL$10,10,FALSE) -> -884 | AQ161: INTB +
A162: F | H162: 2000 | I162: 58 | L162: 52 | O162: 52 | P162: 64 | S162: 64 | T162: 116 | V162: INTB + | W162: 1 | X162: =IF(I162="","",IF(A162="H",IF(OR(H162="SEN",H162<1997),VLOOKUP(I162,Feuil1!$A$11:$G$29,6),IF(AND(H162>1996,H162<2000),VLOOKUP(I162,Feuil1!$A$11:$G$29,5),IF(AND(H162>1999,H162<2002),VLOOKUP(I162,Feuil1!$A$11:$G$29,4),IF(AND(H162>2001,H162<2004),VLOOKUP(I162,Feuil1!$A$11:$G$29,3),VLOOKUP(I162,Feuil1!$A$11:$G$29,2))))),IF(OR(H162="SEN",H162<1997),VLOOKUP(I162,Feuil1!$G$11:$L$25,6),IF(AND(H162>1996,H162<2000),VLOOKUP(I162,Feuil1!$G$11:$L$25,5),IF(AND(H162>1999,H162<2002),VLOOKUP(I162,Feuil1!$G$11:$L$25,4),IF(AND(H162>2001,H162<2004),VLOOKUP(I162,Feuil1!$G$11:$L$25,3),VLOOKUP(I162,Feuil1!$G$11:$L$25,2))))))) -> FC2 58 | Y162: 163.3136987 | AB162: =T162-HLOOKUP(X162,Feuil1!$C$1:$BL$10,2,FALSE) -> 66 | AC162: =T162-HLOOKUP(X162,Feuil1!$C$1:$BL$10,3,FALSE) -> 56 | AD162: =T162-HLOOKUP(X162,Feuil1!$C$1:$BL$10,4,FALSE) -> 46 | AE162: =T162-HLOOKUP(X162,Feuil1!$C$1:$BL$10,5,FALSE) -> 36 | AF162: =T162-HLOOKUP(X162,Feuil1!$C$1:$BL$10,6,FALSE) -> 26 | AG162: =T162-HLOOKUP(X162,Feuil1!$C$1:$BL$10,7,FALSE) -> 16 | AH162: =T162-HLOOKUP(X162,Feuil1!$C$1:$BL$10,8,FALSE) -> 1 | AI162: =T162-HLOOKUP(X162,Feuil1!$C$1:$BL$10,9,FALSE) -> -14 | AJ162: =T162-HLOOKUP(X162,Feuil1!$C$1:$BL$10,10,FALSE) -> -884 | AQ162: INTB +
A163: F | H163: 2000 | I163: 58 | L163: 52 | O163: 52 | P163: 64 | S163: 64 | T163: 116 | V163: INTB + | W163: 1 | X163: =IF(I163="","",IF(A163="H",IF(OR(H163="SEN",H163<1997),VLOOKUP(I163,Feuil1!$A$11:$G$29,6),IF(AND(H163>1996,H163<2000),VLOOKUP(I163,Feuil1!$A$11:$G$29,5),IF(AND(H163>1999,H163<2002),VLOOKUP(I163,Feuil1!$A$11:$G$29,4),IF(AND(H163>2001,H163<2004),VLOOKUP(I163,Feuil1!$A$11:$G$29,3),VLOOKUP(I163,Feuil1!$A$11:$G$29,2))))),IF(OR(H163="SEN",H163<1997),VLOOKUP(I163,Feuil1!$G$11:$L$25,6),IF(AND(H163>1996,H163<2000),VLOOKUP(I163,Feuil1!$G$11:$L$25,5),IF(AND(H163>1999,H163<2002),VLOOKUP(I163,Feuil1!$G$11:$L$25,4),IF(AND(H163>2001,H163<2004),VLOOKUP(I163,Feuil1!$G$11:$L$25,3),VLOOKUP(I163,Feuil1!$G$11:$L$25,2))))))) -> FC2 58 | Y163: 163.3136987 | AB163: =T163-HLOOKUP(X163,Feuil1!$C$1:$BL$10,2,FALSE) -> 66 | AC163: =T163-HLOOKUP(X163,Feuil1!$C$1:$BL$10,3,FALSE) -> 56 | AD163: =T163-HLOOKUP(X163,Feuil1!$C$1:$BL$10,4,FALSE) -> 46 | AE163: =T163-HLOOKUP(X163,Feuil1!$C$1:$BL$10,5,FALSE) -> 36 | AF163: =T163-HLOOKUP(X163,Feuil1!$C$1:$BL$10,6,FALSE) -> 26 | AG163: =T163-HLOOKUP(X163,Feuil1!$C$1:$BL$10,7,FALSE) -> 16 | AH163: =T163-HLOOKUP(X163,Feuil1!$C$1:$BL$10,8,FALSE) -> 1 | AI163: =T163-HLOOKUP(X163,Feuil1!$C$1:$BL$10,9,FALSE) -> -14 | AJ163: =T163-HLOOKUP(X163,Feuil1!$C$1:$BL$10,10,FALSE) -> -884 | AQ163: INTB +
A164: F | H164: 2000 | I164: 58 | L164: 52 | O164: 52 | P164: 64 | S164: 64 | T164: 116 | V164: INTB + | W164: 1 | X164: =IF(I164="","",IF(A164="H",IF(OR(H164="SEN",H164<1997),VLOOKUP(I164,Feuil1!$A$11:$G$29,6),IF(AND(H164>1996,H164<2000),VLOOKUP(I164,Feuil1!$A$11:$G$29,5),IF(AND(H164>1999,H164<2002),VLOOKUP(I164,Feuil1!$A$11:$G$29,4),IF(AND(H164>2001,H164<2004),VLOOKUP(I164,Feuil1!$A$11:$G$29,3),VLOOKUP(I164,Feuil1!$A$11:$G$29,2))))),IF(OR(H164="SEN",H164<1997),VLOOKUP(I164,Feuil1!$G$11:$L$25,6),IF(AND(H164>1996,H164<2000),VLOOKUP(I164,Feuil1!$G$11:$L$25,5),IF(AND(H164>1999,H164<2002),VLOOKUP(I164,Feuil1!$G$11:$L$25,4),IF(AND(H164>2001,H164<2004),VLOOKUP(I164,Feuil1!$G$11:$L$25,3),VLOOKUP(I164,Feuil1!$G$11:$L$25,2))))))) -> FC2 58 | Y164: 163.3136987 | AB164: =T164-HLOOKUP(X164,Feuil1!$C$1:$BL$10,2,FALSE) -> 66 | AC164: =T164-HLOOKUP(X164,Feuil1!$C$1:$BL$10,3,FALSE) -> 56 | AD164: =T164-HLOOKUP(X164,Feuil1!$C$1:$BL$10,4,FALSE) -> 46 | AE164: =T164-HLOOKUP(X164,Feuil1!$C$1:$BL$10,5,FALSE) -> 36 | AF164: =T164-HLOOKUP(X164,Feuil1!$C$1:$BL$10,6,FALSE) -> 26 | AG164: =T164-HLOOKUP(X164,Feuil1!$C$1:$BL$10,7,FALSE) -> 16 | AH164: =T164-HLOOKUP(X164,Feuil1!$C$1:$BL$10,8,FALSE) -> 1 | AI164: =T164-HLOOKUP(X164,Feuil1!$C$1:$BL$10,9,FALSE) -> -14 | AJ164: =T164-HLOOKUP(X164,Feuil1!$C$1:$BL$10,10,FALSE) -> -884 | AQ164: INTB +
A165: F | H165: 2000 | I165: 58 | L165: 52 | O165: 52 | P165: 64 | S165: 64 | T165: 116 | V165: INTB + | W165: 1 | X165: =IF(I165="","",IF(A165="H",IF(OR(H165="SEN",H165<1997),VLOOKUP(I165,Feuil1!$A$11:$G$29,6),IF(AND(H165>1996,H165<2000),VLOOKUP(I165,Feuil1!$A$11:$G$29,5),IF(AND(H165>1999,H165<2002),VLOOKUP(I165,Feuil1!$A$11:$G$29,4),IF(AND(H165>2001,H165<2004),VLOOKUP(I165,Feuil1!$A$11:$G$29,3),VLOOKUP(I165,Feuil1!$A$11:$G$29,2))))),IF(OR(H165="SEN",H165<1997),VLOOKUP(I165,Feuil1!$G$11:$L$25,6),IF(AND(H165>1996,H165<2000),VLOOKUP(I165,Feuil1!$G$11:$L$25,5),IF(AND(H165>1999,H165<2002),VLOOKUP(I165,Feuil1!$G$11:$L$25,4),IF(AND(H165>2001,H165<2004),VLOOKUP(I165,Feuil1!$G$11:$L$25,3),VLOOKUP(I165,Feuil1!$G$11:$L$25,2))))))) -> FC2 58 | Y165: 163.3136987 | AB165: =T165-HLOOKUP(X165,Feuil1!$C$1:$BL$10,2,FALSE) -> 66 | AC165: =T165-HLOOKUP(X165,Feuil1!$C$1:$BL$10,3,FALSE) -> 56 | AD165: =T165-HLOOKUP(X165,Feuil1!$C$1:$BL$10,4,FALSE) -> 46 | AE165: =T165-HLOOKUP(X165,Feuil1!$C$1:$BL$10,5,FALSE) -> 36 | AF165: =T165-HLOOKUP(X165,Feuil1!$C$1:$BL$10,6,FALSE) -> 26 | AG165: =T165-HLOOKUP(X165,Feuil1!$C$1:$BL$10,7,FALSE) -> 16 | AH165: =T165-HLOOKUP(X165,Feuil1!$C$1:$BL$10,8,FALSE) -> 1 | AI165: =T165-HLOOKUP(X165,Feuil1!$C$1:$BL$10,9,FALSE) -> -14 | AJ165: =T165-HLOOKUP(X165,Feuil1!$C$1:$BL$10,10,FALSE) -> -884 | AQ165: INTB +
A166: F | H166: 2000 | I166: 58 | L166: 52 | O166: 52 | P166: 64 | S166: 64 | T166: 116 | V166: INTB + | W166: 1 | X166: =IF(I166="","",IF(A166="H",IF(OR(H166="SEN",H166<1997),VLOOKUP(I166,Feuil1!$A$11:$G$29,6),IF(AND(H166>1996,H166<2000),VLOOKUP(I166,Feuil1!$A$11:$G$29,5),IF(AND(H166>1999,H166<2002),VLOOKUP(I166,Feuil1!$A$11:$G$29,4),IF(AND(H166>2001,H166<2004),VLOOKUP(I166,Feuil1!$A$11:$G$29,3),VLOOKUP(I166,Feuil1!$A$11:$G$29,2))))),IF(OR(H166="SEN",H166<1997),VLOOKUP(I166,Feuil1!$G$11:$L$25,6),IF(AND(H166>1996,H166<2000),VLOOKUP(I166,Feuil1!$G$11:$L$25,5),IF(AND(H166>1999,H166<2002),VLOOKUP(I166,Feuil1!$G$11:$L$25,4),IF(AND(H166>2001,H166<2004),VLOOKUP(I166,Feuil1!$G$11:$L$25,3),VLOOKUP(I166,Feuil1!$G$11:$L$25,2))))))) -> FC2 58 | Y166: 163.3136987 | AB166: =T166-HLOOKUP(X166,Feuil1!$C$1:$BL$10,2,FALSE) -> 66 | AC166: =T166-HLOOKUP(X166,Feuil1!$C$1:$BL$10,3,FALSE) -> 56 | AD166: =T166-HLOOKUP(X166,Feuil1!$C$1:$BL$10,4,FALSE) -> 46 | AE166: =T166-HLOOKUP(X166,Feuil1!$C$1:$BL$10,5,FALSE) -> 36 | AF166: =T166-HLOOKUP(X166,Feuil1!$C$1:$BL$10,6,FALSE) -> 26 | AG166: =T166-HLOOKUP(X166,Feuil1!$C$1:$BL$10,7,FALSE) -> 16 | AH166: =T166-HLOOKUP(X166,Feuil1!$C$1:$BL$10,8,FALSE) -> 1 | AI166: =T166-HLOOKUP(X166,Feuil1!$C$1:$BL$10,9,FALSE) -> -14 | AJ166: =T166-HLOOKUP(X166,Feuil1!$C$1:$BL$10,10,FALSE) -> -884 | AQ166: INTB +
A167: F | H167: 2000 | I167: 58 | L167: 52 | O167: 52 | P167: 64 | S167: 64 | T167: 116 | V167: INTB + | W167: 1 | X167: =IF(I167="","",IF(A167="H",IF(OR(H167="SEN",H167<1997),VLOOKUP(I167,Feuil1!$A$11:$G$29,6),IF(AND(H167>1996,H167<2000),VLOOKUP(I167,Feuil1!$A$11:$G$29,5),IF(AND(H167>1999,H167<2002),VLOOKUP(I167,Feuil1!$A$11:$G$29,4),IF(AND(H167>2001,H167<2004),VLOOKUP(I167,Feuil1!$A$11:$G$29,3),VLOOKUP(I167,Feuil1!$A$11:$G$29,2))))),IF(OR(H167="SEN",H167<1997),VLOOKUP(I167,Feuil1!$G$11:$L$25,6),IF(AND(H167>1996,H167<2000),VLOOKUP(I167,Feuil1!$G$11:$L$25,5),IF(AND(H167>1999,H167<2002),VLOOKUP(I167,Feuil1!$G$11:$L$25,4),IF(AND(H167>2001,H167<2004),VLOOKUP(I167,Feuil1!$G$11:$L$25,3),VLOOKUP(I167,Feuil1!$G$11:$L$25,2))))))) -> FC2 58 | Y167: 163.3136987 | AB167: =T167-HLOOKUP(X167,Feuil1!$C$1:$BL$10,2,FALSE) -> 66 | AC167: =T167-HLOOKUP(X167,Feuil1!$C$1:$BL$10,3,FALSE) -> 56 | AD167: =T167-HLOOKUP(X167,Feuil1!$C$1:$BL$10,4,FALSE) -> 46 | AE167: =T167-HLOOKUP(X167,Feuil1!$C$1:$BL$10,5,FALSE) -> 36 | AF167: =T167-HLOOKUP(X167,Feuil1!$C$1:$BL$10,6,FALSE) -> 26 | AG167: =T167-HLOOKUP(X167,Feuil1!$C$1:$BL$10,7,FALSE) -> 16 | AH167: =T167-HLOOKUP(X167,Feuil1!$C$1:$BL$10,8,FALSE) -> 1 | AI167: =T167-HLOOKUP(X167,Feuil1!$C$1:$BL$10,9,FALSE) -> -14 | AJ167: =T167-HLOOKUP(X167,Feuil1!$C$1:$BL$10,10,FALSE) -> -884 | AQ167: INTB +
A168: F | H168: 2000 | I168: 58 | L168: 52 | O168: 52 | P168: 64 | S168: 64 | T168: 116 | V168: INTB + | W168: 1 | X168: =IF(I168="","",IF(A168="H",IF(OR(H168="SEN",H168<1997),VLOOKUP(I168,Feuil1!$A$11:$G$29,6),IF(AND(H168>1996,H168<2000),VLOOKUP(I168,Feuil1!$A$11:$G$29,5),IF(AND(H168>1999,H168<2002),VLOOKUP(I168,Feuil1!$A$11:$G$29,4),IF(AND(H168>2001,H168<2004),VLOOKUP(I168,Feuil1!$A$11:$G$29,3),VLOOKUP(I168,Feuil1!$A$11:$G$29,2))))),IF(OR(H168="SEN",H168<1997),VLOOKUP(I168,Feuil1!$G$11:$L$25,6),IF(AND(H168>1996,H168<2000),VLOOKUP(I168,Feuil1!$G$11:$L$25,5),IF(AND(H168>1999,H168<2002),VLOOKUP(I168,Feuil1!$G$11:$L$25,4),IF(AND(H168>2001,H168<2004),VLOOKUP(I168,Feuil1!$G$11:$L$25,3),VLOOKUP(I168,Feuil1!$G$11:$L$25,2))))))) -> FC2 58 | Y168: 163.3136987 | AB168: =T168-HLOOKUP(X168,Feuil1!$C$1:$BL$10,2,FALSE) -> 66 | AC168: =T168-HLOOKUP(X168,Feuil1!$C$1:$BL$10,3,FALSE) -> 56 | AD168: =T168-HLOOKUP(X168,Feuil1!$C$1:$BL$10,4,FALSE) -> 46 | AE168: =T168-HLOOKUP(X168,Feuil1!$C$1:$BL$10,5,FALSE) -> 36 | AF168: =T168-HLOOKUP(X168,Feuil1!$C$1:$BL$10,6,FALSE) -> 26 | AG168: =T168-HLOOKUP(X168,Feuil1!$C$1:$BL$10,7,FALSE) -> 16 | AH168: =T168-HLOOKUP(X168,Feuil1!$C$1:$BL$10,8,FALSE) -> 1 | AI168: =T168-HLOOKUP(X168,Feuil1!$C$1:$BL$10,9,FALSE) -> -14 | AJ168: =T168-HLOOKUP(X168,Feuil1!$C$1:$BL$10,10,FALSE) -> -884 | AQ168: INTB +
A169: F | H169: 2000 | I169: 58 | L169: 52 | O169: 52 | P169: 64 | S169: 64 | T169: 116 | V169: INTB + | W169: 1 | X169: =IF(I169="","",IF(A169="H",IF(OR(H169="SEN",H169<1997),VLOOKUP(I169,Feuil1!$A$11:$G$29,6),IF(AND(H169>1996,H169<2000),VLOOKUP(I169,Feuil1!$A$11:$G$29,5),IF(AND(H169>1999,H169<2002),VLOOKUP(I169,Feuil1!$A$11:$G$29,4),IF(AND(H169>2001,H169<2004),VLOOKUP(I169,Feuil1!$A$11:$G$29,3),VLOOKUP(I169,Feuil1!$A$11:$G$29,2))))),IF(OR(H169="SEN",H169<1997),VLOOKUP(I169,Feuil1!$G$11:$L$25,6),IF(AND(H169>1996,H169<2000),VLOOKUP(I169,Feuil1!$G$11:$L$25,5),IF(AND(H169>1999,H169<2002),VLOOKUP(I169,Feuil1!$G$11:$L$25,4),IF(AND(H169>2001,H169<2004),VLOOKUP(I169,Feuil1!$G$11:$L$25,3),VLOOKUP(I169,Feuil1!$G$11:$L$25,2))))))) -> FC2 58 | Y169: 163.3136987 | AB169: =T169-HLOOKUP(X169,Feuil1!$C$1:$BL$10,2,FALSE) -> 66 | AC169: =T169-HLOOKUP(X169,Feuil1!$C$1:$BL$10,3,FALSE) -> 56 | AD169: =T169-HLOOKUP(X169,Feuil1!$C$1:$BL$10,4,FALSE) -> 46 | AE169: =T169-HLOOKUP(X169,Feuil1!$C$1:$BL$10,5,FALSE) -> 36 | AF169: =T169-HLOOKUP(X169,Feuil1!$C$1:$BL$10,6,FALSE) -> 26 | AG169: =T169-HLOOKUP(X169,Feuil1!$C$1:$BL$10,7,FALSE) -> 16 | AH169: =T169-HLOOKUP(X169,Feuil1!$C$1:$BL$10,8,FALSE) -> 1 | AI169: =T169-HLOOKUP(X169,Feuil1!$C$1:$BL$10,9,FALSE) -> -14 | AJ169: =T169-HLOOKUP(X169,Feuil1!$C$1:$BL$10,10,FALSE) -> -884 | AQ169: INTB +
A170: F | H170: 2000 | I170: 58 | L170: 52 | O170: 52 | P170: 64 | S170: 64 | T170: 116 | V170: INTB + | W170: 1 | X170: =IF(I170="","",IF(A170="H",IF(OR(H170="SEN",H170<1997),VLOOKUP(I170,Feuil1!$A$11:$G$29,6),IF(AND(H170>1996,H170<2000),VLOOKUP(I170,Feuil1!$A$11:$G$29,5),IF(AND(H170>1999,H170<2002),VLOOKUP(I170,Feuil1!$A$11:$G$29,4),IF(AND(H170>2001,H170<2004),VLOOKUP(I170,Feuil1!$A$11:$G$29,3),VLOOKUP(I170,Feuil1!$A$11:$G$29,2))))),IF(OR(H170="SEN",H170<1997),VLOOKUP(I170,Feuil1!$G$11:$L$25,6),IF(AND(H170>1996,H170<2000),VLOOKUP(I170,Feuil1!$G$11:$L$25,5),IF(AND(H170>1999,H170<2002),VLOOKUP(I170,Feuil1!$G$11:$L$25,4),IF(AND(H170>2001,H170<2004),VLOOKUP(I170,Feuil1!$G$11:$L$25,3),VLOOKUP(I170,Feuil1!$G$11:$L$25,2))))))) -> FC2 58 | Y170: 163.3136987 | AB170: =T170-HLOOKUP(X170,Feuil1!$C$1:$BL$10,2,FALSE) -> 66 | AC170: =T170-HLOOKUP(X170,Feuil1!$C$1:$BL$10,3,FALSE) -> 56 | AD170: =T170-HLOOKUP(X170,Feuil1!$C$1:$BL$10,4,FALSE) -> 46 | AE170: =T170-HLOOKUP(X170,Feuil1!$C$1:$BL$10,5,FALSE) -> 36 | AF170: =T170-HLOOKUP(X170,Feuil1!$C$1:$BL$10,6,FALSE) -> 26 | AG170: =T170-HLOOKUP(X170,Feuil1!$C$1:$BL$10,7,FALSE) -> 16 | AH170: =T170-HLOOKUP(X170,Feuil1!$C$1:$BL$10,8,FALSE) -> 1 | AI170: =T170-HLOOKUP(X170,Feuil1!$C$1:$BL$10,9,FALSE) -> -14 | AJ170: =T170-HLOOKUP(X170,Feuil1!$C$1:$BL$10,10,FALSE) -> -884 | AQ170: INTB +
A171: F | H171: 2000 | I171: 58 | L171: 52 | O171: 52 | P171: 64 | S171: 64 | T171: 116 | V171: INTB + | W171: 1 | X171: =IF(I171="","",IF(A171="H",IF(OR(H171="SEN",H171<1997),VLOOKUP(I171,Feuil1!$A$11:$G$29,6),IF(AND(H171>1996,H171<2000),VLOOKUP(I171,Feuil1!$A$11:$G$29,5),IF(AND(H171>1999,H171<2002),VLOOKUP(I171,Feuil1!$A$11:$G$29,4),IF(AND(H171>2001,H171<2004),VLOOKUP(I171,Feuil1!$A$11:$G$29,3),VLOOKUP(I171,Feuil1!$A$11:$G$29,2))))),IF(OR(H171="SEN",H171<1997),VLOOKUP(I171,Feuil1!$G$11:$L$25,6),IF(AND(H171>1996,H171<2000),VLOOKUP(I171,Feuil1!$G$11:$L$25,5),IF(AND(H171>1999,H171<2002),VLOOKUP(I171,Feuil1!$G$11:$L$25,4),IF(AND(H171>2001,H171<2004),VLOOKUP(I171,Feuil1!$G$11:$L$25,3),VLOOKUP(I171,Feuil1!$G$11:$L$25,2))))))) -> FC2 58 | Y171: 163.3136987 | AB171: =T171-HLOOKUP(X171,Feuil1!$C$1:$BL$10,2,FALSE) -> 66 | AC171: =T171-HLOOKUP(X171,Feuil1!$C$1:$BL$10,3,FALSE) -> 56 | AD171: =T171-HLOOKUP(X171,Feuil1!$C$1:$BL$10,4,FALSE) -> 46 | AE171: =T171-HLOOKUP(X171,Feuil1!$C$1:$BL$10,5,FALSE) -> 36 | AF171: =T171-HLOOKUP(X171,Feuil1!$C$1:$BL$10,6,FALSE) -> 26 | AG171: =T171-HLOOKUP(X171,Feuil1!$C$1:$BL$10,7,FALSE) -> 16 | AH171: =T171-HLOOKUP(X171,Feuil1!$C$1:$BL$10,8,FALSE) -> 1 | AI171: =T171-HLOOKUP(X171,Feuil1!$C$1:$BL$10,9,FALSE) -> -14 | AJ171: =T171-HLOOKUP(X171,Feuil1!$C$1:$BL$10,10,FALSE) -> -884 | AQ171: INTB +
A172: F | H172: 2000 | I172: 58 | L172: 52 | O172: 52 | P172: 64 | S172: 64 | T172: 116 | V172: INTB + | W172: 1 | X172: =IF(I172="","",IF(A172="H",IF(OR(H172="SEN",H172<1997),VLOOKUP(I172,Feuil1!$A$11:$G$29,6),IF(AND(H172>1996,H172<2000),VLOOKUP(I172,Feuil1!$A$11:$G$29,5),IF(AND(H172>1999,H172<2002),VLOOKUP(I172,Feuil1!$A$11:$G$29,4),IF(AND(H172>2001,H172<2004),VLOOKUP(I172,Feuil1!$A$11:$G$29,3),VLOOKUP(I172,Feuil1!$A$11:$G$29,2))))),IF(OR(H172="SEN",H172<1997),VLOOKUP(I172,Feuil1!$G$11:$L$25,6),IF(AND(H172>1996,H172<2000),VLOOKUP(I172,Feuil1!$G$11:$L$25,5),IF(AND(H172>1999,H172<2002),VLOOKUP(I172,Feuil1!$G$11:$L$25,4),IF(AND(H172>2001,H172<2004),VLOOKUP(I172,Feuil1!$G$11:$L$25,3),VLOOKUP(I172,Feuil1!$G$11:$L$25,2))))))) -> FC2 58 | Y172: 163.3136987 | AB172: =T172-HLOOKUP(X172,Feuil1!$C$1:$BL$10,2,FALSE) -> 66 | AC172: =T172-HLOOKUP(X172,Feuil1!$C$1:$BL$10,3,FALSE) -> 56 | AD172: =T172-HLOOKUP(X172,Feuil1!$C$1:$BL$10,4,FALSE) -> 46 | AE172: =T172-HLOOKUP(X172,Feuil1!$C$1:$BL$10,5,FALSE) -> 36 | AF172: =T172-HLOOKUP(X172,Feuil1!$C$1:$BL$10,6,FALSE) -> 26 | AG172: =T172-HLOOKUP(X172,Feuil1!$C$1:$BL$10,7,FALSE) -> 16 | AH172: =T172-HLOOKUP(X172,Feuil1!$C$1:$BL$10,8,FALSE) -> 1 | AI172: =T172-HLOOKUP(X172,Feuil1!$C$1:$BL$10,9,FALSE) -> -14 | AJ172: =T172-HLOOKUP(X172,Feuil1!$C$1:$BL$10,10,FALSE) -> -884 | AQ172: INTB +
A173: F | H173: 2000 | I173: 58 | L173: 52 | O173: 52 | P173: 64 | S173: 64 | T173: 116 | V173: INTB + | W173: 1 | X173: =IF(I173="","",IF(A173="H",IF(OR(H173="SEN",H173<1997),VLOOKUP(I173,Feuil1!$A$11:$G$29,6),IF(AND(H173>1996,H173<2000),VLOOKUP(I173,Feuil1!$A$11:$G$29,5),IF(AND(H173>1999,H173<2002),VLOOKUP(I173,Feuil1!$A$11:$G$29,4),IF(AND(H173>2001,H173<2004),VLOOKUP(I173,Feuil1!$A$11:$G$29,3),VLOOKUP(I173,Feuil1!$A$11:$G$29,2))))),IF(OR(H173="SEN",H173<1997),VLOOKUP(I173,Feuil1!$G$11:$L$25,6),IF(AND(H173>1996,H173<2000),VLOOKUP(I173,Feuil1!$G$11:$L$25,5),IF(AND(H173>1999,H173<2002),VLOOKUP(I173,Feuil1!$G$11:$L$25,4),IF(AND(H173>2001,H173<2004),VLOOKUP(I173,Feuil1!$G$11:$L$25,3),VLOOKUP(I173,Feuil1!$G$11:$L$25,2))))))) -> FC2 58 | Y173: 163.3136987 | AB173: =T173-HLOOKUP(X173,Feuil1!$C$1:$BL$10,2,FALSE) -> 66 | AC173: =T173-HLOOKUP(X173,Feuil1!$C$1:$BL$10,3,FALSE) -> 56 | AD173: =T173-HLOOKUP(X173,Feuil1!$C$1:$BL$10,4,FALSE) -> 46 | AE173: =T173-HLOOKUP(X173,Feuil1!$C$1:$BL$10,5,FALSE) -> 36 | AF173: =T173-HLOOKUP(X173,Feuil1!$C$1:$BL$10,6,FALSE) -> 26 | AG173: =T173-HLOOKUP(X173,Feuil1!$C$1:$BL$10,7,FALSE) -> 16 | AH173: =T173-HLOOKUP(X173,Feuil1!$C$1:$BL$10,8,FALSE) -> 1 | AI173: =T173-HLOOKUP(X173,Feuil1!$C$1:$BL$10,9,FALSE) -> -14 | AJ173: =T173-HLOOKUP(X173,Feuil1!$C$1:$BL$10,10,FALSE) -> -884 | AQ173: INTB +
A174: F | H174: 2000 | I174: 58 | L174: 52 | O174: 52 | P174: 64 | S174: 64 | T174: 116 | V174: INTB + | W174: 1 | X174: =IF(I174="","",IF(A174="H",IF(OR(H174="SEN",H174<1997),VLOOKUP(I174,Feuil1!$A$11:$G$29,6),IF(AND(H174>1996,H174<2000),VLOOKUP(I174,Feuil1!$A$11:$G$29,5),IF(AND(H174>1999,H174<2002),VLOOKUP(I174,Feuil1!$A$11:$G$29,4),IF(AND(H174>2001,H174<2004),VLOOKUP(I174,Feuil1!$A$11:$G$29,3),VLOOKUP(I174,Feuil1!$A$11:$G$29,2))))),IF(OR(H174="SEN",H174<1997),VLOOKUP(I174,Feuil1!$G$11:$L$25,6),IF(AND(H174>1996,H174<2000),VLOOKUP(I174,Feuil1!$G$11:$L$25,5),IF(AND(H174>1999,H174<2002),VLOOKUP(I174,Feuil1!$G$11:$L$25,4),IF(AND(H174>2001,H174<2004),VLOOKUP(I174,Feuil1!$G$11:$L$25,3),VLOOKUP(I174,Feuil1!$G$11:$L$25,2))))))) -> FC2 58 | Y174: 163.3136987 | AB174: =T174-HLOOKUP(X174,Feuil1!$C$1:$BL$10,2,FALSE) -> 66 | AC174: =T174-HLOOKUP(X174,Feuil1!$C$1:$BL$10,3,FALSE) -> 56 | AD174: =T174-HLOOKUP(X174,Feuil1!$C$1:$BL$10,4,FALSE) -> 46 | AE174: =T174-HLOOKUP(X174,Feuil1!$C$1:$BL$10,5,FALSE) -> 36 | AF174: =T174-HLOOKUP(X174,Feuil1!$C$1:$BL$10,6,FALSE) -> 26 | AG174: =T174-HLOOKUP(X174,Feuil1!$C$1:$BL$10,7,FALSE) -> 16 | AH174: =T174-HLOOKUP(X174,Feuil1!$C$1:$BL$10,8,FALSE) -> 1 | AI174: =T174-HLOOKUP(X174,Feuil1!$C$1:$BL$10,9,FALSE) -> -14 | AJ174: =T174-HLOOKUP(X174,Feuil1!$C$1:$BL$10,10,FALSE) -> -884 | AQ174: INTB +
A175: F | H175: 2000 | I175: 58 | L175: 52 | O175: 52 | P175: 64 | S175: 64 | T175: 116 | V175: INTB + | W175: 1 | X175: =IF(I175="","",IF(A175="H",IF(OR(H175="SEN",H175<1997),VLOOKUP(I175,Feuil1!$A$11:$G$29,6),IF(AND(H175>1996,H175<2000),VLOOKUP(I175,Feuil1!$A$11:$G$29,5),IF(AND(H175>1999,H175<2002),VLOOKUP(I175,Feuil1!$A$11:$G$29,4),IF(AND(H175>2001,H175<2004),VLOOKUP(I175,Feuil1!$A$11:$G$29,3),VLOOKUP(I175,Feuil1!$A$11:$G$29,2))))),IF(OR(H175="SEN",H175<1997),VLOOKUP(I175,Feuil1!$G$11:$L$25,6),IF(AND(H175>1996,H175<2000),VLOOKUP(I175,Feuil1!$G$11:$L$25,5),IF(AND(H175>1999,H175<2002),VLOOKUP(I175,Feuil1!$G$11:$L$25,4),IF(AND(H175>2001,H175<2004),VLOOKUP(I175,Feuil1!$G$11:$L$25,3),VLOOKUP(I175,Feuil1!$G$11:$L$25,2))))))) -> FC2 58 | Y175: 163.3136987 | AB175: =T175-HLOOKUP(X175,Feuil1!$C$1:$BL$10,2,FALSE) -> 66 | AC175: =T175-HLOOKUP(X175,Feuil1!$C$1:$BL$10,3,FALSE) -> 56 | AD175: =T175-HLOOKUP(X175,Feuil1!$C$1:$BL$10,4,FALSE) -> 46 | AE175: =T175-HLOOKUP(X175,Feuil1!$C$1:$BL$10,5,FALSE) -> 36 | AF175: =T175-HLOOKUP(X175,Feuil1!$C$1:$BL$10,6,FALSE) -> 26 | AG175: =T175-HLOOKUP(X175,Feuil1!$C$1:$BL$10,7,FALSE) -> 16 | AH175: =T175-HLOOKUP(X175,Feuil1!$C$1:$BL$10,8,FALSE) -> 1 | AI175: =T175-HLOOKUP(X175,Feuil1!$C$1:$BL$10,9,FALSE) -> -14 | AJ175: =T175-HLOOKUP(X175,Feuil1!$C$1:$BL$10,10,FALSE) -> -884 | AQ175: INTB +
A176: F | H176: 2000 | I176: 58 | L176: 52 | O176: 52 | P176: 64 | S176: 64 | T176: 116 | V176: INTB + | W176: 1 | X176: =IF(I176="","",IF(A176="H",IF(OR(H176="SEN",H176<1997),VLOOKUP(I176,Feuil1!$A$11:$G$29,6),IF(AND(H176>1996,H176<2000),VLOOKUP(I176,Feuil1!$A$11:$G$29,5),IF(AND(H176>1999,H176<2002),VLOOKUP(I176,Feuil1!$A$11:$G$29,4),IF(AND(H176>2001,H176<2004),VLOOKUP(I176,Feuil1!$A$11:$G$29,3),VLOOKUP(I176,Feuil1!$A$11:$G$29,2))))),IF(OR(H176="SEN",H176<1997),VLOOKUP(I176,Feuil1!$G$11:$L$25,6),IF(AND(H176>1996,H176<2000),VLOOKUP(I176,Feuil1!$G$11:$L$25,5),IF(AND(H176>1999,H176<2002),VLOOKUP(I176,Feuil1!$G$11:$L$25,4),IF(AND(H176>2001,H176<2004),VLOOKUP(I176,Feuil1!$G$11:$L$25,3),VLOOKUP(I176,Feuil1!$G$11:$L$25,2))))))) -> FC2 58 | Y176: 163.3136987 | AB176: =T176-HLOOKUP(X176,Feuil1!$C$1:$BL$10,2,FALSE) -> 66 | AC176: =T176-HLOOKUP(X176,Feuil1!$C$1:$BL$10,3,FALSE) -> 56 | AD176: =T176-HLOOKUP(X176,Feuil1!$C$1:$BL$10,4,FALSE) -> 46 | AE176: =T176-HLOOKUP(X176,Feuil1!$C$1:$BL$10,5,FALSE) -> 36 | AF176: =T176-HLOOKUP(X176,Feuil1!$C$1:$BL$10,6,FALSE) -> 26 | AG176: =T176-HLOOKUP(X176,Feuil1!$C$1:$BL$10,7,FALSE) -> 16 | AH176: =T176-HLOOKUP(X176,Feuil1!$C$1:$BL$10,8,FALSE) -> 1 | AI176: =T176-HLOOKUP(X176,Feuil1!$C$1:$BL$10,9,FALSE) -> -14 | AJ176: =T176-HLOOKUP(X176,Feuil1!$C$1:$BL$10,10,FALSE) -> -884 | AQ176: INTB +
A177: F | H177: 2000 | I177: 58 | L177: 52 | O177: 52 | P177: 64 | S177: 64 | T177: 116 | V177: INTB + | W177: 1 | X177: =IF(I177="","",IF(A177="H",IF(OR(H177="SEN",H177<1997),VLOOKUP(I177,Feuil1!$A$11:$G$29,6),IF(AND(H177>1996,H177<2000),VLOOKUP(I177,Feuil1!$A$11:$G$29,5),IF(AND(H177>1999,H177<2002),VLOOKUP(I177,Feuil1!$A$11:$G$29,4),IF(AND(H177>2001,H177<2004),VLOOKUP(I177,Feuil1!$A$11:$G$29,3),VLOOKUP(I177,Feuil1!$A$11:$G$29,2))))),IF(OR(H177="SEN",H177<1997),VLOOKUP(I177,Feuil1!$G$11:$L$25,6),IF(AND(H177>1996,H177<2000),VLOOKUP(I177,Feuil1!$G$11:$L$25,5),IF(AND(H177>1999,H177<2002),VLOOKUP(I177,Feuil1!$G$11:$L$25,4),IF(AND(H177>2001,H177<2004),VLOOKUP(I177,Feuil1!$G$11:$L$25,3),VLOOKUP(I177,Feuil1!$G$11:$L$25,2))))))) -> FC2 58 | Y177: 163.3136987 | AB177: =T177-HLOOKUP(X177,Feuil1!$C$1:$BL$10,2,FALSE) -> 66 | AC177: =T177-HLOOKUP(X177,Feuil1!$C$1:$BL$10,3,FALSE) -> 56 | AD177: =T177-HLOOKUP(X177,Feuil1!$C$1:$BL$10,4,FALSE) -> 46 | AE177: =T177-HLOOKUP(X177,Feuil1!$C$1:$BL$10,5,FALSE) -> 36 | AF177: =T177-HLOOKUP(X177,Feuil1!$C$1:$BL$10,6,FALSE) -> 26 | AG177: =T177-HLOOKUP(X177,Feuil1!$C$1:$BL$10,7,FALSE) -> 16 | AH177: =T177-HLOOKUP(X177,Feuil1!$C$1:$BL$10,8,FALSE) -> 1 | AI177: =T177-HLOOKUP(X177,Feuil1!$C$1:$BL$10,9,FALSE) -> -14 | AJ177: =T177-HLOOKUP(X177,Feuil1!$C$1:$BL$10,10,FALSE) -> -884 | AQ177: INTB +
A178: F | H178: 2000 | I178: 58 | L178: 52 | O178: 52 | P178: 64 | S178: 64 | T178: 116 | V178: INTB + | W178: 1 | X178: =IF(I178="","",IF(A178="H",IF(OR(H178="SEN",H178<1997),VLOOKUP(I178,Feuil1!$A$11:$G$29,6),IF(AND(H178>1996,H178<2000),VLOOKUP(I178,Feuil1!$A$11:$G$29,5),IF(AND(H178>1999,H178<2002),VLOOKUP(I178,Feuil1!$A$11:$G$29,4),IF(AND(H178>2001,H178<2004),VLOOKUP(I178,Feuil1!$A$11:$G$29,3),VLOOKUP(I178,Feuil1!$A$11:$G$29,2))))),IF(OR(H178="SEN",H178<1997),VLOOKUP(I178,Feuil1!$G$11:$L$25,6),IF(AND(H178>1996,H178<2000),VLOOKUP(I178,Feuil1!$G$11:$L$25,5),IF(AND(H178>1999,H178<2002),VLOOKUP(I178,Feuil1!$G$11:$L$25,4),IF(AND(H178>2001,H178<2004),VLOOKUP(I178,Feuil1!$G$11:$L$25,3),VLOOKUP(I178,Feuil1!$G$11:$L$25,2))))))) -> FC2 58 | Y178: 163.3136987 | AB178: =T178-HLOOKUP(X178,Feuil1!$C$1:$BL$10,2,FALSE) -> 66 | AC178: =T178-HLOOKUP(X178,Feuil1!$C$1:$BL$10,3,FALSE) -> 56 | AD178: =T178-HLOOKUP(X178,Feuil1!$C$1:$BL$10,4,FALSE) -> 46 | AE178: =T178-HLOOKUP(X178,Feuil1!$C$1:$BL$10,5,FALSE) -> 36 | AF178: =T178-HLOOKUP(X178,Feuil1!$C$1:$BL$10,6,FALSE) -> 26 | AG178: =T178-HLOOKUP(X178,Feuil1!$C$1:$BL$10,7,FALSE) -> 16 | AH178: =T178-HLOOKUP(X178,Feuil1!$C$1:$BL$10,8,FALSE) -> 1 | AI178: =T178-HLOOKUP(X178,Feuil1!$C$1:$BL$10,9,FALSE) -> -14 | AJ178: =T178-HLOOKUP(X178,Feuil1!$C$1:$BL$10,10,FALSE) -> -884 | AQ178: INTB +
A179: F | H179: 2000 | I179: 58 | L179: 52 | O179: 52 | P179: 64 | S179: 64 | T179: 116 | V179: INTB + | W179: 1 | X179: =IF(I179="","",IF(A179="H",IF(OR(H179="SEN",H179<1997),VLOOKUP(I179,Feuil1!$A$11:$G$29,6),IF(AND(H179>1996,H179<2000),VLOOKUP(I179,Feuil1!$A$11:$G$29,5),IF(AND(H179>1999,H179<2002),VLOOKUP(I179,Feuil1!$A$11:$G$29,4),IF(AND(H179>2001,H179<2004),VLOOKUP(I179,Feuil1!$A$11:$G$29,3),VLOOKUP(I179,Feuil1!$A$11:$G$29,2))))),IF(OR(H179="SEN",H179<1997),VLOOKUP(I179,Feuil1!$G$11:$L$25,6),IF(AND(H179>1996,H179<2000),VLOOKUP(I179,Feuil1!$G$11:$L$25,5),IF(AND(H179>1999,H179<2002),VLOOKUP(I179,Feuil1!$G$11:$L$25,4),IF(AND(H179>2001,H179<2004),VLOOKUP(I179,Feuil1!$G$11:$L$25,3),VLOOKUP(I179,Feuil1!$G$11:$L$25,2))))))) -> FC2 58 | Y179: 163.3136987 | AB179: =T179-HLOOKUP(X179,Feuil1!$C$1:$BL$10,2,FALSE) -> 66 | AC179: =T179-HLOOKUP(X179,Feuil1!$C$1:$BL$10,3,FALSE) -> 56 | AD179: =T179-HLOOKUP(X179,Feuil1!$C$1:$BL$10,4,FALSE) -> 46 | AE179: =T179-HLOOKUP(X179,Feuil1!$C$1:$BL$10,5,FALSE) -> 36 | AF179: =T179-HLOOKUP(X179,Feuil1!$C$1:$BL$10,6,FALSE) -> 26 | AG179: =T179-HLOOKUP(X179,Feuil1!$C$1:$BL$10,7,FALSE) -> 16 | AH179: =T179-HLOOKUP(X179,Feuil1!$C$1:$BL$10,8,FALSE) -> 1 | AI179: =T179-HLOOKUP(X179,Feuil1!$C$1:$BL$10,9,FALSE) -> -14 | AJ179: =T179-HLOOKUP(X179,Feuil1!$C$1:$BL$10,10,FALSE) -> -884 | AQ179: INTB +
A180: F | H180: 2000 | I180: 58 | L180: 52 | O180: 52 | P180: 64 | S180: 64 | T180: 116 | V180: INTB + | W180: 1 | X180: =IF(I180="","",IF(A180="H",IF(OR(H180="SEN",H180<1997),VLOOKUP(I180,Feuil1!$A$11:$G$29,6),IF(AND(H180>1996,H180<2000),VLOOKUP(I180,Feuil1!$A$11:$G$29,5),IF(AND(H180>1999,H180<2002),VLOOKUP(I180,Feuil1!$A$11:$G$29,4),IF(AND(H180>2001,H180<2004),VLOOKUP(I180,Feuil1!$A$11:$G$29,3),VLOOKUP(I180,Feuil1!$A$11:$G$29,2))))),IF(OR(H180="SEN",H180<1997),VLOOKUP(I180,Feuil1!$G$11:$L$25,6),IF(AND(H180>1996,H180<2000),VLOOKUP(I180,Feuil1!$G$11:$L$25,5),IF(AND(H180>1999,H180<2002),VLOOKUP(I180,Feuil1!$G$11:$L$25,4),IF(AND(H180>2001,H180<2004),VLOOKUP(I180,Feuil1!$G$11:$L$25,3),VLOOKUP(I180,Feuil1!$G$11:$L$25,2))))))) -> FC2 58 | Y180: 163.3136987 | AB180: =T180-HLOOKUP(X180,Feuil1!$C$1:$BL$10,2,FALSE) -> 66 | AC180: =T180-HLOOKUP(X180,Feuil1!$C$1:$BL$10,3,FALSE) -> 56 | AD180: =T180-HLOOKUP(X180,Feuil1!$C$1:$BL$10,4,FALSE) -> 46 | AE180: =T180-HLOOKUP(X180,Feuil1!$C$1:$BL$10,5,FALSE) -> 36 | AF180: =T180-HLOOKUP(X180,Feuil1!$C$1:$BL$10,6,FALSE) -> 26 | AG180: =T180-HLOOKUP(X180,Feuil1!$C$1:$BL$10,7,FALSE) -> 16 | AH180: =T180-HLOOKUP(X180,Feuil1!$C$1:$BL$10,8,FALSE) -> 1 | AI180: =T180-HLOOKUP(X180,Feuil1!$C$1:$BL$10,9,FALSE) -> -14 | AJ180: =T180-HLOOKUP(X180,Feuil1!$C$1:$BL$10,10,FALSE) -> -884 | AQ180: INTB +
A181: F | H181: 2000 | I181: 58 | L181: 52 | O181: 52 | P181: 64 | S181: 64 | T181: 116 | V181: INTB + | W181: 1 | X181: =IF(I181="","",IF(A181="H",IF(OR(H181="SEN",H181<1997),VLOOKUP(I181,Feuil1!$A$11:$G$29,6),IF(AND(H181>1996,H181<2000),VLOOKUP(I181,Feuil1!$A$11:$G$29,5),IF(AND(H181>1999,H181<2002),VLOOKUP(I181,Feuil1!$A$11:$G$29,4),IF(AND(H181>2001,H181<2004),VLOOKUP(I181,Feuil1!$A$11:$G$29,3),VLOOKUP(I181,Feuil1!$A$11:$G$29,2))))),IF(OR(H181="SEN",H181<1997),VLOOKUP(I181,Feuil1!$G$11:$L$25,6),IF(AND(H181>1996,H181<2000),VLOOKUP(I181,Feuil1!$G$11:$L$25,5),IF(AND(H181>1999,H181<2002),VLOOKUP(I181,Feuil1!$G$11:$L$25,4),IF(AND(H181>2001,H181<2004),VLOOKUP(I181,Feuil1!$G$11:$L$25,3),VLOOKUP(I181,Feuil1!$G$11:$L$25,2))))))) -> FC2 58 | Y181: 163.3136987 | AB181: =T181-HLOOKUP(X181,Feuil1!$C$1:$BL$10,2,FALSE) -> 66 | AC181: =T181-HLOOKUP(X181,Feuil1!$C$1:$BL$10,3,FALSE) -> 56 | AD181: =T181-HLOOKUP(X181,Feuil1!$C$1:$BL$10,4,FALSE) -> 46 | AE181: =T181-HLOOKUP(X181,Feuil1!$C$1:$BL$10,5,FALSE) -> 36 | AF181: =T181-HLOOKUP(X181,Feuil1!$C$1:$BL$10,6,FALSE) -> 26 | AG181: =T181-HLOOKUP(X181,Feuil1!$C$1:$BL$10,7,FALSE) -> 16 | AH181: =T181-HLOOKUP(X181,Feuil1!$C$1:$BL$10,8,FALSE) -> 1 | AI181: =T181-HLOOKUP(X181,Feuil1!$C$1:$BL$10,9,FALSE) -> -14 | AJ181: =T181-HLOOKUP(X181,Feuil1!$C$1:$BL$10,10,FALSE) -> -884 | AQ181: INTB +
A182: F | H182: 2000 | I182: 58 | L182: 52 | O182: 52 | P182: 64 | S182: 64 | T182: 116 | V182: INTB + | W182: 1 | X182: =IF(I182="","",IF(A182="H",IF(OR(H182="SEN",H182<1997),VLOOKUP(I182,Feuil1!$A$11:$G$29,6),IF(AND(H182>1996,H182<2000),VLOOKUP(I182,Feuil1!$A$11:$G$29,5),IF(AND(H182>1999,H182<2002),VLOOKUP(I182,Feuil1!$A$11:$G$29,4),IF(AND(H182>2001,H182<2004),VLOOKUP(I182,Feuil1!$A$11:$G$29,3),VLOOKUP(I182,Feuil1!$A$11:$G$29,2))))),IF(OR(H182="SEN",H182<1997),VLOOKUP(I182,Feuil1!$G$11:$L$25,6),IF(AND(H182>1996,H182<2000),VLOOKUP(I182,Feuil1!$G$11:$L$25,5),IF(AND(H182>1999,H182<2002),VLOOKUP(I182,Feuil1!$G$11:$L$25,4),IF(AND(H182>2001,H182<2004),VLOOKUP(I182,Feuil1!$G$11:$L$25,3),VLOOKUP(I182,Feuil1!$G$11:$L$25,2))))))) -> FC2 58 | Y182: 163.3136987 | AB182: =T182-HLOOKUP(X182,Feuil1!$C$1:$BL$10,2,FALSE) -> 66 | AC182: =T182-HLOOKUP(X182,Feuil1!$C$1:$BL$10,3,FALSE) -> 56 | AD182: =T182-HLOOKUP(X182,Feuil1!$C$1:$BL$10,4,FALSE) -> 46 | AE182: =T182-HLOOKUP(X182,Feuil1!$C$1:$BL$10,5,FALSE) -> 36 | AF182: =T182-HLOOKUP(X182,Feuil1!$C$1:$BL$10,6,FALSE) -> 26 | AG182: =T182-HLOOKUP(X182,Feuil1!$C$1:$BL$10,7,FALSE) -> 16 | AH182: =T182-HLOOKUP(X182,Feuil1!$C$1:$BL$10,8,FALSE) -> 1 | AI182: =T182-HLOOKUP(X182,Feuil1!$C$1:$BL$10,9,FALSE) -> -14 | AJ182: =T182-HLOOKUP(X182,Feuil1!$C$1:$BL$10,10,FALSE) -> -884 | AQ182: INTB +
A183: F | H183: 2000 | I183: 58 | L183: 52 | O183: 52 | P183: 64 | S183: 64 | T183: 116 | V183: INTB + | W183: 1 | X183: =IF(I183="","",IF(A183="H",IF(OR(H183="SEN",H183<1997),VLOOKUP(I183,Feuil1!$A$11:$G$29,6),IF(AND(H183>1996,H183<2000),VLOOKUP(I183,Feuil1!$A$11:$G$29,5),IF(AND(H183>1999,H183<2002),VLOOKUP(I183,Feuil1!$A$11:$G$29,4),IF(AND(H183>2001,H183<2004),VLOOKUP(I183,Feuil1!$A$11:$G$29,3),VLOOKUP(I183,Feuil1!$A$11:$G$29,2))))),IF(OR(H183="SEN",H183<1997),VLOOKUP(I183,Feuil1!$G$11:$L$25,6),IF(AND(H183>1996,H183<2000),VLOOKUP(I183,Feuil1!$G$11:$L$25,5),IF(AND(H183>1999,H183<2002),VLOOKUP(I183,Feuil1!$G$11:$L$25,4),IF(AND(H183>2001,H183<2004),VLOOKUP(I183,Feuil1!$G$11:$L$25,3),VLOOKUP(I183,Feuil1!$G$11:$L$25,2))))))) -> FC2 58 | Y183: 163.3136987 | AB183: =T183-HLOOKUP(X183,Feuil1!$C$1:$BL$10,2,FALSE) -> 66 | AC183: =T183-HLOOKUP(X183,Feuil1!$C$1:$BL$10,3,FALSE) -> 56 | AD183: =T183-HLOOKUP(X183,Feuil1!$C$1:$BL$10,4,FALSE) -> 46 | AE183: =T183-HLOOKUP(X183,Feuil1!$C$1:$BL$10,5,FALSE) -> 36 | AF183: =T183-HLOOKUP(X183,Feuil1!$C$1:$BL$10,6,FALSE) -> 26 | AG183: =T183-HLOOKUP(X183,Feuil1!$C$1:$BL$10,7,FALSE) -> 16 | AH183: =T183-HLOOKUP(X183,Feuil1!$C$1:$BL$10,8,FALSE) -> 1 | AI183: =T183-HLOOKUP(X183,Feuil1!$C$1:$BL$10,9,FALSE) -> -14 | AJ183: =T183-HLOOKUP(X183,Feuil1!$C$1:$BL$10,10,FALSE) -> -884 | AQ183: INTB +
A184: F | H184: 2000 | I184: 58 | L184: 52 | O184: 52 | P184: 64 | S184: 64 | T184: 116 | V184: INTB + | W184: 1 | X184: =IF(I184="","",IF(A184="H",IF(OR(H184="SEN",H184<1997),VLOOKUP(I184,Feuil1!$A$11:$G$29,6),IF(AND(H184>1996,H184<2000),VLOOKUP(I184,Feuil1!$A$11:$G$29,5),IF(AND(H184>1999,H184<2002),VLOOKUP(I184,Feuil1!$A$11:$G$29,4),IF(AND(H184>2001,H184<2004),VLOOKUP(I184,Feuil1!$A$11:$G$29,3),VLOOKUP(I184,Feuil1!$A$11:$G$29,2))))),IF(OR(H184="SEN",H184<1997),VLOOKUP(I184,Feuil1!$G$11:$L$25,6),IF(AND(H184>1996,H184<2000),VLOOKUP(I184,Feuil1!$G$11:$L$25,5),IF(AND(H184>1999,H184<2002),VLOOKUP(I184,Feuil1!$G$11:$L$25,4),IF(AND(H184>2001,H184<2004),VLOOKUP(I184,Feuil1!$G$11:$L$25,3),VLOOKUP(I184,Feuil1!$G$11:$L$25,2))))))) -> FC2 58 | Y184: 163.3136987 | AB184: =T184-HLOOKUP(X184,Feuil1!$C$1:$BL$10,2,FALSE) -> 66 | AC184: =T184-HLOOKUP(X184,Feuil1!$C$1:$BL$10,3,FALSE) -> 56 | AD184: =T184-HLOOKUP(X184,Feuil1!$C$1:$BL$10,4,FALSE) -> 46 | AE184: =T184-HLOOKUP(X184,Feuil1!$C$1:$BL$10,5,FALSE) -> 36 | AF184: =T184-HLOOKUP(X184,Feuil1!$C$1:$BL$10,6,FALSE) -> 26 | AG184: =T184-HLOOKUP(X184,Feuil1!$C$1:$BL$10,7,FALSE) -> 16 | AH184: =T184-HLOOKUP(X184,Feuil1!$C$1:$BL$10,8,FALSE) -> 1 | AI184: =T184-HLOOKUP(X184,Feuil1!$C$1:$BL$10,9,FALSE) -> -14 | AJ184: =T184-HLOOKUP(X184,Feuil1!$C$1:$BL$10,10,FALSE) -> -884 | AQ184: INTB +
A185: F | H185: 2000 | I185: 58 | L185: 52 | O185: 52 | P185: 64 | S185: 64 | T185: 116 | V185: INTB + | W185: 1 | X185: =IF(I185="","",IF(A185="H",IF(OR(H185="SEN",H185<1997),VLOOKUP(I185,Feuil1!$A$11:$G$29,6),IF(AND(H185>1996,H185<2000),VLOOKUP(I185,Feuil1!$A$11:$G$29,5),IF(AND(H185>1999,H185<2002),VLOOKUP(I185,Feuil1!$A$11:$G$29,4),IF(AND(H185>2001,H185<2004),VLOOKUP(I185,Feuil1!$A$11:$G$29,3),VLOOKUP(I185,Feuil1!$A$11:$G$29,2))))),IF(OR(H185="SEN",H185<1997),VLOOKUP(I185,Feuil1!$G$11:$L$25,6),IF(AND(H185>1996,H185<2000),VLOOKUP(I185,Feuil1!$G$11:$L$25,5),IF(AND(H185>1999,H185<2002),VLOOKUP(I185,Feuil1!$G$11:$L$25,4),IF(AND(H185>2001,H185<2004),VLOOKUP(I185,Feuil1!$G$11:$L$25,3),VLOOKUP(I185,Feuil1!$G$11:$L$25,2))))))) -> FC2 58 | Y185: 163.3136987 | AB185: =T185-HLOOKUP(X185,Feuil1!$C$1:$BL$10,2,FALSE) -> 66 | AC185: =T185-HLOOKUP(X185,Feuil1!$C$1:$BL$10,3,FALSE) -> 56 | AD185: =T185-HLOOKUP(X185,Feuil1!$C$1:$BL$10,4,FALSE) -> 46 | AE185: =T185-HLOOKUP(X185,Feuil1!$C$1:$BL$10,5,FALSE) -> 36 | AF185: =T185-HLOOKUP(X185,Feuil1!$C$1:$BL$10,6,FALSE) -> 26 | AG185: =T185-HLOOKUP(X185,Feuil1!$C$1:$BL$10,7,FALSE) -> 16 | AH185: =T185-HLOOKUP(X185,Feuil1!$C$1:$BL$10,8,FALSE) -> 1 | AI185: =T185-HLOOKUP(X185,Feuil1!$C$1:$BL$10,9,FALSE) -> -14 | AJ185: =T185-HLOOKUP(X185,Feuil1!$C$1:$BL$10,10,FALSE) -> -884 | AQ185: INTB +
A186: F | H186: 2000 | I186: 58 | L186: 52 | O186: 52 | P186: 64 | S186: 64 | T186: 116 | V186: INTB + | W186: 1 | X186: =IF(I186="","",IF(A186="H",IF(OR(H186="SEN",H186<1997),VLOOKUP(I186,Feuil1!$A$11:$G$29,6),IF(AND(H186>1996,H186<2000),VLOOKUP(I186,Feuil1!$A$11:$G$29,5),IF(AND(H186>1999,H186<2002),VLOOKUP(I186,Feuil1!$A$11:$G$29,4),IF(AND(H186>2001,H186<2004),VLOOKUP(I186,Feuil1!$A$11:$G$29,3),VLOOKUP(I186,Feuil1!$A$11:$G$29,2))))),IF(OR(H186="SEN",H186<1997),VLOOKUP(I186,Feuil1!$G$11:$L$25,6),IF(AND(H186>1996,H186<2000),VLOOKUP(I186,Feuil1!$G$11:$L$25,5),IF(AND(H186>1999,H186<2002),VLOOKUP(I186,Feuil1!$G$11:$L$25,4),IF(AND(H186>2001,H186<2004),VLOOKUP(I186,Feuil1!$G$11:$L$25,3),VLOOKUP(I186,Feuil1!$G$11:$L$25,2))))))) -> FC2 58 | Y186: 163.3136987 | AB186: =T186-HLOOKUP(X186,Feuil1!$C$1:$BL$10,2,FALSE) -> 66 | AC186: =T186-HLOOKUP(X186,Feuil1!$C$1:$BL$10,3,FALSE) -> 56 | AD186: =T186-HLOOKUP(X186,Feuil1!$C$1:$BL$10,4,FALSE) -> 46 | AE186: =T186-HLOOKUP(X186,Feuil1!$C$1:$BL$10,5,FALSE) -> 36 | AF186: =T186-HLOOKUP(X186,Feuil1!$C$1:$BL$10,6,FALSE) -> 26 | AG186: =T186-HLOOKUP(X186,Feuil1!$C$1:$BL$10,7,FALSE) -> 16 | AH186: =T186-HLOOKUP(X186,Feuil1!$C$1:$BL$10,8,FALSE) -> 1 | AI186: =T186-HLOOKUP(X186,Feuil1!$C$1:$BL$10,9,FALSE) -> -14 | AJ186: =T186-HLOOKUP(X186,Feuil1!$C$1:$BL$10,10,FALSE) -> -884 | AQ186: INTB +
A187: F | H187: 2000 | I187: 58 | L187: 52 | O187: 52 | P187: 64 | S187: 64 | T187: 116 | V187: INTB + | W187: 1 | X187: =IF(I187="","",IF(A187="H",IF(OR(H187="SEN",H187<1997),VLOOKUP(I187,Feuil1!$A$11:$G$29,6),IF(AND(H187>1996,H187<2000),VLOOKUP(I187,Feuil1!$A$11:$G$29,5),IF(AND(H187>1999,H187<2002),VLOOKUP(I187,Feuil1!$A$11:$G$29,4),IF(AND(H187>2001,H187<2004),VLOOKUP(I187,Feuil1!$A$11:$G$29,3),VLOOKUP(I187,Feuil1!$A$11:$G$29,2))))),IF(OR(H187="SEN",H187<1997),VLOOKUP(I187,Feuil1!$G$11:$L$25,6),IF(AND(H187>1996,H187<2000),VLOOKUP(I187,Feuil1!$G$11:$L$25,5),IF(AND(H187>1999,H187<2002),VLOOKUP(I187,Feuil1!$G$11:$L$25,4),IF(AND(H187>2001,H187<2004),VLOOKUP(I187,Feuil1!$G$11:$L$25,3),VLOOKUP(I187,Feuil1!$G$11:$L$25,2))))))) -> FC2 58 | Y187: 163.3136987 | AB187: =T187-HLOOKUP(X187,Feuil1!$C$1:$BL$10,2,FALSE) -> 66 | AC187: =T187-HLOOKUP(X187,Feuil1!$C$1:$BL$10,3,FALSE) -> 56 | AD187: =T187-HLOOKUP(X187,Feuil1!$C$1:$BL$10,4,FALSE) -> 46 | AE187: =T187-HLOOKUP(X187,Feuil1!$C$1:$BL$10,5,FALSE) -> 36 | AF187: =T187-HLOOKUP(X187,Feuil1!$C$1:$BL$10,6,FALSE) -> 26 | AG187: =T187-HLOOKUP(X187,Feuil1!$C$1:$BL$10,7,FALSE) -> 16 | AH187: =T187-HLOOKUP(X187,Feuil1!$C$1:$BL$10,8,FALSE) -> 1 | AI187: =T187-HLOOKUP(X187,Feuil1!$C$1:$BL$10,9,FALSE) -> -14 | AJ187: =T187-HLOOKUP(X187,Feuil1!$C$1:$BL$10,10,FALSE) -> -884 | AQ187: INTB +
A188: F | H188: 2000 | I188: 58 | L188: 52 | O188: 52 | P188: 64 | S188: 64 | T188: 116 | V188: INTB + | W188: 1 | X188: =IF(I188="","",IF(A188="H",IF(OR(H188="SEN",H188<1997),VLOOKUP(I188,Feuil1!$A$11:$G$29,6),IF(AND(H188>1996,H188<2000),VLOOKUP(I188,Feuil1!$A$11:$G$29,5),IF(AND(H188>1999,H188<2002),VLOOKUP(I188,Feuil1!$A$11:$G$29,4),IF(AND(H188>2001,H188<2004),VLOOKUP(I188,Feuil1!$A$11:$G$29,3),VLOOKUP(I188,Feuil1!$A$11:$G$29,2))))),IF(OR(H188="SEN",H188<1997),VLOOKUP(I188,Feuil1!$G$11:$L$25,6),IF(AND(H188>1996,H188<2000),VLOOKUP(I188,Feuil1!$G$11:$L$25,5),IF(AND(H188>1999,H188<2002),VLOOKUP(I188,Feuil1!$G$11:$L$25,4),IF(AND(H188>2001,H188<2004),VLOOKUP(I188,Feuil1!$G$11:$L$25,3),VLOOKUP(I188,Feuil1!$G$11:$L$25,2))))))) -> FC2 58 | Y188: 163.3136987 | AB188: =T188-HLOOKUP(X188,Feuil1!$C$1:$BL$10,2,FALSE) -> 66 | AC188: =T188-HLOOKUP(X188,Feuil1!$C$1:$BL$10,3,FALSE) -> 56 | AD188: =T188-HLOOKUP(X188,Feuil1!$C$1:$BL$10,4,FALSE) -> 46 | AE188: =T188-HLOOKUP(X188,Feuil1!$C$1:$BL$10,5,FALSE) -> 36 | AF188: =T188-HLOOKUP(X188,Feuil1!$C$1:$BL$10,6,FALSE) -> 26 | AG188: =T188-HLOOKUP(X188,Feuil1!$C$1:$BL$10,7,FALSE) -> 16 | AH188: =T188-HLOOKUP(X188,Feuil1!$C$1:$BL$10,8,FALSE) -> 1 | AI188: =T188-HLOOKUP(X188,Feuil1!$C$1:$BL$10,9,FALSE) -> -14 | AJ188: =T188-HLOOKUP(X188,Feuil1!$C$1:$BL$10,10,FALSE) -> -884 | AQ188: INTB +
A189: F | H189: 2000 | I189: 58 | L189: 52 | O189: 52 | P189: 64 | S189: 64 | T189: 116 | V189: INTB + | W189: 1 | X189: =IF(I189="","",IF(A189="H",IF(OR(H189="SEN",H189<1997),VLOOKUP(I189,Feuil1!$A$11:$G$29,6),IF(AND(H189>1996,H189<2000),VLOOKUP(I189,Feuil1!$A$11:$G$29,5),IF(AND(H189>1999,H189<2002),VLOOKUP(I189,Feuil1!$A$11:$G$29,4),IF(AND(H189>2001,H189<2004),VLOOKUP(I189,Feuil1!$A$11:$G$29,3),VLOOKUP(I189,Feuil1!$A$11:$G$29,2))))),IF(OR(H189="SEN",H189<1997),VLOOKUP(I189,Feuil1!$G$11:$L$25,6),IF(AND(H189>1996,H189<2000),VLOOKUP(I189,Feuil1!$G$11:$L$25,5),IF(AND(H189>1999,H189<2002),VLOOKUP(I189,Feuil1!$G$11:$L$25,4),IF(AND(H189>2001,H189<2004),VLOOKUP(I189,Feuil1!$G$11:$L$25,3),VLOOKUP(I189,Feuil1!$G$11:$L$25,2))))))) -> FC2 58 | Y189: 163.3136987 | AB189: =T189-HLOOKUP(X189,Feuil1!$C$1:$BL$10,2,FALSE) -> 66 | AC189: =T189-HLOOKUP(X189,Feuil1!$C$1:$BL$10,3,FALSE) -> 56 | AD189: =T189-HLOOKUP(X189,Feuil1!$C$1:$BL$10,4,FALSE) -> 46 | AE189: =T189-HLOOKUP(X189,Feuil1!$C$1:$BL$10,5,FALSE) -> 36 | AF189: =T189-HLOOKUP(X189,Feuil1!$C$1:$BL$10,6,FALSE) -> 26 | AG189: =T189-HLOOKUP(X189,Feuil1!$C$1:$BL$10,7,FALSE) -> 16 | AH189: =T189-HLOOKUP(X189,Feuil1!$C$1:$BL$10,8,FALSE) -> 1 | AI189: =T189-HLOOKUP(X189,Feuil1!$C$1:$BL$10,9,FALSE) -> -14 | AJ189: =T189-HLOOKUP(X189,Feuil1!$C$1:$BL$10,10,FALSE) -> -884 | AQ189: INTB +
A190: F | H190: 2000 | I190: 58 | L190: 52 | O190: 52 | P190: 64 | S190: 64 | T190: 116 | V190: INTB + | W190: 1 | X190: =IF(I190="","",IF(A190="H",IF(OR(H190="SEN",H190<1997),VLOOKUP(I190,Feuil1!$A$11:$G$29,6),IF(AND(H190>1996,H190<2000),VLOOKUP(I190,Feuil1!$A$11:$G$29,5),IF(AND(H190>1999,H190<2002),VLOOKUP(I190,Feuil1!$A$11:$G$29,4),IF(AND(H190>2001,H190<2004),VLOOKUP(I190,Feuil1!$A$11:$G$29,3),VLOOKUP(I190,Feuil1!$A$11:$G$29,2))))),IF(OR(H190="SEN",H190<1997),VLOOKUP(I190,Feuil1!$G$11:$L$25,6),IF(AND(H190>1996,H190<2000),VLOOKUP(I190,Feuil1!$G$11:$L$25,5),IF(AND(H190>1999,H190<2002),VLOOKUP(I190,Feuil1!$G$11:$L$25,4),IF(AND(H190>2001,H190<2004),VLOOKUP(I190,Feuil1!$G$11:$L$25,3),VLOOKUP(I190,Feuil1!$G$11:$L$25,2))))))) -> FC2 58 | Y190: 163.3136987 | AB190: =T190-HLOOKUP(X190,Feuil1!$C$1:$BL$10,2,FALSE) -> 66 | AC190: =T190-HLOOKUP(X190,Feuil1!$C$1:$BL$10,3,FALSE) -> 56 | AD190: =T190-HLOOKUP(X190,Feuil1!$C$1:$BL$10,4,FALSE) -> 46 | AE190: =T190-HLOOKUP(X190,Feuil1!$C$1:$BL$10,5,FALSE) -> 36 | AF190: =T190-HLOOKUP(X190,Feuil1!$C$1:$BL$10,6,FALSE) -> 26 | AG190: =T190-HLOOKUP(X190,Feuil1!$C$1:$BL$10,7,FALSE) -> 16 | AH190: =T190-HLOOKUP(X190,Feuil1!$C$1:$BL$10,8,FALSE) -> 1 | AI190: =T190-HLOOKUP(X190,Feuil1!$C$1:$BL$10,9,FALSE) -> -14 | AJ190: =T190-HLOOKUP(X190,Feuil1!$C$1:$BL$10,10,FALSE) -> -884 | AQ190: INTB +
A191: F | H191: 2000 | I191: 58 | L191: 52 | O191: 52 | P191: 64 | S191: 64 | T191: 116 | V191: INTB + | W191: 1 | X191: =IF(I191="","",IF(A191="H",IF(OR(H191="SEN",H191<1997),VLOOKUP(I191,Feuil1!$A$11:$G$29,6),IF(AND(H191>1996,H191<2000),VLOOKUP(I191,Feuil1!$A$11:$G$29,5),IF(AND(H191>1999,H191<2002),VLOOKUP(I191,Feuil1!$A$11:$G$29,4),IF(AND(H191>2001,H191<2004),VLOOKUP(I191,Feuil1!$A$11:$G$29,3),VLOOKUP(I191,Feuil1!$A$11:$G$29,2))))),IF(OR(H191="SEN",H191<1997),VLOOKUP(I191,Feuil1!$G$11:$L$25,6),IF(AND(H191>1996,H191<2000),VLOOKUP(I191,Feuil1!$G$11:$L$25,5),IF(AND(H191>1999,H191<2002),VLOOKUP(I191,Feuil1!$G$11:$L$25,4),IF(AND(H191>2001,H191<2004),VLOOKUP(I191,Feuil1!$G$11:$L$25,3),VLOOKUP(I191,Feuil1!$G$11:$L$25,2))))))) -> FC2 58 | Y191: 163.3136987 | AB191: =T191-HLOOKUP(X191,Feuil1!$C$1:$BL$10,2,FALSE) -> 66 | AC191: =T191-HLOOKUP(X191,Feuil1!$C$1:$BL$10,3,FALSE) -> 56 | AD191: =T191-HLOOKUP(X191,Feuil1!$C$1:$BL$10,4,FALSE) -> 46 | AE191: =T191-HLOOKUP(X191,Feuil1!$C$1:$BL$10,5,FALSE) -> 36 | AF191: =T191-HLOOKUP(X191,Feuil1!$C$1:$BL$10,6,FALSE) -> 26 | AG191: =T191-HLOOKUP(X191,Feuil1!$C$1:$BL$10,7,FALSE) -> 16 | AH191: =T191-HLOOKUP(X191,Feuil1!$C$1:$BL$10,8,FALSE) -> 1 | AI191: =T191-HLOOKUP(X191,Feuil1!$C$1:$BL$10,9,FALSE) -> -14 | AJ191: =T191-HLOOKUP(X191,Feuil1!$C$1:$BL$10,10,FALSE) -> -884 | AQ191: INTB +
A192: F | H192: 2000 | I192: 58 | L192: 52 | O192: 52 | P192: 64 | S192: 64 | T192: 116 | V192: INTB + | W192: 1 | X192: =IF(I192="","",IF(A192="H",IF(OR(H192="SEN",H192<1997),VLOOKUP(I192,Feuil1!$A$11:$G$29,6),IF(AND(H192>1996,H192<2000),VLOOKUP(I192,Feuil1!$A$11:$G$29,5),IF(AND(H192>1999,H192<2002),VLOOKUP(I192,Feuil1!$A$11:$G$29,4),IF(AND(H192>2001,H192<2004),VLOOKUP(I192,Feuil1!$A$11:$G$29,3),VLOOKUP(I192,Feuil1!$A$11:$G$29,2))))),IF(OR(H192="SEN",H192<1997),VLOOKUP(I192,Feuil1!$G$11:$L$25,6),IF(AND(H192>1996,H192<2000),VLOOKUP(I192,Feuil1!$G$11:$L$25,5),IF(AND(H192>1999,H192<2002),VLOOKUP(I192,Feuil1!$G$11:$L$25,4),IF(AND(H192>2001,H192<2004),VLOOKUP(I192,Feuil1!$G$11:$L$25,3),VLOOKUP(I192,Feuil1!$G$11:$L$25,2))))))) -> FC2 58 | Y192: 163.3136987 | AB192: =T192-HLOOKUP(X192,Feuil1!$C$1:$BL$10,2,FALSE) -> 66 | AC192: =T192-HLOOKUP(X192,Feuil1!$C$1:$BL$10,3,FALSE) -> 56 | AD192: =T192-HLOOKUP(X192,Feuil1!$C$1:$BL$10,4,FALSE) -> 46 | AE192: =T192-HLOOKUP(X192,Feuil1!$C$1:$BL$10,5,FALSE) -> 36 | AF192: =T192-HLOOKUP(X192,Feuil1!$C$1:$BL$10,6,FALSE) -> 26 | AG192: =T192-HLOOKUP(X192,Feuil1!$C$1:$BL$10,7,FALSE) -> 16 | AH192: =T192-HLOOKUP(X192,Feuil1!$C$1:$BL$10,8,FALSE) -> 1 | AI192: =T192-HLOOKUP(X192,Feuil1!$C$1:$BL$10,9,FALSE) -> -14 | AJ192: =T192-HLOOKUP(X192,Feuil1!$C$1:$BL$10,10,FALSE) -> -884 | AQ192: INTB +
A193: F | H193: 2000 | I193: 58 | L193: 52 | O193: 52 | P193: 64 | S193: 64 | T193: 116 | V193: INTB + | W193: 1 | X193: =IF(I193="","",IF(A193="H",IF(OR(H193="SEN",H193<1997),VLOOKUP(I193,Feuil1!$A$11:$G$29,6),IF(AND(H193>1996,H193<2000),VLOOKUP(I193,Feuil1!$A$11:$G$29,5),IF(AND(H193>1999,H193<2002),VLOOKUP(I193,Feuil1!$A$11:$G$29,4),IF(AND(H193>2001,H193<2004),VLOOKUP(I193,Feuil1!$A$11:$G$29,3),VLOOKUP(I193,Feuil1!$A$11:$G$29,2))))),IF(OR(H193="SEN",H193<1997),VLOOKUP(I193,Feuil1!$G$11:$L$25,6),IF(AND(H193>1996,H193<2000),VLOOKUP(I193,Feuil1!$G$11:$L$25,5),IF(AND(H193>1999,H193<2002),VLOOKUP(I193,Feuil1!$G$11:$L$25,4),IF(AND(H193>2001,H193<2004),VLOOKUP(I193,Feuil1!$G$11:$L$25,3),VLOOKUP(I193,Feuil1!$G$11:$L$25,2))))))) -> FC2 58 | Y193: 163.3136987 | AB193: =T193-HLOOKUP(X193,Feuil1!$C$1:$BL$10,2,FALSE) -> 66 | AC193: =T193-HLOOKUP(X193,Feuil1!$C$1:$BL$10,3,FALSE) -> 56 | AD193: =T193-HLOOKUP(X193,Feuil1!$C$1:$BL$10,4,FALSE) -> 46 | AE193: =T193-HLOOKUP(X193,Feuil1!$C$1:$BL$10,5,FALSE) -> 36 | AF193: =T193-HLOOKUP(X193,Feuil1!$C$1:$BL$10,6,FALSE) -> 26 | AG193: =T193-HLOOKUP(X193,Feuil1!$C$1:$BL$10,7,FALSE) -> 16 | AH193: =T193-HLOOKUP(X193,Feuil1!$C$1:$BL$10,8,FALSE) -> 1 | AI193: =T193-HLOOKUP(X193,Feuil1!$C$1:$BL$10,9,FALSE) -> -14 | AJ193: =T193-HLOOKUP(X193,Feuil1!$C$1:$BL$10,10,FALSE) -> -884 | AQ193: INTB +
A194: F | H194: 2000 | I194: 58 | L194: 52 | O194: 52 | P194: 64 | S194: 64 | T194: 116 | V194: INTB + | W194: 1 | X194: =IF(I194="","",IF(A194="H",IF(OR(H194="SEN",H194<1997),VLOOKUP(I194,Feuil1!$A$11:$G$29,6),IF(AND(H194>1996,H194<2000),VLOOKUP(I194,Feuil1!$A$11:$G$29,5),IF(AND(H194>1999,H194<2002),VLOOKUP(I194,Feuil1!$A$11:$G$29,4),IF(AND(H194>2001,H194<2004),VLOOKUP(I194,Feuil1!$A$11:$G$29,3),VLOOKUP(I194,Feuil1!$A$11:$G$29,2))))),IF(OR(H194="SEN",H194<1997),VLOOKUP(I194,Feuil1!$G$11:$L$25,6),IF(AND(H194>1996,H194<2000),VLOOKUP(I194,Feuil1!$G$11:$L$25,5),IF(AND(H194>1999,H194<2002),VLOOKUP(I194,Feuil1!$G$11:$L$25,4),IF(AND(H194>2001,H194<2004),VLOOKUP(I194,Feuil1!$G$11:$L$25,3),VLOOKUP(I194,Feuil1!$G$11:$L$25,2))))))) -> FC2 58 | Y194: 163.3136987 | AB194: =T194-HLOOKUP(X194,Feuil1!$C$1:$BL$10,2,FALSE) -> 66 | AC194: =T194-HLOOKUP(X194,Feuil1!$C$1:$BL$10,3,FALSE) -> 56 | AD194: =T194-HLOOKUP(X194,Feuil1!$C$1:$BL$10,4,FALSE) -> 46 | AE194: =T194-HLOOKUP(X194,Feuil1!$C$1:$BL$10,5,FALSE) -> 36 | AF194: =T194-HLOOKUP(X194,Feuil1!$C$1:$BL$10,6,FALSE) -> 26 | AG194: =T194-HLOOKUP(X194,Feuil1!$C$1:$BL$10,7,FALSE) -> 16 | AH194: =T194-HLOOKUP(X194,Feuil1!$C$1:$BL$10,8,FALSE) -> 1 | AI194: =T194-HLOOKUP(X194,Feuil1!$C$1:$BL$10,9,FALSE) -> -14 | AJ194: =T194-HLOOKUP(X194,Feuil1!$C$1:$BL$10,10,FALSE) -> -884 | AQ194: INTB +
A195: F | H195: 2000 | I195: 58 | L195: 52 | O195: 52 | P195: 64 | S195: 64 | T195: 116 | V195: INTB + | W195: 1 | X195: =IF(I195="","",IF(A195="H",IF(OR(H195="SEN",H195<1997),VLOOKUP(I195,Feuil1!$A$11:$G$29,6),IF(AND(H195>1996,H195<2000),VLOOKUP(I195,Feuil1!$A$11:$G$29,5),IF(AND(H195>1999,H195<2002),VLOOKUP(I195,Feuil1!$A$11:$G$29,4),IF(AND(H195>2001,H195<2004),VLOOKUP(I195,Feuil1!$A$11:$G$29,3),VLOOKUP(I195,Feuil1!$A$11:$G$29,2))))),IF(OR(H195="SEN",H195<1997),VLOOKUP(I195,Feuil1!$G$11:$L$25,6),IF(AND(H195>1996,H195<2000),VLOOKUP(I195,Feuil1!$G$11:$L$25,5),IF(AND(H195>1999,H195<2002),VLOOKUP(I195,Feuil1!$G$11:$L$25,4),IF(AND(H195>2001,H195<2004),VLOOKUP(I195,Feuil1!$G$11:$L$25,3),VLOOKUP(I195,Feuil1!$G$11:$L$25,2))))))) -> FC2 58 | Y195: 163.3136987 | AB195: =T195-HLOOKUP(X195,Feuil1!$C$1:$BL$10,2,FALSE) -> 66 | AC195: =T195-HLOOKUP(X195,Feuil1!$C$1:$BL$10,3,FALSE) -> 56 | AD195: =T195-HLOOKUP(X195,Feuil1!$C$1:$BL$10,4,FALSE) -> 46 | AE195: =T195-HLOOKUP(X195,Feuil1!$C$1:$BL$10,5,FALSE) -> 36 | AF195: =T195-HLOOKUP(X195,Feuil1!$C$1:$BL$10,6,FALSE) -> 26 | AG195: =T195-HLOOKUP(X195,Feuil1!$C$1:$BL$10,7,FALSE) -> 16 | AH195: =T195-HLOOKUP(X195,Feuil1!$C$1:$BL$10,8,FALSE) -> 1 | AI195: =T195-HLOOKUP(X195,Feuil1!$C$1:$BL$10,9,FALSE) -> -14 | AJ195: =T195-HLOOKUP(X195,Feuil1!$C$1:$BL$10,10,FALSE) -> -884 | AQ195: INTB +
A196: F | H196: 2000 | I196: 58 | L196: 52 | O196: 52 | P196: 64 | S196: 64 | T196: 116 | V196: INTB + | W196: 1 | X196: =IF(I196="","",IF(A196="H",IF(OR(H196="SEN",H196<1997),VLOOKUP(I196,Feuil1!$A$11:$G$29,6),IF(AND(H196>1996,H196<2000),VLOOKUP(I196,Feuil1!$A$11:$G$29,5),IF(AND(H196>1999,H196<2002),VLOOKUP(I196,Feuil1!$A$11:$G$29,4),IF(AND(H196>2001,H196<2004),VLOOKUP(I196,Feuil1!$A$11:$G$29,3),VLOOKUP(I196,Feuil1!$A$11:$G$29,2))))),IF(OR(H196="SEN",H196<1997),VLOOKUP(I196,Feuil1!$G$11:$L$25,6),IF(AND(H196>1996,H196<2000),VLOOKUP(I196,Feuil1!$G$11:$L$25,5),IF(AND(H196>1999,H196<2002),VLOOKUP(I196,Feuil1!$G$11:$L$25,4),IF(AND(H196>2001,H196<2004),VLOOKUP(I196,Feuil1!$G$11:$L$25,3),VLOOKUP(I196,Feuil1!$G$11:$L$25,2))))))) -> FC2 58 | Y196: 163.3136987 | AB196: =T196-HLOOKUP(X196,Feuil1!$C$1:$BL$10,2,FALSE) -> 66 | AC196: =T196-HLOOKUP(X196,Feuil1!$C$1:$BL$10,3,FALSE) -> 56 | AD196: =T196-HLOOKUP(X196,Feuil1!$C$1:$BL$10,4,FALSE) -> 46 | AE196: =T196-HLOOKUP(X196,Feuil1!$C$1:$BL$10,5,FALSE) -> 36 | AF196: =T196-HLOOKUP(X196,Feuil1!$C$1:$BL$10,6,FALSE) -> 26 | AG196: =T196-HLOOKUP(X196,Feuil1!$C$1:$BL$10,7,FALSE) -> 16 | AH196: =T196-HLOOKUP(X196,Feuil1!$C$1:$BL$10,8,FALSE) -> 1 | AI196: =T196-HLOOKUP(X196,Feuil1!$C$1:$BL$10,9,FALSE) -> -14 | AJ196: =T196-HLOOKUP(X196,Feuil1!$C$1:$BL$10,10,FALSE) -> -884 | AQ196: INTB +
A197: F | H197: 2000 | I197: 58 | L197: 52 | O197: 52 | P197: 64 | S197: 64 | T197: 116 | V197: INTB + | W197: 1 | X197: =IF(I197="","",IF(A197="H",IF(OR(H197="SEN",H197<1997),VLOOKUP(I197,Feuil1!$A$11:$G$29,6),IF(AND(H197>1996,H197<2000),VLOOKUP(I197,Feuil1!$A$11:$G$29,5),IF(AND(H197>1999,H197<2002),VLOOKUP(I197,Feuil1!$A$11:$G$29,4),IF(AND(H197>2001,H197<2004),VLOOKUP(I197,Feuil1!$A$11:$G$29,3),VLOOKUP(I197,Feuil1!$A$11:$G$29,2))))),IF(OR(H197="SEN",H197<1997),VLOOKUP(I197,Feuil1!$G$11:$L$25,6),IF(AND(H197>1996,H197<2000),VLOOKUP(I197,Feuil1!$G$11:$L$25,5),IF(AND(H197>1999,H197<2002),VLOOKUP(I197,Feuil1!$G$11:$L$25,4),IF(AND(H197>2001,H197<2004),VLOOKUP(I197,Feuil1!$G$11:$L$25,3),VLOOKUP(I197,Feuil1!$G$11:$L$25,2))))))) -> FC2 58 | Y197: 163.3136987 | AB197: =T197-HLOOKUP(X197,Feuil1!$C$1:$BL$10,2,FALSE) -> 66 | AC197: =T197-HLOOKUP(X197,Feuil1!$C$1:$BL$10,3,FALSE) -> 56 | AD197: =T197-HLOOKUP(X197,Feuil1!$C$1:$BL$10,4,FALSE) -> 46 | AE197: =T197-HLOOKUP(X197,Feuil1!$C$1:$BL$10,5,FALSE) -> 36 | AF197: =T197-HLOOKUP(X197,Feuil1!$C$1:$BL$10,6,FALSE) -> 26 | AG197: =T197-HLOOKUP(X197,Feuil1!$C$1:$BL$10,7,FALSE) -> 16 | AH197: =T197-HLOOKUP(X197,Feuil1!$C$1:$BL$10,8,FALSE) -> 1 | AI197: =T197-HLOOKUP(X197,Feuil1!$C$1:$BL$10,9,FALSE) -> -14 | AJ197: =T197-HLOOKUP(X197,Feuil1!$C$1:$BL$10,10,FALSE) -> -884 | AQ197: INTB +
A198: F | H198: 2000 | I198: 58 | L198: 52 | O198: 52 | P198: 64 | S198: 64 | T198: 116 | V198: INTB + | W198: 1 | X198: =IF(I198="","",IF(A198="H",IF(OR(H198="SEN",H198<1997),VLOOKUP(I198,Feuil1!$A$11:$G$29,6),IF(AND(H198>1996,H198<2000),VLOOKUP(I198,Feuil1!$A$11:$G$29,5),IF(AND(H198>1999,H198<2002),VLOOKUP(I198,Feuil1!$A$11:$G$29,4),IF(AND(H198>2001,H198<2004),VLOOKUP(I198,Feuil1!$A$11:$G$29,3),VLOOKUP(I198,Feuil1!$A$11:$G$29,2))))),IF(OR(H198="SEN",H198<1997),VLOOKUP(I198,Feuil1!$G$11:$L$25,6),IF(AND(H198>1996,H198<2000),VLOOKUP(I198,Feuil1!$G$11:$L$25,5),IF(AND(H198>1999,H198<2002),VLOOKUP(I198,Feuil1!$G$11:$L$25,4),IF(AND(H198>2001,H198<2004),VLOOKUP(I198,Feuil1!$G$11:$L$25,3),VLOOKUP(I198,Feuil1!$G$11:$L$25,2))))))) -> FC2 58 | Y198: 163.3136987 | AB198: =T198-HLOOKUP(X198,Feuil1!$C$1:$BL$10,2,FALSE) -> 66 | AC198: =T198-HLOOKUP(X198,Feuil1!$C$1:$BL$10,3,FALSE) -> 56 | AD198: =T198-HLOOKUP(X198,Feuil1!$C$1:$BL$10,4,FALSE) -> 46 | AE198: =T198-HLOOKUP(X198,Feuil1!$C$1:$BL$10,5,FALSE) -> 36 | AF198: =T198-HLOOKUP(X198,Feuil1!$C$1:$BL$10,6,FALSE) -> 26 | AG198: =T198-HLOOKUP(X198,Feuil1!$C$1:$BL$10,7,FALSE) -> 16 | AH198: =T198-HLOOKUP(X198,Feuil1!$C$1:$BL$10,8,FALSE) -> 1 | AI198: =T198-HLOOKUP(X198,Feuil1!$C$1:$BL$10,9,FALSE) -> -14 | AJ198: =T198-HLOOKUP(X198,Feuil1!$C$1:$BL$10,10,FALSE) -> -884 | AQ198: INTB +
A199: F | H199: 2000 | I199: 58 | L199: 52 | O199: 52 | P199: 64 | S199: 64 | T199: 116 | V199: INTB + | W199: 1 | X199: =IF(I199="","",IF(A199="H",IF(OR(H199="SEN",H199<1997),VLOOKUP(I199,Feuil1!$A$11:$G$29,6),IF(AND(H199>1996,H199<2000),VLOOKUP(I199,Feuil1!$A$11:$G$29,5),IF(AND(H199>1999,H199<2002),VLOOKUP(I199,Feuil1!$A$11:$G$29,4),IF(AND(H199>2001,H199<2004),VLOOKUP(I199,Feuil1!$A$11:$G$29,3),VLOOKUP(I199,Feuil1!$A$11:$G$29,2))))),IF(OR(H199="SEN",H199<1997),VLOOKUP(I199,Feuil1!$G$11:$L$25,6),IF(AND(H199>1996,H199<2000),VLOOKUP(I199,Feuil1!$G$11:$L$25,5),IF(AND(H199>1999,H199<2002),VLOOKUP(I199,Feuil1!$G$11:$L$25,4),IF(AND(H199>2001,H199<2004),VLOOKUP(I199,Feuil1!$G$11:$L$25,3),VLOOKUP(I199,Feuil1!$G$11:$L$25,2))))))) -> FC2 58 | Y199: 163.3136987 | AB199: =T199-HLOOKUP(X199,Feuil1!$C$1:$BL$10,2,FALSE) -> 66 | AC199: =T199-HLOOKUP(X199,Feuil1!$C$1:$BL$10,3,FALSE) -> 56 | AD199: =T199-HLOOKUP(X199,Feuil1!$C$1:$BL$10,4,FALSE) -> 46 | AE199: =T199-HLOOKUP(X199,Feuil1!$C$1:$BL$10,5,FALSE) -> 36 | AF199: =T199-HLOOKUP(X199,Feuil1!$C$1:$BL$10,6,FALSE) -> 26 | AG199: =T199-HLOOKUP(X199,Feuil1!$C$1:$BL$10,7,FALSE) -> 16 | AH199: =T199-HLOOKUP(X199,Feuil1!$C$1:$BL$10,8,FALSE) -> 1 | AI199: =T199-HLOOKUP(X199,Feuil1!$C$1:$BL$10,9,FALSE) -> -14 | AJ199: =T199-HLOOKUP(X199,Feuil1!$C$1:$BL$10,10,FALSE) -> -884 | AQ199: INTB +
A200: H | H200: 2000 | I200: 58 | L200: 52 | O200: 52 | P200: 64 | S200: 64 | T200: 116 | V200: DEP + | W200: 11 | X200: =IF(I200="","",IF(A200="H",IF(OR(H200="SEN",H200<1997),VLOOKUP(I200,Feuil1!$A$11:$G$29,6),IF(AND(H200>1996,H200<2000),VLOOKUP(I200,Feuil1!$A$11:$G$29,5),IF(AND(H200>1999,H200<2002),VLOOKUP(I200,Feuil1!$A$11:$G$29,4),IF(AND(H200>2001,H200<2004),VLOOKUP(I200,Feuil1!$A$11:$G$29,3),VLOOKUP(I200,Feuil1!$A$11:$G$29,2))))),IF(OR(H200="SEN",H200<1997),VLOOKUP(I200,Feuil1!$G$11:$L$25,6),IF(AND(H200>1996,H200<2000),VLOOKUP(I200,Feuil1!$G$11:$L$25,5),IF(AND(H200>1999,H200<2002),VLOOKUP(I200,Feuil1!$G$11:$L$25,4),IF(AND(H200>2001,H200<2004),VLOOKUP(I200,Feuil1!$G$11:$L$25,3),VLOOKUP(I200,Feuil1!$G$11:$L$25,2))))))) -> C2 62 | Y200: 176.2109387 | AB200: =T200-HLOOKUP(X200,Feuil1!$C$1:$BL$10,2,FALSE) -> 31 | AC200: =T200-HLOOKUP(X200,Feuil1!$C$1:$BL$10,3,FALSE) -> 11 | AD200: =T200-HLOOKUP(X200,Feuil1!$C$1:$BL$10,4,FALSE) -> -4 | AE200: =T200-HLOOKUP(X200,Feuil1!$C$1:$BL$10,5,FALSE) -> -19 | AF200: =T200-HLOOKUP(X200,Feuil1!$C$1:$BL$10,6,FALSE) -> -34 | AG200: =T200-HLOOKUP(X200,Feuil1!$C$1:$BL$10,7,FALSE) -> -54 | AH200: =T200-HLOOKUP(X200,Feuil1!$C$1:$BL$10,8,FALSE) -> -74 | AI200: =T200-HLOOKUP(X200,Feuil1!$C$1:$BL$10,9,FALSE) -> -94 | AJ200: =T200-HLOOKUP(X200,Feuil1!$C$1:$BL$10,10,FALSE) -> -884 | AQ200: DEP +
A201: F | H201: 2000 | I201: 58 | L201: 52 | O201: 52 | P201: 64 | S201: 64 | T201: 116 | V201: INTB + | W201: 1 | X201: =IF(I201="","",IF(A201="H",IF(OR(H201="SEN",H201<1997),VLOOKUP(I201,Feuil1!$A$11:$G$29,6),IF(AND(H201>1996,H201<2000),VLOOKUP(I201,Feuil1!$A$11:$G$29,5),IF(AND(H201>1999,H201<2002),VLOOKUP(I201,Feuil1!$A$11:$G$29,4),IF(AND(H201>2001,H201<2004),VLOOKUP(I201,Feuil1!$A$11:$G$29,3),VLOOKUP(I201,Feuil1!$A$11:$G$29,2))))),IF(OR(H201="SEN",H201<1997),VLOOKUP(I201,Feuil1!$G$11:$L$25,6),IF(AND(H201>1996,H201<2000),VLOOKUP(I201,Feuil1!$G$11:$L$25,5),IF(AND(H201>1999,H201<2002),VLOOKUP(I201,Feuil1!$G$11:$L$25,4),IF(AND(H201>2001,H201<2004),VLOOKUP(I201,Feuil1!$G$11:$L$25,3),VLOOKUP(I201,Feuil1!$G$11:$L$25,2))))))) -> FC2 58 | Y201: 163.3136987 | AB201: =T201-HLOOKUP(X201,Feuil1!$C$1:$BL$10,2,FALSE) -> 66 | AC201: =T201-HLOOKUP(X201,Feuil1!$C$1:$BL$10,3,FALSE) -> 56 | AD201: =T201-HLOOKUP(X201,Feuil1!$C$1:$BL$10,4,FALSE) -> 46 | AE201: =T201-HLOOKUP(X201,Feuil1!$C$1:$BL$10,5,FALSE) -> 36 | AF201: =T201-HLOOKUP(X201,Feuil1!$C$1:$BL$10,6,FALSE) -> 26 | AG201: =T201-HLOOKUP(X201,Feuil1!$C$1:$BL$10,7,FALSE) -> 16 | AH201: =T201-HLOOKUP(X201,Feuil1!$C$1:$BL$10,8,FALSE) -> 1 | AI201: =T201-HLOOKUP(X201,Feuil1!$C$1:$BL$10,9,FALSE) -> -14 | AJ201: =T201-HLOOKUP(X201,Feuil1!$C$1:$BL$10,10,FALSE) -> -884 | AQ201: INTB +
... 143 more rows
